Workbook

Sheet Data
D1: JOU | E1: Non- | H1: Transferred | I1: Contingent
C2: Net | D2: Dynamic | E2: Conforming | F2: Pumped | G2: Ramping | H2: Frequency | I2: BA | J2: BA | K2: BA
C3: Actual | D3: Schedules | E3: Load | F3: Hydro | G3: Units | H3: Response | I3: Lost Generation | J3: Bias | K3: Load
C4: Interchange | D4: Imp(-) Exp (+) | E4: Load (-) | F4: Load (-) Gen (+) | G4: Gen (+) | H4: Rec (-) Del (+) | I4: Load (-) Gen (+) | J4: Setting
A5: Time (T) | B5: Hz | C5: MW | D5: MW | E5: MW | F5: MW | G5: MW | H5: MW/0.1 Hz | I5: MW | J5: MW/0.1 Hz | K5: MW
A6: 2009-10-12T02:12:00 | B6: 59.97999954 | C6: 3669.878418 | D6: 350 | E6: 351.3615112 | F6: 0 | G6: 0 | H6: 10 | I6: 15 | J6: -103 | K6: 7500
A7: 2009-10-12T02:12:05 | B7: 59.98199844 | C7: 3670.949219 | D7: 350 | E7: 351.3615112 | F7: 0 | G7: 0.5 | H7: 10 | I7: 15 | J7: -103 | K7: 7500.33
A8: 2009-10-12T02:12:10 | B8: 59.98099899 | C8: 3671.548096 | D8: 350 | E8: 351.3615112 | F8: 0 | G8: 1 | H8: 10 | I8: 15 | J8: -103 | K8: 7500.66
A9: 2009-10-12T02:12:15 | B9: 59.97900009 | C9: 3672.174072 | D9: 350 | E9: 357.9475098 | F9: 0 | G9: 1.5 | H9: 10 | I9: 15 | J9: -103 | K9: 7500.99
A10: 2009-10-12T02:12:20 | B10: 59.97999954 | C10: 3674.263428 | D10: 350 | E10: 357.9475098 | F10: 0 | G10: 2 | H10: 10 | I10: 15 | J10: -103 | K10: 7501.32
A11: 2009-10-12T02:12:25 | B11: 59.98600006 | C11: 3675.091553 | D11: 350 | E11: 357.9475098 | F11: 0 | G11: 2.5 | H11: 10 | I11: 15 | J11: -103 | K11: 7501.65
A12: 2009-10-12T02:12:30 | B12: 59.97600174 | C12: 3669.330322 | D12: 350 | E12: 357.9475098 | F12: 0 | G12: 3 | H12: 10 | I12: 15 | J12: -103 | K12: 7501.98
A13: 2009-10-12T02:12:35 | B13: 59.97900009 | C13: 3673.560303 | D13: 350 | E13: 357.9475098 | F13: 0 | G13: 3.5 | H13: 10 | I13: 15 | J13: -103 | K13: 7502.31
A14: 2009-10-12T02:12:40 | B14: 59.98699951 | C14: 3673.834229 | D14: 350 | E14: 360.2347412 | F14: 0 | G14: 4 | H14: 10 | I14: 15 | J14: -103 | K14: 7502.64
A15: 2009-10-12T02:12:45 | B15: 59.99300003 | C15: 3671.220459 | D15: 350 | E15: 360.2347412 | F15: 0 | G15: 4.5 | H15: 10 | I15: 15 | J15: -103 | K15: 7502.97
A16: 2009-10-12T02:12:50 | B16: 59.99499893 | C16: 3671.283203 | D16: 350 | E16: 360.2347412 | F16: 0 | G16: 5 | H16: 10 | I16: 15 | J16: -103 | K16: 7503.3
A17: 2009-10-12T02:12:55 | B17: 59.99499893 | C17: 3668.128906 | D17: 350 | E17: 360.2347412 | F17: 0 | G17: 5.5 | H17: 10 | I17: 15 | J17: -103 | K17: 7503.63
A18: 2009-10-12T02:13:00 | B18: 59.99399948 | C18: 3669.29126 | D18: 350 | E18: 360.2347412 | F18: 0 | G18: 6 | H18: 10 | I18: 15 | J18: -103 | K18: 7503.96
A19: 2009-10-12T02:13:05 | B19: 59.99700165 | C19: 3670.68335 | D19: 350 | E19: 346.5258789 | F19: 0 | G19: 6.5 | H19: 10 | I19: 15 | J19: -103 | K19: 7504.29
A20: 2009-10-12T02:13:10 | B20: 60.00099945 | C20: 3670.21167 | D20: 350 | E20: 346.5258789 | F20: 0 | G20: 7 | H20: 10 | I20: 15 | J20: -103 | K20: 7504.62
A21: 2009-10-12T02:13:15 | B21: 60.00299835 | C21: 3671.183594 | D21: 350 | E21: 346.5258789 | F21: 0 | G21: 7.5 | H21: 10 | I21: 15 | J21: -103 | K21: 7504.95
A22: 2009-10-12T02:13:20 | B22: 60 | C22: 3670.26709 | D22: 350 | E22: 346.5258789 | F22: 0 | G22: 8 | H22: 10 | I22: 15 | J22: -103 | K22: 7505.28
A23: 2009-10-12T02:13:25 | B23: 60.00299835 | C23: 3670.248535 | D23: 350 | E23: 346.5258789 | F23: 0 | G23: 8.5 | H23: 10 | I23: 15 | J23: -103 | K23: 7505.61
A24: 2009-10-12T02:13:30 | B24: 60.00099945 | C24: 3669.89917 | D24: 350 | E24: 296.4433594 | F24: 0 | G24: 9 | H24: 10 | I24: 15 | J24: -103 | K24: 7505.94
A25: 2009-10-12T02:13:35 | B25: 60.00099945 | C25: 3671.628418 | D25: 350 | E25: 296.4433594 | F25: 0 | G25: 9.5 | H25: 10 | I25: 15 | J25: -103 | K25: 7506.27
A26: 2009-10-12T02:13:40 | B26: 60.00400162 | C26: 3671.968262 | D26: 350 | E26: 296.4433594 | F26: 0 | G26: 10 | H26: 10 | I26: 15 | J26: -103 | K26: 7506.6
A27: 2009-10-12T02:13:45 | B27: 60.00500107 | C27: 3671.875244 | D27: 350 | E27: 296.4433594 | F27: 0 | G27: 10.5 | H27: 10 | I27: 15 | J27: -103 | K27: 7506.93
A28: 2009-10-12T02:13:50 | B28: 60.00299835 | C28: 3672.872803 | D28: 350 | E28: 296.4433594 | F28: 0 | G28: 11 | H28: 10 | I28: 15 | J28: -103 | K28: 7507.26
A29: 2009-10-12T02:13:55 | B29: 59.99900055 | C29: 3673.530518 | D29: 350 | E29: 341.0611572 | F29: 0 | G29: 11.5 | H29: 10 | I29: 15 | J29: -103 | K29: 7507.59
A30: 2009-10-12T02:14:00 | B30: 59.9980011 | C30: 3673.186279 | D30: 350 | E30: 341.0611572 | F30: 0 | G30: 12 | H30: 10 | I30: 15 | J30: -103 | K30: 7507.92
A31: 2009-10-12T02:14:05 | B31: 59.99499893 | C31: 3673.36499 | D31: 350 | E31: 341.0611572 | F31: 0 | G31: 12.5 | H31: 10 | I31: 15 | J31: -103 | K31: 7508.25
A32: 2009-10-12T02:14:10 | B32: 59.99599838 | C32: 3672.093018 | D32: 350 | E32: 341.0611572 | F32: 0 | G32: 13 | H32: 10 | I32: 15 | J32: -103 | K32: 7508.58
A33: 2009-10-12T02:14:15 | B33: 60.00099945 | C33: 3671.07251 | D33: 350 | E33: 341.0611572 | F33: 0 | G33: 13.5 | H33: 10 | I33: 15 | J33: -103 | K33: 7508.91
A34: 2009-10-12T02:14:20 | B34: 60.00699997 | C34: 3671.441406 | D34: 350 | E34: 322.8262939 | F34: 0 | G34: 14 | H34: 10 | I34: 15 | J34: -103 | K34: 7509.24
A35: 2009-10-12T02:14:25 | B35: 60.0019989 | C35: 3670.512939 | D35: 350 | E35: 322.8262939 | F35: 0 | G35: 14.5 | H35: 10 | I35: 15 | J35: -103 | K35: 7509.57
A36: 2009-10-12T02:14:30 | B36: 59.99900055 | C36: 3672.712891 | D36: 350 | E36: 322.8262939 | F36: 0 | G36: 15 | H36: 10 | I36: 15 | J36: -103 | K36: 7509.9
A37: 2009-10-12T02:14:35 | B37: 60.00699997 | C37: 3670.825684 | D37: 350 | E37: 322.8262939 | F37: 0 | G37: 15.5 | H37: 10 | I37: 15 | J37: -103 | K37: 7510.23
A38: 2009-10-12T02:14:40 | B38: 60.00899887 | C38: 3671.809082 | D38: 350 | E38: 322.8262939 | F38: 0 | G38: 16 | H38: 10 | I38: 15 | J38: -103 | K38: 7510.56
A39: 2009-10-12T02:14:45 | B39: 59.99700165 | C39: 3673.255371 | D39: 350 | E39: 321.5444031 | F39: 0 | G39: 16.5 | H39: 10 | I39: 15 | J39: -103 | K39: 7510.89
A40: 2009-10-12T02:14:50 | B40: 59.99399948 | C40: 3675.425781 | D40: 350 | E40: 321.5444031 | F40: 0 | G40: 17 | H40: 10 | I40: 15 | J40: -103 | K40: 7511.22
A41: 2009-10-12T02:14:55 | B41: 60.00099945 | C41: 3675.310547 | D41: 350 | E41: 321.5444031 | F41: 0 | G41: 17.5 | H41: 10 | I41: 15 | J41: -103 | K41: 7511.55
A42: 2009-10-12T02:15:00 | B42: 59.99499893 | C42: 3675.165527 | D42: 350 | E42: 321.5444031 | F42: 0 | G42: 18 | H42: 10 | I42: 15 | J42: -103 | K42: 7511.88
A43: 2009-10-12T02:15:05 | B43: 59.98600006 | C43: 3674.906494 | D43: 350 | E43: 321.5444031 | F43: 0 | G43: 18.5 | H43: 10 | I43: 15 | J43: -103 | K43: 7512.21
A44: 2009-10-12T02:15:10 | B44: 59.98799896 | C44: 3676.714355 | D44: 350 | E44: 362.136261 | F44: 0 | G44: 19 | H44: 10 | I44: 15 | J44: -103 | K44: 7512.54
A45: 2009-10-12T02:15:15 | B45: 59.98799896 | C45: 3675.542969 | D45: 350 | E45: 362.136261 | F45: 0 | G45: 19.5 | H45: 10 | I45: 15 | J45: -103 | K45: 7512.87
A46: 2009-10-12T02:15:20 | B46: 59.98400116 | C46: 3676.931396 | D46: 350 | E46: 362.136261 | F46: 0 | G46: 20 | H46: 10 | I46: 15 | J46: -103 | K46: 7513.2
A47: 2009-10-12T02:15:25 | B47: 59.98199844 | C47: 3677.361084 | D47: 350 | E47: 362.136261 | F47: 0 | G47: 20.5 | H47: 10 | I47: 15 | J47: -103 | K47: 7513.53
A48: 2009-10-12T02:15:30 | B48: 59.98500061 | C48: 3679.227783 | D48: 350 | E48: 362.136261 | F48: 0 | G48: 21 | H48: 10 | I48: 15 | J48: -103 | K48: 7513.86
A49: 2009-10-12T02:15:35 | B49: 59.98699951 | C49: 3677.626953 | D49: 350 | E49: 336.3117981 | F49: 0 | G49: 21.5 | H49: 10 | I49: 15 | J49: -103 | K49: 7514.19
A50: 2009-10-12T02:15:40 | B50: 59.98699951 | C50: 3676.409424 | D50: 350 | E50: 336.3117981 | F50: 0 | G50: 22 | H50: 10 | I50: 15 | J50: -103 | K50: 7514.52
A51: 2009-10-12T02:15:45 | B51: 59.97999954 | C51: 3676.914795 | D51: 350 | E51: 336.3117981 | F51: 0 | G51: 22.5 | H51: 10 | I51: 15 | J51: -103 | K51: 7514.85
A52: 2009-10-12T02:15:50 | B52: 59.98699951 | C52: 3679.23291 | D52: 350 | E52: 336.3117981 | F52: 0 | G52: 23 | H52: 10 | I52: 15 | J52: -103 | K52: 7515.18
A53: 2009-10-12T02:15:55 | B53: 59.98799896 | C53: 3678.344238 | D53: 350 | E53: 336.3117981 | F53: 0 | G53: 23.5 | H53: 10 | I53: 15 | J53: -103 | K53: 7515.51
A54: 2009-10-12T02:16:00 | B54: 59.97800064 | C54: 3677.677734 | D54: 350 | E54: 316.4430542 | F54: 0 | G54: 24 | H54: 10 | I54: 15 | J54: -103 | K54: 7515.84
A55: 2009-10-12T02:16:05 | B55: 59.97900009 | C55: 3678.729492 | D55: 350 | E55: 316.4430542 | F55: 0 | G55: 24.5 | H55: 10 | I55: 15 | J55: -103 | K55: 7516.17
A56: 2009-10-12T02:16:10 | B56: 59.98799896 | C56: 3680.286865 | D56: 350 | E56: 316.4430542 | F56: 0 | G56: 25 | H56: 10 | I56: 15 | J56: -103 | K56: 7516.5
A57: 2009-10-12T02:16:15 | B57: 59.98899841 | C57: 3678.488525 | D57: 350 | E57: 316.4430542 | F57: 0 | G57: 25.5 | H57: 10 | I57: 15 | J57: -103 | K57: 7516.83
A58: 2009-10-12T02:16:20 | B58: 59.99200058 | C58: 3678.740234 | D58: 350 | E58: 316.4430542 | F58: 0 | G58: 26 | H58: 10 | I58: 15 | J58: -103 | K58: 7517.16
A59: 2009-10-12T02:16:25 | B59: 59.99499893 | C59: 3677.0625 | D59: 350 | E59: 325.4642944 | F59: 0 | G59: 26.5 | H59: 10 | I59: 15 | J59: -103 | K59: 7517.49
A60: 2009-10-12T02:16:30 | B60: 59.9980011 | C60: 3678.490479 | D60: 350 | E60: 325.4642944 | F60: 0 | G60: 27 | H60: 10 | I60: 15 | J60: -103 | K60: 7517.82
A61: 2009-10-12T02:16:35 | B61: 59.99900055 | C61: 3678.950928 | D61: 350 | E61: 325.4642944 | F61: 0 | G61: 27.5 | H61: 10 | I61: 15 | J61: -103 | K61: 7518.15
A62: 2009-10-12T02:16:40 | B62: 59.99200058 | C62: 3679.148438 | D62: 350 | E62: 325.4642944 | F62: 0 | G62: 28 | H62: 10 | I62: 15 | J62: -103 | K62: 7518.48
A63: 2009-10-12T02:16:45 | B63: 59.9980011 | C63: 3678.996582 | D63: 350 | E63: 325.4642944 | F63: 0 | G63: 28.5 | H63: 10 | I63: 15 | J63: -103 | K63: 7518.81
A64: 2009-10-12T02:16:50 | B64: 60.00600052 | C64: 3678.493408 | D64: 350 | E64: 336.6141663 | F64: 0 | G64: 29 | H64: 10 | I64: 15 | J64: -103 | K64: 7519.14
A65: 2009-10-12T02:16:55 | B65: 60.00899887 | C65: 3677.898682 | D65: 350 | E65: 336.6141663 | F65: 0 | G65: 29.5 | H65: 10 | I65: 15 | J65: -103 | K65: 7519.47
A66: 2009-10-12T02:17:00 | B66: 60.01100159 | C66: 3679.20874 | D66: 350 | E66: 336.6141663 | F66: 0 | G66: 30 | H66: 10 | I66: 15 | J66: -103 | K66: 7519.8
A67: 2009-10-12T02:17:05 | B67: 60.00799942 | C67: 3679.056641 | D67: 350 | E67: 336.6141663 | F67: 0 | G67: 30.5 | H67: 10 | I67: 15 | J67: -103 | K67: 7520.13
A68: 2009-10-12T02:17:10 | B68: 60.01200104 | C68: 3680.604248 | D68: 350 | E68: 336.6141663 | F68: 0 | G68: 31 | H68: 10 | I68: 15 | J68: -103 | K68: 7520.46
A69: 2009-10-12T02:17:15 | B69: 60.00999832 | C69: 3680.262695 | D69: 350 | E69: 316.7261658 | F69: 0 | G69: 31.5 | H69: 10 | I69: 15 | J69: -103 | K69: 7520.79
A70: 2009-10-12T02:17:20 | B70: 60.00899887 | C70: 3679.560791 | D70: 350 | E70: 316.7261658 | F70: 0 | G70: 32 | H70: 10 | I70: 15 | J70: -103 | K70: 7521.12
A71: 2009-10-12T02:17:25 | B71: 60.00600052 | C71: 3679.911865 | D71: 350 | E71: 316.7261658 | F71: 0 | G71: 32.5 | H71: 10 | I71: 15 | J71: -103 | K71: 7521.45
A72: 2009-10-12T02:17:30 | B72: 60.00899887 | C72: 3679.887939 | D72: 350 | E72: 316.7261658 | F72: 0 | G72: 33 | H72: 10 | I72: 15 | J72: -103 | K72: 7521.78
A73: 2009-10-12T02:17:35 | B73: 60.00899887 | C73: 3679.260742 | D73: 350 | E73: 316.7261658 | F73: 0 | G73: 33.5 | H73: 10 | I73: 15 | J73: -103 | K73: 7522.11
A74: 2009-10-12T02:17:40 | B74: 60.00400162 | C74: 3679.024658 | D74: 350 | E74: 320.1955261 | F74: 0 | G74: 34 | H74: 10 | I74: 15 | J74: -103 | K74: 7522.44
A75: 2009-10-12T02:17:45 | B75: 59.99900055 | C75: 3678.295166 | D75: 350 | E75: 320.1955261 | F75: 0 | G75: 34.5 | H75: 10 | I75: 15 | J75: -103 | K75: 7522.77
A76: 2009-10-12T02:17:50 | B76: 59.99399948 | C76: 3678.23584 | D76: 350 | E76: 320.1955261 | F76: 0 | G76: 35 | H76: 10 | I76: 15 | J76: -103 | K76: 7523.1
A77: 2009-10-12T02:17:55 | B77: 59.99399948 | C77: 3677.772217 | D77: 350 | E77: 320.1955261 | F77: 0 | G77: 35.5 | H77: 10 | I77: 15 | J77: -103 | K77: 7523.43
A78: 2009-10-12T02:18:00 | B78: 59.99499893 | C78: 3677.093262 | D78: 350 | E78: 320.1955261 | F78: 0 | G78: 36 | H78: 10 | I78: 15 | J78: -103 | K78: 7523.76
A79: 2009-10-12T02:18:05 | B79: 59.99000168 | C79: 3678.515625 | D79: 350 | E79: 341.8661499 | F79: 0 | G79: 36.5 | H79: 10 | I79: 15 | J79: -103 | K79: 7524.09
A80: 2009-10-12T02:18:10 | B80: 59.98300171 | C80: 3680.196533 | D80: 350 | E80: 341.8661499 | F80: 0 | G80: 37 | H80: 10 | I80: 15 | J80: -103 | K80: 7524.42
A81: 2009-10-12T02:18:15 | B81: 59.97700119 | C81: 3677.921143 | D81: 350 | E81: 341.8661499 | F81: 0 | G81: 37.5 | H81: 10 | I81: 15 | J81: -103 | K81: 7524.75
A82: 2009-10-12T02:18:20 | B82: 59.99900055 | C82: 3682.070068 | D82: 350 | E82: 341.8661499 | F82: 0 | G82: 38 | H82: 10 | I82: 15 | J82: -103 | K82: 7525.08
A83: 2009-10-12T02:18:25 | B83: 59.98899841 | C83: 3678.07666 | D83: 350 | E83: 341.8661499 | F83: 0 | G83: 38.5 | H83: 10 | I83: 15 | J83: -103 | K83: 7525.41
A84: 2009-10-12T02:18:30 | B84: 59.98400116 | C84: 3678.426758 | D84: 350 | E84: 348.5978394 | F84: 0 | G84: 39 | H84: 10 | I84: 15 | J84: -103 | K84: 7525.74
A85: 2009-10-12T02:18:35 | B85: 59.98500061 | C85: 3677.822266 | D85: 350 | E85: 348.5978394 | F85: 0 | G85: 39.5 | H85: 10 | I85: 15 | J85: -103 | K85: 7526.07
A86: 2009-10-12T02:18:40 | B86: 59.98600006 | C86: 3677.397461 | D86: 350 | E86: 348.5978394 | F86: 0 | G86: 40 | H86: 10 | I86: 15 | J86: -103 | K86: 7526.4
A87: 2009-10-12T02:18:45 | B87: 59.98099899 | C87: 3678.616699 | D87: 350 | E87: 348.5978394 | F87: 0 | G87: 40.5 | H87: 10 | I87: 15 | J87: -103 | K87: 7526.73
A88: 2009-10-12T02:18:50 | B88: 59.9980011 | C88: 3681.252197 | D88: 350 | E88: 348.5978394 | F88: 0 | G88: 41 | H88: 10 | I88: 15 | J88: -103 | K88: 7527.06
A89: 2009-10-12T02:18:55 | B89: 60.00699997 | C89: 3678.161377 | D89: 350 | E89: 329.085022 | F89: 0 | G89: 41.5 | H89: 10 | I89: 15 | J89: -103 | K89: 7527.39
A90: 2009-10-12T02:19:00 | B90: 59.98099899 | C90: 3676.222168 | D90: 350 | E90: 329.085022 | F90: 0 | G90: 42 | H90: 10 | I90: 15 | J90: -103 | K90: 7527.72
A91: 2009-10-12T02:19:05 | B91: 59.97399902 | C91: 3677.48999 | D91: 350 | E91: 329.085022 | F91: 0 | G91: 42.5 | H91: 10 | I91: 15 | J91: -103 | K91: 7528.05
A92: 2009-10-12T02:19:10 | B92: 59.97399902 | C92: 3675.437012 | D92: 350 | E92: 329.085022 | F92: 0 | G92: 43 | H92: 10 | I92: 15 | J92: -103 | K92: 7528.38
A93: 2009-10-12T02:19:15 | B93: 59.97900009 | C93: 3683.828613 | D93: 350 | E93: 329.085022 | F93: 0 | G93: 43.5 | H93: 10 | I93: 15 | J93: -103 | K93: 7528.71
A94: 2009-10-12T02:19:20 | B94: 59.98400116 | C94: 3681.108398 | D94: 350 | E94: 342.4182434 | F94: 0 | G94: 44 | H94: 10 | I94: 15 | J94: -103 | K94: 7529.04
A95: 2009-10-12T02:19:25 | B95: 59.98799896 | C95: 3676.751953 | D95: 350 | E95: 342.4182434 | F95: 0 | G95: 44.5 | H95: 10 | I95: 15 | J95: -103 | K95: 7529.37
A96: 2009-10-12T02:19:30 | B96: 59.98699951 | C96: 3671.942383 | D96: 350 | E96: 342.4182434 | F96: 0 | G96: 45 | H96: 10 | I96: 15 | J96: -103 | K96: 7529.7
A97: 2009-10-12T02:19:35 | B97: 59.98500061 | C97: 3670.128662 | D97: 350 | E97: 342.4182434 | F97: 0 | G97: 45.5 | H97: 10 | I97: 15 | J97: -103 | K97: 7530.03
A98: 2009-10-12T02:19:40 | B98: 59.98300171 | C98: 3672.047852 | D98: 350 | E98: 342.4182434 | F98: 0 | G98: 46 | H98: 10 | I98: 15 | J98: -103 | K98: 7530.36
A99: 2009-10-12T02:19:45 | B99: 59.98899841 | C99: 3672.413574 | D99: 350 | E99: 338.7946472 | F99: 0 | G99: 46.5 | H99: 10 | I99: 15 | J99: -103 | K99: 7530.69
A100: 2009-10-12T02:19:50 | B100: 59.98199844 | C100: 3671.837158 | D100: 350 | E100: 338.7946472 | F100: 0 | G100: 47 | H100: 10 | I100: 15 | J100: -103 | K100: 7531.02
A101: 2009-10-12T02:19:55 | B101: 59.98099899 | C101: 3670.37207 | D101: 350 | E101: 338.7946472 | F101: 0 | G101: 47.5 | H101: 10 | I101: 15 | J101: -103 | K101: 7531.35
A102: 2009-10-12T02:20:00 | B102: 59.98600006 | C102: 3671.400879 | D102: 350 | E102: 338.7946472 | F102: 0 | G102: 48 | H102: 10 | I102: 15 | J102: -103 | K102: 7531.68
A103: 2009-10-12T02:20:05 | B103: 59.98699951 | C103: 3670.296387 | D103: 350 | E103: 338.7946472 | F103: 0 | G103: 48.5 | H103: 10 | I103: 15 | J103: -103 | K103: 7532.01
A104: 2009-10-12T02:20:10 | B104: 59.97999954 | C104: 3668.5896 | D104: 350 | E104: 335.9309998 | F104: 0 | G104: 49 | H104: 10 | I104: 15 | J104: -103 | K104: 7532.34
A105: 2009-10-12T02:20:15 | B105: 59.97999954 | C105: 3670.262695 | D105: 350 | E105: 335.9309998 | F105: 0 | G105: 49.5 | H105: 10 | I105: 15 | J105: -103 | K105: 7532.67
A106: 2009-10-12T02:20:20 | B106: 59.98099899 | C106: 3670.102051 | D106: 350 | E106: 335.9309998 | F106: 0 | G106: 50 | H106: 10 | I106: 15 | J106: -103 | K106: 7533
A107: 2009-10-12T02:20:25 | B107: 59.97999954 | C107: 3672.442383 | D107: 350 | E107: 335.9309998 | F107: 0 | G107: 50.5 | H107: 10 | I107: 15 | J107: -103 | K107: 7533.33
A108: 2009-10-12T02:20:30 | B108: 59.97999954 | C108: 3671.947021 | D108: 350 | E108: 335.9309998 | F108: 0 | G108: 51 | H108: 10 | I108: 15 | J108: -103 | K108: 7533.66
A109: 2009-10-12T02:20:35 | B109: 59.97700119 | C109: 3670.137207 | D109: 350 | E109: 339.7124023 | F109: 0 | G109: 51.5 | H109: 10 | I109: 15 | J109: -103 | K109: 7533.99
A110: 2009-10-12T02:20:40 | B110: 59.97900009 | C110: 3672.390869 | D110: 350 | E110: 339.7124023 | F110: 0 | G110: 52 | H110: 10 | I110: 15 | J110: -103 | K110: 7534.32
A111: 2009-10-12T02:20:45 | B111: 59.97700119 | C111: 3672.626465 | D111: 350 | E111: 339.7124023 | F111: 0 | G111: 52.5 | H111: 10 | I111: 15 | J111: -103 | K111: 7534.65
A112: 2009-10-12T02:20:50 | B112: 59.97299957 | C112: 3673.182861 | D112: 350 | E112: 339.7124023 | F112: 0 | G112: 53 | H112: 10 | I112: 15 | J112: -103 | K112: 7534.98
A113: 2009-10-12T02:20:55 | B113: 59.97299957 | C113: 3676.623291 | D113: 350 | E113: 339.7124023 | F113: 0 | G113: 53.5 | H113: 10 | I113: 15 | J113: -103 | K113: 7535.31
A114: 2009-10-12T02:21:00 | B114: 59.97499847 | C114: 3676.542969 | D114: 350 | E114: 332.0246582 | F114: 0 | G114: 54 | H114: 10 | I114: 15 | J114: -103 | K114: 7535.64
A115: 2009-10-12T02:21:05 | B115: 59.97700119 | C115: 3675.255859 | D115: 350 | E115: 332.0246582 | F115: 0 | G115: 54.5 | H115: 10 | I115: 15 | J115: -103 | K115: 7535.97
A116: 2009-10-12T02:21:10 | B116: 59.97999954 | C116: 3671.276855 | D116: 350 | E116: 332.0246582 | F116: 0 | G116: 55 | H116: 10 | I116: 15 | J116: -103 | K116: 7536.3
A117: 2009-10-12T02:21:15 | B117: 59.98099899 | C117: 3669.962891 | D117: 350 | E117: 332.0246582 | F117: 0 | G117: 55.5 | H117: 10 | I117: 15 | J117: -103 | K117: 7536.63
A118: 2009-10-12T02:21:20 | B118: 59.98199844 | C118: 3669.496826 | D118: 350 | E118: 332.0246582 | F118: 0 | G118: 56 | H118: 10 | I118: 15 | J118: -103 | K118: 7536.96
A119: 2009-10-12T02:21:25 | B119: 59.98099899 | C119: 3666.481689 | D119: 350 | E119: 330.7590332 | F119: 0 | G119: 56.5 | H119: 10 | I119: 15 | J119: -103 | K119: 7537.29
A120: 2009-10-12T02:21:30 | B120: 59.98500061 | C120: 3666.910645 | D120: 350 | E120: 330.7590332 | F120: 0 | G120: 57 | H120: 10 | I120: 15 | J120: -103 | K120: 7537.62
A121: 2009-10-12T02:21:35 | B121: 59.98899841 | C121: 3667.456299 | D121: 350 | E121: 330.7590332 | F121: 0 | G121: 57.5 | H121: 10 | I121: 15 | J121: -103 | K121: 7537.95
A122: 2009-10-12T02:21:40 | B122: 59.9980011 | C122: 3665.261719 | D122: 350 | E122: 330.7590332 | F122: 0 | G122: 58 | H122: 10 | I122: 15 | J122: -103 | K122: 7538.28
A123: 2009-10-12T02:21:45 | B123: 60.00400162 | C123: 3663.22876 | D123: 350 | E123: 330.7590332 | F123: 0 | G123: 58.5 | H123: 10 | I123: 15 | J123: -103 | K123: 7538.61
A124: 2009-10-12T02:21:50 | B124: 60.01300049 | C124: 3661.695312 | D124: 350 | E124: 323.4199524 | F124: 0 | G124: 59 | H124: 10 | I124: 15 | J124: -103 | K124: 7538.94
A125: 2009-10-12T02:21:55 | B125: 60.01300049 | C125: 3662.959473 | D125: 350 | E125: 323.4199524 | F125: 0 | G125: 59.5 | H125: 10 | I125: 15 | J125: -103 | K125: 7539.27
A126: 2009-10-12T02:22:00 | B126: 60.00999832 | C126: 3664.13916 | D126: 350 | E126: 323.4199524 | F126: 0 | G126: 60 | H126: 10 | I126: 15 | J126: -103 | K126: 7539.6
A127: 2009-10-12T02:22:05 | B127: 60.01900101 | C127: 3663.264648 | D127: 350 | E127: 323.4199524 | F127: 0 | G127: 60.5 | H127: 10 | I127: 15 | J127: -103 | K127: 7539.93
A128: 2009-10-12T02:22:10 | B128: 60.02000046 | C128: 3661.929199 | D128: 350 | E128: 323.4199524 | F128: 0 | G128: 61 | H128: 10 | I128: 15 | J128: -103 | K128: 7540.26
A129: 2009-10-12T02:22:15 | B129: 60.02099991 | C129: 3658.661377 | D129: 350 | E129: 342.3509216 | F129: 0 | G129: 61.5 | H129: 10 | I129: 15 | J129: -103 | K129: 7540.59
A130: 2009-10-12T02:22:20 | B130: 60.01900101 | C130: 3657.571045 | D130: 350 | E130: 342.3509216 | F130: 0 | G130: 62 | H130: 10 | I130: 15 | J130: -103 | K130: 7540.92
A131: 2009-10-12T02:22:25 | B131: 60.02500153 | C131: 3658.014648 | D131: 350 | E131: 342.3509216 | F131: 0 | G131: 62.5 | H131: 10 | I131: 15 | J131: -103 | K131: 7541.25
A132: 2009-10-12T02:22:30 | B132: 60.02000046 | C132: 3659.223633 | D132: 350 | E132: 342.3509216 | F132: 0 | G132: 63 | H132: 10 | I132: 15 | J132: -103 | K132: 7541.58
A133: 2009-10-12T02:22:35 | B133: 60.01800156 | C133: 3658.154541 | D133: 350 | E133: 342.3509216 | F133: 0 | G133: 63.5 | H133: 10 | I133: 15 | J133: -103 | K133: 7541.91
A134: 2009-10-12T02:22:40 | B134: 60.01900101 | C134: 3659.777588 | D134: 350 | E134: 345.0818176 | F134: 0 | G134: 64 | H134: 10 | I134: 15 | J134: -103 | K134: 7542.24
A135: 2009-10-12T02:22:45 | B135: 60.02299881 | C135: 3662.387207 | D135: 350 | E135: 345.0818176 | F135: 0 | G135: 64.5 | H135: 10 | I135: 15 | J135: -103 | K135: 7542.57
A136: 2009-10-12T02:22:50 | B136: 60.02500153 | C136: 3662.390137 | D136: 350 | E136: 345.0818176 | F136: 0 | G136: 65 | H136: 10 | I136: 15 | J136: -103 | K136: 7542.9
A137: 2009-10-12T02:22:55 | B137: 60.02000046 | C137: 3663.538574 | D137: 350 | E137: 345.0818176 | F137: 0 | G137: 65.5 | H137: 10 | I137: 15 | J137: -103 | K137: 7543.23
A138: 2009-10-12T02:23:00 | B138: 60.02000046 | C138: 3662.55249 | D138: 350 | E138: 345.0818176 | F138: 0 | G138: 66 | H138: 10 | I138: 15 | J138: -103 | K138: 7543.56
A139: 2009-10-12T02:23:05 | B139: 60.02099991 | C139: 3663.909668 | D139: 350 | E139: 346.537384 | F139: 0 | G139: 66.5 | H139: 10 | I139: 15 | J139: -103 | K139: 7543.89
A140: 2009-10-12T02:23:10 | B140: 60.01399994 | C140: 3662.79126 | D140: 350 | E140: 346.537384 | F140: 0 | G140: 67 | H140: 10 | I140: 15 | J140: -103 | K140: 7544.22
A141: 2009-10-12T02:23:15 | B141: 60.01300049 | C141: 3664.31543 | D141: 350 | E141: 346.537384 | F141: 0 | G141: 67.5 | H141: 10 | I141: 15 | J141: -103 | K141: 7544.55
A142: 2009-10-12T02:23:20 | B142: 60.00799942 | C142: 3665.797607 | D142: 350 | E142: 346.537384 | F142: 0 | G142: 68 | H142: 10 | I142: 15 | J142: -103 | K142: 7544.88
A143: 2009-10-12T02:23:25 | B143: 60.01100159 | C143: 3667.676758 | D143: 350 | E143: 346.537384 | F143: 0 | G143: 68.5 | H143: 10 | I143: 15 | J143: -103 | K143: 7545.21
A144: 2009-10-12T02:23:30 | B144: 60.00899887 | C144: 3666.688232 | D144: 350 | E144: 342.9057617 | F144: 0 | G144: 69 | H144: 10 | I144: 15 | J144: -103 | K144: 7545.54
A145: 2009-10-12T02:23:35 | B145: 60.00899887 | C145: 3667.696045 | D145: 350 | E145: 342.9057617 | F145: 0 | G145: 69.5 | H145: 10 | I145: 15 | J145: -103 | K145: 7545.87
A146: 2009-10-12T02:23:40 | B146: 60.0019989 | C146: 3667.042969 | D146: 350 | E146: 342.9057617 | F146: 0 | G146: 70 | H146: 10 | I146: 15 | J146: -103 | K146: 7546.2
A147: 2009-10-12T02:23:45 | B147: 59.99599838 | C147: 3665.879639 | D147: 350 | E147: 342.9057617 | F147: 0 | G147: 70.5 | H147: 10 | I147: 15 | J147: -103 | K147: 7546.53
A148: 2009-10-12T02:23:50 | B148: 59.9980011 | C148: 3665.801514 | D148: 350 | E148: 342.9057617 | F148: 0 | G148: 71 | H148: 10 | I148: 15 | J148: -103 | K148: 7546.86
A149: 2009-10-12T02:23:55 | B149: 59.9980011 | C149: 3664.94751 | D149: 350 | E149: 340.0943909 | F149: 0 | G149: 71.5 | H149: 10 | I149: 15 | J149: -103 | K149: 7547.19
A150: 2009-10-12T02:24:00 | B150: 59.99499893 | C150: 3666.133301 | D150: 350 | E150: 340.0943909 | F150: 0 | G150: 72 | H150: 10 | I150: 15 | J150: -103 | K150: 7547.52
A151: 2009-10-12T02:24:05 | B151: 59.99300003 | C151: 3667.083984 | D151: 350 | E151: 340.0943909 | F151: 0 | G151: 72.5 | H151: 10 | I151: 15 | J151: -103 | K151: 7547.85
A152: 2009-10-12T02:24:10 | B152: 59.98199844 | C152: 3667.33667 | D152: 350 | E152: 340.0943909 | F152: 0 | G152: 73 | H152: 10 | I152: 15 | J152: -103 | K152: 7548.18
A153: 2009-10-12T02:24:15 | B153: 59.98199844 | C153: 3668.690918 | D153: 350 | E153: 340.0943909 | F153: 0 | G153: 73.5 | H153: 10 | I153: 15 | J153: -103 | K153: 7548.51
A154: 2009-10-12T02:24:20 | B154: 59.98199844 | C154: 3669.606201 | D154: 350 | E154: 342.7711792 | F154: 0 | G154: 74 | H154: 10 | I154: 15 | J154: -103 | K154: 7548.84
A155: 2009-10-12T02:24:25 | B155: 59.97800064 | C155: 3670.264648 | D155: 350 | E155: 342.7711792 | F155: 0 | G155: 74.5 | H155: 10 | I155: 15 | J155: -103 | K155: 7549.17
A156: 2009-10-12T02:24:30 | B156: 59.97399902 | C156: 3673.243164 | D156: 350 | E156: 342.7711792 | F156: 0 | G156: 75 | H156: 10 | I156: 15 | J156: -103 | K156: 7549.5
A157: 2009-10-12T02:24:35 | B157: 59.97900009 | C157: 3676.418213 | D157: 350 | E157: 342.7711792 | F157: 0 | G157: 75.5 | H157: 10 | I157: 15 | J157: -103 | K157: 7549.83
A158: 2009-10-12T02:24:40 | B158: 59.97999954 | C158: 3674.637451 | D158: 350 | E158: 342.7711792 | F158: 0 | G158: 76 | H158: 10 | I158: 15 | J158: -103 | K158: 7550.16
A159: 2009-10-12T02:24:45 | B159: 59.98699951 | C159: 3674.768066 | D159: 350 | E159: 342.9099121 | F159: 0 | G159: 76.5 | H159: 10 | I159: 15 | J159: -103 | K159: 7550.49
A160: 2009-10-12T02:24:50 | B160: 59.99000168 | C160: 3673.51416 | D160: 350 | E160: 342.9099121 | F160: 0 | G160: 77 | H160: 10 | I160: 15 | J160: -103 | K160: 7550.82
A161: 2009-10-12T02:24:55 | B161: 59.99100113 | C161: 3673.056396 | D161: 350 | E161: 342.9099121 | F161: 0 | G161: 77.5 | H161: 10 | I161: 15 | J161: -103 | K161: 7551.15
A162: 2009-10-12T02:25:00 | B162: 59.99300003 | C162: 3671.493164 | D162: 350 | E162: 342.9099121 | F162: 0 | G162: 78 | H162: 10 | I162: 15 | J162: -103 | K162: 7551.48
A163: 2009-10-12T02:25:05 | B163: 59.99599838 | C163: 3670.027832 | D163: 350 | E163: 342.9099121 | F163: 0 | G163: 78.5 | H163: 10 | I163: 15 | J163: -103 | K163: 7551.81
A164: 2009-10-12T02:25:10 | B164: 60.00299835 | C164: 3671.578125 | D164: 350 | E164: 343.2860107 | F164: 0 | G164: 79 | H164: 10 | I164: 15 | J164: -103 | K164: 7552.14
A165: 2009-10-12T02:25:15 | B165: 60.00500107 | C165: 3673.818604 | D165: 350 | E165: 343.2860107 | F165: 0 | G165: 79.5 | H165: 10 | I165: 15 | J165: -103 | K165: 7552.47
A166: 2009-10-12T02:25:20 | B166: 60.00400162 | C166: 3673.182129 | D166: 350 | E166: 343.2860107 | F166: 0 | G166: 80 | H166: 10 | I166: 15 | J166: -103 | K166: 7552.8
A167: 2009-10-12T02:25:25 | B167: 60.00999832 | C167: 3672.363037 | D167: 350 | E167: 343.2860107 | F167: 0 | G167: 80.5 | H167: 10 | I167: 15 | J167: -103 | K167: 7553.13
A168: 2009-10-12T02:25:30 | B168: 60.01100159 | C168: 3672.260742 | D168: 350 | E168: 343.2860107 | F168: 0 | G168: 81 | H168: 10 | I168: 15 | J168: -103 | K168: 7553.46
A169: 2009-10-12T02:25:35 | B169: 60.01399994 | C169: 3673.553467 | D169: 350 | E169: 331.8529663 | F169: 0 | G169: 81.5 | H169: 10 | I169: 15 | J169: -103 | K169: 7553.79
A170: 2009-10-12T02:25:40 | B170: 60.01100159 | C170: 3674.537109 | D170: 350 | E170: 331.8529663 | F170: 0 | G170: 82 | H170: 10 | I170: 15 | J170: -103 | K170: 7554.12
A171: 2009-10-12T02:25:45 | B171: 60.01699829 | C171: 3672.563232 | D171: 350 | E171: 331.8529663 | F171: 0 | G171: 82.5 | H171: 10 | I171: 15 | J171: -103 | K171: 7554.45
A172: 2009-10-12T02:25:50 | B172: 60.01399994 | C172: 3672.388184 | D172: 350 | E172: 331.8529663 | F172: 0 | G172: 83 | H172: 10 | I172: 15 | J172: -103 | K172: 7554.78
A173: 2009-10-12T02:25:55 | B173: 60.01399994 | C173: 3671.288086 | D173: 350 | E173: 331.8529663 | F173: 0 | G173: 83.5 | H173: 10 | I173: 15 | J173: -103 | K173: 7555.11
A174: 2009-10-12T02:26:00 | B174: 60.01900101 | C174: 3672.981689 | D174: 350 | E174: 329.9882202 | F174: 0 | G174: 84 | H174: 10 | I174: 15 | J174: -103 | K174: 7555.44
A175: 2009-10-12T02:26:05 | B175: 60.01900101 | C175: 3671.193115 | D175: 350 | E175: 329.9882202 | F175: 0 | G175: 84.5 | H175: 10 | I175: 15 | J175: -103 | K175: 7555.77
A176: 2009-10-12T02:26:10 | B176: 60.02600098 | C176: 3671.188965 | D176: 350 | E176: 329.9882202 | F176: 0 | G176: 85 | H176: 10 | I176: 15 | J176: -103 | K176: 7556.1
A177: 2009-10-12T02:26:15 | B177: 60.01900101 | C177: 3664.495117 | D177: 350 | E177: 329.9882202 | F177: 0 | G177: 85.5 | H177: 10 | I177: 15 | J177: -103 | K177: 7556.43
A178: 2009-10-12T02:26:20 | B178: 60.02000046 | C178: 3666.820801 | D178: 350 | E178: 329.9882202 | F178: 0 | G178: 86 | H178: 10 | I178: 15 | J178: -103 | K178: 7556.76
A179: 2009-10-12T02:26:25 | B179: 60.02099991 | C179: 3670.266846 | D179: 350 | E179: 255.4441681 | F179: 0 | G179: 86.5 | H179: 10 | I179: 15 | J179: -103 | K179: 7557.09
A180: 2009-10-12T02:26:30 | B180: 60.01900101 | C180: 3672.493164 | D180: 350 | E180: 165.1016846 | F180: 0 | G180: 87 | H180: 10 | I180: 15 | J180: -103 | K180: 7557.42
A181: 2009-10-12T02:26:35 | B181: 60.02199936 | C181: 3672.164062 | D181: 350 | E181: 165.1016846 | F181: 0 | G181: 87.5 | H181: 10 | I181: 15 | J181: -103 | K181: 7557.75
A182: 2009-10-12T02:26:40 | B182: 60.03699875 | C182: 3669.98291 | D182: 350 | E182: 165.1016846 | F182: 0 | G182: 88 | H182: 10 | I182: 15 | J182: -103 | K182: 7558.08
A183: 2009-10-12T02:26:45 | B183: 60.03699875 | C183: 3661.599121 | D183: 350 | E183: 165.1016846 | F183: 0 | G183: 88.5 | H183: 10 | I183: 15 | J183: -103 | K183: 7558.41
A184: 2009-10-12T02:26:50 | B184: 60.04800034 | C184: 3651.491699 | D184: 350 | E184: 165.1016846 | F184: 0 | G184: 89 | H184: 10 | I184: 15 | J184: -103 | K184: 7558.74
A185: 2009-10-12T02:26:55 | B185: 60.04100037 | C185: 3648.246338 | D185: 350 | E185: 165.4763947 | F185: 0 | G185: 89.5 | H185: 10 | I185: 15 | J185: -103 | K185: 7559.07
A186: 2009-10-12T02:27:00 | B186: 60.03900146 | C186: 3654.294434 | D186: 350 | E186: 165.4763947 | F186: 0 | G186: 90 | H186: 10 | I186: 15 | J186: -103 | K186: 7559.4
A187: 2009-10-12T02:27:05 | B187: 60.04299927 | C187: 3651.059326 | D187: 350 | E187: 165.4763947 | F187: 0 | G187: 90.5 | H187: 10 | I187: 15 | J187: -103 | K187: 7559.73
A188: 2009-10-12T02:27:10 | B188: 60.04100037 | C188: 3648.236328 | D188: 350 | E188: 165.4763947 | F188: 0 | G188: 91 | H188: 10 | I188: 15 | J188: -103 | K188: 7560.06
A189: 2009-10-12T02:27:15 | B189: 60.04100037 | C189: 3645.445801 | D189: 350 | E189: 165.4763947 | F189: 0 | G189: 91.5 | H189: 10 | I189: 15 | J189: -103 | K189: 7560.39
A190: 2009-10-12T02:27:20 | B190: 59.85200119 | C190: 3641.191162 | D190: 335 | E190: 206.4591064 | F190: 1 | G190: 92 | H190: 10 | I190: 0 | J190: -103 | K190: 7560.72
A191: 2009-10-12T02:27:25 | B191: 59.86899948 | C191: 3734.904297 | D191: 335 | E191: 206.4591064 | F191: 1 | G191: 92.5 | H191: 10 | I191: 0 | J191: -103 | K191: 7561.05
A192: 2009-10-12T02:27:30 | B192: 59.88000107 | C192: 3737.156738 | D192: 335 | E192: 206.4591064 | F192: 1 | G192: 93 | H192: 10 | I192: 0 | J192: -103 | K192: 7561.38
A193: 2009-10-12T02:27:35 | B193: 59.875 | C193: 3766.193848 | D193: 335 | E193: 206.4591064 | F193: 1 | G193: 93.5 | H193: 10 | I193: 0 | J193: -103 | K193: 7561.71
A194: 2009-10-12T02:27:40 | B194: 59.88600159 | C194: 3769.925049 | D194: 335 | E194: 206.4591064 | F194: 1 | G194: 94 | H194: 10 | I194: 0 | J194: -103 | K194: 7562.04
A195: 2009-10-12T02:27:45 | B195: 59.88700104 | C195: 3782.499512 | D195: 335 | E195: 211.2560425 | F195: 1 | G195: 94.5 | H195: 10 | I195: 0 | J195: -103 | K195: 7562.37
A196: 2009-10-12T02:27:50 | B196: 59.89500046 | C196: 3784.729736 | D196: 335 | E196: 211.2560425 | F196: 1 | G196: 95 | H196: 10 | I196: 0 | J196: -103 | K196: 7562.7
A197: 2009-10-12T02:27:55 | B197: 59.89300156 | C197: 3788.327637 | D197: 335 | E197: 211.2560425 | F197: 2 | G197: 95.5 | H197: 10 | I197: 0 | J197: -103 | K197: 7563.03
A198: 2009-10-12T02:28:00 | B198: 59.89099884 | C198: 3788.471924 | D198: 335 | E198: 211.2560425 | F198: 3 | G198: 96 | H198: 10 | I198: 0 | J198: -103 | K198: 7563.36
A199: 2009-10-12T02:28:05 | B199: 59.88499832 | C199: 3794.374268 | D199: 335 | E199: 211.2560425 | F199: 4 | G199: 96.5 | H199: 10 | I199: 0 | J199: -103 | K199: 7563.69
A200: 2009-10-12T02:28:10 | B200: 59.88700104 | C200: 3800.42749 | D200: 335 | E200: 214.3466949 | F200: 5 | G200: 97 | H200: 10 | I200: 0 | J200: -103 | K200: 7564.02
... 526 more rows

Sheet Entry Data
A1: Balancing Authority Name: | B1: My BA
A2: Balancing Authority Frequency Response Obligation (FRO from FRS Form 1) | B2: -80
A4: Note: See "Instruction" tab for more detailed instructions.
A6: Step 1. | B6: Copy and Paste Event Data into the appropriate cells of the "Data" worksheet.
B7: Maintain date and time format of mm/dd/yy hh:mm:ss.
A8: Step 2. | B8: Determine Time of T(0) and edit formula in cell "C8" to reference the correct row of the "Data" worksheet. | C8: =Data!A190 -> 40098.10231
B9: T(0) is the first change in frequency of about 0.010 Hz (10 mHz) which should be the first scan of frequency data of the event.
A11: Step 3. | B11: Time of Frequency Recovery to 60 Hz or Pre-Perturbation Hz | C11: =Data!A258 -> 40098.10625
A15: Step 4. | B15: Enter MW output of generator or load that caused event (+ for gen loss, - for load loss) | C15: 633 | D15: MW
B16: (Value from NERC Event List. If multiple units, enter total MW loss.)
A18: Step 5. | B18: Hit the big blue button to copy your data for pasting into FRS Form 1 "BA Event Data" worksheet.
A31: Step 6. | B31: Paste data into FRS Form 1 in the appropriate row on the "BA Event Data" worksheet.
A33: Step 7. | B33: Save this workbook using the following file name format:MyBA_yymmdd_hhmm_FRS_Form2.xlsm
B34: =Evaluation!G2 -> 2009-10-12T02:27:20 | C34: Date yymmdd
B35: =Evaluation!G2 -> 40098.10231 | C35: Time hh:ss of T(0)
B36: Where "MyBA" = your BA pneumonic

Sheet IPFR (hidden)
B41: IPFR = Interconnection Primary Frequency Response

Sheet Evaluation
A1: scan rate | B1: 2 | C1: seconds | F1: Date: | G1: =G2 -> 2009-10-12T02:27:20 | K1: Balancing Authority | L1: ='Entry Data'!$B$1 -> My BA | W1: A Point | X1: =$B78 -> 40098.10229 | AC1: A Point | AD1: =$B$78 -> 40098.10229 | AR1: Non-Conforming Load sign convention | AS1: + | AT1: (Data is positive for Load then enter "+" else "-" | BF1: Date: | BG1: =$BG$2 -> 2009-10-12T02:27:20 | BT1: Date: | BU1: =BU2 -> 2009-10-12T02:27:20 | CH1: Date: | CI1: =CI2 -> 2009-10-12T02:27:20 | CV1: Date: | CW1: =CW2 -> 2009-10-12T02:27:20 | DJ1: Date: | DK1: =DK2 -> 2009-10-12T02:27:20
F2: Time of T(0) | G2: ='Entry Data'!C8 -> 40098.10231 | K2: Grid Nominal Frequency | L2: 60 | M2: Hz | W2: FPointA | X2: =$C78 -> 60.04100037 | Y2: =$B78 -> 40098.10229 | AC2: FPointA | AD2: =$C$78 -> 60.04100037 | AE2: =$B$78 -> 40098.10229 | BF2: Time of T(0) | BG2: =G2 -> 40098.10231 | BT2: Time of T(0) | BU2: =$G2 -> 40098.10231 | CH2: Time of T(0) | CI2: =$G2 -> 40098.10231 | CV2: Time of T(0) | CW2: =$G2 -> 40098.10231 | DJ2: Time of T(0) | DK2: =$G2 -> 40098.10231
F3: Time of Frequency Recovery to 60 Hz or Pre-Perturbation Hz | G3: ='Entry Data'!C11 -> 40098.10625 | K3: Capacity @ Droop for Minimum Performance | L3: =L7*-M4*10 -> 2400 | M3: MW | W3: A Value | X3: =AVERAGE($C71:$C78) -> 60.04125023 | AC3: A Value | AD3: =AVERAGE($C$71:$C$78) -> 60.04125023 | BF3: Time of Frequency Recovery to 60 Hz or Pre-Perturbation Hz | BG3: =G3 -> 40098.10625 | BT3: Time of Frequency Recovery to 60 Hz or Pre-Perturbation Hz | BU3: =$G3 -> 40098.10625 | CH3: Time of Frequency Recovery to 60 Hz or Pre-Perturbation Hz | CI3: =$G3 -> 40098.10625 | CV3: Time of Frequency Recovery to 60 Hz or Pre-Perturbation Hz | CW3: =$G3 -> 40098.10625 | DJ3: Time of Frequency Recovery to 60 Hz or Pre-Perturbation Hz | DK3: =$G3 -> 40098.10625
F4: Value A Pre-Perturbation Average Frequency [T(-2 ) to T(-16)] | G4: =AVERAGE($C$71:$C$78) -> 60.04125023 | H4: Hz | K4: Droop Setting | L4: 0.05 | M4: =L4*L2 -> 3 | N4: Hz | W4: C Value | X4: =IF($K$16="Low Hz",MIN($C$79:$C$88),MAX($C$79:$C$88)) -> 59.85200119 | Y4: =LOOKUP($X$4,$C$79:$C$88,$B$79:$B$88) -> 40098.10236 | AC4: C Value | AD4: =IF($K$16="Low Hz",MIN($C$79:$C$88),MAX($C$79:$C$88)) -> 59.85200119 | AE4: =LOOKUP($X$6,$C$79:$C$88,$B$79:$B$88) ->  | BF4: Value A Pre-Perturbation Average Frequency [T(-2 ) to T(-16)] | BG4: =AVERAGE($AP$71:$AP$78) -> 60.04125023 | BH4: Hz | BT4: Value A Pre-Perturbation Average Frequency [T(-2 ) to T(-16)] | BU4: =AVERAGE($AP$71:$AP$78) -> 60.04125023 | BV4: Hz | CH4: Value A Pre-Perturbation Average Frequency [T(-2 ) to T(-16)] | CI4: =AVERAGE($AP$71:$AP$78) -> 60.04125023 | CJ4: Hz | CV4: Value A Pre-Perturbation Average Frequency [T(-2 ) to T(-16)] | CW4: =AVERAGE($AP$71:$AP$78) -> 60.04125023 | CX4: Hz | DJ4: Value A Pre-Perturbation Average Frequency [T(-2 ) to T(-16)] | DK4: =AVERAGE($AP$71:$AP$78) -> 60.04125023 | DL4: Hz
F5: Value B Post-Perturbation Average Frequency [T(+20 to T(+52)] | G5: =AVERAGE($C$89:$C$105) -> 59.88829444 | H5: Hz | K5: Deadband Setting | L5: 0 | M5: Hz | W5: Delta FCA | X5: =X4-X3 -> -0.1892490387 | AC5: Delta FC | BF5: Value B Post-Perturbation Average Frequency [T(+12 to T(+24)] | BG5: =AVERAGE($AP$85:$AP$91) -> 59.87957219 | BH5: Hz | BT5: Value B Post-Perturbation Average Frequency [T(+18 to T(+30)] | BU5: =AVERAGE($AP$88:$AP$94) -> 59.88328661 | BV5: Hz | CH5: Value B Post-Perturbation Average Frequency [T(+20 to T(+40)] | CI5: =AVERAGE($AP$89:$AP$99) -> 59.88881926 | CJ5: Hz | CV5: Value B Post-Perturbation Average Frequency [T(+18 to T(+52)] | CW5: =AVERAGE($AP$88:$AP$105) -> 59.88755586 | CX5: Hz | DJ5: Value B Post-Perturbation Average Frequency [T(+20 to T(+52)] | DK5: =AVERAGE($AP$89:$AP$105) -> 59.88829444 | DL5: Hz
F6: Pre to Post Perturbation Delta Frequency Actual | G6: =G5-G4 -> -0.1529557845 | H6: Hz | K6: Hz Span | L6: =M4-L5 -> 3 | M6: Hz | W6: FR C | X6: =X8/(X5*10) -> -334.4799024 | Y6: MW/0.1 Hz | BF6: Pre to Post Perturbation Delta Frequency Actual | BG6: =BG5-BG4 -> -0.1616780417 | BH6: Hz | BT6: Pre to Post Perturbation Delta Frequency Actual | BU6: =BU5-BU4 -> -0.1579636165 | BV6: Hz | CH6: Pre to Post Perturbation Delta Frequency Actual | CI6: =CI5-CI4 -> -0.1524309679 | CJ6: Hz | CV6: Pre to Post Perturbation Delta Frequency Actual | CW6: =CW5-CW4 -> -0.1536943648 | CX6: Hz | DJ6: Pre to Post Perturbation Delta Frequency Actual | DK6: =DK5-DK4 -> -0.1529557845 | DL6: Hz
F7: Value A Pre-Perturbation Average Interchange MW [T(-2 ) to T(-16)] | G7: =AVERAGE($D$71:$D$78) -> 3649.001709 | H7: MW | K7: Frequency Response Obligation (FRO) | L7: ='Entry Data'!B2 -> -80 | M7: MW/0.1 Hz | W7: Slope A-C dF/dT | X7: =(X4-X2)/(Y4-Y2)/86400 -> -0.03149986521 | Y7: Hz/second | AD7: Value B | AE7: FR B | AF7: Value B | AG7: FR B | AH7: Value B | AI7: FR B | AJ7: Value B | AK7: FR B | AL7: Value B | AM7: FR B | BF7: Value A Pre-Perturbation Average Interchange MW [T(-2 ) to T(-16)] | BG7: =AVERAGE($D$71:$D$78) -> 3649.001709 | BH7: MW | BT7: Value A Pre-Perturbation Average Interchange MW [T(-2 ) to T(-16)] | BU7: =AVERAGE($D$71:$D$78) -> 3649.001709 | BV7: MW | CH7: Value A Pre-Perturbation Average Interchange MW [T(-2 ) to T(-16)] | CI7: =AVERAGE($D$71:$D$78) -> 3649.001709 | CJ7: MW | CV7: Value A Pre-Perturbation Average Interchange MW [T(-2 ) to T(-16)] | CW7: =AVERAGE($D$71:$D$78) -> 3649.001709 | CX7: MW | DJ7: Value A Pre-Perturbation Average Interchange MW [T(-2 ) to T(-16)] | DK7: =AVERAGE($D$71:$D$78) -> 3649.001709 | DL7: MW
F8: Value B Post-Perturbation Average Interchange MW [T(+20 to T(+52)] | G8: =AVERAGE($D$89:$D$105) -> 3785.204647 | H8: MW | W8: C Value Maximum Resource Loss | X8: =MAX(Z79:Z88) -> 633 | AD8: 12 to 24 sec | AE8: 12 to 24 sec | AF8: 18 to 30 sec | AG8: 18 to 30 sec | AH8: 20 to 40 sec | AI8: 20 to 40 sec | AJ8: 18 to 52 sec | AK8: 18 to 52 sec | AL8: 20 to 52 sec | AM8: 20 to 52 sec | BF8: Value B Post-Perturbation Average Interchange MW [T(+12 to T(+24)] | BG8: =AVERAGE($D$85:$D$91) -> 3758.963588 | BH8: MW | BT8: Value B Post-Perturbation Average Interchange MW [T(+18 to T(+30)] | BU8: =AVERAGE($D$88:$D$94) -> 3774.248047 | BV8: MW | CH8: Value B Post-Perturbation Average Interchange MW [T(+20 to T(+40)] | CI8: =AVERAGE($D$89:$D$99) -> 3780.725897 | CJ8: MW | CV8: Value B Post-Perturbation Average Interchange MW [T(+18 to T(+52)] | CW8: =AVERAGE($D$88:$D$105) -> 3784.148492 | CX8: MW | DJ8: Value B Post-Perturbation Average Interchange MW [T(+20 to T(+52)] | DK8: =AVERAGE($D$89:$D$105) -> 3785.204647 | DL8: MW
F9: Pre to Post Perturbation Interchange Delta MW Actual | G9: =G8-G7 -> 136.2029383 | H9: MW | W9: Secondary C Value | X9: =IF((MIN(C89:C139)<X4),MIN(C89:C139),"No") -> No | Y9: =IF(X9="No","n/a ",(LOOKUP(X9,C89:C139,B89:B139))) -> n/a | Z9: Time | AC9: B Frequency Value | AD9: =AVERAGE($C$85:$C$91) -> 59.87957219 | AF9: =AVERAGE($C$88:$C$94) -> 59.88328661 | AH9: =AVERAGE($E$89:$E$99) -> 59.88829444 | AJ9: =AVERAGE($C$88:$C$105) -> 59.88755586 | AL9: =AVERAGE($C$89:$C$105) -> 59.88829444 | BF9: Pre to Post Perturbation Interchange Delta MW Actual | BG9: =BG8-BG7 -> 109.9618792 | BH9: MW | BT9: Pre to Post Perturbation Interchange Delta MW Actual | BU9: =BU8-BU7 -> 125.2463379 | BV9: MW | CH9: Pre to Post Perturbation Interchange Delta MW Actual | CI9: =CI8-CI7 -> 131.7241877 | CJ9: MW | CV9: Pre to Post Perturbation Interchange Delta MW Actual | CW9: =CW8-CW7 -> 135.1467828 | CX9: MW | DJ9: Pre to Post Perturbation Interchange Delta MW Actual | DK9: =DK8-DK7 -> 136.2029383 | DL9: MW
F10: Initial Performance Ramp Magnitude Adjustment | G10: =(D77-D49)*0.59 -> -12.61125 | H10: MW | AC10: Delta FB | AD10: =AD9-$AD$3 -> -0.1616780417 | AE10: =AVERAGE($AA$85:$AA$91) -> -391.8343575 | AF10: =AF9-$AD$3 -> -0.1579636165 | AG10: =AVERAGE($AA$88:$AA$94) -> -401.1562215 | AH10: =AH9-$AD$3 -> -0.1529557845 | AI10: =AVERAGE($AA$89:$AA$99) -> -415.8127633 | AJ10: =AJ9-$AD$3 -> -0.1536943648 | AK10: =AVERAGE($AA$88:$AA$105) -> -412.3888737 | AL10: =AL9-$AD$3 -> -0.1529557845 | AM10: =AVERAGE($AA$89:$AA$105) -> -414.2499042 | BF10: Net Total Adjustments | BG10: =BG30 -> -51.18990762 | BH10: MW | BT10: Net Total Adjustments | BU10: =BU30 -> -53.0457513 | BV10: MW | CH10: Net Total Adjustments | CI10: =CI30 -> -54.14875031 | CJ10: MW | CV10: Net Total Adjustments | CW10: =CW30 -> -53.08537292 | CX10: MW | DJ10: Net Total Adjustments | DK10: =DK30 -> -53.2237661 | DL10: MW
F11: EPFR Pre-Perturbation Average | G11: =AVERAGE(H71:H78) -> -33.00018311 | H11: MW | AC11: Slope B dF/dT | AD11: =AD10/20 -> -0.008083902087 | AF11: =AF10/20 -> -0.007898180825 | AH11: =AH10/20 -> -0.007647789226 | AJ11: =AJ10/20 -> -0.007684718238 | AL11: =AL10/20 -> -0.007647789226 | BF11: EPFR for FRO Pre-Perturbation Average | BG11: =AVERAGE(AZ71:AZ78) -> -33.00018311 | BH11: MW | BT11: EPFR for FRO Pre-Perturbation Average | BU11: =AVERAGE(BM71:BM78) -> -33.00018311 | BV11: MW | CH11: EPFR for FRO Pre-Perturbation Average | CI11: =AVERAGE(CO71:CO78) -> -33.00018311 | CJ11: MW | CV11: EPFR for FRO Pre-Perturbation Average | CW11: =AVERAGE(DC71:DC78) -> -33.00018311 | CX11: MW | DJ11: EPFR for FRO Pre-Perturbation Average | DK11: =AVERAGE(DQ71:DQ78) -> -33.00018311 | DL11: MW
F12: EPFR Post-Perturbation Average | G12: =AVERAGE(H89:H105) -> 89.36444451 | H12: MW | AC12: RatioB-C | AD12: =(100*(AD10/$X$5)) -> 85.4313675 | AF12: =(100*(AF10/$X$5)) -> 83.46864935 | AH12: =(100*(AH10/$X$5)) -> 80.82248955 | AJ12: =(100*(AJ10/$X$5)) -> 81.2127585 | AL12: =(100*(AL10/$X$5)) -> 80.82248955 | BF12: EPFR for FRO Post-Perturbation Average | BG12: =AVERAGE($AZ85:$AZ91) -> 96.34225028 | BH12: MW | BT12: EPFR for FRO Post-Perturbation Average | BU12: =AVERAGE($AZ88:$AZ94) -> 93.3707101 | BV12: MW | CH12: EPFR for FRO Post-Perturbation Average | CI12: =AVERAGE($AZ89:$AZ99) -> 88.94459118 | CJ12: MW | CV12: EPFR for FRO Post-Perturbation Average | CW12: =AVERAGE($AZ88:$AZ105) -> 89.9553087 | CX12: MW | DJ12: EPFR for FRO Post-Perturbation Average | DK12: =AVERAGE($AZ89:$AZ105) -> 89.36444451 | DL12: MW
F13: EPFR Delta | G13: =G12-G11 -> 122.3646276 | H13: MW | K13: TC (frequency response filter constant) | L13: 0.35 | M13: Time Constant for delayed delivery of PFR during Sustained Measure | AC13: Sustainability Index | AD13: =AVERAGE($C$110:$C$119)-AD9 -> -0.01467197963 | AF13: =AVERAGE($C$110:$C$119)-AF9 -> -0.01838640485 | AH13: =AVERAGE($C$110:$C$119)-AH9 -> -0.02339423685 | AJ13: =AVERAGE($C$110:$C$119)-AJ9 -> -0.0226556566 | AL13: =AVERAGE($C$110:$C$119)-AL9 -> -0.02339423685 | BF13: EPFR for FRO Delta | BG13: =BG12-BG11 -> 129.3424334 | BH13: MW | BT13: EPFR for FRO Delta | BU13: =BU12-BU11 -> 126.3708932 | BV13: MW | CH13: EPFR for FRO Delta | CI13: =CI12-CI11 -> 121.9447743 | CJ13: MW | CV13: EPFR for FRO Delta | CW13: =CW12-CW11 -> 122.9554918 | CX13: MW | DJ13: EPFR for FRO Delta | DK13: =DK12-DK11 -> 122.3646276 | DL13: MW
W14: Tzero | X14: =B78 -> 40098.10229 | BF14: EPFR for FRO Adjusted | BG14: =BG13+BG10 -> 78.15252577 | BH14: MW | BT14: EPFR for FRO Adjusted | BU14: =BU13+BU10 -> 73.32514191 | BV14: MW | CH14: EPFR for FRO Adjusted | CI14: =CI13+CI10 -> 67.79602398 | CJ14: MW | CV14: EPFR for FRO Adjusted | CW14: =CW13+CW10 -> 69.87011888 | CX14: MW | DJ14: EPFR for FRO Adjusted | DK14: =DK13+DK10 -> 69.14086151 | DL14: MW
W15: FT+4 | X15: =C81 -> 59.85200119 | BF15: Pre JOU Dynamic Schedules MW | BG15: =AVERAGE($AR$71:$AR$78) -> 350 | BK15: Pre-Perturbation Bias Setting | BL15: =AVERAGE($AX$71:$AX$78) -> -103 | BM15: MW/0.1 Hz | BT15: Pre JOU Dynamic Schedules MW | BU15: =AVERAGE($AR$71:$AR$78) -> 350 | BY15: Pre-Perturbation Bias Setting | BZ15: =AVERAGE($AX$71:$AX$78) -> -103 | CA15: MW/0.1 Hz | CH15: Pre JOU Dynamic Schedules MW | CI15: =AVERAGE($AR$71:$AR$78) -> 350 | CJ15: MW | CM15: Pre-Perturbation Bias Setting | CN15: =AVERAGE($AX$71:$AX$78) -> -103 | CO15: MW/0.1 Hz | CV15: Pre JOU Dynamic Schedules MW | CW15: =AVERAGE($AR$71:$AR$78) -> 350 | CX15: MW | DA15: Pre-Perturbation Bias Setting | DB15: =AVERAGE($AX$71:$AX$78) -> -103 | DC15: MW/0.1 Hz | DJ15: Pre JOU Dynamic Schedules MW | DK15: =AVERAGE($AR$71:$AR$78) -> 350 | DL15: MW | DO15: Pre-Perturbation Bias Setting | DP15: =AVERAGE($AX$71:$AX$78) -> -103 | DQ15: MW/0.1 Hz
K16: =IF(G6<0,"Low Hz","High Hz") -> Low Hz | L16: Delta Hz Event | W16: FT+10 | X16: =C84 -> 59.86899948 | BF16: Pre Non-Conforming Load MW | BG16: =AVERAGE($AS$71:$AS$78) -> -165.4763947 | BK16: Post-Perturbation Bias Setting | BL16: =AVERAGE($AX$85:$AX$91) -> -103 | BM16: MW/0.1 Hz | BT16: Pre Non-Conforming Load MW | BU16: =AVERAGE($AS$71:$AS$78) -> -165.4763947 | BY16: Post-Perturbation Bias Setting | BZ16: =AVERAGE($AX$88:$AX$94) -> -103 | CA16: MW/0.1 Hz | CH16: Pre Non-Conforming Load MW | CI16: =AVERAGE($AS$71:$AS$78) -> -165.4763947 | CJ16: MW | CM16: Post-Perturbation Bias Setting | CN16: =AVERAGE($AX$89:$AX$99) -> -103 | CO16: MW/0.1 Hz | CV16: Pre Non-Conforming Load MW | CW16: =AVERAGE($AS$71:$AS$78) -> -165.4763947 | CX16: MW | DA16: Post-Perturbation Bias Setting | DB16: =AVERAGE($AX$88:$AX$105) -> -103 | DC16: MW/0.1 Hz | DJ16: Pre Non-Conforming Load MW | DK16: =AVERAGE($AS$71:$AS$78) -> -165.4763947 | DL16: MW | DO16: Post-Perturbation Bias Setting | DP16: =AVERAGE($AX$89:$AX$105) -> -103 | DQ16: MW/0.1 Hz
K17: =LOOKUP(G3,B43:B529,N43:N529) -> 3763.505868 | L17: Actual Interchange MW Average during frequency recovery period | W17: FT+20 | X17: =C89 -> 59.875 | BF17: Pre Pumped Hydro MW | BG17: =AVERAGE($AT$71:$AT$78) -> 0 | BK17: EPFR for Bias Setting Pre-Perturbation Average | BL17: =(BG4-$L$2)*10*BL15 -> -42.48773575 | BM17: MW | BT17: Pre Pumped Hydro MW | BU17: =AVERAGE($AT$71:$AT$78) -> 0 | BY17: EPFR for Bias Setting Pre-Perturbation Average | BZ17: =(BU4-$L$2)*10*BZ15 -> -42.48773575 | CA17: MW | CH17: Pre Pumped Hydro MW | CI17: =AVERAGE($AT$71:$AT$78) -> 0 | CJ17: MW | CM17: EPFR for Bias Setting Pre-Perturbation Average | CN17: =(CI4-$L$2)*10*CN15 -> -42.48773575 | CO17: MW | CV17: Pre Pumped Hydro MW | CW17: =AVERAGE($AT$71:$AT$78) -> 0 | CX17: MW | DA17: EPFR for Bias Setting Pre-Perturbation Average | DB17: =(CW4-$L$2)*10*DB15 -> -42.48773575 | DC17: MW | DJ17: Pre Pumped Hydro MW | DK17: =AVERAGE($AT$71:$AT$78) -> 0 | DL17: MW | DO17: EPFR for Bias Setting Pre-Perturbation Average | DP17: =(DK4-$L$2)*10*DP15 -> -42.48773575 | DQ17: MW
K18: =LOOKUP(G3,B43:B529,O43:O529) -> 3781.519 | L18: Target Interchange MW Average during frequency recovery period | W18: FT+60 | X18: =C109 -> 59.88800049 | BF18: Pre Ramping Units MW | BG18: =AVERAGE($AU$71:$AU$78) -> 90.875 | BK18: EPFR for Bias Setting Post-Perturbation Average | BL18: =(BG5-$L$2)*10*BL16 -> 124.0406472 | BM18: MW | BT18: Pre Ramping Units MW | BU18: =AVERAGE($AU$71:$AU$78) -> 90.875 | BY18: EPFR for Bias Setting Post-Perturbation Average | BZ18: =(BU5-$L$2)*10*BZ16 -> 120.2147893 | CA18: MW | CH18: Pre Ramping Units MW | CI18: =AVERAGE($AU$71:$AU$78) -> 90.875 | CJ18: MW | CM18: EPFR for Bias Setting Post-Perturbation Average | CN18: =(CI5-$L$2)*10*CN16 -> 114.5161611 | CO18: MW | CV18: Pre Ramping Units MW | CW18: =AVERAGE($AU$71:$AU$78) -> 90.875 | CX18: MW | DA18: EPFR for Bias Setting Post-Perturbation Average | DB18: =(CW5-$L$2)*10*DB16 -> 115.81746 | DC18: MW | DJ18: Pre Ramping Units MW | DK18: =AVERAGE($AU$71:$AU$78) -> 90.875 | DL18: MW | DO18: EPFR for Bias Setting Post-Perturbation Average | DP18: =(DK5-$L$2)*10*DP16 -> 115.0567223 | DQ18: MW
D19: EPFR = Expected Primary Frequency Response | F19: EPFR(Final) | G19: =G13+G10 -> 109.7533776 | H19: MW | K19: =LOOKUP(G3,B49:B529,Q49:Q529) -> 3727.237624 | L19: Interchange Average Ramp MW during frequency recovery period | U19: Interconnection Evaluation | BF19: Pre Transferred Frequency Response MW | BG19: =AVERAGE($AV$71:$AV$78)*-10*(BG4-$L$2) -> -4.125022888 | BK19: EPFR for Bias Setting Delta | BL19: =BL18-BL17 -> 166.528383 | BM19: MW | BT19: Pre Transferred Frequency Response MW | BU19: =AVERAGE($AV$71:$AV$78)*-10*(BU4-$L$2) -> -4.125022888 | BY19: EPFR for Bias Setting Delta | BZ19: =BZ18-BZ17 -> 162.702525 | CA19: MW | CH19: Pre Transferred Frequency Response MW | CI19: =AVERAGE($AV$71:$AV$78)*-10*(CI4-$L$2) -> -4.125022888 | CJ19: MW | CM19: EPFR for Bias Setting Delta | CN19: =CN18-CN17 -> 157.0038969 | CO19: MW | CV19: Pre Transferred Frequency Response MW | CW19: =AVERAGE($AV$71:$AV$78)*-10*(CW4-$L$2) -> -4.125022888 | CX19: MW | DA19: EPFR for Bias Setting Delta | DB19: =DB18-DB17 -> 158.3051957 | DC19: MW | DJ19: Pre Transferred Frequency Response MW | DK19: =AVERAGE($AV$71:$AV$78)*-10*(DK4-$L$2) -> -4.125022888 | DL19: MW | DO19: EPFR for Bias Setting Delta | DP19: =DP18-DP17 -> 157.5444581 | DQ19: MW
F20: MW Response in right direction for frequency delta | G20: =IF((G6*G9)<0,"Yes","No") -> Yes | K20: =D77 -> 3645.445801 | L20: Actual MW @ T(-4) | BF20: Pre Contingent BA Lost Generation MW | BG20: =AVERAGE($AW$71:$AW$78) -> 15 | BK20: Primary Frequency Response Delivery of Bias | BL20: =BG9/BL19 -> 0.6603191433 | BT20: Pre Contingent BA Lost Generation MW | BU20: =AVERAGE($AW$71:$AW$78) -> 15 | BY20: Primary Frequency Response Delivery of Bias | BZ20: =BU9/BZ19 -> 0.7697873029 | CH20: Pre Contingent BA Lost Generation MW | CI20: =AVERAGE($AW$71:$AW$78) -> 15 | CJ20: MW | CM20: Primary Frequency Response Delivery of Bias | CN20: =CI9/CN19 -> 0.8389867404 | CV20: Pre Contingent BA Lost Generation MW | CW20: =AVERAGE($AW$71:$AW$78) -> 15 | CX20: MW | DA20: Primary Frequency Response Delivery of Bias | DB20: =CW9/DB19 -> 0.853710342 | DJ20: Pre Contingent BA Lost Generation MW | DK20: =AVERAGE($AW$71:$AW$78) -> 15 | DL20: MW | DO20: Primary Frequency Response Delivery of Bias | DP20: =DK9/DP19 -> 0.864536525
K21: =LOOKUP(G3,B43:B524,D43:D524)-D77+I77-LOOKUP(G3,B43:B524,I43:I524) -> 98.66145607 | L21: Starting and Ending Difference in Interchange MW during frequency recovery period (indicates ramp direction during recovery period) | BF21: Sum of Pre Perturbation Adjustments | BG21: =SUM(BG15:BG20) -> 286.2735825 | BT21: Sum of Pre Perturbation Adjustments | BU21: =SUM(BU15:BU20) -> 286.2735825 | CH21: Sum of Pre Perturbation Adjustments | CI21: =SUM(CI15:CI20) -> 286.2735825 | CJ21: MW | CV21: Sum of Pre Perturbation Adjustments | CW21: =SUM(CW15:CW20) -> 286.2735825 | CX21: MW | DJ21: Sum of Pre Perturbation Adjustments | DK21: =SUM(DK15:DK20) -> 286.2735825 | DL21: MW
K22: =G3-G2 -> 00:05:40 | L22: Event Duration (h:mm:ss)
K23: =IF(K18-K20<0,"Yes","No") -> No | L23: Target MW Average minus MW @ T(-4) less than zero | W23: B Value Average Resource Loss | X23: =AVERAGE(R89:X105) -> 633 | BF23: Post JOU Dynamic Schedules MW | BG23: =AVERAGE($AR$85:$AR$91) -> 335 | BK23: Pre-Perturbation BA Load | BL23: =AVERAGE($AY$71:$AY$78) -> 7559.9775 | BM23: MW | BT23: Post JOU Dynamic Schedules MW | BU23: =AVERAGE($AR$88:$AR$94) -> 335 | BY23: Pre-Perturbation BA Load | BZ23: =AVERAGE($AY$71:$AY$78) -> 7559.9775 | CA23: MW | CH23: Post JOU Dynamic Schedules MW | CI23: =AVERAGE($AR$89:$AR$99) -> 335 | CJ23: MW | CM23: Pre-Perturbation BA Load | CN23: =AVERAGE($AY$71:$AY$78) -> 7559.9775 | CO23: MW | CV23: Post JOU Dynamic Schedules MW | CW23: =AVERAGE($AR$88:$AR$105) -> 335 | CX23: MW | DA23: Pre-Perturbation BA Load | DB23: =AVERAGE($AY$71:$AY$78) -> 7559.9775 | DC23: MW | DJ23: Post JOU Dynamic Schedules MW | DK23: =AVERAGE($AR$89:$AR$105) -> 335 | DL23: MW | DO23: Pre-Perturbation BA Load | DP23: =AVERAGE($AY$71:$AY$78) -> 7559.9775 | DQ23: MW
K24: =IF(K21>0,K18-K20,K18-(K20+K21)) -> 136.0731991 | L24: Interchange Target Relative Average Change - MW (Low Frequency Event) | W24: B Value Average LaaR Loss | X24: =AVERAGE(Y89:Y105) -> 0 | BF24: Post Non-Conforming Load MW | BG24: =AVERAGE($AS$85:$AS$91) -> -206.4591064 | BK24: Post-Perturbation BA Load | BL24: =AVERAGE($AY$85:$AY$91) -> 7561.71 | BM24: MW | BT24: Post Non-Conforming Load MW | BU24: =AVERAGE($AS$88:$AS$94) -> -208.5149362 | BY24: Post-Perturbation BA Load | BZ24: =AVERAGE($AY$88:$AY$94) -> 7562.087143 | CA24: MW | CH24: Post Non-Conforming Load MW | CI24: =AVERAGE($AS$89:$AS$99) -> -209.9477872 | CJ24: MW | CM24: Post-Perturbation BA Load | CN24: =AVERAGE($AY$89:$AY$99) -> 7562.49 | CO24: MW | CV24: Post Non-Conforming Load MW | CW24: =AVERAGE($AS$88:$AS$105) -> -210.3617596 | CX24: MW | DA24: Post-Perturbation BA Load | DB24: =AVERAGE($AY$88:$AY$105) -> 7562.828333 | DC24: MW | DJ24: Post Non-Conforming Load MW | DK24: =AVERAGE($AS$89:$AS$105) -> -210.5913274 | DL24: MW | DO24: Post-Perturbation BA Load | DP24: =AVERAGE($AY$89:$AY$105) -> 7562.894118 | DQ24: MW
K25: =IF(K21>0,K17-K20,K17-(K20+K21)) -> 118.0600672 | L25: Interchange Actual Relative Average Change - MW (Low Frequency Event) | W25: B Value Average Net Loss | X25: =X23-X24 -> 633 | BF25: Post Pumped Hydro MW | BG25: =AVERAGE($AT$85:$AT$91) -> 1 | BK25: Pre to Post Perturbation BA Load Change | BL25: =BL24-BL23 -> 1.7325 | BM25: MW | BT25: Post Pumped Hydro MW | BU25: =AVERAGE($AT$88:$AT$94) -> 1 | BY25: Pre to Post Perturbation BA Load Change | BZ25: =BZ24-BZ23 -> 2.109642857 | CA25: MW | CH25: Post Pumped Hydro MW | CI25: =AVERAGE($AT$89:$AT$99) -> 1.272727273 | CJ25: MW | CM25: Pre to Post Perturbation BA Load Change | CN25: =CN24-CN23 -> 2.5125 | CO25: MW | CV25: Post Pumped Hydro MW | CW25: =AVERAGE($AT$88:$AT$105) -> 2.111111111 | CX25: MW | DA25: Pre to Post Perturbation BA Load Change | DB25: =DB24-DB23 -> 2.850833333 | DC25: MW | DJ25: Post Pumped Hydro MW | DK25: =AVERAGE($AT$89:$AT$105) -> 2.176470588 | DL25: MW | DO25: Pre to Post Perturbation BA Load Change | DP25: =DP24-DP23 -> 2.916617647 | DQ25: MW
K26: =IF(K17-K20<0,"Yes","No") -> No | L26: Interchange Actual Average minus MW @ T(-4) less than zero | BF26: Post Ramping Units MW | BG26: =AVERAGE($AU$85:$AU$91) -> 93.5 | BK26: Load Dampening Frequency Response | BL26: =BL25/(BG6*-10) -> 1.071574087 | BM26: MW/0.1 Hz | BT26: Post Ramping Units MW | BU26: =AVERAGE($AU$88:$AU$94) -> 94.07142857 | BY26: Load Dampening Frequency Response | BZ26: =BZ25/(BU6*-10) -> 1.335524536 | CA26: MW/0.1 Hz | CH26: Post Ramping Units MW | CI26: =AVERAGE($AU$89:$AU$99) -> 94.68181818 | CJ26: MW | CM26: Load Dampening Frequency Response | CN26: =CN25/(CI6*-10) -> 1.648287113 | CO26: MW/0.1 Hz | CV26: Post Ramping Units MW | CW26: =AVERAGE($AU$88:$AU$105) -> 95.19444444 | CX26: MW | DA26: Load Dampening Frequency Response | DB26: =DB25/(CW6*-10) -> 1.854871737 | DC26: MW/0.1 Hz | DJ26: Post Ramping Units MW | DK26: =AVERAGE($AU$89:$AU$105) -> 95.29411765 | DL26: MW | DO26: Load Dampening Frequency Response | DP26: =DP25/(DK6*-10) -> 1.906837101 | DQ26: MW/0.1 Hz
K27: =IF(K17-K20>0,"Yes","No") -> Yes | L27: Interchange Average MW minus MW @ T(-4) greater than zero | Z27: Interconnection Bias Total | BF27: Post Transferred Frequency Response MW | BG27: =AVERAGE($AV$85:$AV$91)*-10*(BG5-$L$2) -> 12.04278128 | BK27: Load Dampening % of Total BA Frequency Response | BL27: =BL25/BG9*-1 -> -0.0157554601 | BT27: Post Transferred Frequency Response MW | BU27: =AVERAGE($AV$88:$AV$94)*-10*(BU5-$L$2) -> 11.67133876 | BY27: Load Dampening % of Total BA Frequency Response | BZ27: =BZ25/BU9*-1 -> -0.01684394844 | CH27: Post Transferred Frequency Response MW | CI27: =AVERAGE($AV$89:$AV$99)*-10*(CI5-$L$2) -> 11.1180739 | CJ27: MW | CM27: Load Dampening % of Total BA Frequency Response | CN27: =CN25/CI9*-1 -> -0.01907394568 | CV27: Post Transferred Frequency Response MW | CW27: =AVERAGE($AV$88:$AV$105)*-10*(CW5-$L$2) -> 11.24441359 | CX27: MW | DA27: Load Dampening % of Total BA Frequency Response | DB27: =DB25/CW9*-1 -> -0.02109434849 | DJ27: Post Transferred Frequency Response MW | DK27: =AVERAGE($AV$89:$AV$105)*-10*(DK5-$L$2) -> 11.17055556 | DL27: MW | DO27: Load Dampening % of Total BA Frequency Response | DP27: =DP25/DK9*-1 -> -0.02141376451
K28: =IF(K18-K20>0,"Yes","No") -> Yes | L28: Interchange Target MW Average minus MW @ T(-4) greater than zero | Z28: EI | AA28: ERCOT | AB28: WECC | BF28: Post Contingent BA Lost Generation MW | BG28: =AVERAGE($AW$85:$AW$91) -> 0 | BT28: Post Contingent BA Lost Generation MW | BU28: =AVERAGE($AW$88:$AW$94) -> 0 | CH28: Post Contingent BA Lost Generation MW | CI28: =AVERAGE($AW$89:$AW$99) -> 0 | CJ28: MW | CV28: Post Contingent BA Lost Generation MW | CW28: =AVERAGE($AW$88:$AW$105) -> 0 | CX28: MW | DJ28: Post Contingent BA Lost Generation MW | DK28: =AVERAGE($AW$89:$AW$105) -> 0 | DL28: MW
K29: =IF(K21>0,K18-(K20+K21),K18-K20) -> 37.41174307 | L29: Interchange Target Relative Average Change - MW (High Frequency Event) | W29: Interconnection Bias Setting | X29: -660 | Z29: -6349 | AA29: -660 | AB29: -2024 | BF29: Sum of Post Perturbation Adjustments | BG29: =SUM(BG23:BG28) -> 235.0836748 | BT29: Sum of Post Perturbation Adjustments | BU29: =SUM(BU23:BU28) -> 233.2278312 | CH29: Sum of Post Perturbation Adjustments | CI29: =SUM(CI23:CI28) -> 232.1248322 | CJ29: MW | CV29: Sum of Post Perturbation Adjustments | CW29: =SUM(CW23:CW28) -> 233.1882095 | CX29: MW | DJ29: Sum of Post Perturbation Adjustments | DK29: =SUM(DK23:DK28) -> 233.0498164 | DL29: MW
K30: =IF(K21>0,K17-(K20+K21),K17-K20) -> 19.39861109 | L30: Interchange Actual Relative Average Change - MW (High Frequency Event) | W30: IPFR as a % of Bias Setting | X30: =X28/X29 -> 0 | BF30: Net Total Adjustments MW | BG30: =BG29-BG21 -> -51.18990762 | BT30: Net Total Adjustments MW | BU30: =BU29-BU21 -> -53.0457513 | CH30: Net Total Adjustments MW | CI30: =CI29-CI21 -> -54.14875031 | CJ30: MW | CV30: Net Total Adjustments MW | CW30: =CW29-CW21 -> -53.08537292 | CX30: MW | DJ30: Net Total Adjustments MW | DK30: =DK29-DK21 -> -53.2237661 | DL30: MW
K31: =IF(K21>=0,"Up","Down") -> Up | L31: Ramp Direction during frequency recovery period | W31: Interconnection Total Energy | X31: 37446 | Y31: =X31/X32 -> 0.6006833603
W32: Interconnection Peak Energy | X32: 62339 | AC32: Frequency and Interconnection Frequency Response @ different Average periods of B | AO32: Frequency, Actual Interchange, Adjustment Data, Bias and Load used in the evaluation | BB32: 12 to 24 second Average Period Evaluation | BP32: 18 to 30 second Average Period Evaluation | CD32: 20 to 40 second Average Period Evaluation | CR32: 18 to 52 second Average Period Evaluation | DF32: 20 to 52 second Average Period Evaluation
F33: Initial Response P.U. Performance | G33: =IF(G20="Yes",G9/G19,"No Evaluation") -> 1.240990858 | H33: P.U. | K33: =IF(G33="No Evaluation","No Evaluation",IF(K16="Low Hz",IF(K23="Yes",IF(K17>K18,1,IF(K17>K19,0.75,0)),IF(K27="Yes",IF((K25/K24)>2,2,K25/K24),IF(K17>K19,0.75,0))),IF(K23="Yes",IF(K27="Yes",IF(K17<K19,0.75,0),IF((K17/K18)>2,2,K17/K18)),IF(K17<K18,1,IF(K17<K19,0.75,0))))) -> 0.86762175 | L33: P.U. Sustianed Response P.U. Performance | BF33: Initial P.U. Performance for FRO | BG33: =BG9/BG13 -> 0.850160897 | BH33: P.U. | BT33: Initial P.U. Performance for FRO | BU33: =BU9/BU13 -> 0.9911011524 | BV33: P.U. | CH33: Initial P.U. Performance for FRO | CI33: =CI9/CI13 -> 1.080195428 | CJ33: P.U. | CV33: Initial P.U. Performance for FRO | CW33: =CW9/CW13 -> 1.099152065 | CX33: P.U. | DJ33: Initial P.U. Performance for FRO | DK33: =DK9/DK13 -> 1.113090776 | DL33: P.U.
BF34: Initial P.U. Performance Adjusted for FRO | BG34: =BG9/BG14 -> 1.40701632 | BH34: P.U. | BT34: Initial P.U. Performance Adjusted for FRO | BU34: =BU9/BU14 -> 1.708095404 | BV34: P.U. | CH34: Initial P.U. Performance Adjusted for FRO | CI34: =CI9/CI14 -> 1.942948568 | CJ34: P.U. | CV34: Initial P.U. Performance Adjusted for FRO | CW34: =CW9/CW14 -> 1.934257232 | CX34: P.U. | DJ34: Initial P.U. Performance Adjusted for FRO | DK34: =DK9/DK14 -> 1.969934064 | DL34: P.U.
K35: Initial | R35: Generator | S35: Generator | T35: Generator | U35: Generator | V35: Generator | W35: Generator | X35: Generator | Y35: LaaR | Z35: Total | AA35: Interconnection | AB35: FR B | AR35: JOU | AS35: Non- | AV35: Transferred | AW35: Contingent | BE35: JOU | BF35: Non- | BI35: Transferred | BJ35: Contingent | BN35: Expected | BS35: JOU | BT35: Non- | BW35: Transferred | BX35: Contingent | CB35: Expected | CG35: JOU | CH35: Non- | CK35: Transferred | CL35: Contingent | CP35: Expected | CU35: JOU | CV35: Non- | CY35: Transferred | CZ35: Contingent | DD35: Expected | DI35: JOU | DJ35: Non- | DM35: Transferred | DN35: Contingent | DR35: Expected
H36: FRO | K36: Measure | N36: Average | O36: Average | Q36: Average | R36: Trip | S36: Trip | T36: Trip | U36: Trip | V36: Trip | W36: Trip | X36: Trip | Y36: Trip | Z36: Generation | AA36: Primary | AB36: 20 to 52 sec | AD36: Value B | AE36: FR B | AF36: Value B | AG36: FR B | AH36: Value B | AI36: FR B | AJ36: Value B | AK36: FR B | AL36: Value B | AM36: FR B | AQ36: Net | AR36: Dynamic | AS36: Conforming | AT36: Pumped | AU36: Ramping | AV36: Frequency | AW36: BA | AX36: BA | AY36: BA | AZ36: Expected | BD36: Net | BE36: Dynamic | BF36: Conforming | BG36: Pumped | BH36: Ramping | BI36: Frequency | BJ36: BA | BK36: BA | BL36: BA | BN36: Net | BR36: Net | BS36: Dynamic | BT36: Conforming | BU36: Pumped | BV36: Ramping | BW36: Frequency | BX36: BA | BY36: BA | BZ36: BA | CB36: Net | CF36: Net | CG36: Dynamic | CH36: Conforming | CI36: Pumped | CJ36: Ramping | CK36: Frequency | CL36: BA | CM36: BA | CN36: BA | CP36: Net | CT36: Net | CU36: Dynamic | CV36: Conforming | CW36: Pumped | CX36: Ramping | CY36: Frequency | CZ36: BA | DA36: BA | DB36: BA | DD36: Net | DH36: Net | DI36: Dynamic | DJ36: Conforming | DK36: Pumped | DL36: Ramping | DM36: Frequency | DN36: BA | DO36: BA | DP36: BA | DR36: Net
H37: (EPFR) | I37: (TC) | K37: Final | N37: Output | O37: Target | Q37: Ramp | R37: MW | S37: MW | T37: MW | U37: MW | V37: MW | W37: MW | X37: MW | Y37: MW | Z37: Trip | AA37: Frequency | AB37: Average | AD37: 12 to 24 sec | AE37: 12 to 24 sec | AF37: 18 to 30 sec | AG37: 18 to 30 sec | AH37: 20 to 40 sec | AI37: 20 to 40 sec | AJ37: 18 to 52 sec | AK37: 18 to 52 sec | AL37: 20 to 52 sec | AM37: 20 to 52 sec | AQ37: Actual | AR37: Schedules | AS37: Load | AT37: Hydro | AU37: Units | AV37: Response | AW37: Lost Generation | AX37: Bias | AY37: Load | AZ37: Primary | BD37: Actual | BE37: Schedules | BF37: Load | BG37: Hydro | BH37: Units | BI37: Response | BJ37: Lost Generation | BK37: Bias | BL37: Load | BN37: Actual | BR37: Actual | BS37: Schedules | BT37: Load | BU37: Hydro | BV37: Units | BW37: Response | BX37: Lost Generation | BY37: Bias | BZ37: Load | CB37: Actual | CF37: Actual | CG37: Schedules | CH37: Load | CI37: Hydro | CJ37: Units | CK37: Response | CL37: Lost Generation | CM37: Bias | CN37: Load | CP37: Actual | CT37: Actual | CU37: Schedules | CV37: Load | CW37: Hydro | CX37: Units | CY37: Response | CZ37: Lost Generation | DA37: Bias | DB37: Load | DD37: Actual | DH37: Actual | DI37: Schedules | DJ37: Load | DK37: Hydro | DL37: Units | DM37: Response | DN37: Lost Generation | DO37: Bias | DP37: Load | DR37: Actual
E38: Value B | H38: Expected | I38: Delayed | K38: Expected | M38: Recovery | N38: During | O38: During | P38: Recovery | Q38: During | Z38: MW | AA38: Response | AB38: MW | AD38: Average | AE38: Average | AF38: Average | AG38: Average | AH38: Average | AI38: Average | AJ38: Average | AK38: Average | AL38: Average | AM38: Average | AP38: Frequency | AQ38: Interchange | AR38: Imp(-) Exp (+) | AS38: Load (-) | AT38: Load (-) Gen (+) | AU38: Gen (+) | AV38: Rec (-) Del (+) | AW38: Load (-) Gen (+) | AX38: Setting | AZ38: Freq Response | BC38: Frequency | BD38: Interchange | BE38: Imp(-) Exp (+) | BF38: Load (-) | BG38: Load (-) Gen (+) | BH38: Gen (+) | BI38: Rec (-) Del (+) | BJ38: Load (-) Gen (+) | BK38: Setting | BM38: EPFR | BN38: Interchange | BQ38: Frequency | BR38: Interchange | BS38: Imp(-) Exp (+) | BT38: Load (-) | BU38: Load (-) Gen (+) | BV38: Gen (+) | BW38: Rec (-) Del (+) | BX38: Load (-) Gen (+) | BY38: Setting | CA38: EPFR | CB38: Interchange | CE38: Frequency | CF38: Interchange | CG38: Imp(-) Exp (+) | CH38: Load (-) | CI38: Load (-) Gen (+) | CJ38: Gen (+) | CK38: Rec (-) Del (+) | CL38: Load (-) Gen (+) | CM38: Setting | CO38: EPFR | CP38: Interchange | CS38: Frequency | CT38: Interchange | CU38: Imp(-) Exp (+) | CV38: Load (-) | CW38: Load (-) Gen (+) | CX38: Gen (+) | CY38: Rec (-) Del (+) | CZ38: Load (-) Gen (+) | DA38: Setting | DC38: EPFR | DD38: Interchange | DG38: Frequency | DH38: Interchange | DI38: Imp(-) Exp (+) | DJ38: Load (-) | DK38: Load (-) Gen (+) | DL38: Gen (+) | DM38: Rec (-) Del (+) | DN38: Load (-) Gen (+) | DO38: Setting | DQ38: EPFR | DR38: Interchange
E39: 20 to 52 sec | H39: Primary | I39: Delivery | K39: Primary | L39: Average | M39: Period | N39: Recovery | O39: Recovery | P39: Period | Q39: Recovery | AD39: Frequency | AE39: MW | AF39: Frequency | AG39: MW | AH39: Frequency | AI39: MW | AJ39: Frequency | AK39: MW | AL39: Frequency | AM39: MW | AO39: T | AP39: Hz | AQ39: MW | AR39: MW | AS39: MW | AT39: MW | AU39: MW | AV39: MW/0.1 Hz | AW39: MW | AX39: MW/0.1 Hz | AY39: MW | AZ39: MW | BB39: T | BC39: Hz | BD39: MW | BE39: MW | BF39: MW | BG39: MW | BH39: MW | BI39: MW/0.1 Hz | BJ39: MW | BK39: MW/0.1 Hz | BL39: MW | BM39: MW | BN39: MW | BP39: T | BQ39: Hz | BR39: MW | BS39: MW | BT39: MW | BU39: MW | BV39: MW | BW39: MW/0.1 Hz | BX39: MW | BY39: MW/0.1 Hz | BZ39: MW | CA39: MW | CB39: MW | CD39: T | CE39: Hz | CF39: MW | CG39: MW | CH39: MW | CI39: MW | CJ39: MW | CK39: MW/0.1 Hz | CL39: MW | CM39: MW/0.1 Hz | CN39: MW | CO39: MW | CP39: MW | CR39: T | CS39: Hz | CT39: MW | CU39: MW | CV39: MW | CW39: MW | CX39: MW | CY39: MW/0.1 Hz | CZ39: MW | DA39: MW/0.1 Hz | DB39: MW | DC39: MW | DD39: MW | DF39: T | DG39: Hz | DH39: MW | DI39: MW | DJ39: MW | DK39: MW | DL39: MW | DM39: MW/0.1 Hz | DN39: MW | DO39: MW/0.1 Hz | DP39: MW | DQ39: MW | DR39: MW
C40: Frequency | D40: Interchange | E40: Average | F40: Average | H40: Frequency | I40: Frequency | K40: Frequency | L40: Ramp | M40: Target | N40: Period | O40: Period | P40: Ramp | Q40: Period
B41: T | C41: Hz | D41: MW | E41: Frequency | F41: MW | H41: Response | I41: Response | K41: Response | L41: MW/scan | M41: MW | N41: MW | O41: MW | P41: MW | Q41: MW | R41: ='Entry Data'!C15 -> 633 | AA41: MW/0.1 Hz
Z42: =SUM(R42:Y42) -> 0
A43: T-72 sec | B43: =B44-TIME(0,0,$B$1) -> 40098.10148 | C43: =LOOKUP($B43,Data!$A$6:$A$1806,Data!$B$6:$B$1806) -> 60.01900101 | D43: =LOOKUP(B43,Data!$A$6:$A$1806,Data!C$6:C$1806) -> 3671.193115 | H43: =(IF((C43-L$2)>0,((C43-L$2-L$5)/((L$4*L$2)-L$5)*L$3*-1),((C43-L$2+L$5)/((L$4*L$2)-L$5)*L$3*-1))) -> -15.20080566 | I43: =L$13*H43+(1-L$13)*I42 -> -5.320281982 | Z43: =SUM(R43:Y43) -> 0 | AC43: =A43 -> T-72 sec | AN43: T-72 sec | AO43: =AO44-TIME(0,0,$B$1) -> 40098.10148 | AP43: =LOOKUP($AO43,Data!$A$6:$A$1806,Data!$B$6:$B$1806) -> 60.01900101 | AQ43: =LOOKUP($AO43,Data!$A$6:$A$1806,Data!$C$6:$C$1806) -> 3671.193115 | AR43: =LOOKUP($AO43,Data!$A$6:$A$1806,Data!$D$6:$D$1806) -> 350 | AS43: =IF($AS$1="+",LOOKUP($AO43,Data!$A$6:$A$1806,Data!$E$6:$E$1806)*-1,LOOKUP($AO43,Data!$A$6:$A$1806,Data!$E$6:$E$1806)) -> -329.9882202 | AT43: =LOOKUP($AO43,Data!$A$6:$A$1806,Data!$F$6:$F$1806) -> 0 | AU43: =LOOKUP($AO43,Data!$A$6:$A$1806,Data!$G$6:$G$1806) -> 84.5 | AV43: =LOOKUP($AO43,Data!$A$6:$A$1806,Data!$H$6:$H$1806) -> 10 | AW43: =LOOKUP($AO43,Data!$A$6:$A$1806,Data!$I$6:$I$1806) -> 15 | AX43: =LOOKUP($AO43,Data!$A$6:$A$1806,Data!$J$6:$J$1806) -> -103 | AY43: =LOOKUP($AO43,Data!$A$6:$A$1806,Data!$K$6:$K$1806) -> 7555.77 | AZ43: =(IF((AP43-$L$2)>0,((AP43-$L$2-$L$5)/(($L$4*$L$2)-$L$5)*$L$3*-1),((AP43-$L$2+$L$5)/(($L$4*$L$2)-$L$5)*$L$3*-1))) -> -15.20080566 | BA43: T-72 sec | BB43: =BB44-TIME(0,0,$B$1) -> 40098.10148 | BO43: T-72 sec | BP43: =BP44-TIME(0,0,$B$1) -> 40098.10148 | CC43: T-72 sec | CD43: =CD44-TIME(0,0,$B$1) -> 40098.10148 | CQ43: T-72 sec | CR43: =CR44-TIME(0,0,$B$1) -> 40098.10148 | DE43: T-72 sec | DF43: =DF44-TIME(0,0,$B$1) -> 40098.10148
A44: T-70 sec | B44: 40098.1015 | C44: =LOOKUP(B44,Data!$A$6:$A$1806,Data!B$6:B$1806) -> 60.02600098 | D44: =LOOKUP(B44,Data!$A$6:$A$1806,Data!C$6:C$1806) -> 3671.188965 | H44: =(IF((C44-L$2)>0,((C44-L$2-L$5)/((L$4*L$2)-L$5)*L$3*-1),((C44-L$2+L$5)/((L$4*L$2)-L$5)*L$3*-1))) -> -20.80078125 | I44: -10.73845673 | Z44: 0 | AC44: =A44 -> T-70 sec | AN44: T-70 sec | AO44: 40098.1015 | AP44: =LOOKUP($AO44,Data!$A$6:$A$1806,Data!$B$6:$B$1806) -> 60.02600098 | AQ44: =LOOKUP($AO44,Data!$A$6:$A$1806,Data!$C$6:$C$1806) -> 3671.188965 | AR44: =LOOKUP($AO44,Data!$A$6:$A$1806,Data!$D$6:$D$1806) -> 350 | AS44: =IF($AS$1="+",LOOKUP($AO44,Data!$A$6:$A$1806,Data!$E$6:$E$1806)*-1,LOOKUP($AO44,Data!$A$6:$A$1806,Data!$E$6:$E$1806)) -> -329.9882202 | AT44: =LOOKUP($AO44,Data!$A$6:$A$1806,Data!$F$6:$F$1806) -> 0 | AU44: =LOOKUP($AO44,Data!$A$6:$A$1806,Data!$G$6:$G$1806) -> 85 | AV44: =LOOKUP($AO44,Data!$A$6:$A$1806,Data!$H$6:$H$1806) -> 10 | AW44: =LOOKUP($AO44,Data!$A$6:$A$1806,Data!$I$6:$I$1806) -> 15 | AX44: =LOOKUP($AO44,Data!$A$6:$A$1806,Data!$J$6:$J$1806) -> -103 | AY44: =LOOKUP($AO44,Data!$A$6:$A$1806,Data!$K$6:$K$1806) -> 7556.1 | AZ44: =(IF((AP44-$L$2)>0,((AP44-$L$2-$L$5)/(($L$4*$L$2)-$L$5)*$L$3*-1),((AP44-$L$2+$L$5)/(($L$4*$L$2)-$L$5)*$L$3*-1))) -> -20.80078125 | BA44: T-70 sec | BB44: 40098.1015 | BO44: T-70 sec | BP44: 40098.1015 | CC44: T-70 sec | CD44: 40098.1015 | CQ44: T-70 sec | CR44: 40098.1015 | DE44: T-70 sec | DF44: 40098.1015
A45: T-68 sec | B45: 40098.10153 | C45: =LOOKUP(B45,Data!$A$6:$A$1806,Data!B$6:B$1806) -> 60.02600098 | D45: =LOOKUP(B45,Data!$A$6:$A$1806,Data!C$6:C$1806) -> 3671.188965 | H45: -20.80078125 | I45: -14.26027031 | Z45: 0 | AC45: T-68 sec | AN45: T-68 sec | AO45: 40098.10153 | AP45: =LOOKUP($AO45,Data!$A$6:$A$1806,Data!$B$6:$B$1806) -> 60.02600098 | AQ45: =LOOKUP($AO45,Data!$A$6:$A$1806,Data!$C$6:$C$1806) -> 3671.188965 | AR45: =LOOKUP($AO45,Data!$A$6:$A$1806,Data!$D$6:$D$1806) -> 350 | AS45: =IF($AS$1="+",LOOKUP($AO45,Data!$A$6:$A$1806,Data!$E$6:$E$1806)*-1,LOOKUP($AO45,Data!$A$6:$A$1806,Data!$E$6:$E$1806)) -> -329.9882202 | AT45: =LOOKUP($AO45,Data!$A$6:$A$1806,Data!$F$6:$F$1806) -> 0 | AU45: =LOOKUP($AO45,Data!$A$6:$A$1806,Data!$G$6:$G$1806) -> 85 | AV45: =LOOKUP($AO45,Data!$A$6:$A$1806,Data!$H$6:$H$1806) -> 10 | AW45: =LOOKUP($AO45,Data!$A$6:$A$1806,Data!$I$6:$I$1806) -> 15 | AX45: =LOOKUP($AO45,Data!$A$6:$A$1806,Data!$J$6:$J$1806) -> -103 | AY45: =LOOKUP($AO45,Data!$A$6:$A$1806,Data!$K$6:$K$1806) -> 7556.1 | AZ45: -20.80078125 | BA45: T-68 sec | BB45: 40098.10153 | BO45: T-68 sec | BP45: 40098.10153 | CC45: T-68 sec | CD45: 40098.10153 | CQ45: T-68 sec | CR45: 40098.10153 | DE45: T-68 sec | DF45: 40098.10153
A46: T-66 sec | B46: =B47-TIME(0,0,$B$1) -> 40098.10155 | C46: =LOOKUP(B46,Data!$A$6:$A$1806,Data!B$6:B$1806) -> 60.02600098 | D46: =LOOKUP(B46,Data!$A$6:$A$1806,Data!C$6:C$1806) -> 3671.188965 | H46: -20.80078125 | I46: -16.54944914 | Z46: 0 | AC46: T-66 sec | AN46: T-66 sec | AO46: 40098.10155 | AP46: =LOOKUP($AO46,Data!$A$6:$A$1806,Data!$B$6:$B$1806) -> 60.02600098 | AQ46: =LOOKUP($AO46,Data!$A$6:$A$1806,Data!$C$6:$C$1806) -> 3671.188965 | AR46: =LOOKUP($AO46,Data!$A$6:$A$1806,Data!$D$6:$D$1806) -> 350 | AS46: =IF($AS$1="+",LOOKUP($AO46,Data!$A$6:$A$1806,Data!$E$6:$E$1806)*-1,LOOKUP($AO46,Data!$A$6:$A$1806,Data!$E$6:$E$1806)) -> -329.9882202 | AT46: =LOOKUP($AO46,Data!$A$6:$A$1806,Data!$F$6:$F$1806) -> 0 | AU46: =LOOKUP($AO46,Data!$A$6:$A$1806,Data!$G$6:$G$1806) -> 85 | AV46: =LOOKUP($AO46,Data!$A$6:$A$1806,Data!$H$6:$H$1806) -> 10 | AW46: =LOOKUP($AO46,Data!$A$6:$A$1806,Data!$I$6:$I$1806) -> 15 | AX46: =LOOKUP($AO46,Data!$A$6:$A$1806,Data!$J$6:$J$1806) -> -103 | AY46: =LOOKUP($AO46,Data!$A$6:$A$1806,Data!$K$6:$K$1806) -> 7556.1 | AZ46: -20.80078125 | BA46: T-66 sec | BB46: 40098.10155 | BO46: T-66 sec | BP46: 40098.10155 | CC46: T-66 sec | CD46: 40098.10155 | CQ46: T-66 sec | CR46: 40098.10155 | DE46: T-66 sec | DF46: 40098.10155
A47: T-64 sec | B47: 40098.10157 | C47: =LOOKUP(B47,Data!$A$6:$A$1806,Data!B$6:B$1806) -> 60.01900101 | D47: =LOOKUP(B47,Data!$A$6:$A$1806,Data!C$6:C$1806) -> 3664.495117 | H47: -15.20080566 | I47: -16.07742392 | Z47: 0 | AC47: T-64 sec | AN47: T-64 sec | AO47: 40098.10157 | AP47: =LOOKUP($AO47,Data!$A$6:$A$1806,Data!$B$6:$B$1806) -> 60.01900101 | AQ47: =LOOKUP($AO47,Data!$A$6:$A$1806,Data!$C$6:$C$1806) -> 3664.495117 | AR47: =LOOKUP($AO47,Data!$A$6:$A$1806,Data!$D$6:$D$1806) -> 350 | AS47: =IF($AS$1="+",LOOKUP($AO47,Data!$A$6:$A$1806,Data!$E$6:$E$1806)*-1,LOOKUP($AO47,Data!$A$6:$A$1806,Data!$E$6:$E$1806)) -> -329.9882202 | AT47: =LOOKUP($AO47,Data!$A$6:$A$1806,Data!$F$6:$F$1806) -> 0 | AU47: =LOOKUP($AO47,Data!$A$6:$A$1806,Data!$G$6:$G$1806) -> 85.5 | AV47: =LOOKUP($AO47,Data!$A$6:$A$1806,Data!$H$6:$H$1806) -> 10 | AW47: =LOOKUP($AO47,Data!$A$6:$A$1806,Data!$I$6:$I$1806) -> 15 | AX47: =LOOKUP($AO47,Data!$A$6:$A$1806,Data!$J$6:$J$1806) -> -103 | AY47: =LOOKUP($AO47,Data!$A$6:$A$1806,Data!$K$6:$K$1806) -> 7556.43 | AZ47: -15.20080566 | BA47: T-64 sec | BB47: 40098.10157 | BO47: T-64 sec | BP47: 40098.10157 | CC47: T-64 sec | CD47: 40098.10157 | CQ47: T-64 sec | CR47: 40098.10157 | DE47: T-64 sec | DF47: 40098.10157
A48: T-62 sec | B48: 40098.1016 | C48: =LOOKUP(B48,Data!$A$6:$A$1806,Data!B$6:B$1806) -> 60.01900101 | D48: =LOOKUP(B48,Data!$A$6:$A$1806,Data!C$6:C$1806) -> 3664.495117 | H48: -15.20080566 | I48: -15.77060753 | Z48: 0 | AC48: T-62 sec | AN48: T-62 sec | AO48: 40098.1016 | AP48: =LOOKUP($AO48,Data!$A$6:$A$1806,Data!$B$6:$B$1806) -> 60.01900101 | AQ48: =LOOKUP($AO48,Data!$A$6:$A$1806,Data!$C$6:$C$1806) -> 3664.495117 | AR48: =LOOKUP($AO48,Data!$A$6:$A$1806,Data!$D$6:$D$1806) -> 350 | AS48: =IF($AS$1="+",LOOKUP($AO48,Data!$A$6:$A$1806,Data!$E$6:$E$1806)*-1,LOOKUP($AO48,Data!$A$6:$A$1806,Data!$E$6:$E$1806)) -> -329.9882202 | AT48: =LOOKUP($AO48,Data!$A$6:$A$1806,Data!$F$6:$F$1806) -> 0 | AU48: =LOOKUP($AO48,Data!$A$6:$A$1806,Data!$G$6:$G$1806) -> 85.5 | AV48: =LOOKUP($AO48,Data!$A$6:$A$1806,Data!$H$6:$H$1806) -> 10 | AW48: =LOOKUP($AO48,Data!$A$6:$A$1806,Data!$I$6:$I$1806) -> 15 | AX48: =LOOKUP($AO48,Data!$A$6:$A$1806,Data!$J$6:$J$1806) -> -103 | AY48: =LOOKUP($AO48,Data!$A$6:$A$1806,Data!$K$6:$K$1806) -> 7556.43 | AZ48: -15.20080566 | BA48: T-62 sec | BB48: 40098.1016 | BO48: T-62 sec | BP48: 40098.1016 | CC48: T-62 sec | CD48: 40098.1016 | CQ48: T-62 sec | CR48: 40098.1016 | DE48: T-62 sec | DF48: 40098.1016
A49: T-60 sec | B49: 40098.10162 | C49: =LOOKUP(B49,Data!$A$6:$A$1806,Data!B$6:B$1806) -> 60.02000046 | D49: =LOOKUP(B49,Data!$A$6:$A$1806,Data!C$6:C$1806) -> 3666.820801 | H49: -16.00036621 | I49: -15.85102307 | L49: =(D$78-D$49-I$78+I$49)/29 -> -0.1503334552 | M49: =M50-L49-(I50-I49) -> 3666.820801 | Z49: 0 | AC49: T-60 sec | AN49: T-60 sec | AO49: 40098.10162 | AP49: =LOOKUP($AO49,Data!$A$6:$A$1806,Data!$B$6:$B$1806) -> 60.02000046 | AQ49: =LOOKUP($AO49,Data!$A$6:$A$1806,Data!$C$6:$C$1806) -> 3666.820801 | AR49: =LOOKUP($AO49,Data!$A$6:$A$1806,Data!$D$6:$D$1806) -> 350 | AS49: =IF($AS$1="+",LOOKUP($AO49,Data!$A$6:$A$1806,Data!$E$6:$E$1806)*-1,LOOKUP($AO49,Data!$A$6:$A$1806,Data!$E$6:$E$1806)) -> -329.9882202 | AT49: =LOOKUP($AO49,Data!$A$6:$A$1806,Data!$F$6:$F$1806) -> 0 | AU49: =LOOKUP($AO49,Data!$A$6:$A$1806,Data!$G$6:$G$1806) -> 86 | AV49: =LOOKUP($AO49,Data!$A$6:$A$1806,Data!$H$6:$H$1806) -> 10 | AW49: =LOOKUP($AO49,Data!$A$6:$A$1806,Data!$I$6:$I$1806) -> 15 | AX49: =LOOKUP($AO49,Data!$A$6:$A$1806,Data!$J$6:$J$1806) -> -103 | AY49: =LOOKUP($AO49,Data!$A$6:$A$1806,Data!$K$6:$K$1806) -> 7556.76 | AZ49: -16.00036621 | BA49: T-60 sec | BB49: 40098.10162 | BO49: T-60 sec | BP49: 40098.10162 | CC49: T-60 sec | CD49: 40098.10162 | CQ49: T-60 sec | CR49: 40098.10162 | DE49: T-60 sec | DF49: 40098.10162
A50: T-58 sec | B50: 40098.10164 | C50: =LOOKUP(B50,Data!$A$6:$A$1806,Data!B$6:B$1806) -> 60.02000046 | D50: =LOOKUP(B50,Data!$A$6:$A$1806,Data!C$6:C$1806) -> 3666.820801 | H50: -16.00036621 | I50: -15.90329317 | L50: -0.1503334552 | M50: =M51-L50-(I51-I50) -> 3666.618197 | Z50: 0 | AC50: T-58 sec | AN50: T-58 sec | AO50: 40098.10164 | AP50: =LOOKUP($AO50,Data!$A$6:$A$1806,Data!$B$6:$B$1806) -> 60.02000046 | AQ50: =LOOKUP($AO50,Data!$A$6:$A$1806,Data!$C$6:$C$1806) -> 3666.820801 | AR50: =LOOKUP($AO50,Data!$A$6:$A$1806,Data!$D$6:$D$1806) -> 350 | AS50: =IF($AS$1="+",LOOKUP($AO50,Data!$A$6:$A$1806,Data!$E$6:$E$1806)*-1,LOOKUP($AO50,Data!$A$6:$A$1806,Data!$E$6:$E$1806)) -> -329.9882202 | AT50: =LOOKUP($AO50,Data!$A$6:$A$1806,Data!$F$6:$F$1806) -> 0 | AU50: =LOOKUP($AO50,Data!$A$6:$A$1806,Data!$G$6:$G$1806) -> 86 | AV50: =LOOKUP($AO50,Data!$A$6:$A$1806,Data!$H$6:$H$1806) -> 10 | AW50: =LOOKUP($AO50,Data!$A$6:$A$1806,Data!$I$6:$I$1806) -> 15 | AX50: =LOOKUP($AO50,Data!$A$6:$A$1806,Data!$J$6:$J$1806) -> -103 | AY50: =LOOKUP($AO50,Data!$A$6:$A$1806,Data!$K$6:$K$1806) -> 7556.76 | AZ50: -16.00036621 | BA50: T-58 sec | BB50: 40098.10164 | BO50: T-58 sec | BP50: 40098.10164 | CC50: T-58 sec | CD50: 40098.10164 | CQ50: T-58 sec | CR50: 40098.10164 | DE50: T-58 sec | DF50: 40098.10164
A51: T-56 sec | B51: 40098.10167 | C51: =LOOKUP(B51,Data!$A$6:$A$1806,Data!B$6:B$1806) -> 60.02000046 | D51: =LOOKUP(B51,Data!$A$6:$A$1806,Data!C$6:C$1806) -> 3666.820801 | H51: -16.00036621 | I51: -15.93726873 | L51: -0.1503334552 | M51: 3666.433888 | Z51: 0 | AC51: T-56 sec | AN51: T-56 sec | AO51: 40098.10167 | AP51: =LOOKUP($AO51,Data!$A$6:$A$1806,Data!$B$6:$B$1806) -> 60.02000046 | AQ51: =LOOKUP($AO51,Data!$A$6:$A$1806,Data!$C$6:$C$1806) -> 3666.820801 | AR51: =LOOKUP($AO51,Data!$A$6:$A$1806,Data!$D$6:$D$1806) -> 350 | AS51: =IF($AS$1="+",LOOKUP($AO51,Data!$A$6:$A$1806,Data!$E$6:$E$1806)*-1,LOOKUP($AO51,Data!$A$6:$A$1806,Data!$E$6:$E$1806)) -> -329.9882202 | AT51: =LOOKUP($AO51,Data!$A$6:$A$1806,Data!$F$6:$F$1806) -> 0 | AU51: =LOOKUP($AO51,Data!$A$6:$A$1806,Data!$G$6:$G$1806) -> 86 | AV51: =LOOKUP($AO51,Data!$A$6:$A$1806,Data!$H$6:$H$1806) -> 10 | AW51: =LOOKUP($AO51,Data!$A$6:$A$1806,Data!$I$6:$I$1806) -> 15 | AX51: =LOOKUP($AO51,Data!$A$6:$A$1806,Data!$J$6:$J$1806) -> -103 | AY51: =LOOKUP($AO51,Data!$A$6:$A$1806,Data!$K$6:$K$1806) -> 7556.76 | AZ51: -16.00036621 | BA51: T-56 sec | BB51: 40098.10167 | BO51: T-56 sec | BP51: 40098.10167 | CC51: T-56 sec | CD51: 40098.10167 | CQ51: T-56 sec | CR51: 40098.10167 | DE51: T-56 sec | DF51: 40098.10167
A52: T-54 sec | B52: 40098.10169 | C52: =LOOKUP(B52,Data!$A$6:$A$1806,Data!B$6:B$1806) -> 60.02099991 | D52: =LOOKUP(B52,Data!$A$6:$A$1806,Data!C$6:C$1806) -> 3670.266846 | H52: -16.79992676 | I52: -16.23919904 | L52: -0.1503334552 | M52: 3665.981624 | Z52: 0 | AC52: T-54 sec | AN52: T-54 sec | AO52: 40098.10169 | AP52: =LOOKUP($AO52,Data!$A$6:$A$1806,Data!$B$6:$B$1806) -> 60.02099991 | AQ52: =LOOKUP($AO52,Data!$A$6:$A$1806,Data!$C$6:$C$1806) -> 3670.266846 | AR52: =LOOKUP($AO52,Data!$A$6:$A$1806,Data!$D$6:$D$1806) -> 350 | AS52: =IF($AS$1="+",LOOKUP($AO52,Data!$A$6:$A$1806,Data!$E$6:$E$1806)*-1,LOOKUP($AO52,Data!$A$6:$A$1806,Data!$E$6:$E$1806)) -> -255.4441681 | AT52: =LOOKUP($AO52,Data!$A$6:$A$1806,Data!$F$6:$F$1806) -> 0 | AU52: =LOOKUP($AO52,Data!$A$6:$A$1806,Data!$G$6:$G$1806) -> 86.5 | AV52: =LOOKUP($AO52,Data!$A$6:$A$1806,Data!$H$6:$H$1806) -> 10 | AW52: =LOOKUP($AO52,Data!$A$6:$A$1806,Data!$I$6:$I$1806) -> 15 | AX52: =LOOKUP($AO52,Data!$A$6:$A$1806,Data!$J$6:$J$1806) -> -103 | AY52: =LOOKUP($AO52,Data!$A$6:$A$1806,Data!$K$6:$K$1806) -> 7557.09 | AZ52: -16.79992676 | BA52: T-54 sec | BB52: 40098.10169 | BO52: T-54 sec | BP52: 40098.10169 | CC52: T-54 sec | CD52: 40098.10169 | CQ52: T-54 sec | CR52: 40098.10169 | DE52: T-54 sec | DF52: 40098.10169
A53: T-52 sec | B53: 40098.10171 | C53: =LOOKUP(B53,Data!$A$6:$A$1806,Data!B$6:B$1806) -> 60.02099991 | D53: =LOOKUP(B53,Data!$A$6:$A$1806,Data!C$6:C$1806) -> 3670.266846 | H53: -16.79992676 | I53: -16.43545374 | L53: -0.1503334552 | M53: 3665.635036 | Z53: 0 | AC53: T-52 sec | AN53: T-52 sec | AO53: 40098.10171 | AP53: =LOOKUP($AO53,Data!$A$6:$A$1806,Data!$B$6:$B$1806) -> 60.02099991 | AQ53: =LOOKUP($AO53,Data!$A$6:$A$1806,Data!$C$6:$C$1806) -> 3670.266846 | AR53: =LOOKUP($AO53,Data!$A$6:$A$1806,Data!$D$6:$D$1806) -> 350 | AS53: =IF($AS$1="+",LOOKUP($AO53,Data!$A$6:$A$1806,Data!$E$6:$E$1806)*-1,LOOKUP($AO53,Data!$A$6:$A$1806,Data!$E$6:$E$1806)) -> -255.4441681 | AT53: =LOOKUP($AO53,Data!$A$6:$A$1806,Data!$F$6:$F$1806) -> 0 | AU53: =LOOKUP($AO53,Data!$A$6:$A$1806,Data!$G$6:$G$1806) -> 86.5 | AV53: =LOOKUP($AO53,Data!$A$6:$A$1806,Data!$H$6:$H$1806) -> 10 | AW53: =LOOKUP($AO53,Data!$A$6:$A$1806,Data!$I$6:$I$1806) -> 15 | AX53: =LOOKUP($AO53,Data!$A$6:$A$1806,Data!$J$6:$J$1806) -> -103 | AY53: =LOOKUP($AO53,Data!$A$6:$A$1806,Data!$K$6:$K$1806) -> 7557.09 | AZ53: -16.79992676 | BA53: T-52 sec | BB53: 40098.10171 | BO53: T-52 sec | BP53: 40098.10171 | CC53: T-52 sec | CD53: 40098.10171 | CQ53: T-52 sec | CR53: 40098.10171 | DE53: T-52 sec | DF53: 40098.10171
A54: T-50 sec | B54: 40098.10174 | C54: =LOOKUP(B54,Data!$A$6:$A$1806,Data!B$6:B$1806) -> 60.01900101 | D54: =LOOKUP(B54,Data!$A$6:$A$1806,Data!C$6:C$1806) -> 3672.493164 | H54: -15.20080566 | I54: -16.00332692 | L54: -0.1503334552 | M54: 3665.91683 | Z54: 0 | AC54: T-50 sec | AN54: T-50 sec | AO54: 40098.10174 | AP54: =LOOKUP($AO54,Data!$A$6:$A$1806,Data!$B$6:$B$1806) -> 60.01900101 | AQ54: =LOOKUP($AO54,Data!$A$6:$A$1806,Data!$C$6:$C$1806) -> 3672.493164 | AR54: =LOOKUP($AO54,Data!$A$6:$A$1806,Data!$D$6:$D$1806) -> 350 | AS54: =IF($AS$1="+",LOOKUP($AO54,Data!$A$6:$A$1806,Data!$E$6:$E$1806)*-1,LOOKUP($AO54,Data!$A$6:$A$1806,Data!$E$6:$E$1806)) -> -165.1016846 | AT54: =LOOKUP($AO54,Data!$A$6:$A$1806,Data!$F$6:$F$1806) -> 0 | AU54: =LOOKUP($AO54,Data!$A$6:$A$1806,Data!$G$6:$G$1806) -> 87 | AV54: =LOOKUP($AO54,Data!$A$6:$A$1806,Data!$H$6:$H$1806) -> 10 | AW54: =LOOKUP($AO54,Data!$A$6:$A$1806,Data!$I$6:$I$1806) -> 15 | AX54: =LOOKUP($AO54,Data!$A$6:$A$1806,Data!$J$6:$J$1806) -> -103 | AY54: =LOOKUP($AO54,Data!$A$6:$A$1806,Data!$K$6:$K$1806) -> 7557.42 | AZ54: -15.20080566 | BA54: T-50 sec | BB54: 40098.10174 | BO54: T-50 sec | BP54: 40098.10174 | CC54: T-50 sec | CD54: 40098.10174 | CQ54: T-50 sec | CR54: 40098.10174 | DE54: T-50 sec | DF54: 40098.10174
A55: T-48 sec | B55: 40098.10176 | C55: =LOOKUP(B55,Data!$A$6:$A$1806,Data!B$6:B$1806) -> 60.01900101 | D55: =LOOKUP(B55,Data!$A$6:$A$1806,Data!C$6:C$1806) -> 3672.493164 | H55: -15.20080566 | I55: -15.72244448 | L55: -0.1503334552 | M55: 3666.047379 | Z55: 0 | AC55: T-48 sec | AN55: T-48 sec | AO55: 40098.10176 | AP55: =LOOKUP($AO55,Data!$A$6:$A$1806,Data!$B$6:$B$1806) -> 60.01900101 | AQ55: =LOOKUP($AO55,Data!$A$6:$A$1806,Data!$C$6:$C$1806) -> 3672.493164 | AR55: =LOOKUP($AO55,Data!$A$6:$A$1806,Data!$D$6:$D$1806) -> 350 | AS55: =IF($AS$1="+",LOOKUP($AO55,Data!$A$6:$A$1806,Data!$E$6:$E$1806)*-1,LOOKUP($AO55,Data!$A$6:$A$1806,Data!$E$6:$E$1806)) -> -165.1016846 | AT55: =LOOKUP($AO55,Data!$A$6:$A$1806,Data!$F$6:$F$1806) -> 0 | AU55: =LOOKUP($AO55,Data!$A$6:$A$1806,Data!$G$6:$G$1806) -> 87 | AV55: =LOOKUP($AO55,Data!$A$6:$A$1806,Data!$H$6:$H$1806) -> 10 | AW55: =LOOKUP($AO55,Data!$A$6:$A$1806,Data!$I$6:$I$1806) -> 15 | AX55: =LOOKUP($AO55,Data!$A$6:$A$1806,Data!$J$6:$J$1806) -> -103 | AY55: =LOOKUP($AO55,Data!$A$6:$A$1806,Data!$K$6:$K$1806) -> 7557.42 | AZ55: -15.20080566 | BA55: T-48 sec | BB55: 40098.10176 | BO55: T-48 sec | BP55: 40098.10176 | CC55: T-48 sec | CD55: 40098.10176 | CQ55: T-48 sec | CR55: 40098.10176 | DE55: T-48 sec | DF55: 40098.10176
A56: T-46 sec | B56: 40098.10178 | C56: =LOOKUP(B56,Data!$A$6:$A$1806,Data!B$6:B$1806) -> 60.01900101 | D56: =LOOKUP(B56,Data!$A$6:$A$1806,Data!C$6:C$1806) -> 3672.493164 | H56: -15.20080566 | I56: -15.53987089 | L56: -0.1503334552 | M56: 3666.079619 | Z56: 0 | AC56: T-46 sec | AN56: T-46 sec | AO56: 40098.10178 | AP56: =LOOKUP($AO56,Data!$A$6:$A$1806,Data!$B$6:$B$1806) -> 60.01900101 | AQ56: =LOOKUP($AO56,Data!$A$6:$A$1806,Data!$C$6:$C$1806) -> 3672.493164 | AR56: =LOOKUP($AO56,Data!$A$6:$A$1806,Data!$D$6:$D$1806) -> 350 | AS56: =IF($AS$1="+",LOOKUP($AO56,Data!$A$6:$A$1806,Data!$E$6:$E$1806)*-1,LOOKUP($AO56,Data!$A$6:$A$1806,Data!$E$6:$E$1806)) -> -165.1016846 | AT56: =LOOKUP($AO56,Data!$A$6:$A$1806,Data!$F$6:$F$1806) -> 0 | AU56: =LOOKUP($AO56,Data!$A$6:$A$1806,Data!$G$6:$G$1806) -> 87 | AV56: =LOOKUP($AO56,Data!$A$6:$A$1806,Data!$H$6:$H$1806) -> 10 | AW56: =LOOKUP($AO56,Data!$A$6:$A$1806,Data!$I$6:$I$1806) -> 15 | AX56: =LOOKUP($AO56,Data!$A$6:$A$1806,Data!$J$6:$J$1806) -> -103 | AY56: =LOOKUP($AO56,Data!$A$6:$A$1806,Data!$K$6:$K$1806) -> 7557.42 | AZ56: -15.20080566 | BA56: T-46 sec | BB56: 40098.10178 | BO56: T-46 sec | BP56: 40098.10178 | CC56: T-46 sec | CD56: 40098.10178 | CQ56: T-46 sec | CR56: 40098.10178 | DE56: T-46 sec | DF56: 40098.10178
A57: T-44 sec | B57: 40098.10181 | C57: =LOOKUP(B57,Data!$A$6:$A$1806,Data!B$6:B$1806) -> 60.02199936 | D57: =LOOKUP(B57,Data!$A$6:$A$1806,Data!C$6:C$1806) -> 3672.164062 | H57: -17.5994873 | I57: -16.26073664 | L57: -0.1503334552 | M57: 3665.20842 | Z57: 0 | AC57: T-44 sec | AN57: T-44 sec | AO57: 40098.10181 | AP57: =LOOKUP($AO57,Data!$A$6:$A$1806,Data!$B$6:$B$1806) -> 60.02199936 | AQ57: =LOOKUP($AO57,Data!$A$6:$A$1806,Data!$C$6:$C$1806) -> 3672.164062 | AR57: =LOOKUP($AO57,Data!$A$6:$A$1806,Data!$D$6:$D$1806) -> 350 | AS57: =IF($AS$1="+",LOOKUP($AO57,Data!$A$6:$A$1806,Data!$E$6:$E$1806)*-1,LOOKUP($AO57,Data!$A$6:$A$1806,Data!$E$6:$E$1806)) -> -165.1016846 | AT57: =LOOKUP($AO57,Data!$A$6:$A$1806,Data!$F$6:$F$1806) -> 0 | AU57: =LOOKUP($AO57,Data!$A$6:$A$1806,Data!$G$6:$G$1806) -> 87.5 | AV57: =LOOKUP($AO57,Data!$A$6:$A$1806,Data!$H$6:$H$1806) -> 10 | AW57: =LOOKUP($AO57,Data!$A$6:$A$1806,Data!$I$6:$I$1806) -> 15 | AX57: =LOOKUP($AO57,Data!$A$6:$A$1806,Data!$J$6:$J$1806) -> -103 | AY57: =LOOKUP($AO57,Data!$A$6:$A$1806,Data!$K$6:$K$1806) -> 7557.75 | AZ57: -17.5994873 | BA57: T-44 sec | BB57: 40098.10181 | BO57: T-44 sec | BP57: 40098.10181 | CC57: T-44 sec | CD57: 40098.10181 | CQ57: T-44 sec | CR57: 40098.10181 | DE57: T-44 sec | DF57: 40098.10181
A58: T-42 sec | B58: 40098.10183 | C58: =LOOKUP(B58,Data!$A$6:$A$1806,Data!B$6:B$1806) -> 60.02199936 | D58: =LOOKUP(B58,Data!$A$6:$A$1806,Data!C$6:C$1806) -> 3672.164062 | H58: -17.5994873 | I58: -16.72929937 | L58: -0.1503334552 | M58: 3664.589523 | Z58: 0 | AC58: T-42 sec | AN58: T-42 sec | AO58: 40098.10183 | AP58: =LOOKUP($AO58,Data!$A$6:$A$1806,Data!$B$6:$B$1806) -> 60.02199936 | AQ58: =LOOKUP($AO58,Data!$A$6:$A$1806,Data!$C$6:$C$1806) -> 3672.164062 | AR58: =LOOKUP($AO58,Data!$A$6:$A$1806,Data!$D$6:$D$1806) -> 350 | AS58: =IF($AS$1="+",LOOKUP($AO58,Data!$A$6:$A$1806,Data!$E$6:$E$1806)*-1,LOOKUP($AO58,Data!$A$6:$A$1806,Data!$E$6:$E$1806)) -> -165.1016846 | AT58: =LOOKUP($AO58,Data!$A$6:$A$1806,Data!$F$6:$F$1806) -> 0 | AU58: =LOOKUP($AO58,Data!$A$6:$A$1806,Data!$G$6:$G$1806) -> 87.5 | AV58: =LOOKUP($AO58,Data!$A$6:$A$1806,Data!$H$6:$H$1806) -> 10 | AW58: =LOOKUP($AO58,Data!$A$6:$A$1806,Data!$I$6:$I$1806) -> 15 | AX58: =LOOKUP($AO58,Data!$A$6:$A$1806,Data!$J$6:$J$1806) -> -103 | AY58: =LOOKUP($AO58,Data!$A$6:$A$1806,Data!$K$6:$K$1806) -> 7557.75 | AZ58: -17.5994873 | BA58: T-42 sec | BB58: 40098.10183 | BO58: T-42 sec | BP58: 40098.10183 | CC58: T-42 sec | CD58: 40098.10183 | CQ58: T-42 sec | CR58: 40098.10183 | DE58: T-42 sec | DF58: 40098.10183
A59: T-40 sec | B59: 40098.10185 | C59: =LOOKUP(B59,Data!$A$6:$A$1806,Data!B$6:B$1806) -> 60.03699875 | D59: =LOOKUP(B59,Data!$A$6:$A$1806,Data!C$6:C$1806) -> 3669.98291 | H59: -29.59899902 | I59: -21.23369425 | L59: -0.1503334552 | M59: 3659.934795 | Z59: 0 | AC59: T-40 sec | AN59: T-40 sec | AO59: 40098.10185 | AP59: =LOOKUP($AO59,Data!$A$6:$A$1806,Data!$B$6:$B$1806) -> 60.03699875 | AQ59: =LOOKUP($AO59,Data!$A$6:$A$1806,Data!$C$6:$C$1806) -> 3669.98291 | AR59: =LOOKUP($AO59,Data!$A$6:$A$1806,Data!$D$6:$D$1806) -> 350 | AS59: =IF($AS$1="+",LOOKUP($AO59,Data!$A$6:$A$1806,Data!$E$6:$E$1806)*-1,LOOKUP($AO59,Data!$A$6:$A$1806,Data!$E$6:$E$1806)) -> -165.1016846 | AT59: =LOOKUP($AO59,Data!$A$6:$A$1806,Data!$F$6:$F$1806) -> 0 | AU59: =LOOKUP($AO59,Data!$A$6:$A$1806,Data!$G$6:$G$1806) -> 88 | AV59: =LOOKUP($AO59,Data!$A$6:$A$1806,Data!$H$6:$H$1806) -> 10 | AW59: =LOOKUP($AO59,Data!$A$6:$A$1806,Data!$I$6:$I$1806) -> 15 | AX59: =LOOKUP($AO59,Data!$A$6:$A$1806,Data!$J$6:$J$1806) -> -103 | AY59: =LOOKUP($AO59,Data!$A$6:$A$1806,Data!$K$6:$K$1806) -> 7558.08 | AZ59: -29.59899902 | BA59: T-40 sec | BB59: 40098.10185 | BO59: T-40 sec | BP59: 40098.10185 | CC59: T-40 sec | CD59: 40098.10185 | CQ59: T-40 sec | CR59: 40098.10185 | DE59: T-40 sec | DF59: 40098.10185
A60: T-38 sec | B60: 40098.10188 | C60: =LOOKUP(B60,Data!$A$6:$A$1806,Data!B$6:B$1806) -> 60.03699875 | D60: =LOOKUP(B60,Data!$A$6:$A$1806,Data!C$6:C$1806) -> 3669.98291 | H60: -29.59899902 | I60: -24.16155092 | L60: -0.1503334552 | M60: 3656.856605 | Z60: 0 | AC60: T-38 sec | AN60: T-38 sec | AO60: 40098.10188 | AP60: =LOOKUP($AO60,Data!$A$6:$A$1806,Data!$B$6:$B$1806) -> 60.03699875 | AQ60: =LOOKUP($AO60,Data!$A$6:$A$1806,Data!$C$6:$C$1806) -> 3669.98291 | AR60: =LOOKUP($AO60,Data!$A$6:$A$1806,Data!$D$6:$D$1806) -> 350 | AS60: =IF($AS$1="+",LOOKUP($AO60,Data!$A$6:$A$1806,Data!$E$6:$E$1806)*-1,LOOKUP($AO60,Data!$A$6:$A$1806,Data!$E$6:$E$1806)) -> -165.1016846 | AT60: =LOOKUP($AO60,Data!$A$6:$A$1806,Data!$F$6:$F$1806) -> 0 | AU60: =LOOKUP($AO60,Data!$A$6:$A$1806,Data!$G$6:$G$1806) -> 88 | AV60: =LOOKUP($AO60,Data!$A$6:$A$1806,Data!$H$6:$H$1806) -> 10 | AW60: =LOOKUP($AO60,Data!$A$6:$A$1806,Data!$I$6:$I$1806) -> 15 | AX60: =LOOKUP($AO60,Data!$A$6:$A$1806,Data!$J$6:$J$1806) -> -103 | AY60: =LOOKUP($AO60,Data!$A$6:$A$1806,Data!$K$6:$K$1806) -> 7558.08 | AZ60: -29.59899902 | BA60: T-38 sec | BB60: 40098.10188 | BO60: T-38 sec | BP60: 40098.10188 | CC60: T-38 sec | CD60: 40098.10188 | CQ60: T-38 sec | CR60: 40098.10188 | DE60: T-38 sec | DF60: 40098.10188
A61: T-36 sec | B61: 40098.1019 | C61: =LOOKUP(B61,Data!$A$6:$A$1806,Data!B$6:B$1806) -> 60.03699875 | D61: =LOOKUP(B61,Data!$A$6:$A$1806,Data!C$6:C$1806) -> 3669.98291 | H61: -29.59899902 | I61: -26.06465776 | L61: -0.1503334552 | M61: 3654.803165 | Z61: 0 | AC61: T-36 sec | AN61: T-36 sec | AO61: 40098.1019 | AP61: =LOOKUP($AO61,Data!$A$6:$A$1806,Data!$B$6:$B$1806) -> 60.03699875 | AQ61: =LOOKUP($AO61,Data!$A$6:$A$1806,Data!$C$6:$C$1806) -> 3669.98291 | AR61: =LOOKUP($AO61,Data!$A$6:$A$1806,Data!$D$6:$D$1806) -> 350 | AS61: =IF($AS$1="+",LOOKUP($AO61,Data!$A$6:$A$1806,Data!$E$6:$E$1806)*-1,LOOKUP($AO61,Data!$A$6:$A$1806,Data!$E$6:$E$1806)) -> -165.1016846 | AT61: =LOOKUP($AO61,Data!$A$6:$A$1806,Data!$F$6:$F$1806) -> 0 | AU61: =LOOKUP($AO61,Data!$A$6:$A$1806,Data!$G$6:$G$1806) -> 88 | AV61: =LOOKUP($AO61,Data!$A$6:$A$1806,Data!$H$6:$H$1806) -> 10 | AW61: =LOOKUP($AO61,Data!$A$6:$A$1806,Data!$I$6:$I$1806) -> 15 | AX61: =LOOKUP($AO61,Data!$A$6:$A$1806,Data!$J$6:$J$1806) -> -103 | AY61: =LOOKUP($AO61,Data!$A$6:$A$1806,Data!$K$6:$K$1806) -> 7558.08 | AZ61: -29.59899902 | BA61: T-36 sec | BB61: 40098.1019 | BO61: T-36 sec | BP61: 40098.1019 | CC61: T-36 sec | CD61: 40098.1019 | CQ61: T-36 sec | CR61: 40098.1019 | DE61: T-36 sec | DF61: 40098.1019
A62: T-34 sec | B62: 40098.10192 | C62: =LOOKUP(B62,Data!$A$6:$A$1806,Data!B$6:B$1806) -> 60.03699875 | D62: =LOOKUP(B62,Data!$A$6:$A$1806,Data!C$6:C$1806) -> 3661.599121 | H62: -29.59899902 | I62: -27.3016772 | L62: -0.1503334552 | M62: 3653.415812 | Z62: 0 | AC62: T-34 sec | AN62: T-34 sec | AO62: 40098.10192 | AP62: =LOOKUP($AO62,Data!$A$6:$A$1806,Data!$B$6:$B$1806) -> 60.03699875 | AQ62: =LOOKUP($AO62,Data!$A$6:$A$1806,Data!$C$6:$C$1806) -> 3661.599121 | AR62: =LOOKUP($AO62,Data!$A$6:$A$1806,Data!$D$6:$D$1806) -> 350 | AS62: =IF($AS$1="+",LOOKUP($AO62,Data!$A$6:$A$1806,Data!$E$6:$E$1806)*-1,LOOKUP($AO62,Data!$A$6:$A$1806,Data!$E$6:$E$1806)) -> -165.1016846 | AT62: =LOOKUP($AO62,Data!$A$6:$A$1806,Data!$F$6:$F$1806) -> 0 | AU62: =LOOKUP($AO62,Data!$A$6:$A$1806,Data!$G$6:$G$1806) -> 88.5 | AV62: =LOOKUP($AO62,Data!$A$6:$A$1806,Data!$H$6:$H$1806) -> 10 | AW62: =LOOKUP($AO62,Data!$A$6:$A$1806,Data!$I$6:$I$1806) -> 15 | AX62: =LOOKUP($AO62,Data!$A$6:$A$1806,Data!$J$6:$J$1806) -> -103 | AY62: =LOOKUP($AO62,Data!$A$6:$A$1806,Data!$K$6:$K$1806) -> 7558.41 | AZ62: -29.59899902 | BA62: T-34 sec | BB62: 40098.10192 | BO62: T-34 sec | BP62: 40098.10192 | CC62: T-34 sec | CD62: 40098.10192 | CQ62: T-34 sec | CR62: 40098.10192 | DE62: T-34 sec | DF62: 40098.10192
A63: T-32 sec | B63: 40098.10194 | C63: =LOOKUP(B63,Data!$A$6:$A$1806,Data!B$6:B$1806) -> 60.03699875 | D63: =LOOKUP(B63,Data!$A$6:$A$1806,Data!C$6:C$1806) -> 3661.599121 | H63: -29.59899902 | I63: -28.10573984 | L63: -0.1503334552 | M63: 3652.461416 | Z63: 0 | AC63: T-32 sec | AN63: T-32 sec | AO63: 40098.10194 | AP63: =LOOKUP($AO63,Data!$A$6:$A$1806,Data!$B$6:$B$1806) -> 60.03699875 | AQ63: =LOOKUP($AO63,Data!$A$6:$A$1806,Data!$C$6:$C$1806) -> 3661.599121 | AR63: =LOOKUP($AO63,Data!$A$6:$A$1806,Data!$D$6:$D$1806) -> 350 | AS63: =IF($AS$1="+",LOOKUP($AO63,Data!$A$6:$A$1806,Data!$E$6:$E$1806)*-1,LOOKUP($AO63,Data!$A$6:$A$1806,Data!$E$6:$E$1806)) -> -165.1016846 | AT63: =LOOKUP($AO63,Data!$A$6:$A$1806,Data!$F$6:$F$1806) -> 0 | AU63: =LOOKUP($AO63,Data!$A$6:$A$1806,Data!$G$6:$G$1806) -> 88.5 | AV63: =LOOKUP($AO63,Data!$A$6:$A$1806,Data!$H$6:$H$1806) -> 10 | AW63: =LOOKUP($AO63,Data!$A$6:$A$1806,Data!$I$6:$I$1806) -> 15 | AX63: =LOOKUP($AO63,Data!$A$6:$A$1806,Data!$J$6:$J$1806) -> -103 | AY63: =LOOKUP($AO63,Data!$A$6:$A$1806,Data!$K$6:$K$1806) -> 7558.41 | AZ63: -29.59899902 | BA63: T-32 sec | BB63: 40098.10194 | BO63: T-32 sec | BP63: 40098.10194 | CC63: T-32 sec | CD63: 40098.10194 | CQ63: T-32 sec | CR63: 40098.10194 | DE63: T-32 sec | DF63: 40098.10194
A64: T-30 sec | B64: 40098.10197 | C64: =LOOKUP(B64,Data!$A$6:$A$1806,Data!B$6:B$1806) -> 60.04800034 | D64: =LOOKUP(B64,Data!$A$6:$A$1806,Data!C$6:C$1806) -> 3651.491699 | H64: -38.40026855 | I64: -31.70882489 | L64: -0.1503334552 | M64: 3648.707997 | Z64: 0 | AC64: T-30 sec | AN64: T-30 sec | AO64: 40098.10197 | AP64: =LOOKUP($AO64,Data!$A$6:$A$1806,Data!$B$6:$B$1806) -> 60.04800034 | AQ64: =LOOKUP($AO64,Data!$A$6:$A$1806,Data!$C$6:$C$1806) -> 3651.491699 | AR64: =LOOKUP($AO64,Data!$A$6:$A$1806,Data!$D$6:$D$1806) -> 350 | AS64: =IF($AS$1="+",LOOKUP($AO64,Data!$A$6:$A$1806,Data!$E$6:$E$1806)*-1,LOOKUP($AO64,Data!$A$6:$A$1806,Data!$E$6:$E$1806)) -> -165.1016846 | AT64: =LOOKUP($AO64,Data!$A$6:$A$1806,Data!$F$6:$F$1806) -> 0 | AU64: =LOOKUP($AO64,Data!$A$6:$A$1806,Data!$G$6:$G$1806) -> 89 | AV64: =LOOKUP($AO64,Data!$A$6:$A$1806,Data!$H$6:$H$1806) -> 10 | AW64: =LOOKUP($AO64,Data!$A$6:$A$1806,Data!$I$6:$I$1806) -> 15 | AX64: =LOOKUP($AO64,Data!$A$6:$A$1806,Data!$J$6:$J$1806) -> -103 | AY64: =LOOKUP($AO64,Data!$A$6:$A$1806,Data!$K$6:$K$1806) -> 7558.74 | AZ64: -38.40026855 | BA64: T-30 sec | BB64: 40098.10197 | BO64: T-30 sec | BP64: 40098.10197 | CC64: T-30 sec | CD64: 40098.10197 | CQ64: T-30 sec | CR64: 40098.10197 | DE64: T-30 sec | DF64: 40098.10197
A65: T-28 sec | B65: 40098.10199 | C65: =LOOKUP(B65,Data!$A$6:$A$1806,Data!B$6:B$1806) -> 60.04800034 | D65: =LOOKUP(B65,Data!$A$6:$A$1806,Data!C$6:C$1806) -> 3651.491699 | H65: -38.40026855 | I65: -34.05083017 | L65: -0.1503334552 | M65: 3646.215658 | Z65: 0 | AC65: T-28 sec | AN65: T-28 sec | AO65: 40098.10199 | AP65: =LOOKUP($AO65,Data!$A$6:$A$1806,Data!$B$6:$B$1806) -> 60.04800034 | AQ65: =LOOKUP($AO65,Data!$A$6:$A$1806,Data!$C$6:$C$1806) -> 3651.491699 | AR65: =LOOKUP($AO65,Data!$A$6:$A$1806,Data!$D$6:$D$1806) -> 350 | AS65: =IF($AS$1="+",LOOKUP($AO65,Data!$A$6:$A$1806,Data!$E$6:$E$1806)*-1,LOOKUP($AO65,Data!$A$6:$A$1806,Data!$E$6:$E$1806)) -> -165.1016846 | AT65: =LOOKUP($AO65,Data!$A$6:$A$1806,Data!$F$6:$F$1806) -> 0 | AU65: =LOOKUP($AO65,Data!$A$6:$A$1806,Data!$G$6:$G$1806) -> 89 | AV65: =LOOKUP($AO65,Data!$A$6:$A$1806,Data!$H$6:$H$1806) -> 10 | AW65: =LOOKUP($AO65,Data!$A$6:$A$1806,Data!$I$6:$I$1806) -> 15 | AX65: =LOOKUP($AO65,Data!$A$6:$A$1806,Data!$J$6:$J$1806) -> -103 | AY65: =LOOKUP($AO65,Data!$A$6:$A$1806,Data!$K$6:$K$1806) -> 7558.74 | AZ65: -38.40026855 | BA65: T-28 sec | BB65: 40098.10199 | BO65: T-28 sec | BP65: 40098.10199 | CC65: T-28 sec | CD65: 40098.10199 | CQ65: T-28 sec | CR65: 40098.10199 | DE65: T-28 sec | DF65: 40098.10199
A66: T-26 sec | B66: 40098.10201 | C66: =LOOKUP(B66,Data!$A$6:$A$1806,Data!B$6:B$1806) -> 60.04800034 | D66: =LOOKUP(B66,Data!$A$6:$A$1806,Data!C$6:C$1806) -> 3651.491699 | H66: -38.40026855 | I66: -35.57313361 | L66: -0.1503334552 | M66: 3644.543022 | Z66: 0 | AC66: T-26 sec | AN66: T-26 sec | AO66: 40098.10201 | AP66: =LOOKUP($AO66,Data!$A$6:$A$1806,Data!$B$6:$B$1806) -> 60.04800034 | AQ66: =LOOKUP($AO66,Data!$A$6:$A$1806,Data!$C$6:$C$1806) -> 3651.491699 | AR66: =LOOKUP($AO66,Data!$A$6:$A$1806,Data!$D$6:$D$1806) -> 350 | AS66: =IF($AS$1="+",LOOKUP($AO66,Data!$A$6:$A$1806,Data!$E$6:$E$1806)*-1,LOOKUP($AO66,Data!$A$6:$A$1806,Data!$E$6:$E$1806)) -> -165.1016846 | AT66: =LOOKUP($AO66,Data!$A$6:$A$1806,Data!$F$6:$F$1806) -> 0 | AU66: =LOOKUP($AO66,Data!$A$6:$A$1806,Data!$G$6:$G$1806) -> 89 | AV66: =LOOKUP($AO66,Data!$A$6:$A$1806,Data!$H$6:$H$1806) -> 10 | AW66: =LOOKUP($AO66,Data!$A$6:$A$1806,Data!$I$6:$I$1806) -> 15 | AX66: =LOOKUP($AO66,Data!$A$6:$A$1806,Data!$J$6:$J$1806) -> -103 | AY66: =LOOKUP($AO66,Data!$A$6:$A$1806,Data!$K$6:$K$1806) -> 7558.74 | AZ66: -38.40026855 | BA66: T-26 sec | BB66: 40098.10201 | BO66: T-26 sec | BP66: 40098.10201 | CC66: T-26 sec | CD66: 40098.10201 | CQ66: T-26 sec | CR66: 40098.10201 | DE66: T-26 sec | DF66: 40098.10201
A67: T-24 sec | B67: 40098.10204 | C67: =LOOKUP(B67,Data!$A$6:$A$1806,Data!B$6:B$1806) -> 60.04100037 | D67: =LOOKUP(B67,Data!$A$6:$A$1806,Data!C$6:C$1806) -> 3648.246338 | H67: -32.80029297 | I67: -34.60263938 | L67: -0.1503334552 | M67: 3645.363182 | Z67: 0 | AC67: T-24 sec | AN67: T-24 sec | AO67: 40098.10204 | AP67: =LOOKUP($AO67,Data!$A$6:$A$1806,Data!$B$6:$B$1806) -> 60.04100037 | AQ67: =LOOKUP($AO67,Data!$A$6:$A$1806,Data!$C$6:$C$1806) -> 3648.246338 | AR67: =LOOKUP($AO67,Data!$A$6:$A$1806,Data!$D$6:$D$1806) -> 350 | AS67: =IF($AS$1="+",LOOKUP($AO67,Data!$A$6:$A$1806,Data!$E$6:$E$1806)*-1,LOOKUP($AO67,Data!$A$6:$A$1806,Data!$E$6:$E$1806)) -> -165.4763947 | AT67: =LOOKUP($AO67,Data!$A$6:$A$1806,Data!$F$6:$F$1806) -> 0 | AU67: =LOOKUP($AO67,Data!$A$6:$A$1806,Data!$G$6:$G$1806) -> 89.5 | AV67: =LOOKUP($AO67,Data!$A$6:$A$1806,Data!$H$6:$H$1806) -> 10 | AW67: =LOOKUP($AO67,Data!$A$6:$A$1806,Data!$I$6:$I$1806) -> 15 | AX67: =LOOKUP($AO67,Data!$A$6:$A$1806,Data!$J$6:$J$1806) -> -103 | AY67: =LOOKUP($AO67,Data!$A$6:$A$1806,Data!$K$6:$K$1806) -> 7559.07 | AZ67: -32.80029297 | BA67: T-24 sec | BB67: 40098.10204 | BO67: T-24 sec | BP67: 40098.10204 | CC67: T-24 sec | CD67: 40098.10204 | CQ67: T-24 sec | CR67: 40098.10204 | DE67: T-24 sec | DF67: 40098.10204
A68: T-22 sec | B68: 40098.10206 | C68: =LOOKUP(B68,Data!$A$6:$A$1806,Data!B$6:B$1806) -> 60.04100037 | D68: =LOOKUP(B68,Data!$A$6:$A$1806,Data!C$6:C$1806) -> 3648.246338 | H68: -32.80029297 | I68: -33.97181814 | L68: -0.1503334552 | M68: 3645.84367 | Z68: 0 | AC68: T-22 sec | AN68: T-22 sec | AO68: 40098.10206 | AP68: =LOOKUP($AO68,Data!$A$6:$A$1806,Data!$B$6:$B$1806) -> 60.04100037 | AQ68: =LOOKUP($AO68,Data!$A$6:$A$1806,Data!$C$6:$C$1806) -> 3648.246338 | AR68: =LOOKUP($AO68,Data!$A$6:$A$1806,Data!$D$6:$D$1806) -> 350 | AS68: =IF($AS$1="+",LOOKUP($AO68,Data!$A$6:$A$1806,Data!$E$6:$E$1806)*-1,LOOKUP($AO68,Data!$A$6:$A$1806,Data!$E$6:$E$1806)) -> -165.4763947 | AT68: =LOOKUP($AO68,Data!$A$6:$A$1806,Data!$F$6:$F$1806) -> 0 | AU68: =LOOKUP($AO68,Data!$A$6:$A$1806,Data!$G$6:$G$1806) -> 89.5 | AV68: =LOOKUP($AO68,Data!$A$6:$A$1806,Data!$H$6:$H$1806) -> 10 | AW68: =LOOKUP($AO68,Data!$A$6:$A$1806,Data!$I$6:$I$1806) -> 15 | AX68: =LOOKUP($AO68,Data!$A$6:$A$1806,Data!$J$6:$J$1806) -> -103 | AY68: =LOOKUP($AO68,Data!$A$6:$A$1806,Data!$K$6:$K$1806) -> 7559.07 | AZ68: -32.80029297 | BA68: T-22 sec | BB68: 40098.10206 | BO68: T-22 sec | BP68: 40098.10206 | CC68: T-22 sec | CD68: 40098.10206 | CQ68: T-22 sec | CR68: 40098.10206 | DE68: T-22 sec | DF68: 40098.10206
A69: T-20 sec | B69: 40098.10208 | C69: =LOOKUP(B69,Data!$A$6:$A$1806,Data!B$6:B$1806) -> 60.03900146 | D69: =LOOKUP(B69,Data!$A$6:$A$1806,Data!C$6:C$1806) -> 3654.294434 | H69: -31.20117188 | I69: -33.00209195 | L69: -0.1503334552 | M69: 3646.663063 | Z69: 0 | AC69: T-20 sec | AN69: T-20 sec | AO69: 40098.10208 | AP69: =LOOKUP($AO69,Data!$A$6:$A$1806,Data!$B$6:$B$1806) -> 60.03900146 | AQ69: =LOOKUP($AO69,Data!$A$6:$A$1806,Data!$C$6:$C$1806) -> 3654.294434 | AR69: =LOOKUP($AO69,Data!$A$6:$A$1806,Data!$D$6:$D$1806) -> 350 | AS69: =IF($AS$1="+",LOOKUP($AO69,Data!$A$6:$A$1806,Data!$E$6:$E$1806)*-1,LOOKUP($AO69,Data!$A$6:$A$1806,Data!$E$6:$E$1806)) -> -165.4763947 | AT69: =LOOKUP($AO69,Data!$A$6:$A$1806,Data!$F$6:$F$1806) -> 0 | AU69: =LOOKUP($AO69,Data!$A$6:$A$1806,Data!$G$6:$G$1806) -> 90 | AV69: =LOOKUP($AO69,Data!$A$6:$A$1806,Data!$H$6:$H$1806) -> 10 | AW69: =LOOKUP($AO69,Data!$A$6:$A$1806,Data!$I$6:$I$1806) -> 15 | AX69: =LOOKUP($AO69,Data!$A$6:$A$1806,Data!$J$6:$J$1806) -> -103 | AY69: =LOOKUP($AO69,Data!$A$6:$A$1806,Data!$K$6:$K$1806) -> 7559.4 | AZ69: -31.20117188 | BA69: T-20 sec | BB69: 40098.10208 | BO69: T-20 sec | BP69: 40098.10208 | CC69: T-20 sec | CD69: 40098.10208 | CQ69: T-20 sec | CR69: 40098.10208 | DE69: T-20 sec | DF69: 40098.10208
A70: T-18 sec | B70: 40098.10211 | C70: =LOOKUP(B70,Data!$A$6:$A$1806,Data!B$6:B$1806) -> 60.03900146 | D70: =LOOKUP(B70,Data!$A$6:$A$1806,Data!C$6:C$1806) -> 3654.294434 | H70: -31.20117188 | I70: -32.37176992 | L70: -0.1503334552 | M70: 3647.143051 | Z70: 0 | AC70: T-18 sec | AN70: T-18 sec | AO70: 40098.10211 | AP70: =LOOKUP($AO70,Data!$A$6:$A$1806,Data!$B$6:$B$1806) -> 60.03900146 | AQ70: =LOOKUP($AO70,Data!$A$6:$A$1806,Data!$C$6:$C$1806) -> 3654.294434 | AR70: =LOOKUP($AO70,Data!$A$6:$A$1806,Data!$D$6:$D$1806) -> 350 | AS70: =IF($AS$1="+",LOOKUP($AO70,Data!$A$6:$A$1806,Data!$E$6:$E$1806)*-1,LOOKUP($AO70,Data!$A$6:$A$1806,Data!$E$6:$E$1806)) -> -165.4763947 | AT70: =LOOKUP($AO70,Data!$A$6:$A$1806,Data!$F$6:$F$1806) -> 0 | AU70: =LOOKUP($AO70,Data!$A$6:$A$1806,Data!$G$6:$G$1806) -> 90 | AV70: =LOOKUP($AO70,Data!$A$6:$A$1806,Data!$H$6:$H$1806) -> 10 | AW70: =LOOKUP($AO70,Data!$A$6:$A$1806,Data!$I$6:$I$1806) -> 15 | AX70: =LOOKUP($AO70,Data!$A$6:$A$1806,Data!$J$6:$J$1806) -> -103 | AY70: =LOOKUP($AO70,Data!$A$6:$A$1806,Data!$K$6:$K$1806) -> 7559.4 | AZ70: -31.20117188 | BA70: T-18 sec | BB70: 40098.10211 | BO70: T-18 sec | BP70: 40098.10211 | CC70: T-18 sec | CD70: 40098.10211 | CQ70: T-18 sec | CR70: 40098.10211 | DE70: T-18 sec | DF70: 40098.10211
A71: T-16 sec | B71: 40098.10213 | C71: =LOOKUP(B71,Data!$A$6:$A$1806,Data!B$6:B$1806) -> 60.03900146 | D71: =LOOKUP(B71,Data!$A$6:$A$1806,Data!C$6:C$1806) -> 3654.294434 | E71: =AVERAGE($C$71:$C$78) -> 60.04125023 | F71: =AVERAGE($D$71:$D$78) -> 3649.001709 | H71: =(IF((C71-$L$2)>0,((C71-$L$2-$L$5)/(($L$4*$L$2)-$L$5)*$L$3*-1),((C71-$L$2+$L$5)/(($L$4*$L$2)-$L$5)*$L$3*-1))) -> -31.20117188 | I71: -31.9620606 | L71: -0.1503334552 | M71: 3647.402427 | Z71: 0 | AC71: T-16 sec | AD71: =AVERAGE($C$71:$C$78) -> 60.04125023 | AN71: T-16 sec | AO71: 40098.10213 | AP71: =LOOKUP($AO71,Data!$A$6:$A$1806,Data!$B$6:$B$1806) -> 60.03900146 | AQ71: =LOOKUP($AO71,Data!$A$6:$A$1806,Data!$C$6:$C$1806) -> 3654.294434 | AR71: =LOOKUP($AO71,Data!$A$6:$A$1806,Data!$D$6:$D$1806) -> 350 | AS71: =IF($AS$1="+",LOOKUP($AO71,Data!$A$6:$A$1806,Data!$E$6:$E$1806)*-1,LOOKUP($AO71,Data!$A$6:$A$1806,Data!$E$6:$E$1806)) -> -165.4763947 | AT71: =LOOKUP($AO71,Data!$A$6:$A$1806,Data!$F$6:$F$1806) -> 0 | AU71: =LOOKUP($AO71,Data!$A$6:$A$1806,Data!$G$6:$G$1806) -> 90 | AV71: =LOOKUP($AO71,Data!$A$6:$A$1806,Data!$H$6:$H$1806) -> 10 | AW71: =LOOKUP($AO71,Data!$A$6:$A$1806,Data!$I$6:$I$1806) -> 15 | AX71: =LOOKUP($AO71,Data!$A$6:$A$1806,Data!$J$6:$J$1806) -> -103 | AY71: =LOOKUP($AO71,Data!$A$6:$A$1806,Data!$K$6:$K$1806) -> 7559.4 | AZ71: -31.20117188 | BA71: T-16 sec | BB71: 40098.10213 | BC71: =AVERAGE($AP$71:$AP$78) -> 60.04125023 | BD71: =AVERAGE($AQ$71:$AQ$78) -> 3649.001709 | BE71: =AVERAGE($AR$71:$AR$78) -> 350 | BF71: =AVERAGE($AS$71:$AS$78) -> -165.4763947 | BG71: =AVERAGE($AT$71:$AT$78) -> 0 | BH71: =AVERAGE($AU$71:$AU$78) -> 90.875 | BI71: =AVERAGE($AV$71:$AV$78) -> 10 | BJ71: =AVERAGE($AW$71:$AW$78) -> 15 | BK71: =AVERAGE($AX$71:$AX$78) -> -103 | BL71: =AVERAGE($AY$71:$AY$78) -> 7559.9775 | BM71: =AVERAGE($AZ$71:$AZ$78) -> -33.00018311 | BO71: T-16 sec | BP71: 40098.10213 | BQ71: =AVERAGE($AP$71:$AP$78) -> 60.04125023 | BR71: =AVERAGE($AQ$71:$AQ$78) -> 3649.001709 | BS71: =AVERAGE($AR$71:$AR$78) -> 350 | BT71: =AVERAGE($AS$71:$AS$78) -> -165.4763947 | BU71: =AVERAGE($AT$71:$AT$78) -> 0 | BV71: =AVERAGE($AU$71:$AU$78) -> 90.875 | BW71: =AVERAGE($AV$71:$AV$78) -> 10 | BX71: =AVERAGE($AW$71:$AW$78) -> 15 | BY71: =AVERAGE($AX$71:$AX$78) -> -103 | BZ71: =AVERAGE($AY$71:$AY$78) -> 7559.9775 | CA71: =AVERAGE($AZ$71:$AZ$78) -> -33.00018311 | CC71: T-16 sec | CD71: 40098.10213 | CE71: =AVERAGE($AP$71:$AP$78) -> 60.04125023 | CF71: =AVERAGE($AQ$71:$AQ$78) -> 3649.001709 | CG71: =AVERAGE($AR$71:$AR$78) -> 350 | CH71: =AVERAGE($AS$71:$AS$78) -> -165.4763947 | CI71: =AVERAGE($AT$71:$AT$78) -> 0 | CJ71: =AVERAGE($AU$71:$AU$78) -> 90.875 | CK71: =AVERAGE($AV$71:$AV$78) -> 10 | CL71: =AVERAGE($AW$71:$AW$78) -> 15 | CM71: =AVERAGE($AX$71:$AX$78) -> -103 | CN71: =AVERAGE($AY$71:$AY$78) -> 7559.9775 | CO71: =AVERAGE($AZ$71:$AZ$78) -> -33.00018311 | CQ71: T-16 sec | CR71: 40098.10213 | CS71: =AVERAGE($AP$71:$AP$78) -> 60.04125023 | CT71: =AVERAGE($AQ$71:$AQ$78) -> 3649.001709 | CU71: =AVERAGE($AR$71:$AR$78) -> 350 | CV71: =AVERAGE($AS$71:$AS$78) -> -165.4763947 | CW71: =AVERAGE($AT$71:$AT$78) -> 0 | CX71: =AVERAGE($AU$71:$AU$78) -> 90.875 | CY71: =AVERAGE($AV$71:$AV$78) -> 10 | CZ71: =AVERAGE($AW$71:$AW$78) -> 15 | DA71: =AVERAGE($AX$71:$AX$78) -> -103 | DB71: =AVERAGE($AY$71:$AY$78) -> 7559.9775 | DC71: =AVERAGE($AZ$71:$AZ$78) -> -33.00018311 | DE71: T-16 sec | DF71: 40098.10213 | DG71: =AVERAGE($AP$71:$AP$78) -> 60.04125023 | DH71: =AVERAGE($AQ$71:$AQ$78) -> 3649.001709 | DI71: =AVERAGE($AR$71:$AR$78) -> 350 | DJ71: =AVERAGE($AS$71:$AS$78) -> -165.4763947 | DK71: =AVERAGE($AT$71:$AT$78) -> 0 | DL71: =AVERAGE($AU$71:$AU$78) -> 90.875 | DM71: =AVERAGE($AV$71:$AV$78) -> 10 | DN71: =AVERAGE($AW$71:$AW$78) -> 15 | DO71: =AVERAGE($AX$71:$AX$78) -> -103 | DP71: =AVERAGE($AY$71:$AY$78) -> 7559.9775 | DQ71: =AVERAGE($AZ$71:$AZ$78) -> -33.00018311
A72: T-14 sec | B72: 40098.10215 | C72: =LOOKUP(B72,Data!$A$6:$A$1806,Data!B$6:B$1806) -> 60.04299927 | D72: =LOOKUP(B72,Data!$A$6:$A$1806,Data!C$6:C$1806) -> 3651.059326 | E72: =AVERAGE($C$71:$C$78) -> 60.04125023 | F72: =AVERAGE($D$71:$D$78) -> 3649.001709 | H72: -34.39941406 | I72: -32.81513432 | L72: -0.1503334552 | M72: 3646.39902 | Z72: 0 | AC72: T-14 sec | AD72: =AVERAGE($C$71:$C$78) -> 60.04125023 | AN72: T-14 sec | AO72: 40098.10215 | AP72: =LOOKUP($AO72,Data!$A$6:$A$1806,Data!$B$6:$B$1806) -> 60.04299927 | AQ72: =LOOKUP($AO72,Data!$A$6:$A$1806,Data!$C$6:$C$1806) -> 3651.059326 | AR72: =LOOKUP($AO72,Data!$A$6:$A$1806,Data!$D$6:$D$1806) -> 350 | AS72: =IF($AS$1="+",LOOKUP($AO72,Data!$A$6:$A$1806,Data!$E$6:$E$1806)*-1,LOOKUP($AO72,Data!$A$6:$A$1806,Data!$E$6:$E$1806)) -> -165.4763947 | AT72: =LOOKUP($AO72,Data!$A$6:$A$1806,Data!$F$6:$F$1806) -> 0 | AU72: =LOOKUP($AO72,Data!$A$6:$A$1806,Data!$G$6:$G$1806) -> 90.5 | AV72: =LOOKUP($AO72,Data!$A$6:$A$1806,Data!$H$6:$H$1806) -> 10 | AW72: =LOOKUP($AO72,Data!$A$6:$A$1806,Data!$I$6:$I$1806) -> 15 | AX72: =LOOKUP($AO72,Data!$A$6:$A$1806,Data!$J$6:$J$1806) -> -103 | AY72: =LOOKUP($AO72,Data!$A$6:$A$1806,Data!$K$6:$K$1806) -> 7559.73 | AZ72: -34.39941406 | BA72: T-14 sec | BB72: 40098.10215 | BC72: =AVERAGE($AP$71:$AP$78) -> 60.04125023 | BD72: =AVERAGE($AQ$71:$AQ$78) -> 3649.001709 | BE72: =AVERAGE($AR$71:$AR$78) -> 350 | BF72: =AVERAGE($AS$71:$AS$78) -> -165.4763947 | BG72: =AVERAGE($AT$71:$AT$78) -> 0 | BH72: =AVERAGE($AU$71:$AU$78) -> 90.875 | BI72: =AVERAGE($AV$71:$AV$78) -> 10 | BJ72: =AVERAGE($AW$71:$AW$78) -> 15 | BK72: =AVERAGE($AX$71:$AX$78) -> -103 | BL72: =AVERAGE($AY$71:$AY$78) -> 7559.9775 | BM72: =AVERAGE($AZ$71:$AZ$78) -> -33.00018311 | BO72: T-14 sec | BP72: 40098.10215 | BQ72: =AVERAGE($AP$71:$AP$78) -> 60.04125023 | BR72: =AVERAGE($AQ$71:$AQ$78) -> 3649.001709 | BS72: =AVERAGE($AR$71:$AR$78) -> 350 | BT72: =AVERAGE($AS$71:$AS$78) -> -165.4763947 | BU72: =AVERAGE($AT$71:$AT$78) -> 0 | BV72: =AVERAGE($AU$71:$AU$78) -> 90.875 | BW72: =AVERAGE($AV$71:$AV$78) -> 10 | BX72: =AVERAGE($AW$71:$AW$78) -> 15 | BY72: =AVERAGE($AX$71:$AX$78) -> -103 | BZ72: =AVERAGE($AY$71:$AY$78) -> 7559.9775 | CA72: =AVERAGE($AZ$71:$AZ$78) -> -33.00018311 | CC72: T-14 sec | CD72: 40098.10215 | CE72: =AVERAGE($AP$71:$AP$78) -> 60.04125023 | CF72: =AVERAGE($AQ$71:$AQ$78) -> 3649.001709 | CG72: =AVERAGE($AR$71:$AR$78) -> 350 | CH72: =AVERAGE($AS$71:$AS$78) -> -165.4763947 | CI72: =AVERAGE($AT$71:$AT$78) -> 0 | CJ72: =AVERAGE($AU$71:$AU$78) -> 90.875 | CK72: =AVERAGE($AV$71:$AV$78) -> 10 | CL72: =AVERAGE($AW$71:$AW$78) -> 15 | CM72: =AVERAGE($AX$71:$AX$78) -> -103 | CN72: =AVERAGE($AY$71:$AY$78) -> 7559.9775 | CO72: =AVERAGE($AZ$71:$AZ$78) -> -33.00018311 | CQ72: T-14 sec | CR72: 40098.10215 | CS72: =AVERAGE($AP$71:$AP$78) -> 60.04125023 | CT72: =AVERAGE($AQ$71:$AQ$78) -> 3649.001709 | CU72: =AVERAGE($AR$71:$AR$78) -> 350 | CV72: =AVERAGE($AS$71:$AS$78) -> -165.4763947 | CW72: =AVERAGE($AT$71:$AT$78) -> 0 | CX72: =AVERAGE($AU$71:$AU$78) -> 90.875 | CY72: =AVERAGE($AV$71:$AV$78) -> 10 | CZ72: =AVERAGE($AW$71:$AW$78) -> 15 | DA72: =AVERAGE($AX$71:$AX$78) -> -103 | DB72: =AVERAGE($AY$71:$AY$78) -> 7559.9775 | DC72: =AVERAGE($AZ$71:$AZ$78) -> -33.00018311 | DE72: T-14 sec | DF72: 40098.10215 | DG72: =AVERAGE($AP$71:$AP$78) -> 60.04125023 | DH72: =AVERAGE($AQ$71:$AQ$78) -> 3649.001709 | DI72: =AVERAGE($AR$71:$AR$78) -> 350 | DJ72: =AVERAGE($AS$71:$AS$78) -> -165.4763947 | DK72: =AVERAGE($AT$71:$AT$78) -> 0 | DL72: =AVERAGE($AU$71:$AU$78) -> 90.875 | DM72: =AVERAGE($AV$71:$AV$78) -> 10 | DN72: =AVERAGE($AW$71:$AW$78) -> 15 | DO72: =AVERAGE($AX$71:$AX$78) -> -103 | DP72: =AVERAGE($AY$71:$AY$78) -> 7559.9775 | DQ72: =AVERAGE($AZ$71:$AZ$78) -> -33.00018311
A73: T-12 sec | B73: 40098.10218 | C73: =LOOKUP(B73,Data!$A$6:$A$1806,Data!B$6:B$1806) -> 60.04299927 | D73: =LOOKUP(B73,Data!$A$6:$A$1806,Data!C$6:C$1806) -> 3651.059326 | E73: 60.04125023 | F73: 3649.001709 | H73: -34.39941406 | I73: -33.36963223 | L73: -0.1503334552 | M73: 3645.694189 | Z73: 0 | AC73: T-12 sec | AD73: 60.04125023 | AN73: T-12 sec | AO73: 40098.10218 | AP73: =LOOKUP($AO73,Data!$A$6:$A$1806,Data!$B$6:$B$1806) -> 60.04299927 | AQ73: =LOOKUP($AO73,Data!$A$6:$A$1806,Data!$C$6:$C$1806) -> 3651.059326 | AR73: =LOOKUP($AO73,Data!$A$6:$A$1806,Data!$D$6:$D$1806) -> 350 | AS73: =IF($AS$1="+",LOOKUP($AO73,Data!$A$6:$A$1806,Data!$E$6:$E$1806)*-1,LOOKUP($AO73,Data!$A$6:$A$1806,Data!$E$6:$E$1806)) -> -165.4763947 | AT73: =LOOKUP($AO73,Data!$A$6:$A$1806,Data!$F$6:$F$1806) -> 0 | AU73: =LOOKUP($AO73,Data!$A$6:$A$1806,Data!$G$6:$G$1806) -> 90.5 | AV73: =LOOKUP($AO73,Data!$A$6:$A$1806,Data!$H$6:$H$1806) -> 10 | AW73: =LOOKUP($AO73,Data!$A$6:$A$1806,Data!$I$6:$I$1806) -> 15 | AX73: =LOOKUP($AO73,Data!$A$6:$A$1806,Data!$J$6:$J$1806) -> -103 | AY73: =LOOKUP($AO73,Data!$A$6:$A$1806,Data!$K$6:$K$1806) -> 7559.73 | AZ73: -34.39941406 | BA73: T-12 sec | BB73: 40098.10218 | BC73: 60.04125023 | BD73: 3649.001709 | BE73: 350 | BF73: -165.4763947 | BG73: 0 | BH73: 90.875 | BI73: 10 | BJ73: 15 | BK73: -103 | BL73: 7559.9775 | BM73: -33.00018311 | BO73: T-12 sec | BP73: 40098.10218 | BQ73: 60.04125023 | BR73: 3649.001709 | BS73: 350 | BT73: -165.4763947 | BU73: 0 | BV73: 90.875 | BW73: 10 | BX73: 15 | BY73: -103 | BZ73: 7559.9775 | CA73: -33.00018311 | CC73: T-12 sec | CD73: 40098.10218 | CE73: 60.04125023 | CF73: 3649.001709 | CG73: 350 | CH73: -165.4763947 | CI73: 0 | CJ73: 90.875 | CK73: 10 | CL73: 15 | CM73: -103 | CN73: 7559.9775 | CO73: -33.00018311 | CQ73: T-12 sec | CR73: 40098.10218 | CS73: 60.04125023 | CT73: 3649.001709 | CU73: 350 | CV73: -165.4763947 | CW73: 0 | CX73: 90.875 | CY73: 10 | CZ73: 15 | DA73: -103 | DB73: 7559.9775 | DC73: -33.00018311 | DE73: T-12 sec | DF73: 40098.10218 | DG73: 60.04125023 | DH73: 3649.001709 | DI73: 350 | DJ73: -165.4763947 | DK73: 0 | DL73: 90.875 | DM73: 10 | DN73: 15 | DO73: -103 | DP73: 7559.9775 | DQ73: -33.00018311
A74: T-10 sec | B74: 40098.1022 | C74: =LOOKUP(B74,Data!$A$6:$A$1806,Data!B$6:B$1806) -> 60.04100037 | D74: =LOOKUP(B74,Data!$A$6:$A$1806,Data!C$6:C$1806) -> 3648.236328 | E74: 60.04125023 | F74: 3649.001709 | H74: -32.80029297 | I74: -33.17036349 | L74: -0.1503334552 | M74: 3645.743124 | Z74: 0 | AC74: T-10 sec | AD74: 60.04125023 | AN74: T-10 sec | AO74: 40098.1022 | AP74: =LOOKUP($AO74,Data!$A$6:$A$1806,Data!$B$6:$B$1806) -> 60.04100037 | AQ74: =LOOKUP($AO74,Data!$A$6:$A$1806,Data!$C$6:$C$1806) -> 3648.236328 | AR74: =LOOKUP($AO74,Data!$A$6:$A$1806,Data!$D$6:$D$1806) -> 350 | AS74: =IF($AS$1="+",LOOKUP($AO74,Data!$A$6:$A$1806,Data!$E$6:$E$1806)*-1,LOOKUP($AO74,Data!$A$6:$A$1806,Data!$E$6:$E$1806)) -> -165.4763947 | AT74: =LOOKUP($AO74,Data!$A$6:$A$1806,Data!$F$6:$F$1806) -> 0 | AU74: =LOOKUP($AO74,Data!$A$6:$A$1806,Data!$G$6:$G$1806) -> 91 | AV74: =LOOKUP($AO74,Data!$A$6:$A$1806,Data!$H$6:$H$1806) -> 10 | AW74: =LOOKUP($AO74,Data!$A$6:$A$1806,Data!$I$6:$I$1806) -> 15 | AX74: =LOOKUP($AO74,Data!$A$6:$A$1806,Data!$J$6:$J$1806) -> -103 | AY74: =LOOKUP($AO74,Data!$A$6:$A$1806,Data!$K$6:$K$1806) -> 7560.06 | AZ74: -32.80029297 | BA74: T-10 sec | BB74: 40098.1022 | BC74: 60.04125023 | BD74: 3649.001709 | BE74: 350 | BF74: -165.4763947 | BG74: 0 | BH74: 90.875 | BI74: 10 | BJ74: 15 | BK74: -103 | BL74: 7559.9775 | BM74: -33.00018311 | BO74: T-10 sec | BP74: 40098.1022 | BQ74: 60.04125023 | BR74: 3649.001709 | BS74: 350 | BT74: -165.4763947 | BU74: 0 | BV74: 90.875 | BW74: 10 | BX74: 15 | BY74: -103 | BZ74: 7559.9775 | CA74: -33.00018311 | CC74: T-10 sec | CD74: 40098.1022 | CE74: 60.04125023 | CF74: 3649.001709 | CG74: 350 | CH74: -165.4763947 | CI74: 0 | CJ74: 90.875 | CK74: 10 | CL74: 15 | CM74: -103 | CN74: 7559.9775 | CO74: -33.00018311 | CQ74: T-10 sec | CR74: 40098.1022 | CS74: 60.04125023 | CT74: 3649.001709 | CU74: 350 | CV74: -165.4763947 | CW74: 0 | CX74: 90.875 | CY74: 10 | CZ74: 15 | DA74: -103 | DB74: 7559.9775 | DC74: -33.00018311 | DE74: T-10 sec | DF74: 40098.1022 | DG74: 60.04125023 | DH74: 3649.001709 | DI74: 350 | DJ74: -165.4763947 | DK74: 0 | DL74: 90.875 | DM74: 10 | DN74: 15 | DO74: -103 | DP74: 7559.9775 | DQ74: -33.00018311
A75: T-08 sec | B75: 40098.10222 | C75: =LOOKUP(B75,Data!$A$6:$A$1806,Data!B$6:B$1806) -> 60.04100037 | D75: =LOOKUP(B75,Data!$A$6:$A$1806,Data!C$6:C$1806) -> 3648.236328 | E75: 60.04125023 | F75: 3649.001709 | H75: -32.80029297 | I75: -33.04083881 | L75: -0.1503334552 | M75: 3645.722315 | Z75: 0 | AC75: T-08 sec | AD75: 60.04125023 | AN75: T-08 sec | AO75: 40098.10222 | AP75: =LOOKUP($AO75,Data!$A$6:$A$1806,Data!$B$6:$B$1806) -> 60.04100037 | AQ75: =LOOKUP($AO75,Data!$A$6:$A$1806,Data!$C$6:$C$1806) -> 3648.236328 | AR75: =LOOKUP($AO75,Data!$A$6:$A$1806,Data!$D$6:$D$1806) -> 350 | AS75: =IF($AS$1="+",LOOKUP($AO75,Data!$A$6:$A$1806,Data!$E$6:$E$1806)*-1,LOOKUP($AO75,Data!$A$6:$A$1806,Data!$E$6:$E$1806)) -> -165.4763947 | AT75: =LOOKUP($AO75,Data!$A$6:$A$1806,Data!$F$6:$F$1806) -> 0 | AU75: =LOOKUP($AO75,Data!$A$6:$A$1806,Data!$G$6:$G$1806) -> 91 | AV75: =LOOKUP($AO75,Data!$A$6:$A$1806,Data!$H$6:$H$1806) -> 10 | AW75: =LOOKUP($AO75,Data!$A$6:$A$1806,Data!$I$6:$I$1806) -> 15 | AX75: =LOOKUP($AO75,Data!$A$6:$A$1806,Data!$J$6:$J$1806) -> -103 | AY75: =LOOKUP($AO75,Data!$A$6:$A$1806,Data!$K$6:$K$1806) -> 7560.06 | AZ75: -32.80029297 | BA75: T-08 sec | BB75: 40098.10222 | BC75: 60.04125023 | BD75: 3649.001709 | BE75: 350 | BF75: -165.4763947 | BG75: 0 | BH75: 90.875 | BI75: 10 | BJ75: 15 | BK75: -103 | BL75: 7559.9775 | BM75: -33.00018311 | BO75: T-08 sec | BP75: 40098.10222 | BQ75: 60.04125023 | BR75: 3649.001709 | BS75: 350 | BT75: -165.4763947 | BU75: 0 | BV75: 90.875 | BW75: 10 | BX75: 15 | BY75: -103 | BZ75: 7559.9775 | CA75: -33.00018311 | CC75: T-08 sec | CD75: 40098.10222 | CE75: 60.04125023 | CF75: 3649.001709 | CG75: 350 | CH75: -165.4763947 | CI75: 0 | CJ75: 90.875 | CK75: 10 | CL75: 15 | CM75: -103 | CN75: 7559.9775 | CO75: -33.00018311 | CQ75: T-08 sec | CR75: 40098.10222 | CS75: 60.04125023 | CT75: 3649.001709 | CU75: 350 | CV75: -165.4763947 | CW75: 0 | CX75: 90.875 | CY75: 10 | CZ75: 15 | DA75: -103 | DB75: 7559.9775 | DC75: -33.00018311 | DE75: T-08 sec | DF75: 40098.10222 | DG75: 60.04125023 | DH75: 3649.001709 | DI75: 350 | DJ75: -165.4763947 | DK75: 0 | DL75: 90.875 | DM75: 10 | DN75: 15 | DO75: -103 | DP75: 7559.9775 | DQ75: -33.00018311
A76: T-06 sec | B76: 40098.10225 | C76: =LOOKUP(B76,Data!$A$6:$A$1806,Data!B$6:B$1806) -> 60.04100037 | D76: =LOOKUP(B76,Data!$A$6:$A$1806,Data!C$6:C$1806) -> 3648.236328 | E76: 60.04125023 | F76: 3649.001709 | H76: -32.80029297 | I76: -32.95664776 | L76: -0.1503334552 | M76: 3645.656173 | Z76: 0 | AC76: T-06 sec | AD76: 60.04125023 | AN76: T-06 sec | AO76: 40098.10225 | AP76: =LOOKUP($AO76,Data!$A$6:$A$1806,Data!$B$6:$B$1806) -> 60.04100037 | AQ76: =LOOKUP($AO76,Data!$A$6:$A$1806,Data!$C$6:$C$1806) -> 3648.236328 | AR76: =LOOKUP($AO76,Data!$A$6:$A$1806,Data!$D$6:$D$1806) -> 350 | AS76: =IF($AS$1="+",LOOKUP($AO76,Data!$A$6:$A$1806,Data!$E$6:$E$1806)*-1,LOOKUP($AO76,Data!$A$6:$A$1806,Data!$E$6:$E$1806)) -> -165.4763947 | AT76: =LOOKUP($AO76,Data!$A$6:$A$1806,Data!$F$6:$F$1806) -> 0 | AU76: =LOOKUP($AO76,Data!$A$6:$A$1806,Data!$G$6:$G$1806) -> 91 | AV76: =LOOKUP($AO76,Data!$A$6:$A$1806,Data!$H$6:$H$1806) -> 10 | AW76: =LOOKUP($AO76,Data!$A$6:$A$1806,Data!$I$6:$I$1806) -> 15 | AX76: =LOOKUP($AO76,Data!$A$6:$A$1806,Data!$J$6:$J$1806) -> -103 | AY76: =LOOKUP($AO76,Data!$A$6:$A$1806,Data!$K$6:$K$1806) -> 7560.06 | AZ76: -32.80029297 | BA76: T-06 sec | BB76: 40098.10225 | BC76: 60.04125023 | BD76: 3649.001709 | BE76: 350 | BF76: -165.4763947 | BG76: 0 | BH76: 90.875 | BI76: 10 | BJ76: 15 | BK76: -103 | BL76: 7559.9775 | BM76: -33.00018311 | BO76: T-06 sec | BP76: 40098.10225 | BQ76: 60.04125023 | BR76: 3649.001709 | BS76: 350 | BT76: -165.4763947 | BU76: 0 | BV76: 90.875 | BW76: 10 | BX76: 15 | BY76: -103 | BZ76: 7559.9775 | CA76: -33.00018311 | CC76: T-06 sec | CD76: 40098.10225 | CE76: 60.04125023 | CF76: 3649.001709 | CG76: 350 | CH76: -165.4763947 | CI76: 0 | CJ76: 90.875 | CK76: 10 | CL76: 15 | CM76: -103 | CN76: 7559.9775 | CO76: -33.00018311 | CQ76: T-06 sec | CR76: 40098.10225 | CS76: 60.04125023 | CT76: 3649.001709 | CU76: 350 | CV76: -165.4763947 | CW76: 0 | CX76: 90.875 | CY76: 10 | CZ76: 15 | DA76: -103 | DB76: 7559.9775 | DC76: -33.00018311 | DE76: T-06 sec | DF76: 40098.10225 | DG76: 60.04125023 | DH76: 3649.001709 | DI76: 350 | DJ76: -165.4763947 | DK76: 0 | DL76: 90.875 | DM76: 10 | DN76: 15 | DO76: -103 | DP76: 7559.9775 | DQ76: -33.00018311
A77: T-04 sec | B77: 40098.10227 | C77: =LOOKUP(B77,Data!$A$6:$A$1806,Data!B$6:B$1806) -> 60.04100037 | D77: =LOOKUP(B77,Data!$A$6:$A$1806,Data!C$6:C$1806) -> 3645.445801 | E77: 60.04125023 | F77: 3649.001709 | H77: -32.80029297 | I77: -32.90192358 | L77: -0.1503334552 | M77: 3645.560564 | Z77: 0 | AC77: T-04 sec | AD77: 60.04125023 | AN77: T-04 sec | AO77: 40098.10227 | AP77: =LOOKUP($AO77,Data!$A$6:$A$1806,Data!$B$6:$B$1806) -> 60.04100037 | AQ77: =LOOKUP($AO77,Data!$A$6:$A$1806,Data!$C$6:$C$1806) -> 3645.445801 | AR77: =LOOKUP($AO77,Data!$A$6:$A$1806,Data!$D$6:$D$1806) -> 350 | AS77: =IF($AS$1="+",LOOKUP($AO77,Data!$A$6:$A$1806,Data!$E$6:$E$1806)*-1,LOOKUP($AO77,Data!$A$6:$A$1806,Data!$E$6:$E$1806)) -> -165.4763947 | AT77: =LOOKUP($AO77,Data!$A$6:$A$1806,Data!$F$6:$F$1806) -> 0 | AU77: =LOOKUP($AO77,Data!$A$6:$A$1806,Data!$G$6:$G$1806) -> 91.5 | AV77: =LOOKUP($AO77,Data!$A$6:$A$1806,Data!$H$6:$H$1806) -> 10 | AW77: =LOOKUP($AO77,Data!$A$6:$A$1806,Data!$I$6:$I$1806) -> 15 | AX77: =LOOKUP($AO77,Data!$A$6:$A$1806,Data!$J$6:$J$1806) -> -103 | AY77: =LOOKUP($AO77,Data!$A$6:$A$1806,Data!$K$6:$K$1806) -> 7560.39 | AZ77: -32.80029297 | BA77: T-04 sec | BB77: 40098.10227 | BC77: 60.04125023 | BD77: 3649.001709 | BE77: 350 | BF77: -165.4763947 | BG77: 0 | BH77: 90.875 | BI77: 10 | BJ77: 15 | BK77: -103 | BL77: 7559.9775 | BM77: -33.00018311 | BO77: T-04 sec | BP77: 40098.10227 | BQ77: 60.04125023 | BR77: 3649.001709 | BS77: 350 | BT77: -165.4763947 | BU77: 0 | BV77: 90.875 | BW77: 10 | BX77: 15 | BY77: -103 | BZ77: 7559.9775 | CA77: -33.00018311 | CC77: T-04 sec | CD77: 40098.10227 | CE77: 60.04125023 | CF77: 3649.001709 | CG77: 350 | CH77: -165.4763947 | CI77: 0 | CJ77: 90.875 | CK77: 10 | CL77: 15 | CM77: -103 | CN77: 7559.9775 | CO77: -33.00018311 | CQ77: T-04 sec | CR77: 40098.10227 | CS77: 60.04125023 | CT77: 3649.001709 | CU77: 350 | CV77: -165.4763947 | CW77: 0 | CX77: 90.875 | CY77: 10 | CZ77: 15 | DA77: -103 | DB77: 7559.9775 | DC77: -33.00018311 | DE77: T-04 sec | DF77: 40098.10227 | DG77: 60.04125023 | DH77: 3649.001709 | DI77: 350 | DJ77: -165.4763947 | DK77: 0 | DL77: 90.875 | DM77: 10 | DN77: 15 | DO77: -103 | DP77: 7559.9775 | DQ77: -33.00018311
A78: T-02 sec | B78: =B79-TIME(0,0,$B$1) -> 40098.10229 | C78: =LOOKUP(B78,Data!$A$6:$A$1806,Data!B$6:B$1806) -> 60.04100037 | D78: =LOOKUP(B78,Data!$A$6:$A$1806,Data!C$6:C$1806) -> 3645.445801 | E78: 60.04125023 | F78: 3649.001709 | H78: -32.80029297 | I78: -32.86635287 | L78: -0.1503334552 | M78: =D78 -> 3645.445801 | Z78: 0 | AC78: T-02 sec | AD78: 60.04125023 | AN78: T-02 sec | AO78: =AO79-TIME(0,0,$B$1) -> 40098.10229 | AP78: =LOOKUP($AO78,Data!$A$6:$A$1806,Data!$B$6:$B$1806) -> 60.04100037 | AQ78: =LOOKUP($AO78,Data!$A$6:$A$1806,Data!$C$6:$C$1806) -> 3645.445801 | AR78: =LOOKUP($AO78,Data!$A$6:$A$1806,Data!$D$6:$D$1806) -> 350 | AS78: =IF($AS$1="+",LOOKUP($AO78,Data!$A$6:$A$1806,Data!$E$6:$E$1806)*-1,LOOKUP($AO78,Data!$A$6:$A$1806,Data!$E$6:$E$1806)) -> -165.4763947 | AT78: =LOOKUP($AO78,Data!$A$6:$A$1806,Data!$F$6:$F$1806) -> 0 | AU78: =LOOKUP($AO78,Data!$A$6:$A$1806,Data!$G$6:$G$1806) -> 91.5 | AV78: =LOOKUP($AO78,Data!$A$6:$A$1806,Data!$H$6:$H$1806) -> 10 | AW78: =LOOKUP($AO78,Data!$A$6:$A$1806,Data!$I$6:$I$1806) -> 15 | AX78: =LOOKUP($AO78,Data!$A$6:$A$1806,Data!$J$6:$J$1806) -> -103 | AY78: =LOOKUP($AO78,Data!$A$6:$A$1806,Data!$K$6:$K$1806) -> 7560.39 | AZ78: -32.80029297 | BA78: T-02 sec | BB78: =BB79-TIME(0,0,$B$1) -> 40098.10229 | BC78: 60.04125023 | BD78: 3649.001709 | BE78: 350 | BF78: -165.4763947 | BG78: 0 | BH78: 90.875 | BI78: 10 | BJ78: 15 | BK78: -103 | BL78: 7559.9775 | BM78: -33.00018311 | BO78: T-02 sec | BP78: =BP79-TIME(0,0,$B$1) -> 40098.10229 | BQ78: 60.04125023 | BR78: 3649.001709 | BS78: 350 | BT78: -165.4763947 | BU78: 0 | BV78: 90.875 | BW78: 10 | BX78: 15 | BY78: -103 | BZ78: 7559.9775 | CA78: -33.00018311 | CC78: T-02 sec | CD78: =CD79-TIME(0,0,$B$1) -> 40098.10229 | CE78: 60.04125023 | CF78: 3649.001709 | CG78: 350 | CH78: -165.4763947 | CI78: 0 | CJ78: 90.875 | CK78: 10 | CL78: 15 | CM78: -103 | CN78: 7559.9775 | CO78: -33.00018311 | CQ78: T-02 sec | CR78: =CR79-TIME(0,0,$B$1) -> 40098.10229 | CS78: 60.04125023 | CT78: 3649.001709 | CU78: 350 | CV78: -165.4763947 | CW78: 0 | CX78: 90.875 | CY78: 10 | CZ78: 15 | DA78: -103 | DB78: 7559.9775 | DC78: -33.00018311 | DE78: T-02 sec | DF78: =DF79-TIME(0,0,$B$1) -> 40098.10229 | DG78: 60.04125023 | DH78: 3649.001709 | DI78: 350 | DJ78: -165.4763947 | DK78: 0 | DL78: 90.875 | DM78: 10 | DN78: 15 | DO78: -103 | DP78: 7559.9775 | DQ78: -33.00018311
A79: T+0 sec | B79: =G2 -> 40098.10231 | C79: =LOOKUP(B79,Data!$A$6:$A$1806,Data!B$6:B$1806) -> 59.85200119 | D79: =LOOKUP(B79,Data!$A$6:$A$1806,Data!C$6:C$1806) -> 3641.191162 | H79: 118.3990479 | I79: 20.07653738 | L79: 0 | M79: =M78+L79+(I79-I78) -> 3698.388691 | R79: =R$41 -> 633 | Z79: 633 | AA79: =Z79/((C79-G$4)*10) -> -334.4799024 | AC79: T+0 sec | AN79: T+0 sec | AO79: =$G2 -> 40098.10231 | AP79: =LOOKUP($AO79,Data!$A$6:$A$1806,Data!$B$6:$B$1806) -> 59.85200119 | AQ79: =LOOKUP($AO79,Data!$A$6:$A$1806,Data!$C$6:$C$1806) -> 3641.191162 | AR79: =LOOKUP($AO79,Data!$A$6:$A$1806,Data!$D$6:$D$1806) -> 335 | AS79: =IF($AS$1="+",LOOKUP($AO79,Data!$A$6:$A$1806,Data!$E$6:$E$1806)*-1,LOOKUP($AO79,Data!$A$6:$A$1806,Data!$E$6:$E$1806)) -> -206.4591064 | AT79: =LOOKUP($AO79,Data!$A$6:$A$1806,Data!$F$6:$F$1806) -> 1 | AU79: =LOOKUP($AO79,Data!$A$6:$A$1806,Data!$G$6:$G$1806) -> 92 | AV79: =LOOKUP($AO79,Data!$A$6:$A$1806,Data!$H$6:$H$1806) -> 10 | AW79: =LOOKUP($AO79,Data!$A$6:$A$1806,Data!$I$6:$I$1806) -> 0 | AX79: =LOOKUP($AO79,Data!$A$6:$A$1806,Data!$J$6:$J$1806) -> -103 | AY79: =LOOKUP($AO79,Data!$A$6:$A$1806,Data!$K$6:$K$1806) -> 7560.72 | AZ79: 118.3990479 | BA79: T+0 sec | BB79: =$G2 -> 40098.10231 | BO79: T+0 sec | BP79: =$G2 -> 40098.10231 | CC79: T+0 sec | CD79: =$G2 -> 40098.10231 | CQ79: T+0 sec | CR79: =$G2 -> 40098.10231 | DE79: T+0 sec | DF79: =$G2 -> 40098.10231
A80: T+02 sec | B80: =B79+TIME(0,0,$B$1) -> 40098.10234 | C80: =LOOKUP(B80,Data!$A$6:$A$1806,Data!B$6:B$1806) -> 59.85200119 | D80: =LOOKUP(B80,Data!$A$6:$A$1806,Data!C$6:C$1806) -> 3641.191162 | H80: 118.3990479 | I80: 54.48941605 | L80: =IF(B80>G$3,0,(K$21*0.000023148/K$22)) -> 0.5803577926 | M80: =M79+L80+(I80-I79) -> 3733.381927 | N80: =AVERAGE(D$79:D80) -> 3641.191162 | O80: =AVERAGE(M$79:M80) -> 3715.885309 | P80: =K20+L78-I77 -> 3678.197391 | Q80: =AVERAGE(P$79:P80) -> 3678.197391 | R80: =R$41 -> 633 | Z80: 633 | AA80: =Z80/((C80-G$4)*10) -> -334.4799024 | AC80: T+02 sec | AN80: T+02 sec | AO80: =AO79+TIME(0,0,$B$1) -> 40098.10234 | AP80: =LOOKUP($AO80,Data!$A$6:$A$1806,Data!$B$6:$B$1806) -> 59.85200119 | AQ80: =LOOKUP($AO80,Data!$A$6:$A$1806,Data!$C$6:$C$1806) -> 3641.191162 | AR80: =LOOKUP($AO80,Data!$A$6:$A$1806,Data!$D$6:$D$1806) -> 335 | AS80: =IF($AS$1="+",LOOKUP($AO80,Data!$A$6:$A$1806,Data!$E$6:$E$1806)*-1,LOOKUP($AO80,Data!$A$6:$A$1806,Data!$E$6:$E$1806)) -> -206.4591064 | AT80: =LOOKUP($AO80,Data!$A$6:$A$1806,Data!$F$6:$F$1806) -> 1 | AU80: =LOOKUP($AO80,Data!$A$6:$A$1806,Data!$G$6:$G$1806) -> 92 | AV80: =LOOKUP($AO80,Data!$A$6:$A$1806,Data!$H$6:$H$1806) -> 10 | AW80: =LOOKUP($AO80,Data!$A$6:$A$1806,Data!$I$6:$I$1806) -> 0 | AX80: =LOOKUP($AO80,Data!$A$6:$A$1806,Data!$J$6:$J$1806) -> -103 | AY80: =LOOKUP($AO80,Data!$A$6:$A$1806,Data!$K$6:$K$1806) -> 7560.72 | AZ80: 118.3990479 | BA80: T+02 sec | BB80: =BB79+TIME(0,0,$B$1) -> 40098.10234 | BO80: T+02 sec | BP80: =BP79+TIME(0,0,$B$1) -> 40098.10234 | CC80: T+02 sec | CD80: =CD79+TIME(0,0,$B$1) -> 40098.10234 | CQ80: T+02 sec | CR80: =CR79+TIME(0,0,$B$1) -> 40098.10234 | DE80: T+02 sec | DF80: =DF79+TIME(0,0,$B$1) -> 40098.10234
A81: T+04 sec | B81: =B80+TIME(0,0,$B$1) -> 40098.10236 | C81: =LOOKUP(B81,Data!$A$6:$A$1806,Data!B$6:B$1806) -> 59.85200119 | D81: =LOOKUP(B81,Data!$A$6:$A$1806,Data!C$6:C$1806) -> 3641.191162 | H81: 118.3990479 | I81: 76.85778718 | L81: 0.5803577926 | M81: 3756.330656 | N81: =AVERAGE(D$79:D81) -> 3641.191162 | O81: =AVERAGE(M$79:M81) -> 3729.367092 | P81: =P80+L81 -> 3678.777749 | Q81: =AVERAGE(P$79:P81) -> 3678.48757 | R81: =R$41 -> 633 | Z81: 633 | AA81: -334.4799024 | AC81: T+04 sec | AN81: T+04 sec | AO81: =AO80+TIME(0,0,$B$1) -> 40098.10236 | AP81: =LOOKUP($AO81,Data!$A$6:$A$1806,Data!$B$6:$B$1806) -> 59.85200119 | AQ81: =LOOKUP($AO81,Data!$A$6:$A$1806,Data!$C$6:$C$1806) -> 3641.191162 | AR81: =LOOKUP($AO81,Data!$A$6:$A$1806,Data!$D$6:$D$1806) -> 335 | AS81: =IF($AS$1="+",LOOKUP($AO81,Data!$A$6:$A$1806,Data!$E$6:$E$1806)*-1,LOOKUP($AO81,Data!$A$6:$A$1806,Data!$E$6:$E$1806)) -> -206.4591064 | AT81: =LOOKUP($AO81,Data!$A$6:$A$1806,Data!$F$6:$F$1806) -> 1 | AU81: =LOOKUP($AO81,Data!$A$6:$A$1806,Data!$G$6:$G$1806) -> 92 | AV81: =LOOKUP($AO81,Data!$A$6:$A$1806,Data!$H$6:$H$1806) -> 10 | AW81: =LOOKUP($AO81,Data!$A$6:$A$1806,Data!$I$6:$I$1806) -> 0 | AX81: =LOOKUP($AO81,Data!$A$6:$A$1806,Data!$J$6:$J$1806) -> -103 | AY81: =LOOKUP($AO81,Data!$A$6:$A$1806,Data!$K$6:$K$1806) -> 7560.72 | AZ81: 118.3990479 | BA81: T+04 sec | BB81: =BB80+TIME(0,0,$B$1) -> 40098.10236 | BO81: T+04 sec | BP81: =BP80+TIME(0,0,$B$1) -> 40098.10236 | CC81: T+04 sec | CD81: =CD80+TIME(0,0,$B$1) -> 40098.10236 | CQ81: T+04 sec | CR81: =CR80+TIME(0,0,$B$1) -> 40098.10236 | DE81: T+04 sec | DF81: =DF80+TIME(0,0,$B$1) -> 40098.10236
A82: T+06 sec | B82: 40098.10238 | C82: =LOOKUP(B82,Data!$A$6:$A$1806,Data!B$6:B$1806) -> 59.86899948 | D82: =LOOKUP(B82,Data!$A$6:$A$1806,Data!C$6:C$1806) -> 3734.904297 | H82: 104.800415 | I82: 86.63770693 | L82: 0.5803577926 | M82: 3766.690934 | N82: =AVERAGE(D$79:D82) -> 3664.619446 | O82: =AVERAGE(M$79:M82) -> 3738.698052 | P82: =P81+L82 -> 3679.358106 | Q82: =AVERAGE(P$79:P82) -> 3678.777749 | R82: 633 | Y82: 0 | Z82: 633 | AA82: -367.4875195 | AC82: T+06 sec | AN82: T+06 sec | AO82: 40098.10238 | AP82: =LOOKUP($AO82,Data!$A$6:$A$1806,Data!$B$6:$B$1806) -> 59.86899948 | AQ82: =LOOKUP($AO82,Data!$A$6:$A$1806,Data!$C$6:$C$1806) -> 3734.904297 | AR82: =LOOKUP($AO82,Data!$A$6:$A$1806,Data!$D$6:$D$1806) -> 335 | AS82: =IF($AS$1="+",LOOKUP($AO82,Data!$A$6:$A$1806,Data!$E$6:$E$1806)*-1,LOOKUP($AO82,Data!$A$6:$A$1806,Data!$E$6:$E$1806)) -> -206.4591064 | AT82: =LOOKUP($AO82,Data!$A$6:$A$1806,Data!$F$6:$F$1806) -> 1 | AU82: =LOOKUP($AO82,Data!$A$6:$A$1806,Data!$G$6:$G$1806) -> 92.5 | AV82: =LOOKUP($AO82,Data!$A$6:$A$1806,Data!$H$6:$H$1806) -> 10 | AW82: =LOOKUP($AO82,Data!$A$6:$A$1806,Data!$I$6:$I$1806) -> 0 | AX82: =LOOKUP($AO82,Data!$A$6:$A$1806,Data!$J$6:$J$1806) -> -103 | AY82: =LOOKUP($AO82,Data!$A$6:$A$1806,Data!$K$6:$K$1806) -> 7561.05 | AZ82: 104.800415 | BA82: T+06 sec | BB82: 40098.10238 | BO82: T+06 sec | BP82: 40098.10238 | CC82: T+06 sec | CD82: 40098.10238 | CQ82: T+06 sec | CR82: 40098.10238 | DE82: T+06 sec | DF82: 40098.10238
A83: T+08 sec | B83: 40098.10241 | C83: =LOOKUP(B83,Data!$A$6:$A$1806,Data!B$6:B$1806) -> 59.86899948 | D83: =LOOKUP(B83,Data!$A$6:$A$1806,Data!C$6:C$1806) -> 3734.904297 | H83: 104.800415 | I83: 92.99465477 | L83: 0.5803577926 | M83: 3773.62824 | N83: =AVERAGE(D$79:D83) -> 3678.676416 | O83: =AVERAGE(M$79:M83) -> 3745.68409 | P83: 3679.938464 | Q83: =AVERAGE(P$79:P83) -> 3679.067928 | R83: 633 | Y83: 0 | Z83: 633 | AA83: -367.4875195 | AC83: T+08 sec | AN83: T+08 sec | AO83: 40098.10241 | AP83: =LOOKUP($AO83,Data!$A$6:$A$1806,Data!$B$6:$B$1806) -> 59.86899948 | AQ83: =LOOKUP($AO83,Data!$A$6:$A$1806,Data!$C$6:$C$1806) -> 3734.904297 | AR83: =LOOKUP($AO83,Data!$A$6:$A$1806,Data!$D$6:$D$1806) -> 335 | AS83: =IF($AS$1="+",LOOKUP($AO83,Data!$A$6:$A$1806,Data!$E$6:$E$1806)*-1,LOOKUP($AO83,Data!$A$6:$A$1806,Data!$E$6:$E$1806)) -> -206.4591064 | AT83: =LOOKUP($AO83,Data!$A$6:$A$1806,Data!$F$6:$F$1806) -> 1 | AU83: =LOOKUP($AO83,Data!$A$6:$A$1806,Data!$G$6:$G$1806) -> 92.5 | AV83: =LOOKUP($AO83,Data!$A$6:$A$1806,Data!$H$6:$H$1806) -> 10 | AW83: =LOOKUP($AO83,Data!$A$6:$A$1806,Data!$I$6:$I$1806) -> 0 | AX83: =LOOKUP($AO83,Data!$A$6:$A$1806,Data!$J$6:$J$1806) -> -103 | AY83: =LOOKUP($AO83,Data!$A$6:$A$1806,Data!$K$6:$K$1806) -> 7561.05 | AZ83: 104.800415 | BA83: T+08 sec | BB83: 40098.10241 | BO83: T+08 sec | BP83: 40098.10241 | CC83: T+08 sec | CD83: 40098.10241 | CQ83: T+08 sec | CR83: 40098.10241 | DE83: T+08 sec | DF83: 40098.10241
A84: T+10 sec | B84: 40098.10243 | C84: =LOOKUP(B84,Data!$A$6:$A$1806,Data!B$6:B$1806) -> 59.86899948 | D84: =LOOKUP(B84,Data!$A$6:$A$1806,Data!C$6:C$1806) -> 3734.904297 | H84: 104.800415 | I84: 97.12667086 | L84: 0.5803577926 | M84: 3778.340613 | N84: =AVERAGE(D$79:D84) -> 3688.047729 | O84: =AVERAGE(M$79:M84) -> 3751.126844 | P84: 3680.518822 | Q84: =AVERAGE(P$79:P84) -> 3679.358106 | R84: 633 | Y84: 0 | Z84: 633 | AA84: -367.4875195 | AC84: T+10 sec | AN84: T+10 sec | AO84: 40098.10243 | AP84: =LOOKUP($AO84,Data!$A$6:$A$1806,Data!$B$6:$B$1806) -> 59.86899948 | AQ84: =LOOKUP($AO84,Data!$A$6:$A$1806,Data!$C$6:$C$1806) -> 3734.904297 | AR84: =LOOKUP($AO84,Data!$A$6:$A$1806,Data!$D$6:$D$1806) -> 335 | AS84: =IF($AS$1="+",LOOKUP($AO84,Data!$A$6:$A$1806,Data!$E$6:$E$1806)*-1,LOOKUP($AO84,Data!$A$6:$A$1806,Data!$E$6:$E$1806)) -> -206.4591064 | AT84: =LOOKUP($AO84,Data!$A$6:$A$1806,Data!$F$6:$F$1806) -> 1 | AU84: =LOOKUP($AO84,Data!$A$6:$A$1806,Data!$G$6:$G$1806) -> 92.5 | AV84: =LOOKUP($AO84,Data!$A$6:$A$1806,Data!$H$6:$H$1806) -> 10 | AW84: =LOOKUP($AO84,Data!$A$6:$A$1806,Data!$I$6:$I$1806) -> 0 | AX84: =LOOKUP($AO84,Data!$A$6:$A$1806,Data!$J$6:$J$1806) -> -103 | AY84: =LOOKUP($AO84,Data!$A$6:$A$1806,Data!$K$6:$K$1806) -> 7561.05 | AZ84: 104.800415 | BA84: T+10 sec | BB84: 40098.10243 | BO84: T+10 sec | BP84: 40098.10243 | CC84: T+10 sec | CD84: 40098.10243 | CQ84: T+10 sec | CR84: 40098.10243 | DE84: T+10 sec | DF84: 40098.10243
A85: T+12 sec | B85: 40098.10245 | C85: =LOOKUP(B85,Data!$A$6:$A$1806,Data!B$6:B$1806) -> 59.88000107 | D85: =LOOKUP(B85,Data!$A$6:$A$1806,Data!C$6:C$1806) -> 3737.156738 | H85: 95.99914551 | I85: 96.73203699 | L85: 0.5803577926 | M85: 3778.526337 | N85: =AVERAGE(D$79:D85) -> 3695.063302 | O85: =AVERAGE(M$79:M85) -> 3755.041057 | P85: 3681.09918 | Q85: =AVERAGE(P$79:P85) -> 3679.648285 | R85: 633 | Y85: 0 | Z85: 633 | AA85: -392.5601826 | AC85: T+12 sec | AD85: =AVERAGE($C$85:$C$91) -> 59.87957219 | AE85: =AVERAGE($AA$85:$AA$91) -> -391.8343575 | AN85: T+12 sec | AO85: 40098.10245 | AP85: =LOOKUP($AO85,Data!$A$6:$A$1806,Data!$B$6:$B$1806) -> 59.88000107 | AQ85: =LOOKUP($AO85,Data!$A$6:$A$1806,Data!$C$6:$C$1806) -> 3737.156738 | AR85: =LOOKUP($AO85,Data!$A$6:$A$1806,Data!$D$6:$D$1806) -> 335 | AS85: =IF($AS$1="+",LOOKUP($AO85,Data!$A$6:$A$1806,Data!$E$6:$E$1806)*-1,LOOKUP($AO85,Data!$A$6:$A$1806,Data!$E$6:$E$1806)) -> -206.4591064 | AT85: =LOOKUP($AO85,Data!$A$6:$A$1806,Data!$F$6:$F$1806) -> 1 | AU85: =LOOKUP($AO85,Data!$A$6:$A$1806,Data!$G$6:$G$1806) -> 93 | AV85: =LOOKUP($AO85,Data!$A$6:$A$1806,Data!$H$6:$H$1806) -> 10 | AW85: =LOOKUP($AO85,Data!$A$6:$A$1806,Data!$I$6:$I$1806) -> 0 | AX85: =LOOKUP($AO85,Data!$A$6:$A$1806,Data!$J$6:$J$1806) -> -103 | AY85: =LOOKUP($AO85,Data!$A$6:$A$1806,Data!$K$6:$K$1806) -> 7561.38 | AZ85: 95.99914551 | BA85: T+12 sec | BB85: 40098.10245 | BC85: =AVERAGE($AP$85:$AP$91) -> 59.87957219 | BD85: =AVERAGE($AQ$85:$AQ$91) -> 3758.963588 | BE85: =AVERAGE($AR$85:$AR$91) -> 335 | BF85: =AVERAGE($AS$85:$AS$91) -> -206.4591064 | BG85: =AVERAGE($AT$85:$AT$91) -> 1 | BH85: =AVERAGE($AU$85:$AU$91) -> 93.5 | BI85: =AVERAGE($AV$85:$AV$91) -> 10 | BJ85: =AVERAGE($AW$85:$AW$91) -> 0 | BK85: =AVERAGE($AX$85:$AX$91) -> -103 | BL85: =AVERAGE($AY$85:$AY$91) -> 7561.71 | BM85: =AVERAGE($AZ$85:$AZ$91) -> 96.34225028 | BN85: =BG$7+BG$14 -> 3727.154235 | BO85: T+12 sec | BP85: 40098.10245 | CC85: T+12 sec | CD85: 40098.10245 | CQ85: T+12 sec | CR85: 40098.10245 | DE85: T+12 sec | DF85: 40098.10245
A86: T+14 sec | B86: 40098.10248 | C86: =LOOKUP(B86,Data!$A$6:$A$1806,Data!B$6:B$1806) -> 59.88000107 | D86: =LOOKUP(B86,Data!$A$6:$A$1806,Data!C$6:C$1806) -> 3737.156738 | H86: 95.99914551 | I86: 96.47552497 | L86: 0.5803577926 | M86: 3778.850183 | N86: =AVERAGE(D$79:D86) -> 3700.324982 | O86: =AVERAGE(M$79:M86) -> 3758.017198 | P86: 3681.679538 | Q86: =AVERAGE(P$79:P86) -> 3679.938464 | R86: 633 | Y86: 0 | Z86: 633 | AA86: -392.5601826 | AC86: T+14 sec | AD86: =AVERAGE($C$85:$C$91) -> 59.87957219 | AE86: =AVERAGE($AA$85:$AA$91) -> -391.8343575 | AN86: T+14 sec | AO86: 40098.10248 | AP86: =LOOKUP($AO86,Data!$A$6:$A$1806,Data!$B$6:$B$1806) -> 59.88000107 | AQ86: =LOOKUP($AO86,Data!$A$6:$A$1806,Data!$C$6:$C$1806) -> 3737.156738 | AR86: =LOOKUP($AO86,Data!$A$6:$A$1806,Data!$D$6:$D$1806) -> 335 | AS86: =IF($AS$1="+",LOOKUP($AO86,Data!$A$6:$A$1806,Data!$E$6:$E$1806)*-1,LOOKUP($AO86,Data!$A$6:$A$1806,Data!$E$6:$E$1806)) -> -206.4591064 | AT86: =LOOKUP($AO86,Data!$A$6:$A$1806,Data!$F$6:$F$1806) -> 1 | AU86: =LOOKUP($AO86,Data!$A$6:$A$1806,Data!$G$6:$G$1806) -> 93 | AV86: =LOOKUP($AO86,Data!$A$6:$A$1806,Data!$H$6:$H$1806) -> 10 | AW86: =LOOKUP($AO86,Data!$A$6:$A$1806,Data!$I$6:$I$1806) -> 0 | AX86: =LOOKUP($AO86,Data!$A$6:$A$1806,Data!$J$6:$J$1806) -> -103 | AY86: =LOOKUP($AO86,Data!$A$6:$A$1806,Data!$K$6:$K$1806) -> 7561.38 | AZ86: 95.99914551 | BA86: T+14 sec | BB86: 40098.10248 | BC86: =AVERAGE($AP$85:$AP$91) -> 59.87957219 | BD86: =AVERAGE($AQ$85:$AQ$91) -> 3758.963588 | BE86: =AVERAGE($AR$85:$AR$91) -> 335 | BF86: =AVERAGE($AS$85:$AS$91) -> -206.4591064 | BG86: =AVERAGE($AT$85:$AT$91) -> 1 | BH86: =AVERAGE($AU$85:$AU$91) -> 93.5 | BI86: =AVERAGE($AV$85:$AV$91) -> 10 | BJ86: =AVERAGE($AW$85:$AW$91) -> 0 | BK86: =AVERAGE($AX$85:$AX$91) -> -103 | BL86: =AVERAGE($AY$85:$AY$91) -> 7561.71 | BM86: =AVERAGE($AZ$85:$AZ$91) -> 96.34225028 | BN86: =BG$7+BG$14 -> 3727.154235 | BO86: T+14 sec | BP86: 40098.10248 | CC86: T+14 sec | CD86: 40098.10248 | CQ86: T+14 sec | CR86: 40098.10248 | DE86: T+14 sec | DF86: 40098.10248
A87: T+16 sec | B87: 40098.1025 | C87: =LOOKUP(B87,Data!$A$6:$A$1806,Data!B$6:B$1806) -> 59.875 | D87: =LOOKUP(B87,Data!$A$6:$A$1806,Data!C$6:C$1806) -> 3766.193848 | H87: 100 | I87: 97.70909123 | L87: 0.5803577926 | M87: 3780.664107 | N87: =AVERAGE(D$79:D87) -> 3707.643745 | O87: =AVERAGE(M$79:M87) -> 3760.533521 | P87: 3682.259895 | Q87: =AVERAGE(P$79:P87) -> 3680.228643 | R87: 633 | Y87: 0 | Z87: 633 | AA87: -380.7513555 | AC87: T+16 sec | AD87: 59.87957219 | AE87: -391.8343575 | AN87: T+16 sec | AO87: 40098.1025 | AP87: =LOOKUP($AO87,Data!$A$6:$A$1806,Data!$B$6:$B$1806) -> 59.875 | AQ87: =LOOKUP($AO87,Data!$A$6:$A$1806,Data!$C$6:$C$1806) -> 3766.193848 | AR87: =LOOKUP($AO87,Data!$A$6:$A$1806,Data!$D$6:$D$1806) -> 335 | AS87: =IF($AS$1="+",LOOKUP($AO87,Data!$A$6:$A$1806,Data!$E$6:$E$1806)*-1,LOOKUP($AO87,Data!$A$6:$A$1806,Data!$E$6:$E$1806)) -> -206.4591064 | AT87: =LOOKUP($AO87,Data!$A$6:$A$1806,Data!$F$6:$F$1806) -> 1 | AU87: =LOOKUP($AO87,Data!$A$6:$A$1806,Data!$G$6:$G$1806) -> 93.5 | AV87: =LOOKUP($AO87,Data!$A$6:$A$1806,Data!$H$6:$H$1806) -> 10 | AW87: =LOOKUP($AO87,Data!$A$6:$A$1806,Data!$I$6:$I$1806) -> 0 | AX87: =LOOKUP($AO87,Data!$A$6:$A$1806,Data!$J$6:$J$1806) -> -103 | AY87: =LOOKUP($AO87,Data!$A$6:$A$1806,Data!$K$6:$K$1806) -> 7561.71 | AZ87: 100 | BA87: T+16 sec | BB87: 40098.1025 | BC87: 59.87957219 | BD87: 3758.963588 | BE87: 335 | BF87: -206.4591064 | BG87: 1 | BH87: 93.5 | BI87: 10 | BJ87: 0 | BK87: -103 | BL87: 7561.71 | BM87: 96.34225028 | BN87: 3727.154235 | BO87: T+16 sec | BP87: 40098.1025 | CC87: T+16 sec | CD87: 40098.1025 | CQ87: T+16 sec | CR87: 40098.1025 | DE87: T+16 sec | DF87: 40098.1025
A88: T+18 sec | B88: 40098.10252 | C88: =LOOKUP(B88,Data!$A$6:$A$1806,Data!B$6:B$1806) -> 59.875 | D88: =LOOKUP(B88,Data!$A$6:$A$1806,Data!C$6:C$1806) -> 3766.193848 | H88: 100 | I88: 98.5109093 | L88: 0.5803577926 | M88: 3782.046283 | N88: =AVERAGE(D$79:D88) -> 3713.498755 | O88: =AVERAGE(M$79:M88) -> 3762.684797 | P88: 3682.840253 | Q88: =AVERAGE(P$79:P88) -> 3680.518822 | R88: 633 | Y88: 0 | Z88: 633 | AA88: -380.7513555 | AC88: T+18 sec | AD88: 59.87957219 | AE88: -391.8343575 | AF88: =AVERAGE($C$88:$C$94) -> 59.88328661 | AG88: =AVERAGE($AA$88:$AA$94) -> -401.1562215 | AJ88: =AVERAGE($C$88:$C$105) -> 59.88755586 | AK88: =AVERAGE($AA$88:$AA$105) -> -412.3888737 | AN88: T+18 sec | AO88: 40098.10252 | AP88: =LOOKUP($AO88,Data!$A$6:$A$1806,Data!$B$6:$B$1806) -> 59.875 | AQ88: =LOOKUP($AO88,Data!$A$6:$A$1806,Data!$C$6:$C$1806) -> 3766.193848 | AR88: =LOOKUP($AO88,Data!$A$6:$A$1806,Data!$D$6:$D$1806) -> 335 | AS88: =IF($AS$1="+",LOOKUP($AO88,Data!$A$6:$A$1806,Data!$E$6:$E$1806)*-1,LOOKUP($AO88,Data!$A$6:$A$1806,Data!$E$6:$E$1806)) -> -206.4591064 | AT88: =LOOKUP($AO88,Data!$A$6:$A$1806,Data!$F$6:$F$1806) -> 1 | AU88: =LOOKUP($AO88,Data!$A$6:$A$1806,Data!$G$6:$G$1806) -> 93.5 | AV88: =LOOKUP($AO88,Data!$A$6:$A$1806,Data!$H$6:$H$1806) -> 10 | AW88: =LOOKUP($AO88,Data!$A$6:$A$1806,Data!$I$6:$I$1806) -> 0 | AX88: =LOOKUP($AO88,Data!$A$6:$A$1806,Data!$J$6:$J$1806) -> -103 | AY88: =LOOKUP($AO88,Data!$A$6:$A$1806,Data!$K$6:$K$1806) -> 7561.71 | AZ88: 100 | BA88: T+18 sec | BB88: 40098.10252 | BC88: 59.87957219 | BD88: 3758.963588 | BE88: 335 | BF88: -206.4591064 | BG88: 1 | BH88: 93.5 | BI88: 10 | BJ88: 0 | BK88: -103 | BL88: 7561.71 | BM88: 96.34225028 | BN88: 3727.154235 | BO88: T+18 sec | BP88: 40098.10252 | BQ88: =AVERAGE($AP$88:$AP$94) -> 59.88328661 | BR88: =AVERAGE($AQ$88:$AQ$94) -> 3774.248047 | BS88: =AVERAGE($AR$88:$AR$94) -> 335 | BT88: =AVERAGE($AS$88:$AS$94) -> -208.5149362 | BU88: =AVERAGE($AT$88:$AT$94) -> 1 | BV88: =AVERAGE($AU$88:$AU$94) -> 94.07142857 | BW88: =AVERAGE($AV$88:$AV$94) -> 10 | BX88: =AVERAGE($AW$88:$AW$94) -> 0 | BY88: =AVERAGE($AX$88:$AX$94) -> -103 | BZ88: =AVERAGE($AY$88:$AY$94) -> 7562.087143 | CA88: =AVERAGE($AZ$88:$AZ$94) -> 93.3707101 | CB88: =BU$7+BU$14 -> 3722.326851 | CC88: T+18 sec | CD88: 40098.10252 | CQ88: T+18 sec | CR88: 40098.10252 | CS88: =AVERAGE($AP$88:$AP$105) -> 59.88755586 | CT88: =AVERAGE($AQ$88:$AQ$105) -> 3784.148492 | CU88: =AVERAGE($AR$88:$AR$105) -> 335 | CV88: =AVERAGE($AS$88:$AS$105) -> -210.3617596 | CW88: =AVERAGE($AT$88:$AT$105) -> 2.111111111 | CX88: =AVERAGE($AU$88:$AU$105) -> 95.19444444 | CY88: =AVERAGE($AV$88:$AV$105) -> 10 | CZ88: =AVERAGE($AW$88:$AW$105) -> 0 | DA88: =AVERAGE($AX$88:$AX$105) -> -103 | DB88: =AVERAGE($AY$88:$AY$105) -> 7562.828333 | DC88: =AVERAGE($AZ$88:$AZ$105) -> 89.9553087 | DD88: =CW$7+CW$14 -> 3718.871828 | DE88: T+18 sec | DF88: 40098.10252
A89: T+20 sec | B89: 40098.10255 | C89: =LOOKUP(B89,Data!$A$6:$A$1806,Data!B$6:B$1806) -> 59.875 | D89: =LOOKUP(B89,Data!$A$6:$A$1806,Data!C$6:C$1806) -> 3766.193848 | E89: =AVERAGE($C$89:$C$105) -> 59.88829444 | F89: =AVERAGE($D$89:$D$105) -> 3785.204647 | H89: 100 | I89: 99.03209104 | K89: =G$19+G$7 -> 3758.755087 | L89: 0.5803577926 | M89: 3783.147823 | N89: =AVERAGE(D$79:D89) -> 3718.289218 | O89: =AVERAGE(M$79:M89) -> 3764.545072 | P89: 3683.420611 | Q89: =AVERAGE(P$79:P89) -> 3680.809001 | R89: 633 | Y89: 0 | Z89: 633 | AA89: -380.7513555 | AB89: =AVERAGE(AA$89:AA$105) -> -414.2499042 | AC89: T+20 sec | AD89: 59.87957219 | AE89: -391.8343575 | AF89: =AVERAGE($C$88:$C$94) -> 59.88328661 | AG89: =AVERAGE($AA$88:$AA$94) -> -401.1562215 | AH89: =AVERAGE($E$89:$E$99) -> 59.88829444 | AI89: =AVERAGE($AA$89:$AA$99) -> -415.8127633 | AJ89: =AVERAGE($C$88:$C$105) -> 59.88755586 | AK89: =AVERAGE($AA$88:$AA$105) -> -412.3888737 | AL89: =AVERAGE($C$89:$C$105) -> 59.88829444 | AM89: =AVERAGE($AA$89:$AA$105) -> -414.2499042 | AN89: T+20 sec | AO89: 40098.10255 | AP89: =LOOKUP($AO89,Data!$A$6:$A$1806,Data!$B$6:$B$1806) -> 59.875 | AQ89: =LOOKUP($AO89,Data!$A$6:$A$1806,Data!$C$6:$C$1806) -> 3766.193848 | AR89: =LOOKUP($AO89,Data!$A$6:$A$1806,Data!$D$6:$D$1806) -> 335 | AS89: =IF($AS$1="+",LOOKUP($AO89,Data!$A$6:$A$1806,Data!$E$6:$E$1806)*-1,LOOKUP($AO89,Data!$A$6:$A$1806,Data!$E$6:$E$1806)) -> -206.4591064 | AT89: =LOOKUP($AO89,Data!$A$6:$A$1806,Data!$F$6:$F$1806) -> 1 | AU89: =LOOKUP($AO89,Data!$A$6:$A$1806,Data!$G$6:$G$1806) -> 93.5 | AV89: =LOOKUP($AO89,Data!$A$6:$A$1806,Data!$H$6:$H$1806) -> 10 | AW89: =LOOKUP($AO89,Data!$A$6:$A$1806,Data!$I$6:$I$1806) -> 0 | AX89: =LOOKUP($AO89,Data!$A$6:$A$1806,Data!$J$6:$J$1806) -> -103 | AY89: =LOOKUP($AO89,Data!$A$6:$A$1806,Data!$K$6:$K$1806) -> 7561.71 | AZ89: 100 | BA89: T+20 sec | BB89: 40098.10255 | BC89: 59.87957219 | BD89: 3758.963588 | BE89: 335 | BF89: -206.4591064 | BG89: 1 | BH89: 93.5 | BI89: 10 | BJ89: 0 | BK89: -103 | BL89: 7561.71 | BM89: 96.34225028 | BN89: 3727.154235 | BO89: T+20 sec | BP89: 40098.10255 | BQ89: =AVERAGE($AP$88:$AP$94) -> 59.88328661 | BR89: =AVERAGE($AQ$88:$AQ$94) -> 3774.248047 | BS89: =AVERAGE($AR$88:$AR$94) -> 335 | BT89: =AVERAGE($AS$88:$AS$94) -> -208.5149362 | BU89: =AVERAGE($AT$88:$AT$94) -> 1 | BV89: =AVERAGE($AU$88:$AU$94) -> 94.07142857 | BW89: =AVERAGE($AV$88:$AV$94) -> 10 | BX89: =AVERAGE($AW$88:$AW$94) -> 0 | BY89: =AVERAGE($AX$88:$AX$94) -> -103 | BZ89: =AVERAGE($AY$88:$AY$94) -> 7562.087143 | CA89: =AVERAGE($AZ$88:$AZ$94) -> 93.3707101 | CB89: =BU$7+BU$14 -> 3722.326851 | CC89: T+20 sec | CD89: 40098.10255 | CE89: =AVERAGE($AP$89:$AP$99) -> 59.88881926 | CF89: =AVERAGE($AQ$89:$AQ$99) -> 3780.725897 | CG89: =AVERAGE($AR$89:$AR$99) -> 335 | CH89: =AVERAGE($AS$89:$AS$99) -> -209.9477872 | CI89: =AVERAGE($AT$89:$AT$99) -> 1.272727273 | CJ89: =AVERAGE($AU$89:$AU$99) -> 94.68181818 | CK89: =AVERAGE($AV$89:$AV$99) -> 10 | CL89: =AVERAGE($AW$89:$AW$99) -> 0 | CM89: =AVERAGE($AX$89:$AX$99) -> -103 | CN89: =AVERAGE($AY$89:$AY$99) -> 7562.49 | CO89: =AVERAGE($AZ$89:$AZ$99) -> 88.94459118 | CP89: =CI$7+CI$14 -> 3716.797733 | CQ89: T+20 sec | CR89: 40098.10255 | CS89: =AVERAGE($AP$88:$AP$105) -> 59.88755586 | CT89: =AVERAGE($AQ$88:$AQ$105) -> 3784.148492 | CU89: =AVERAGE($AR$88:$AR$105) -> 335 | CV89: =AVERAGE($AS$88:$AS$105) -> -210.3617596 | CW89: =AVERAGE($AT$88:$AT$105) -> 2.111111111 | CX89: =AVERAGE($AU$88:$AU$105) -> 95.19444444 | CY89: =AVERAGE($AV$88:$AV$105) -> 10 | CZ89: =AVERAGE($AW$88:$AW$105) -> 0 | DA89: =AVERAGE($AX$88:$AX$105) -> -103 | DB89: =AVERAGE($AY$88:$AY$105) -> 7562.828333 | DC89: =AVERAGE($AZ$88:$AZ$105) -> 89.9553087 | DD89: =CW$7+CW$14 -> 3718.871828 | DE89: T+20 sec | DF89: 40098.10255 | DG89: =AVERAGE($AP$89:$AP$105) -> 59.88829444 | DH89: =AVERAGE($AQ$89:$AQ$105) -> 3785.204647 | DI89: =AVERAGE($AR$89:$AR$105) -> 335 | DJ89: =AVERAGE($AS$89:$AS$105) -> -210.5913274 | DK89: =AVERAGE($AT$89:$AT$105) -> 2.176470588 | DL89: =AVERAGE($AU$89:$AU$105) -> 95.29411765 | DM89: =AVERAGE($AV$89:$AV$105) -> 10 | DN89: =AVERAGE($AW$89:$AW$105) -> 0 | DO89: =AVERAGE($AX$89:$AX$105) -> -103 | DP89: =AVERAGE($AY$89:$AY$105) -> 7562.894118 | DQ89: =AVERAGE($AZ$89:$AZ$105) -> 89.36444451 | DR89: =DK$7+DK$14 -> 3718.14257
A90: T+22 sec | B90: 40098.10257 | C90: =LOOKUP(B90,Data!$A$6:$A$1806,Data!B$6:B$1806) -> 59.88600159 | D90: =LOOKUP(B90,Data!$A$6:$A$1806,Data!C$6:C$1806) -> 3769.925049 | E90: =AVERAGE($C$89:$C$105) -> 59.88829444 | F90: =AVERAGE($D$89:$D$105) -> 3785.204647 | H90: 91.19873047 | I90: 96.29041484 | K90: =G$19+G$7 -> 3758.755087 | L90: 0.5803577926 | M90: 3780.986504 | N90: =AVERAGE(D$79:D90) -> 3722.592204 | O90: =AVERAGE(M$79:M90) -> 3765.915192 | P90: 3684.000969 | Q90: =AVERAGE(P$79:P90) -> 3681.09918 | R90: 633 | Y90: 0 | Z90: 633 | AA90: -407.7330352 | AB90: =AVERAGE(AA$89:AA$105) -> -414.2499042 | AC90: T+22 sec | AD90: 59.87957219 | AE90: -391.8343575 | AF90: =AVERAGE($C$88:$C$94) -> 59.88328661 | AG90: -401.1562215 | AH90: =AVERAGE($E$89:$E$99) -> 59.88829444 | AI90: =AVERAGE($AA$89:$AA$99) -> -415.8127633 | AJ90: 59.88755586 | AK90: -412.3888737 | AL90: =AVERAGE($C$89:$C$105) -> 59.88829444 | AM90: =AVERAGE($AA$89:$AA$105) -> -414.2499042 | AN90: T+22 sec | AO90: 40098.10257 | AP90: =LOOKUP($AO90,Data!$A$6:$A$1806,Data!$B$6:$B$1806) -> 59.88600159 | AQ90: =LOOKUP($AO90,Data!$A$6:$A$1806,Data!$C$6:$C$1806) -> 3769.925049 | AR90: =LOOKUP($AO90,Data!$A$6:$A$1806,Data!$D$6:$D$1806) -> 335 | AS90: =IF($AS$1="+",LOOKUP($AO90,Data!$A$6:$A$1806,Data!$E$6:$E$1806)*-1,LOOKUP($AO90,Data!$A$6:$A$1806,Data!$E$6:$E$1806)) -> -206.4591064 | AT90: =LOOKUP($AO90,Data!$A$6:$A$1806,Data!$F$6:$F$1806) -> 1 | AU90: =LOOKUP($AO90,Data!$A$6:$A$1806,Data!$G$6:$G$1806) -> 94 | AV90: =LOOKUP($AO90,Data!$A$6:$A$1806,Data!$H$6:$H$1806) -> 10 | AW90: =LOOKUP($AO90,Data!$A$6:$A$1806,Data!$I$6:$I$1806) -> 0 | AX90: =LOOKUP($AO90,Data!$A$6:$A$1806,Data!$J$6:$J$1806) -> -103 | AY90: =LOOKUP($AO90,Data!$A$6:$A$1806,Data!$K$6:$K$1806) -> 7562.04 | AZ90: 91.19873047 | BA90: T+22 sec | BB90: 40098.10257 | BC90: 59.87957219 | BD90: 3758.963588 | BE90: 335 | BF90: -206.4591064 | BG90: 1 | BH90: 93.5 | BI90: 10 | BJ90: 0 | BK90: -103 | BL90: 7561.71 | BM90: 96.34225028 | BN90: 3727.154235 | BO90: T+22 sec | BP90: 40098.10257 | BQ90: 59.88328661 | BR90: 3774.248047 | BS90: 335 | BT90: -208.5149362 | BU90: 1 | BV90: 94.07142857 | BW90: 10 | BX90: 0 | BY90: -103 | BZ90: 7562.087143 | CA90: 93.3707101 | CB90: 3722.326851 | CC90: T+22 sec | CD90: 40098.10257 | CE90: =AVERAGE($AP$89:$AP$99) -> 59.88881926 | CF90: =AVERAGE($AQ$89:$AQ$99) -> 3780.725897 | CG90: =AVERAGE($AR$89:$AR$99) -> 335 | CH90: =AVERAGE($AS$89:$AS$99) -> -209.9477872 | CI90: =AVERAGE($AT$89:$AT$99) -> 1.272727273 | CJ90: =AVERAGE($AU$89:$AU$99) -> 94.68181818 | CK90: =AVERAGE($AV$89:$AV$99) -> 10 | CL90: =AVERAGE($AW$89:$AW$99) -> 0 | CM90: =AVERAGE($AX$89:$AX$99) -> -103 | CN90: =AVERAGE($AY$89:$AY$99) -> 7562.49 | CO90: =AVERAGE($AZ$89:$AZ$99) -> 88.94459118 | CP90: =CI$7+CI$14 -> 3716.797733 | CQ90: T+22 sec | CR90: 40098.10257 | CS90: 59.88755586 | CT90: 3784.148492 | CU90: 335 | CV90: -210.3617596 | CW90: 2.111111111 | CX90: 95.19444444 | CY90: 10 | CZ90: 0 | DA90: -103 | DB90: 7562.828333 | DC90: 89.9553087 | DD90: 3718.871828 | DE90: T+22 sec | DF90: 40098.10257 | DG90: =AVERAGE($AP$89:$AP$105) -> 59.88829444 | DH90: =AVERAGE($AQ$89:$AQ$105) -> 3785.204647 | DI90: =AVERAGE($AR$89:$AR$105) -> 335 | DJ90: =AVERAGE($AS$89:$AS$105) -> -210.5913274 | DK90: =AVERAGE($AT$89:$AT$105) -> 2.176470588 | DL90: =AVERAGE($AU$89:$AU$105) -> 95.29411765 | DM90: =AVERAGE($AV$89:$AV$105) -> 10 | DN90: =AVERAGE($AW$89:$AW$105) -> 0 | DO90: =AVERAGE($AX$89:$AX$105) -> -103 | DP90: =AVERAGE($AY$89:$AY$105) -> 7562.894118 | DQ90: =AVERAGE($AZ$89:$AZ$105) -> 89.36444451 | DR90: =DK$7+DK$14 -> 3718.14257
A91: T+24 sec | B91: 40098.10259 | C91: =LOOKUP(B91,Data!$A$6:$A$1806,Data!B$6:B$1806) -> 59.88600159 | D91: =LOOKUP(B91,Data!$A$6:$A$1806,Data!C$6:C$1806) -> 3769.925049 | E91: 59.88829444 | F91: 3785.204647 | H91: 91.19873047 | I91: 94.50832531 | K91: 3758.755087 | L91: 0.5803577926 | M91: 3779.784772 | N91: =AVERAGE(D$79:D91) -> 3726.233192 | O91: =AVERAGE(M$79:M91) -> 3766.982082 | P91: 3684.581327 | Q91: =AVERAGE(P$79:P91) -> 3681.389359 | R91: 633 | Y91: 0 | Z91: 633 | AA91: -407.7330352 | AB91: -414.2499042 | AC91: T+24 sec | AD91: 59.87957219 | AE91: -391.8343575 | AF91: 59.88328661 | AG91: -401.1562215 | AH91: 59.88829444 | AI91: -415.8127633 | AJ91: 59.88755586 | AK91: -412.3888737 | AL91: 59.88829444 | AM91: -414.2499042 | AN91: T+24 sec | AO91: 40098.10259 | AP91: =LOOKUP($AO91,Data!$A$6:$A$1806,Data!$B$6:$B$1806) -> 59.88600159 | AQ91: =LOOKUP($AO91,Data!$A$6:$A$1806,Data!$C$6:$C$1806) -> 3769.925049 | AR91: =LOOKUP($AO91,Data!$A$6:$A$1806,Data!$D$6:$D$1806) -> 335 | AS91: =IF($AS$1="+",LOOKUP($AO91,Data!$A$6:$A$1806,Data!$E$6:$E$1806)*-1,LOOKUP($AO91,Data!$A$6:$A$1806,Data!$E$6:$E$1806)) -> -206.4591064 | AT91: =LOOKUP($AO91,Data!$A$6:$A$1806,Data!$F$6:$F$1806) -> 1 | AU91: =LOOKUP($AO91,Data!$A$6:$A$1806,Data!$G$6:$G$1806) -> 94 | AV91: =LOOKUP($AO91,Data!$A$6:$A$1806,Data!$H$6:$H$1806) -> 10 | AW91: =LOOKUP($AO91,Data!$A$6:$A$1806,Data!$I$6:$I$1806) -> 0 | AX91: =LOOKUP($AO91,Data!$A$6:$A$1806,Data!$J$6:$J$1806) -> -103 | AY91: =LOOKUP($AO91,Data!$A$6:$A$1806,Data!$K$6:$K$1806) -> 7562.04 | AZ91: 91.19873047 | BA91: T+24 sec | BB91: 40098.10259 | BC91: 59.87957219 | BD91: 3758.963588 | BE91: 335 | BF91: -206.4591064 | BG91: 1 | BH91: 93.5 | BI91: 10 | BJ91: 0 | BK91: -103 | BL91: 7561.71 | BM91: 96.34225028 | BN91: 3727.154235 | BO91: T+24 sec | BP91: 40098.10259 | BQ91: 59.88328661 | BR91: 3774.248047 | BS91: 335 | BT91: -208.5149362 | BU91: 1 | BV91: 94.07142857 | BW91: 10 | BX91: 0 | BY91: -103 | BZ91: 7562.087143 | CA91: 93.3707101 | CB91: 3722.326851 | CC91: T+24 sec | CD91: 40098.10259 | CE91: 59.88881926 | CF91: 3780.725897 | CG91: 335 | CH91: -209.9477872 | CI91: 1.272727273 | CJ91: 94.68181818 | CK91: 10 | CL91: 0 | CM91: -103 | CN91: 7562.49 | CO91: 88.94459118 | CP91: 3716.797733 | CQ91: T+24 sec | CR91: 40098.10259 | CS91: 59.88755586 | CT91: 3784.148492 | CU91: 335 | CV91: -210.3617596 | CW91: 2.111111111 | CX91: 95.19444444 | CY91: 10 | CZ91: 0 | DA91: -103 | DB91: 7562.828333 | DC91: 89.9553087 | DD91: 3718.871828 | DE91: T+24 sec | DF91: 40098.10259 | DG91: 59.88829444 | DH91: 3785.204647 | DI91: 335 | DJ91: -210.5913274 | DK91: 2.176470588 | DL91: 95.29411765 | DM91: 10 | DN91: 0 | DO91: -103 | DP91: 7562.894118 | DQ91: 89.36444451 | DR91: 3718.14257
A92: T+26 sec | B92: 40098.10262 | C92: =LOOKUP(B92,Data!$A$6:$A$1806,Data!B$6:B$1806) -> 59.88700104 | D92: =LOOKUP(B92,Data!$A$6:$A$1806,Data!C$6:C$1806) -> 3782.499512 | E92: 59.88829444 | F92: 3785.204647 | H92: 90.39916992 | I92: 93.07012093 | K92: 3758.755087 | L92: 0.5803577926 | M92: 3778.926926 | N92: =AVERAGE(D$79:D92) -> 3730.252215 | O92: =AVERAGE(M$79:M92) -> 3767.835286 | P92: 3685.161684 | Q92: =AVERAGE(P$79:P92) -> 3681.679538 | R92: 633 | Y92: 0 | Z92: 633 | AA92: -410.374923 | AB92: -414.2499042 | AC92: T+26 sec | AF92: 59.88328661 | AG92: -401.1562215 | AH92: 59.88829444 | AI92: -415.8127633 | AJ92: 59.88755586 | AK92: -412.3888737 | AL92: 59.88829444 | AM92: -414.2499042 | AN92: T+26 sec | AO92: 40098.10262 | AP92: =LOOKUP($AO92,Data!$A$6:$A$1806,Data!$B$6:$B$1806) -> 59.88700104 | AQ92: =LOOKUP($AO92,Data!$A$6:$A$1806,Data!$C$6:$C$1806) -> 3782.499512 | AR92: =LOOKUP($AO92,Data!$A$6:$A$1806,Data!$D$6:$D$1806) -> 335 | AS92: =IF($AS$1="+",LOOKUP($AO92,Data!$A$6:$A$1806,Data!$E$6:$E$1806)*-1,LOOKUP($AO92,Data!$A$6:$A$1806,Data!$E$6:$E$1806)) -> -211.2560425 | AT92: =LOOKUP($AO92,Data!$A$6:$A$1806,Data!$F$6:$F$1806) -> 1 | AU92: =LOOKUP($AO92,Data!$A$6:$A$1806,Data!$G$6:$G$1806) -> 94.5 | AV92: =LOOKUP($AO92,Data!$A$6:$A$1806,Data!$H$6:$H$1806) -> 10 | AW92: =LOOKUP($AO92,Data!$A$6:$A$1806,Data!$I$6:$I$1806) -> 0 | AX92: =LOOKUP($AO92,Data!$A$6:$A$1806,Data!$J$6:$J$1806) -> -103 | AY92: =LOOKUP($AO92,Data!$A$6:$A$1806,Data!$K$6:$K$1806) -> 7562.37 | AZ92: 90.39916992 | BA92: T+26 sec | BB92: 40098.10262 | BO92: T+26 sec | BP92: 40098.10262 | BQ92: 59.88328661 | BR92: 3774.248047 | BS92: 335 | BT92: -208.5149362 | BU92: 1 | BV92: 94.07142857 | BW92: 10 | BX92: 0 | BY92: -103 | BZ92: 7562.087143 | CA92: 93.3707101 | CB92: 3722.326851 | CC92: T+26 sec | CD92: 40098.10262 | CE92: 59.88881926 | CF92: 3780.725897 | CG92: 335 | CH92: -209.9477872 | CI92: 1.272727273 | CJ92: 94.68181818 | CK92: 10 | CL92: 0 | CM92: -103 | CN92: 7562.49 | CO92: 88.94459118 | CP92: 3716.797733 | CQ92: T+26 sec | CR92: 40098.10262 | CS92: 59.88755586 | CT92: 3784.148492 | CU92: 335 | CV92: -210.3617596 | CW92: 2.111111111 | CX92: 95.19444444 | CY92: 10 | CZ92: 0 | DA92: -103 | DB92: 7562.828333 | DC92: 89.9553087 | DD92: 3718.871828 | DE92: T+26 sec | DF92: 40098.10262 | DG92: 59.88829444 | DH92: 3785.204647 | DI92: 335 | DJ92: -210.5913274 | DK92: 2.176470588 | DL92: 95.29411765 | DM92: 10 | DN92: 0 | DO92: -103 | DP92: 7562.894118 | DQ92: 89.36444451 | DR92: 3718.14257
A93: T+28 sec | B93: 40098.10264 | C93: =LOOKUP(B93,Data!$A$6:$A$1806,Data!B$6:B$1806) -> 59.88700104 | D93: =LOOKUP(B93,Data!$A$6:$A$1806,Data!C$6:C$1806) -> 3782.499512 | E93: 59.88829444 | F93: 3785.204647 | H93: 90.39916992 | I93: 92.13528807 | K93: 3758.755087 | L93: 0.5803577926 | M93: 3778.572451 | N93: =AVERAGE(D$79:D93) -> 3733.735368 | O93: =AVERAGE(M$79:M93) -> 3768.551097 | P93: 3685.742042 | Q93: =AVERAGE(P$79:P93) -> 3681.969717 | R93: 633 | Y93: 0 | Z93: 633 | AA93: -410.374923 | AB93: -414.2499042 | AC93: T+28 sec | AF93: 59.88328661 | AG93: -401.1562215 | AH93: 59.88829444 | AI93: -415.8127633 | AJ93: 59.88755586 | AK93: -412.3888737 | AL93: 59.88829444 | AM93: -414.2499042 | AN93: T+28 sec | AO93: 40098.10264 | AP93: =LOOKUP($AO93,Data!$A$6:$A$1806,Data!$B$6:$B$1806) -> 59.88700104 | AQ93: =LOOKUP($AO93,Data!$A$6:$A$1806,Data!$C$6:$C$1806) -> 3782.499512 | AR93: =LOOKUP($AO93,Data!$A$6:$A$1806,Data!$D$6:$D$1806) -> 335 | AS93: =IF($AS$1="+",LOOKUP($AO93,Data!$A$6:$A$1806,Data!$E$6:$E$1806)*-1,LOOKUP($AO93,Data!$A$6:$A$1806,Data!$E$6:$E$1806)) -> -211.2560425 | AT93: =LOOKUP($AO93,Data!$A$6:$A$1806,Data!$F$6:$F$1806) -> 1 | AU93: =LOOKUP($AO93,Data!$A$6:$A$1806,Data!$G$6:$G$1806) -> 94.5 | AV93: =LOOKUP($AO93,Data!$A$6:$A$1806,Data!$H$6:$H$1806) -> 10 | AW93: =LOOKUP($AO93,Data!$A$6:$A$1806,Data!$I$6:$I$1806) -> 0 | AX93: =LOOKUP($AO93,Data!$A$6:$A$1806,Data!$J$6:$J$1806) -> -103 | AY93: =LOOKUP($AO93,Data!$A$6:$A$1806,Data!$K$6:$K$1806) -> 7562.37 | AZ93: 90.39916992 | BA93: T+28 sec | BB93: 40098.10264 | BO93: T+28 sec | BP93: 40098.10264 | BQ93: 59.88328661 | BR93: 3774.248047 | BS93: 335 | BT93: -208.5149362 | BU93: 1 | BV93: 94.07142857 | BW93: 10 | BX93: 0 | BY93: -103 | BZ93: 7562.087143 | CA93: 93.3707101 | CB93: 3722.326851 | CC93: T+28 sec | CD93: 40098.10264 | CE93: 59.88881926 | CF93: 3780.725897 | CG93: 335 | CH93: -209.9477872 | CI93: 1.272727273 | CJ93: 94.68181818 | CK93: 10 | CL93: 0 | CM93: -103 | CN93: 7562.49 | CO93: 88.94459118 | CP93: 3716.797733 | CQ93: T+28 sec | CR93: 40098.10264 | CS93: 59.88755586 | CT93: 3784.148492 | CU93: 335 | CV93: -210.3617596 | CW93: 2.111111111 | CX93: 95.19444444 | CY93: 10 | CZ93: 0 | DA93: -103 | DB93: 7562.828333 | DC93: 89.9553087 | DD93: 3718.871828 | DE93: T+28 sec | DF93: 40098.10264 | DG93: 59.88829444 | DH93: 3785.204647 | DI93: 335 | DJ93: -210.5913274 | DK93: 2.176470588 | DL93: 95.29411765 | DM93: 10 | DN93: 0 | DO93: -103 | DP93: 7562.894118 | DQ93: 89.36444451 | DR93: 3718.14257
A94: T+30 sec | B94: 40098.10266 | C94: =LOOKUP(B94,Data!$A$6:$A$1806,Data!B$6:B$1806) -> 59.88700104 | D94: =LOOKUP(B94,Data!$A$6:$A$1806,Data!C$6:C$1806) -> 3782.499512 | E94: 59.88829444 | F94: 3785.204647 | H94: 90.39916992 | I94: 91.52764672 | K94: 3758.755087 | L94: 0.5803577926 | M94: 3778.545167 | N94: =AVERAGE(D$79:D94) -> 3736.783127 | O94: =AVERAGE(M$79:M94) -> 3769.175726 | P94: 3686.3224 | Q94: =AVERAGE(P$79:P94) -> 3682.259895 | R94: 633 | Y94: 0 | Z94: 633 | AA94: -410.374923 | AB94: -414.2499042 | AC94: T+30 sec | AF94: 59.88328661 | AG94: -401.1562215 | AH94: 59.88829444 | AI94: -415.8127633 | AJ94: 59.88755586 | AK94: -412.3888737 | AL94: 59.88829444 | AM94: -414.2499042 | AN94: T+30 sec | AO94: 40098.10266 | AP94: =LOOKUP($AO94,Data!$A$6:$A$1806,Data!$B$6:$B$1806) -> 59.88700104 | AQ94: =LOOKUP($AO94,Data!$A$6:$A$1806,Data!$C$6:$C$1806) -> 3782.499512 | AR94: =LOOKUP($AO94,Data!$A$6:$A$1806,Data!$D$6:$D$1806) -> 335 | AS94: =IF($AS$1="+",LOOKUP($AO94,Data!$A$6:$A$1806,Data!$E$6:$E$1806)*-1,LOOKUP($AO94,Data!$A$6:$A$1806,Data!$E$6:$E$1806)) -> -211.2560425 | AT94: =LOOKUP($AO94,Data!$A$6:$A$1806,Data!$F$6:$F$1806) -> 1 | AU94: =LOOKUP($AO94,Data!$A$6:$A$1806,Data!$G$6:$G$1806) -> 94.5 | AV94: =LOOKUP($AO94,Data!$A$6:$A$1806,Data!$H$6:$H$1806) -> 10 | AW94: =LOOKUP($AO94,Data!$A$6:$A$1806,Data!$I$6:$I$1806) -> 0 | AX94: =LOOKUP($AO94,Data!$A$6:$A$1806,Data!$J$6:$J$1806) -> -103 | AY94: =LOOKUP($AO94,Data!$A$6:$A$1806,Data!$K$6:$K$1806) -> 7562.37 | AZ94: 90.39916992 | BA94: T+30 sec | BB94: 40098.10266 | BO94: T+30 sec | BP94: 40098.10266 | BQ94: 59.88328661 | BR94: 3774.248047 | BS94: 335 | BT94: -208.5149362 | BU94: 1 | BV94: 94.07142857 | BW94: 10 | BX94: 0 | BY94: -103 | BZ94: 7562.087143 | CA94: 93.3707101 | CB94: 3722.326851 | CC94: T+30 sec | CD94: 40098.10266 | CE94: 59.88881926 | CF94: 3780.725897 | CG94: 335 | CH94: -209.9477872 | CI94: 1.272727273 | CJ94: 94.68181818 | CK94: 10 | CL94: 0 | CM94: -103 | CN94: 7562.49 | CO94: 88.94459118 | CP94: 3716.797733 | CQ94: T+30 sec | CR94: 40098.10266 | CS94: 59.88755586 | CT94: 3784.148492 | CU94: 335 | CV94: -210.3617596 | CW94: 2.111111111 | CX94: 95.19444444 | CY94: 10 | CZ94: 0 | DA94: -103 | DB94: 7562.828333 | DC94: 89.9553087 | DD94: 3718.871828 | DE94: T+30 sec | DF94: 40098.10266 | DG94: 59.88829444 | DH94: 3785.204647 | DI94: 335 | DJ94: -210.5913274 | DK94: 2.176470588 | DL94: 95.29411765 | DM94: 10 | DN94: 0 | DO94: -103 | DP94: 7562.894118 | DQ94: 89.36444451 | DR94: 3718.14257
A95: T+32 sec | B95: 40098.10269 | C95: =LOOKUP(B95,Data!$A$6:$A$1806,Data!B$6:B$1806) -> 59.89500046 | D95: =LOOKUP(B95,Data!$A$6:$A$1806,Data!C$6:C$1806) -> 3784.729736 | E95: 59.88829444 | F95: 3785.204647 | H95: 83.99963379 | I95: 88.89284219 | K95: 3758.755087 | L95: 0.5803577926 | M95: 3776.490721 | N95: =AVERAGE(D$79:D95) -> 3739.603516 | O95: =AVERAGE(M$79:M95) -> 3769.60602 | P95: 3686.902758 | Q95: =AVERAGE(P$79:P95) -> 3682.550074 | R95: 633 | Y95: 0 | Z95: 633 | AA95: -432.8211902 | AB95: -414.2499042 | AC95: T+32 sec | AH95: 59.88829444 | AI95: -415.8127633 | AJ95: 59.88755586 | AK95: -412.3888737 | AL95: 59.88829444 | AM95: -414.2499042 | AN95: T+32 sec | AO95: 40098.10269 | AP95: =LOOKUP($AO95,Data!$A$6:$A$1806,Data!$B$6:$B$1806) -> 59.89500046 | AQ95: =LOOKUP($AO95,Data!$A$6:$A$1806,Data!$C$6:$C$1806) -> 3784.729736 | AR95: =LOOKUP($AO95,Data!$A$6:$A$1806,Data!$D$6:$D$1806) -> 335 | AS95: =IF($AS$1="+",LOOKUP($AO95,Data!$A$6:$A$1806,Data!$E$6:$E$1806)*-1,LOOKUP($AO95,Data!$A$6:$A$1806,Data!$E$6:$E$1806)) -> -211.2560425 | AT95: =LOOKUP($AO95,Data!$A$6:$A$1806,Data!$F$6:$F$1806) -> 1 | AU95: =LOOKUP($AO95,Data!$A$6:$A$1806,Data!$G$6:$G$1806) -> 95 | AV95: =LOOKUP($AO95,Data!$A$6:$A$1806,Data!$H$6:$H$1806) -> 10 | AW95: =LOOKUP($AO95,Data!$A$6:$A$1806,Data!$I$6:$I$1806) -> 0 | AX95: =LOOKUP($AO95,Data!$A$6:$A$1806,Data!$J$6:$J$1806) -> -103 | AY95: =LOOKUP($AO95,Data!$A$6:$A$1806,Data!$K$6:$K$1806) -> 7562.7 | AZ95: 83.99963379 | BA95: T+32 sec | BB95: 40098.10269 | BO95: T+32 sec | BP95: 40098.10269 | CC95: T+32 sec | CD95: 40098.10269 | CE95: 59.88881926 | CF95: 3780.725897 | CG95: 335 | CH95: -209.9477872 | CI95: 1.272727273 | CJ95: 94.68181818 | CK95: 10 | CL95: 0 | CM95: -103 | CN95: 7562.49 | CO95: 88.94459118 | CP95: 3716.797733 | CQ95: T+32 sec | CR95: 40098.10269 | CS95: 59.88755586 | CT95: 3784.148492 | CU95: 335 | CV95: -210.3617596 | CW95: 2.111111111 | CX95: 95.19444444 | CY95: 10 | CZ95: 0 | DA95: -103 | DB95: 7562.828333 | DC95: 89.9553087 | DD95: 3718.871828 | DE95: T+32 sec | DF95: 40098.10269 | DG95: 59.88829444 | DH95: 3785.204647 | DI95: 335 | DJ95: -210.5913274 | DK95: 2.176470588 | DL95: 95.29411765 | DM95: 10 | DN95: 0 | DO95: -103 | DP95: 7562.894118 | DQ95: 89.36444451 | DR95: 3718.14257
A96: T+34 sec | B96: 40098.10271 | C96: =LOOKUP(B96,Data!$A$6:$A$1806,Data!B$6:B$1806) -> 59.89500046 | D96: =LOOKUP(B96,Data!$A$6:$A$1806,Data!C$6:C$1806) -> 3784.729736 | E96: 59.88829444 | F96: 3785.204647 | H96: 83.99963379 | I96: 87.18021925 | K96: 3758.755087 | L96: 0.5803577926 | M96: 3775.358455 | N96: =AVERAGE(D$79:D96) -> 3742.110528 | O96: =AVERAGE(M$79:M96) -> 3769.9256 | P96: 3687.483116 | Q96: =AVERAGE(P$79:P96) -> 3682.840253 | R96: 633 | Y96: 0 | Z96: 633 | AA96: -432.8211902 | AB96: -414.2499042 | AC96: T+34 sec | AH96: 59.88829444 | AI96: -415.8127633 | AJ96: 59.88755586 | AK96: -412.3888737 | AL96: 59.88829444 | AM96: -414.2499042 | AN96: T+34 sec | AO96: 40098.10271 | AP96: =LOOKUP($AO96,Data!$A$6:$A$1806,Data!$B$6:$B$1806) -> 59.89500046 | AQ96: =LOOKUP($AO96,Data!$A$6:$A$1806,Data!$C$6:$C$1806) -> 3784.729736 | AR96: =LOOKUP($AO96,Data!$A$6:$A$1806,Data!$D$6:$D$1806) -> 335 | AS96: =IF($AS$1="+",LOOKUP($AO96,Data!$A$6:$A$1806,Data!$E$6:$E$1806)*-1,LOOKUP($AO96,Data!$A$6:$A$1806,Data!$E$6:$E$1806)) -> -211.2560425 | AT96: =LOOKUP($AO96,Data!$A$6:$A$1806,Data!$F$6:$F$1806) -> 1 | AU96: =LOOKUP($AO96,Data!$A$6:$A$1806,Data!$G$6:$G$1806) -> 95 | AV96: =LOOKUP($AO96,Data!$A$6:$A$1806,Data!$H$6:$H$1806) -> 10 | AW96: =LOOKUP($AO96,Data!$A$6:$A$1806,Data!$I$6:$I$1806) -> 0 | AX96: =LOOKUP($AO96,Data!$A$6:$A$1806,Data!$J$6:$J$1806) -> -103 | AY96: =LOOKUP($AO96,Data!$A$6:$A$1806,Data!$K$6:$K$1806) -> 7562.7 | AZ96: 83.99963379 | BA96: T+34 sec | BB96: 40098.10271 | BO96: T+34 sec | BP96: 40098.10271 | CC96: T+34 sec | CD96: 40098.10271 | CE96: 59.88881926 | CF96: 3780.725897 | CG96: 335 | CH96: -209.9477872 | CI96: 1.272727273 | CJ96: 94.68181818 | CK96: 10 | CL96: 0 | CM96: -103 | CN96: 7562.49 | CO96: 88.94459118 | CP96: 3716.797733 | CQ96: T+34 sec | CR96: 40098.10271 | CS96: 59.88755586 | CT96: 3784.148492 | CU96: 335 | CV96: -210.3617596 | CW96: 2.111111111 | CX96: 95.19444444 | CY96: 10 | CZ96: 0 | DA96: -103 | DB96: 7562.828333 | DC96: 89.9553087 | DD96: 3718.871828 | DE96: T+34 sec | DF96: 40098.10271 | DG96: 59.88829444 | DH96: 3785.204647 | DI96: 335 | DJ96: -210.5913274 | DK96: 2.176470588 | DL96: 95.29411765 | DM96: 10 | DN96: 0 | DO96: -103 | DP96: 7562.894118 | DQ96: 89.36444451 | DR96: 3718.14257
A97: T+36 sec | B97: 40098.10273 | C97: =LOOKUP(B97,Data!$A$6:$A$1806,Data!B$6:B$1806) -> 59.89300156 | D97: =LOOKUP(B97,Data!$A$6:$A$1806,Data!C$6:C$1806) -> 3788.327637 | E97: 59.88829444 | F97: 3785.204647 | H97: 85.59875488 | I97: 86.62670672 | K97: 3758.755087 | L97: 0.5803577926 | M97: 3775.385301 | N97: =AVERAGE(D$79:D97) -> 3744.543007 | O97: =AVERAGE(M$79:M97) -> 3770.212952 | P97: 3688.063473 | Q97: =AVERAGE(P$79:P97) -> 3683.130432 | R97: 633 | Y97: 0 | Z97: 633 | AA97: -426.9852737 | AB97: -414.2499042 | AC97: T+36 sec | AH97: 59.88829444 | AI97: -415.8127633 | AJ97: 59.88755586 | AK97: -412.3888737 | AL97: 59.88829444 | AM97: -414.2499042 | AN97: T+36 sec | AO97: 40098.10273 | AP97: =LOOKUP($AO97,Data!$A$6:$A$1806,Data!$B$6:$B$1806) -> 59.89300156 | AQ97: =LOOKUP($AO97,Data!$A$6:$A$1806,Data!$C$6:$C$1806) -> 3788.327637 | AR97: =LOOKUP($AO97,Data!$A$6:$A$1806,Data!$D$6:$D$1806) -> 335 | AS97: =IF($AS$1="+",LOOKUP($AO97,Data!$A$6:$A$1806,Data!$E$6:$E$1806)*-1,LOOKUP($AO97,Data!$A$6:$A$1806,Data!$E$6:$E$1806)) -> -211.2560425 | AT97: =LOOKUP($AO97,Data!$A$6:$A$1806,Data!$F$6:$F$1806) -> 2 | AU97: =LOOKUP($AO97,Data!$A$6:$A$1806,Data!$G$6:$G$1806) -> 95.5 | AV97: =LOOKUP($AO97,Data!$A$6:$A$1806,Data!$H$6:$H$1806) -> 10 | AW97: =LOOKUP($AO97,Data!$A$6:$A$1806,Data!$I$6:$I$1806) -> 0 | AX97: =LOOKUP($AO97,Data!$A$6:$A$1806,Data!$J$6:$J$1806) -> -103 | AY97: =LOOKUP($AO97,Data!$A$6:$A$1806,Data!$K$6:$K$1806) -> 7563.03 | AZ97: 85.59875488 | BA97: T+36 sec | BB97: 40098.10273 | BO97: T+36 sec | BP97: 40098.10273 | CC97: T+36 sec | CD97: 40098.10273 | CE97: 59.88881926 | CF97: 3780.725897 | CG97: 335 | CH97: -209.9477872 | CI97: 1.272727273 | CJ97: 94.68181818 | CK97: 10 | CL97: 0 | CM97: -103 | CN97: 7562.49 | CO97: 88.94459118 | CP97: 3716.797733 | CQ97: T+36 sec | CR97: 40098.10273 | CS97: 59.88755586 | CT97: 3784.148492 | CU97: 335 | CV97: -210.3617596 | CW97: 2.111111111 | CX97: 95.19444444 | CY97: 10 | CZ97: 0 | DA97: -103 | DB97: 7562.828333 | DC97: 89.9553087 | DD97: 3718.871828 | DE97: T+36 sec | DF97: 40098.10273 | DG97: 59.88829444 | DH97: 3785.204647 | DI97: 335 | DJ97: -210.5913274 | DK97: 2.176470588 | DL97: 95.29411765 | DM97: 10 | DN97: 0 | DO97: -103 | DP97: 7562.894118 | DQ97: 89.36444451 | DR97: 3718.14257
A98: T+38 sec | B98: 40098.10275 | C98: =LOOKUP(B98,Data!$A$6:$A$1806,Data!B$6:B$1806) -> 59.89300156 | D98: =LOOKUP(B98,Data!$A$6:$A$1806,Data!C$6:C$1806) -> 3788.327637 | E98: 59.88829444 | F98: 3785.204647 | H98: 85.59875488 | I98: 86.26692358 | K98: 3758.755087 | L98: 0.5803577926 | M98: 3775.605875 | N98: =AVERAGE(D$79:D98) -> 3746.732239 | O98: =AVERAGE(M$79:M98) -> 3770.482598 | P98: 3688.643831 | Q98: =AVERAGE(P$79:P98) -> 3683.420611 | R98: 633 | Y98: 0 | Z98: 633 | AA98: -426.9852737 | AB98: -414.2499042 | AC98: T+38 sec | AH98: 59.88829444 | AI98: -415.8127633 | AJ98: 59.88755586 | AK98: -412.3888737 | AL98: 59.88829444 | AM98: -414.2499042 | AN98: T+38 sec | AO98: 40098.10275 | AP98: =LOOKUP($AO98,Data!$A$6:$A$1806,Data!$B$6:$B$1806) -> 59.89300156 | AQ98: =LOOKUP($AO98,Data!$A$6:$A$1806,Data!$C$6:$C$1806) -> 3788.327637 | AR98: =LOOKUP($AO98,Data!$A$6:$A$1806,Data!$D$6:$D$1806) -> 335 | AS98: =IF($AS$1="+",LOOKUP($AO98,Data!$A$6:$A$1806,Data!$E$6:$E$1806)*-1,LOOKUP($AO98,Data!$A$6:$A$1806,Data!$E$6:$E$1806)) -> -211.2560425 | AT98: =LOOKUP($AO98,Data!$A$6:$A$1806,Data!$F$6:$F$1806) -> 2 | AU98: =LOOKUP($AO98,Data!$A$6:$A$1806,Data!$G$6:$G$1806) -> 95.5 | AV98: =LOOKUP($AO98,Data!$A$6:$A$1806,Data!$H$6:$H$1806) -> 10 | AW98: =LOOKUP($AO98,Data!$A$6:$A$1806,Data!$I$6:$I$1806) -> 0 | AX98: =LOOKUP($AO98,Data!$A$6:$A$1806,Data!$J$6:$J$1806) -> -103 | AY98: =LOOKUP($AO98,Data!$A$6:$A$1806,Data!$K$6:$K$1806) -> 7563.03 | AZ98: 85.59875488 | BA98: T+38 sec | BB98: 40098.10275 | BO98: T+38 sec | BP98: 40098.10275 | CC98: T+38 sec | CD98: 40098.10275 | CE98: 59.88881926 | CF98: 3780.725897 | CG98: 335 | CH98: -209.9477872 | CI98: 1.272727273 | CJ98: 94.68181818 | CK98: 10 | CL98: 0 | CM98: -103 | CN98: 7562.49 | CO98: 88.94459118 | CP98: 3716.797733 | CQ98: T+38 sec | CR98: 40098.10275 | CS98: 59.88755586 | CT98: 3784.148492 | CU98: 335 | CV98: -210.3617596 | CW98: 2.111111111 | CX98: 95.19444444 | CY98: 10 | CZ98: 0 | DA98: -103 | DB98: 7562.828333 | DC98: 89.9553087 | DD98: 3718.871828 | DE98: T+38 sec | DF98: 40098.10275 | DG98: 59.88829444 | DH98: 3785.204647 | DI98: 335 | DJ98: -210.5913274 | DK98: 2.176470588 | DL98: 95.29411765 | DM98: 10 | DN98: 0 | DO98: -103 | DP98: 7562.894118 | DQ98: 89.36444451 | DR98: 3718.14257
A99: T+40 sec | B99: 40098.10278 | C99: =LOOKUP(B99,Data!$A$6:$A$1806,Data!B$6:B$1806) -> 59.89300156 | D99: =LOOKUP(B99,Data!$A$6:$A$1806,Data!C$6:C$1806) -> 3788.327637 | E99: 59.88829444 | F99: 3785.204647 | H99: 85.59875488 | I99: 86.03306454 | K99: 3758.755087 | L99: 0.5803577926 | M99: 3775.952374 | N99: =AVERAGE(D$79:D99) -> 3748.712972 | O99: =AVERAGE(M$79:M99) -> 3770.743064 | P99: 3689.224189 | Q99: =AVERAGE(P$79:P99) -> 3683.71079 | R99: 633 | Y99: 0 | Z99: 633 | AA99: -426.9852737 | AB99: -414.2499042 | AC99: T+40 sec | AH99: 59.88829444 | AI99: -415.8127633 | AJ99: 59.88755586 | AK99: -412.3888737 | AL99: 59.88829444 | AM99: -414.2499042 | AN99: T+40 sec | AO99: 40098.10278 | AP99: =LOOKUP($AO99,Data!$A$6:$A$1806,Data!$B$6:$B$1806) -> 59.89300156 | AQ99: =LOOKUP($AO99,Data!$A$6:$A$1806,Data!$C$6:$C$1806) -> 3788.327637 | AR99: =LOOKUP($AO99,Data!$A$6:$A$1806,Data!$D$6:$D$1806) -> 335 | AS99: =IF($AS$1="+",LOOKUP($AO99,Data!$A$6:$A$1806,Data!$E$6:$E$1806)*-1,LOOKUP($AO99,Data!$A$6:$A$1806,Data!$E$6:$E$1806)) -> -211.2560425 | AT99: =LOOKUP($AO99,Data!$A$6:$A$1806,Data!$F$6:$F$1806) -> 2 | AU99: =LOOKUP($AO99,Data!$A$6:$A$1806,Data!$G$6:$G$1806) -> 95.5 | AV99: =LOOKUP($AO99,Data!$A$6:$A$1806,Data!$H$6:$H$1806) -> 10 | AW99: =LOOKUP($AO99,Data!$A$6:$A$1806,Data!$I$6:$I$1806) -> 0 | AX99: =LOOKUP($AO99,Data!$A$6:$A$1806,Data!$J$6:$J$1806) -> -103 | AY99: =LOOKUP($AO99,Data!$A$6:$A$1806,Data!$K$6:$K$1806) -> 7563.03 | AZ99: 85.59875488 | BA99: T+40 sec | BB99: 40098.10278 | BO99: T+40 sec | BP99: 40098.10278 | CC99: T+40 sec | CD99: 40098.10278 | CE99: 59.88881926 | CF99: 3780.725897 | CG99: 335 | CH99: -209.9477872 | CI99: 1.272727273 | CJ99: 94.68181818 | CK99: 10 | CL99: 0 | CM99: -103 | CN99: 7562.49 | CO99: 88.94459118 | CP99: 3716.797733 | CQ99: T+40 sec | CR99: 40098.10278 | CS99: 59.88755586 | CT99: 3784.148492 | CU99: 335 | CV99: -210.3617596 | CW99: 2.111111111 | CX99: 95.19444444 | CY99: 10 | CZ99: 0 | DA99: -103 | DB99: 7562.828333 | DC99: 89.9553087 | DD99: 3718.871828 | DE99: T+40 sec | DF99: 40098.10278 | DG99: 59.88829444 | DH99: 3785.204647 | DI99: 335 | DJ99: -210.5913274 | DK99: 2.176470588 | DL99: 95.29411765 | DM99: 10 | DN99: 0 | DO99: -103 | DP99: 7562.894118 | DQ99: 89.36444451 | DR99: 3718.14257
A100: T+42 sec | B100: 40098.1028 | C100: =LOOKUP(B100,Data!$A$6:$A$1806,Data!B$6:B$1806) -> 59.89099884 | D100: =LOOKUP(B100,Data!$A$6:$A$1806,Data!C$6:C$1806) -> 3788.471924 | E100: 59.88829444 | F100: 3785.204647 | H100: 87.20092773 | I100: 86.44181666 | K100: 3758.755087 | L100: 0.5803577926 | M100: 3776.941484 | N100: =AVERAGE(D$79:D100) -> 3750.520197 | O100: =AVERAGE(M$79:M100) -> 3771.02481 | P100: 3689.804547 | Q100: =AVERAGE(P$79:P100) -> 3684.000969 | R100: 633 | Y100: 0 | Z100: 633 | AA100: -421.2939435 | AB100: -414.2499042 | AC100: T+42 sec | AJ100: 59.88755586 | AK100: -412.3888737 | AL100: 59.88829444 | AM100: -414.2499042 | AN100: T+42 sec | AO100: 40098.1028 | AP100: =LOOKUP($AO100,Data!$A$6:$A$1806,Data!$B$6:$B$1806) -> 59.89099884 | AQ100: =LOOKUP($AO100,Data!$A$6:$A$1806,Data!$C$6:$C$1806) -> 3788.471924 | AR100: =LOOKUP($AO100,Data!$A$6:$A$1806,Data!$D$6:$D$1806) -> 335 | AS100: =IF($AS$1="+",LOOKUP($AO100,Data!$A$6:$A$1806,Data!$E$6:$E$1806)*-1,LOOKUP($AO100,Data!$A$6:$A$1806,Data!$E$6:$E$1806)) -> -211.2560425 | AT100: =LOOKUP($AO100,Data!$A$6:$A$1806,Data!$F$6:$F$1806) -> 3 | AU100: =LOOKUP($AO100,Data!$A$6:$A$1806,Data!$G$6:$G$1806) -> 96 | AV100: =LOOKUP($AO100,Data!$A$6:$A$1806,Data!$H$6:$H$1806) -> 10 | AW100: =LOOKUP($AO100,Data!$A$6:$A$1806,Data!$I$6:$I$1806) -> 0 | AX100: =LOOKUP($AO100,Data!$A$6:$A$1806,Data!$J$6:$J$1806) -> -103 | AY100: =LOOKUP($AO100,Data!$A$6:$A$1806,Data!$K$6:$K$1806) -> 7563.36 | AZ100: 87.20092773 | BA100: T+42 sec | BB100: 40098.1028 | BO100: T+42 sec | BP100: 40098.1028 | CC100: T+42 sec | CD100: 40098.1028 | CQ100: T+42 sec | CR100: 40098.1028 | CS100: 59.88755586 | CT100: 3784.148492 | CU100: 335 | CV100: -210.3617596 | CW100: 2.111111111 | CX100: 95.19444444 | CY100: 10 | CZ100: 0 | DA100: -103 | DB100: 7562.828333 | DC100: 89.9553087 | DD100: 3718.871828 | DE100: T+42 sec | DF100: 40098.1028 | DG100: 59.88829444 | DH100: 3785.204647 | DI100: 335 | DJ100: -210.5913274 | DK100: 2.176470588 | DL100: 95.29411765 | DM100: 10 | DN100: 0 | DO100: -103 | DP100: 7562.894118 | DQ100: 89.36444451 | DR100: 3718.14257
A101: T+44 sec | B101: 40098.10282 | C101: =LOOKUP(B101,Data!$A$6:$A$1806,Data!B$6:B$1806) -> 59.89099884 | D101: =LOOKUP(B101,Data!$A$6:$A$1806,Data!C$6:C$1806) -> 3788.471924 | E101: 59.88829444 | F101: 3785.204647 | H101: 87.20092773 | I101: 86.70750553 | K101: 3758.755087 | L101: 0.5803577926 | M101: 3777.787531 | N101: =AVERAGE(D$79:D101) -> 3752.170272 | O101: =AVERAGE(M$79:M101) -> 3771.318842 | P101: 3690.384905 | Q101: =AVERAGE(P$79:P101) -> 3684.291148 | R101: 633 | Y101: 0 | Z101: 633 | AA101: -421.2939435 | AB101: -414.2499042 | AC101: T+44 sec | AJ101: 59.88755586 | AK101: -412.3888737 | AL101: 59.88829444 | AM101: -414.2499042 | AN101: T+44 sec | AO101: 40098.10282 | AP101: =LOOKUP($AO101,Data!$A$6:$A$1806,Data!$B$6:$B$1806) -> 59.89099884 | AQ101: =LOOKUP($AO101,Data!$A$6:$A$1806,Data!$C$6:$C$1806) -> 3788.471924 | AR101: =LOOKUP($AO101,Data!$A$6:$A$1806,Data!$D$6:$D$1806) -> 335 | AS101: =IF($AS$1="+",LOOKUP($AO101,Data!$A$6:$A$1806,Data!$E$6:$E$1806)*-1,LOOKUP($AO101,Data!$A$6:$A$1806,Data!$E$6:$E$1806)) -> -211.2560425 | AT101: =LOOKUP($AO101,Data!$A$6:$A$1806,Data!$F$6:$F$1806) -> 3 | AU101: =LOOKUP($AO101,Data!$A$6:$A$1806,Data!$G$6:$G$1806) -> 96 | AV101: =LOOKUP($AO101,Data!$A$6:$A$1806,Data!$H$6:$H$1806) -> 10 | AW101: =LOOKUP($AO101,Data!$A$6:$A$1806,Data!$I$6:$I$1806) -> 0 | AX101: =LOOKUP($AO101,Data!$A$6:$A$1806,Data!$J$6:$J$1806) -> -103 | AY101: =LOOKUP($AO101,Data!$A$6:$A$1806,Data!$K$6:$K$1806) -> 7563.36 | AZ101: 87.20092773 | BA101: T+44 sec | BB101: 40098.10282 | BO101: T+44 sec | BP101: 40098.10282 | CC101: T+44 sec | CD101: 40098.10282 | CQ101: T+44 sec | CR101: 40098.10282 | CS101: 59.88755586 | CT101: 3784.148492 | CU101: 335 | CV101: -210.3617596 | CW101: 2.111111111 | CX101: 95.19444444 | CY101: 10 | CZ101: 0 | DA101: -103 | DB101: 7562.828333 | DC101: 89.9553087 | DD101: 3718.871828 | DE101: T+44 sec | DF101: 40098.10282 | DG101: 59.88829444 | DH101: 3785.204647 | DI101: 335 | DJ101: -210.5913274 | DK101: 2.176470588 | DL101: 95.29411765 | DM101: 10 | DN101: 0 | DO101: -103 | DP101: 7562.894118 | DQ101: 89.36444451 | DR101: 3718.14257
A102: T+46 sec | B102: 40098.10285 | C102: =LOOKUP(B102,Data!$A$6:$A$1806,Data!B$6:B$1806) -> 59.88499832 | D102: =LOOKUP(B102,Data!$A$6:$A$1806,Data!C$6:C$1806) -> 3794.374268 | E102: 59.88829444 | F102: 3785.204647 | H102: 92.00134277 | I102: 88.56034857 | K102: 3758.755087 | L102: 0.5803577926 | M102: 3780.220731 | N102: =AVERAGE(D$79:D102) -> 3753.928772 | O102: =AVERAGE(M$79:M102) -> 3771.689754 | P102: 3690.965262 | Q102: =AVERAGE(P$79:P102) -> 3684.581327 | R102: 633 | Y102: 0 | Z102: 633 | AA102: -405.1150547 | AB102: -414.2499042 | AC102: T+46 sec | AJ102: 59.88755586 | AK102: -412.3888737 | AL102: 59.88829444 | AM102: -414.2499042 | AN102: T+46 sec | AO102: 40098.10285 | AP102: =LOOKUP($AO102,Data!$A$6:$A$1806,Data!$B$6:$B$1806) -> 59.88499832 | AQ102: =LOOKUP($AO102,Data!$A$6:$A$1806,Data!$C$6:$C$1806) -> 3794.374268 | AR102: =LOOKUP($AO102,Data!$A$6:$A$1806,Data!$D$6:$D$1806) -> 335 | AS102: =IF($AS$1="+",LOOKUP($AO102,Data!$A$6:$A$1806,Data!$E$6:$E$1806)*-1,LOOKUP($AO102,Data!$A$6:$A$1806,Data!$E$6:$E$1806)) -> -211.2560425 | AT102: =LOOKUP($AO102,Data!$A$6:$A$1806,Data!$F$6:$F$1806) -> 4 | AU102: =LOOKUP($AO102,Data!$A$6:$A$1806,Data!$G$6:$G$1806) -> 96.5 | AV102: =LOOKUP($AO102,Data!$A$6:$A$1806,Data!$H$6:$H$1806) -> 10 | AW102: =LOOKUP($AO102,Data!$A$6:$A$1806,Data!$I$6:$I$1806) -> 0 | AX102: =LOOKUP($AO102,Data!$A$6:$A$1806,Data!$J$6:$J$1806) -> -103 | AY102: =LOOKUP($AO102,Data!$A$6:$A$1806,Data!$K$6:$K$1806) -> 7563.69 | AZ102: 92.00134277 | BA102: T+46 sec | BB102: 40098.10285 | BO102: T+46 sec | BP102: 40098.10285 | CC102: T+46 sec | CD102: 40098.10285 | CQ102: T+46 sec | CR102: 40098.10285 | CS102: 59.88755586 | CT102: 3784.148492 | CU102: 335 | CV102: -210.3617596 | CW102: 2.111111111 | CX102: 95.19444444 | CY102: 10 | CZ102: 0 | DA102: -103 | DB102: 7562.828333 | DC102: 89.9553087 | DD102: 3718.871828 | DE102: T+46 sec | DF102: 40098.10285 | DG102: 59.88829444 | DH102: 3785.204647 | DI102: 335 | DJ102: -210.5913274 | DK102: 2.176470588 | DL102: 95.29411765 | DM102: 10 | DN102: 0 | DO102: -103 | DP102: 7562.894118 | DQ102: 89.36444451 | DR102: 3718.14257
A103: T+48 sec | B103: 40098.10287 | C103: =LOOKUP(B103,Data!$A$6:$A$1806,Data!B$6:B$1806) -> 59.88499832 | D103: =LOOKUP(B103,Data!$A$6:$A$1806,Data!C$6:C$1806) -> 3794.374268 | E103: 59.88829444 | F103: 3785.204647 | H103: 92.00134277 | I103: 89.76469654 | K103: 3758.755087 | L103: 0.5803577926 | M103: 3782.005437 | N103: =AVERAGE(D$79:D103) -> 3755.546592 | O103: =AVERAGE(M$79:M103) -> 3772.102381 | P103: 3691.54562 | Q103: =AVERAGE(P$79:P103) -> 3684.871506 | R103: 633 | Y103: 0 | Z103: 633 | AA103: -405.1150547 | AB103: -414.2499042 | AC103: T+48 sec | AJ103: 59.88755586 | AK103: -412.3888737 | AL103: 59.88829444 | AM103: -414.2499042 | AN103: T+48 sec | AO103: 40098.10287 | AP103: =LOOKUP($AO103,Data!$A$6:$A$1806,Data!$B$6:$B$1806) -> 59.88499832 | AQ103: =LOOKUP($AO103,Data!$A$6:$A$1806,Data!$C$6:$C$1806) -> 3794.374268 | AR103: =LOOKUP($AO103,Data!$A$6:$A$1806,Data!$D$6:$D$1806) -> 335 | AS103: =IF($AS$1="+",LOOKUP($AO103,Data!$A$6:$A$1806,Data!$E$6:$E$1806)*-1,LOOKUP($AO103,Data!$A$6:$A$1806,Data!$E$6:$E$1806)) -> -211.2560425 | AT103: =LOOKUP($AO103,Data!$A$6:$A$1806,Data!$F$6:$F$1806) -> 4 | AU103: =LOOKUP($AO103,Data!$A$6:$A$1806,Data!$G$6:$G$1806) -> 96.5 | AV103: =LOOKUP($AO103,Data!$A$6:$A$1806,Data!$H$6:$H$1806) -> 10 | AW103: =LOOKUP($AO103,Data!$A$6:$A$1806,Data!$I$6:$I$1806) -> 0 | AX103: =LOOKUP($AO103,Data!$A$6:$A$1806,Data!$J$6:$J$1806) -> -103 | AY103: =LOOKUP($AO103,Data!$A$6:$A$1806,Data!$K$6:$K$1806) -> 7563.69 | AZ103: 92.00134277 | BA103: T+48 sec | BB103: 40098.10287 | BO103: T+48 sec | BP103: 40098.10287 | CC103: T+48 sec | CD103: 40098.10287 | CQ103: T+48 sec | CR103: 40098.10287 | CS103: 59.88755586 | CT103: 3784.148492 | CU103: 335 | CV103: -210.3617596 | CW103: 2.111111111 | CX103: 95.19444444 | CY103: 10 | CZ103: 0 | DA103: -103 | DB103: 7562.828333 | DC103: 89.9553087 | DD103: 3718.871828 | DE103: T+48 sec | DF103: 40098.10287 | DG103: 59.88829444 | DH103: 3785.204647 | DI103: 335 | DJ103: -210.5913274 | DK103: 2.176470588 | DL103: 95.29411765 | DM103: 10 | DN103: 0 | DO103: -103 | DP103: 7562.894118 | DQ103: 89.36444451 | DR103: 3718.14257
A104: T+50 sec | B104: 40098.10289 | C104: =LOOKUP(B104,Data!$A$6:$A$1806,Data!B$6:B$1806) -> 59.88499832 | D104: =LOOKUP(B104,Data!$A$6:$A$1806,Data!C$6:C$1806) -> 3794.374268 | E104: 59.88829444 | F104: 3785.204647 | H104: 92.00134277 | I104: 90.54752272 | K104: 3758.755087 | L104: 0.5803577926 | M104: 3783.368621 | N104: =AVERAGE(D$79:D104) -> 3757.039964 | O104: =AVERAGE(M$79:M104) -> 3772.535698 | P104: 3692.125978 | Q104: =AVERAGE(P$79:P104) -> 3685.161684 | R104: 633 | Y104: 0 | Z104: 633 | AA104: -405.1150547 | AB104: -414.2499042 | AC104: T+50 sec | AJ104: 59.88755586 | AK104: -412.3888737 | AL104: 59.88829444 | AM104: -414.2499042 | AN104: T+50 sec | AO104: 40098.10289 | AP104: =LOOKUP($AO104,Data!$A$6:$A$1806,Data!$B$6:$B$1806) -> 59.88499832 | AQ104: =LOOKUP($AO104,Data!$A$6:$A$1806,Data!$C$6:$C$1806) -> 3794.374268 | AR104: =LOOKUP($AO104,Data!$A$6:$A$1806,Data!$D$6:$D$1806) -> 335 | AS104: =IF($AS$1="+",LOOKUP($AO104,Data!$A$6:$A$1806,Data!$E$6:$E$1806)*-1,LOOKUP($AO104,Data!$A$6:$A$1806,Data!$E$6:$E$1806)) -> -211.2560425 | AT104: =LOOKUP($AO104,Data!$A$6:$A$1806,Data!$F$6:$F$1806) -> 4 | AU104: =LOOKUP($AO104,Data!$A$6:$A$1806,Data!$G$6:$G$1806) -> 96.5 | AV104: =LOOKUP($AO104,Data!$A$6:$A$1806,Data!$H$6:$H$1806) -> 10 | AW104: =LOOKUP($AO104,Data!$A$6:$A$1806,Data!$I$6:$I$1806) -> 0 | AX104: =LOOKUP($AO104,Data!$A$6:$A$1806,Data!$J$6:$J$1806) -> -103 | AY104: =LOOKUP($AO104,Data!$A$6:$A$1806,Data!$K$6:$K$1806) -> 7563.69 | AZ104: 92.00134277 | BA104: T+50 sec | BB104: 40098.10289 | BO104: T+50 sec | BP104: 40098.10289 | CC104: T+50 sec | CD104: 40098.10289 | CQ104: T+50 sec | CR104: 40098.10289 | CS104: 59.88755586 | CT104: 3784.148492 | CU104: 335 | CV104: -210.3617596 | CW104: 2.111111111 | CX104: 95.19444444 | CY104: 10 | CZ104: 0 | DA104: -103 | DB104: 7562.828333 | DC104: 89.9553087 | DD104: 3718.871828 | DE104: T+50 sec | DF104: 40098.10289 | DG104: 59.88829444 | DH104: 3785.204647 | DI104: 335 | DJ104: -210.5913274 | DK104: 2.176470588 | DL104: 95.29411765 | DM104: 10 | DN104: 0 | DO104: -103 | DP104: 7562.894118 | DQ104: 89.36444451 | DR104: 3718.14257
A105: T+52 sec | B105: 40098.10292 | C105: =LOOKUP(B105,Data!$A$6:$A$1806,Data!B$6:B$1806) -> 59.88700104 | D105: =LOOKUP(B105,Data!$A$6:$A$1806,Data!C$6:C$1806) -> 3800.42749 | E105: 59.88829444 | F105: 3785.204647 | H105: 90.39916992 | I105: 90.49559924 | K105: 3758.755087 | L105: 0.5803577926 | M105: 3783.897055 | N105: =AVERAGE(D$79:D105) -> 3758.646909 | O105: =AVERAGE(M$79:M105) -> 3772.956489 | P105: 3692.706336 | Q105: =AVERAGE(P$79:P105) -> 3685.451863 | R105: 633 | Y105: 0 | Z105: 633 | AA105: -410.374923 | AB105: -414.2499042 | AC105: T+52 sec | AJ105: 59.88755586 | AK105: -412.3888737 | AL105: 59.88829444 | AM105: -414.2499042 | AN105: T+52 sec | AO105: 40098.10292 | AP105: =LOOKUP($AO105,Data!$A$6:$A$1806,Data!$B$6:$B$1806) -> 59.88700104 | AQ105: =LOOKUP($AO105,Data!$A$6:$A$1806,Data!$C$6:$C$1806) -> 3800.42749 | AR105: =LOOKUP($AO105,Data!$A$6:$A$1806,Data!$D$6:$D$1806) -> 335 | AS105: =IF($AS$1="+",LOOKUP($AO105,Data!$A$6:$A$1806,Data!$E$6:$E$1806)*-1,LOOKUP($AO105,Data!$A$6:$A$1806,Data!$E$6:$E$1806)) -> -214.3466949 | AT105: =LOOKUP($AO105,Data!$A$6:$A$1806,Data!$F$6:$F$1806) -> 5 | AU105: =LOOKUP($AO105,Data!$A$6:$A$1806,Data!$G$6:$G$1806) -> 97 | AV105: =LOOKUP($AO105,Data!$A$6:$A$1806,Data!$H$6:$H$1806) -> 10 | AW105: =LOOKUP($AO105,Data!$A$6:$A$1806,Data!$I$6:$I$1806) -> 0 | AX105: =LOOKUP($AO105,Data!$A$6:$A$1806,Data!$J$6:$J$1806) -> -103 | AY105: =LOOKUP($AO105,Data!$A$6:$A$1806,Data!$K$6:$K$1806) -> 7564.02 | AZ105: 90.39916992 | BA105: T+52 sec | BB105: 40098.10292 | BO105: T+52 sec | BP105: 40098.10292 | CC105: T+52 sec | CD105: 40098.10292 | CQ105: T+52 sec | CR105: 40098.10292 | CS105: 59.88755586 | CT105: 3784.148492 | CU105: 335 | CV105: -210.3617596 | CW105: 2.111111111 | CX105: 95.19444444 | CY105: 10 | CZ105: 0 | DA105: -103 | DB105: 7562.828333 | DC105: 89.9553087 | DD105: 3718.871828 | DE105: T+52 sec | DF105: 40098.10292 | DG105: 59.88829444 | DH105: 3785.204647 | DI105: 335 | DJ105: -210.5913274 | DK105: 2.176470588 | DL105: 95.29411765 | DM105: 10 | DN105: 0 | DO105: -103 | DP105: 7562.894118 | DQ105: 89.36444451 | DR105: 3718.14257
A106: T+54 sec | B106: 40098.10294 | C106: =LOOKUP(B106,Data!$A$6:$A$1806,Data!B$6:B$1806) -> 59.88700104 | D106: =LOOKUP(B106,Data!$A$6:$A$1806,Data!C$6:C$1806) -> 3800.42749 | H106: 90.39916992 | I106: 90.46184898 | L106: 0.5803577926 | M106: 3784.443663 | N106: =AVERAGE(D$79:D106) -> 3760.139073 | O106: =AVERAGE(M$79:M106) -> 3773.366745 | P106: 3693.286694 | Q106: =AVERAGE(P$79:P106) -> 3685.742042 | R106: 633 | Y106: 0 | Z106: 633 | AA106: -410.374923 | AC106: T+54 sec | AN106: T+54 sec | AO106: 40098.10294 | AP106: =LOOKUP($AO106,Data!$A$6:$A$1806,Data!$B$6:$B$1806) -> 59.88700104 | AQ106: =LOOKUP($AO106,Data!$A$6:$A$1806,Data!$C$6:$C$1806) -> 3800.42749 | AR106: =LOOKUP($AO106,Data!$A$6:$A$1806,Data!$D$6:$D$1806) -> 335 | AS106: =IF($AS$1="+",LOOKUP($AO106,Data!$A$6:$A$1806,Data!$E$6:$E$1806)*-1,LOOKUP($AO106,Data!$A$6:$A$1806,Data!$E$6:$E$1806)) -> -214.3466949 | AT106: =LOOKUP($AO106,Data!$A$6:$A$1806,Data!$F$6:$F$1806) -> 5 | AU106: =LOOKUP($AO106,Data!$A$6:$A$1806,Data!$G$6:$G$1806) -> 97 | AV106: =LOOKUP($AO106,Data!$A$6:$A$1806,Data!$H$6:$H$1806) -> 10 | AW106: =LOOKUP($AO106,Data!$A$6:$A$1806,Data!$I$6:$I$1806) -> 0 | AX106: =LOOKUP($AO106,Data!$A$6:$A$1806,Data!$J$6:$J$1806) -> -103 | AY106: =LOOKUP($AO106,Data!$A$6:$A$1806,Data!$K$6:$K$1806) -> 7564.02 | AZ106: 90.39916992 | BA106: T+54 sec | BB106: 40098.10294 | BO106: T+54 sec | BP106: 40098.10294 | CC106: T+54 sec | CD106: 40098.10294 | CQ106: T+54 sec | CR106: 40098.10294 | DE106: T+54 sec | DF106: 40098.10294
A107: T+56 sec | B107: 40098.10296 | C107: =LOOKUP(B107,Data!$A$6:$A$1806,Data!B$6:B$1806) -> 59.88800049 | D107: =LOOKUP(B107,Data!$A$6:$A$1806,Data!C$6:C$1806) -> 3802.925049 | H107: 89.59960938 | I107: =L$13*H107+(1-L$13)*I106 -> 90.16006512 | L107: 0.5803577926 | M107: 3784.722237 | N107: =AVERAGE(D$79:D107) -> 3761.614451 | O107: =AVERAGE(M$79:M107) -> 3773.758314 | P107: 3693.867051 | Q107: =AVERAGE(P$79:P107) -> 3686.032221 | R107: 633 | Y107: 0 | Z107: =SUM(R107:Y107) -> 633 | AA107: -413.0512701 | AC107: T+56 sec | AN107: T+56 sec | AO107: 40098.10296 | AP107: =LOOKUP($AO107,Data!$A$6:$A$1806,Data!$B$6:$B$1806) -> 59.88800049 | AQ107: =LOOKUP($AO107,Data!$A$6:$A$1806,Data!$C$6:$C$1806) -> 3802.925049 | AR107: =LOOKUP($AO107,Data!$A$6:$A$1806,Data!$D$6:$D$1806) -> 335 | AS107: =IF($AS$1="+",LOOKUP($AO107,Data!$A$6:$A$1806,Data!$E$6:$E$1806)*-1,LOOKUP($AO107,Data!$A$6:$A$1806,Data!$E$6:$E$1806)) -> -214.3466949 | AT107: =LOOKUP($AO107,Data!$A$6:$A$1806,Data!$F$6:$F$1806) -> 6 | AU107: =LOOKUP($AO107,Data!$A$6:$A$1806,Data!$G$6:$G$1806) -> 97.5 | AV107: =LOOKUP($AO107,Data!$A$6:$A$1806,Data!$H$6:$H$1806) -> 10 | AW107: =LOOKUP($AO107,Data!$A$6:$A$1806,Data!$I$6:$I$1806) -> 0 | AX107: =LOOKUP($AO107,Data!$A$6:$A$1806,Data!$J$6:$J$1806) -> -103 | AY107: =LOOKUP($AO107,Data!$A$6:$A$1806,Data!$K$6:$K$1806) -> 7564.35 | AZ107: 89.59960938 | BA107: T+56 sec | BB107: 40098.10296 | BO107: T+56 sec | BP107: 40098.10296 | CC107: T+56 sec | CD107: 40098.10296 | CQ107: T+56 sec | CR107: 40098.10296 | DE107: T+56 sec | DF107: 40098.10296
A108: T+58 sec | B108: 40098.10299 | C108: =LOOKUP(B108,Data!$A$6:$A$1806,Data!B$6:B$1806) -> 59.88800049 | D108: =LOOKUP(B108,Data!$A$6:$A$1806,Data!C$6:C$1806) -> 3802.925049 | H108: =(IF((C108-L$2)>0,((C108-L$2-L$5)/((L$4*L$2)-L$5)*L$3*-1),((C108-L$2+L$5)/((L$4*L$2)-L$5)*L$3*-1))) -> 89.59960938 | I108: 89.96390561 | L108: 0.5803577926 | M108: 3785.106435 | N108: =AVERAGE(D$79:D108) -> 3762.991471 | O108: =AVERAGE(M$79:M108) -> 3774.136585 | P108: 3694.447409 | Q108: =AVERAGE(P$79:P108) -> 3686.3224 | R108: 633 | Y108: 0 | Z108: 633 | AA108: -413.0512701 | AC108: =A108 -> T+58 sec | AN108: T+58 sec | AO108: 40098.10299 | AP108: =LOOKUP($AO108,Data!$A$6:$A$1806,Data!$B$6:$B$1806) -> 59.88800049 | AQ108: =LOOKUP($AO108,Data!$A$6:$A$1806,Data!$C$6:$C$1806) -> 3802.925049 | AR108: =LOOKUP($AO108,Data!$A$6:$A$1806,Data!$D$6:$D$1806) -> 335 | AS108: =IF($AS$1="+",LOOKUP($AO108,Data!$A$6:$A$1806,Data!$E$6:$E$1806)*-1,LOOKUP($AO108,Data!$A$6:$A$1806,Data!$E$6:$E$1806)) -> -214.3466949 | AT108: =LOOKUP($AO108,Data!$A$6:$A$1806,Data!$F$6:$F$1806) -> 6 | AU108: =LOOKUP($AO108,Data!$A$6:$A$1806,Data!$G$6:$G$1806) -> 97.5 | AV108: =LOOKUP($AO108,Data!$A$6:$A$1806,Data!$H$6:$H$1806) -> 10 | AW108: =LOOKUP($AO108,Data!$A$6:$A$1806,Data!$I$6:$I$1806) -> 0 | AX108: =LOOKUP($AO108,Data!$A$6:$A$1806,Data!$J$6:$J$1806) -> -103 | AY108: =LOOKUP($AO108,Data!$A$6:$A$1806,Data!$K$6:$K$1806) -> 7564.35 | AZ108: =(IF((AP108-$L$2)>0,((AP108-$L$2-$L$5)/(($L$4*$L$2)-$L$5)*$L$3*-1),((AP108-$L$2+$L$5)/(($L$4*$L$2)-$L$5)*$L$3*-1))) -> 89.59960938 | BA108: T+58 sec | BB108: 40098.10299 | BO108: T+58 sec | BP108: 40098.10299 | CC108: T+58 sec | CD108: 40098.10299 | CQ108: T+58 sec | CR108: 40098.10299 | DE108: T+58 sec | DF108: 40098.10299
A109: T+60 sec | B109: 40098.10301 | C109: =LOOKUP(B109,Data!$A$6:$A$1806,Data!B$6:B$1806) -> 59.88800049 | D109: =LOOKUP(B109,Data!$A$6:$A$1806,Data!C$6:C$1806) -> 3802.925049 | H109: 89.59960938 | I109: 89.83640193 | L109: 0.5803577926 | M109: 3785.559289 | N109: =AVERAGE(D$79:D109) -> 3764.279651 | O109: =AVERAGE(M$79:M109) -> 3774.505059 | P109: 3695.027767 | Q109: =AVERAGE(P$79:P109) -> 3686.612579 | R109: 633 | Y109: 0 | Z109: 633 | AA109: -413.0512701 | AC109: T+60 sec | AN109: T+60 sec | AO109: 40098.10301 | AP109: =LOOKUP($AO109,Data!$A$6:$A$1806,Data!$B$6:$B$1806) -> 59.88800049 | AQ109: =LOOKUP($AO109,Data!$A$6:$A$1806,Data!$C$6:$C$1806) -> 3802.925049 | AR109: =LOOKUP($AO109,Data!$A$6:$A$1806,Data!$D$6:$D$1806) -> 335 | AS109: =IF($AS$1="+",LOOKUP($AO109,Data!$A$6:$A$1806,Data!$E$6:$E$1806)*-1,LOOKUP($AO109,Data!$A$6:$A$1806,Data!$E$6:$E$1806)) -> -214.3466949 | AT109: =LOOKUP($AO109,Data!$A$6:$A$1806,Data!$F$6:$F$1806) -> 6 | AU109: =LOOKUP($AO109,Data!$A$6:$A$1806,Data!$G$6:$G$1806) -> 97.5 | AV109: =LOOKUP($AO109,Data!$A$6:$A$1806,Data!$H$6:$H$1806) -> 10 | AW109: =LOOKUP($AO109,Data!$A$6:$A$1806,Data!$I$6:$I$1806) -> 0 | AX109: =LOOKUP($AO109,Data!$A$6:$A$1806,Data!$J$6:$J$1806) -> -103 | AY109: =LOOKUP($AO109,Data!$A$6:$A$1806,Data!$K$6:$K$1806) -> 7564.35 | AZ109: 89.59960938 | BA109: T+60 sec | BB109: 40098.10301 | BO109: T+60 sec | BP109: 40098.10301 | CC109: T+60 sec | CD109: 40098.10301 | CQ109: T+60 sec | CR109: 40098.10301 | DE109: T+60 sec | DF109: 40098.10301
A110: T+62 sec | B110: =B109+TIME(0,0,$B$1) -> 40098.10303 | C110: =LOOKUP(B110,Data!$A$6:$A$1806,Data!B$6:B$1806) -> 59.88199997 | D110: =LOOKUP(B110,Data!$A$6:$A$1806,Data!C$6:C$1806) -> 3804.387939 | H110: 94.40002441 | I110: 91.4336698 | L110: 0.5803577926 | M110: 3787.736915 | N110: =AVERAGE(D$79:D110) -> 3765.533035 | O110: =AVERAGE(M$79:M110) -> 3774.918554 | P110: 3695.608125 | Q110: =AVERAGE(P$79:P110) -> 3686.902758 | R110: 633 | Y110: 0 | Z110: 633 | AA110: -397.4875786 | AC110: T+62 sec | AN110: T+62 sec | AO110: 40098.10303 | AP110: =LOOKUP($AO110,Data!$A$6:$A$1806,Data!$B$6:$B$1806) -> 59.88199997 | AQ110: =LOOKUP($AO110,Data!$A$6:$A$1806,Data!$C$6:$C$1806) -> 3804.387939 | AR110: =LOOKUP($AO110,Data!$A$6:$A$1806,Data!$D$6:$D$1806) -> 335 | AS110: =IF($AS$1="+",LOOKUP($AO110,Data!$A$6:$A$1806,Data!$E$6:$E$1806)*-1,LOOKUP($AO110,Data!$A$6:$A$1806,Data!$E$6:$E$1806)) -> -214.3466949 | AT110: =LOOKUP($AO110,Data!$A$6:$A$1806,Data!$F$6:$F$1806) -> 7 | AU110: =LOOKUP($AO110,Data!$A$6:$A$1806,Data!$G$6:$G$1806) -> 98 | AV110: =LOOKUP($AO110,Data!$A$6:$A$1806,Data!$H$6:$H$1806) -> 10 | AW110: =LOOKUP($AO110,Data!$A$6:$A$1806,Data!$I$6:$I$1806) -> 0 | AX110: =LOOKUP($AO110,Data!$A$6:$A$1806,Data!$J$6:$J$1806) -> -103 | AY110: =LOOKUP($AO110,Data!$A$6:$A$1806,Data!$K$6:$K$1806) -> 7564.68 | AZ110: 94.40002441 | BA110: T+62 sec | BB110: 40098.10303 | BO110: T+62 sec | BP110: 40098.10303 | CC110: T+62 sec | CD110: 40098.10303 | CQ110: T+62 sec | CR110: 40098.10303 | DE110: T+62 sec | DF110: 40098.10303
A111: T+64 sec | B111: 40098.10306 | C111: =LOOKUP(B111,Data!$A$6:$A$1806,Data!B$6:B$1806) -> 59.88199997 | D111: =LOOKUP(B111,Data!$A$6:$A$1806,Data!C$6:C$1806) -> 3804.387939 | H111: 94.40002441 | I111: 92.47189391 | L111: 0.5803577926 | M111: 3789.355497 | N111: =AVERAGE(D$79:D111) -> 3766.710457 | O111: =AVERAGE(M$79:M111) -> 3775.356038 | P111: 3696.188482 | Q111: =AVERAGE(P$79:P111) -> 3687.192937 | R111: 633 | Y111: 0 | Z111: 633 | AA111: -397.4875786 | AC111: T+64 sec | AN111: T+64 sec | AO111: 40098.10306 | AP111: =LOOKUP($AO111,Data!$A$6:$A$1806,Data!$B$6:$B$1806) -> 59.88199997 | AQ111: =LOOKUP($AO111,Data!$A$6:$A$1806,Data!$C$6:$C$1806) -> 3804.387939 | AR111: =LOOKUP($AO111,Data!$A$6:$A$1806,Data!$D$6:$D$1806) -> 335 | AS111: =IF($AS$1="+",LOOKUP($AO111,Data!$A$6:$A$1806,Data!$E$6:$E$1806)*-1,LOOKUP($AO111,Data!$A$6:$A$1806,Data!$E$6:$E$1806)) -> -214.3466949 | AT111: =LOOKUP($AO111,Data!$A$6:$A$1806,Data!$F$6:$F$1806) -> 7 | AU111: =LOOKUP($AO111,Data!$A$6:$A$1806,Data!$G$6:$G$1806) -> 98 | AV111: =LOOKUP($AO111,Data!$A$6:$A$1806,Data!$H$6:$H$1806) -> 10 | AW111: =LOOKUP($AO111,Data!$A$6:$A$1806,Data!$I$6:$I$1806) -> 0 | AX111: =LOOKUP($AO111,Data!$A$6:$A$1806,Data!$J$6:$J$1806) -> -103 | AY111: =LOOKUP($AO111,Data!$A$6:$A$1806,Data!$K$6:$K$1806) -> 7564.68 | AZ111: 94.40002441 | BA111: T+64 sec | BB111: 40098.10306 | BO111: T+64 sec | BP111: 40098.10306 | CC111: T+64 sec | CD111: 40098.10306 | CQ111: T+64 sec | CR111: 40098.10306 | DE111: T+64 sec | DF111: 40098.10306
A112: T+66 sec | B112: 40098.10308 | C112: =LOOKUP(B112,Data!$A$6:$A$1806,Data!B$6:B$1806) -> 59.85699844 | D112: =LOOKUP(B112,Data!$A$6:$A$1806,Data!C$6:C$1806) -> 3809.237305 | H112: 114.4012451 | I112: 100.1471668 | L112: 0.5803577926 | M112: 3797.611128 | N112: =AVERAGE(D$79:D112) -> 3767.961246 | O112: =AVERAGE(M$79:M112) -> 3776.010599 | P112: 3696.76884 | Q112: =AVERAGE(P$79:P112) -> 3687.483116 | R112: 633 | Y112: 0 | Z112: 633 | AA112: -343.5516237 | AC112: T+66 sec | AN112: T+66 sec | AO112: 40098.10308 | AP112: =LOOKUP($AO112,Data!$A$6:$A$1806,Data!$B$6:$B$1806) -> 59.85699844 | AQ112: =LOOKUP($AO112,Data!$A$6:$A$1806,Data!$C$6:$C$1806) -> 3809.237305 | AR112: =LOOKUP($AO112,Data!$A$6:$A$1806,Data!$D$6:$D$1806) -> 335 | AS112: =IF($AS$1="+",LOOKUP($AO112,Data!$A$6:$A$1806,Data!$E$6:$E$1806)*-1,LOOKUP($AO112,Data!$A$6:$A$1806,Data!$E$6:$E$1806)) -> -214.3466949 | AT112: =LOOKUP($AO112,Data!$A$6:$A$1806,Data!$F$6:$F$1806) -> 8 | AU112: =LOOKUP($AO112,Data!$A$6:$A$1806,Data!$G$6:$G$1806) -> 98.5 | AV112: =LOOKUP($AO112,Data!$A$6:$A$1806,Data!$H$6:$H$1806) -> 10 | AW112: =LOOKUP($AO112,Data!$A$6:$A$1806,Data!$I$6:$I$1806) -> 0 | AX112: =LOOKUP($AO112,Data!$A$6:$A$1806,Data!$J$6:$J$1806) -> -103 | AY112: =LOOKUP($AO112,Data!$A$6:$A$1806,Data!$K$6:$K$1806) -> 7565.01 | AZ112: 114.4012451 | BA112: T+66 sec | BB112: 40098.10308 | BO112: T+66 sec | BP112: 40098.10308 | CC112: T+66 sec | CD112: 40098.10308 | CQ112: T+66 sec | CR112: 40098.10308 | DE112: T+66 sec | DF112: 40098.10308
A113: T+68 sec | B113: 40098.1031 | C113: =LOOKUP(B113,Data!$A$6:$A$1806,Data!B$6:B$1806) -> 59.85699844 | D113: =LOOKUP(B113,Data!$A$6:$A$1806,Data!C$6:C$1806) -> 3809.237305 | H113: 114.4012451 | I113: 105.1360942 | L113: 0.5803577926 | M113: 3803.180413 | N113: =AVERAGE(D$79:D113) -> 3769.140562 | O113: =AVERAGE(M$79:M113) -> 3776.786879 | P113: 3697.349198 | Q113: =AVERAGE(P$79:P113) -> 3687.773294 | R113: 633 | Y113: 0 | Z113: 633 | AA113: -343.5516237 | AC113: T+68 sec | AN113: T+68 sec | AO113: 40098.1031 | AP113: =LOOKUP($AO113,Data!$A$6:$A$1806,Data!$B$6:$B$1806) -> 59.85699844 | AQ113: =LOOKUP($AO113,Data!$A$6:$A$1806,Data!$C$6:$C$1806) -> 3809.237305 | AR113: =LOOKUP($AO113,Data!$A$6:$A$1806,Data!$D$6:$D$1806) -> 335 | AS113: =IF($AS$1="+",LOOKUP($AO113,Data!$A$6:$A$1806,Data!$E$6:$E$1806)*-1,LOOKUP($AO113,Data!$A$6:$A$1806,Data!$E$6:$E$1806)) -> -214.3466949 | AT113: =LOOKUP($AO113,Data!$A$6:$A$1806,Data!$F$6:$F$1806) -> 8 | AU113: =LOOKUP($AO113,Data!$A$6:$A$1806,Data!$G$6:$G$1806) -> 98.5 | AV113: =LOOKUP($AO113,Data!$A$6:$A$1806,Data!$H$6:$H$1806) -> 10 | AW113: =LOOKUP($AO113,Data!$A$6:$A$1806,Data!$I$6:$I$1806) -> 0 | AX113: =LOOKUP($AO113,Data!$A$6:$A$1806,Data!$J$6:$J$1806) -> -103 | AY113: =LOOKUP($AO113,Data!$A$6:$A$1806,Data!$K$6:$K$1806) -> 7565.01 | AZ113: 114.4012451 | BA113: T+68 sec | BB113: 40098.1031 | BO113: T+68 sec | BP113: 40098.1031 | CC113: T+68 sec | CD113: 40098.1031 | CQ113: T+68 sec | CR113: 40098.1031 | DE113: T+68 sec | DF113: 40098.1031
A114: T+70 sec | B114: 40098.10312 | C114: =LOOKUP(B114,Data!$A$6:$A$1806,Data!B$6:B$1806) -> 59.85699844 | D114: =LOOKUP(B114,Data!$A$6:$A$1806,Data!C$6:C$1806) -> 3809.237305 | H114: 114.4012451 | I114: 108.378897 | L114: 0.5803577926 | M114: 3807.003573 | N114: =AVERAGE(D$79:D114) -> 3770.254361 | O114: =AVERAGE(M$79:M114) -> 3777.626232 | P114: 3697.929556 | Q114: =AVERAGE(P$79:P114) -> 3688.063473 | R114: 633 | Y114: 0 | Z114: 633 | AA114: -343.5516237 | AC114: T+70 sec | AN114: T+70 sec | AO114: 40098.10312 | AP114: =LOOKUP($AO114,Data!$A$6:$A$1806,Data!$B$6:$B$1806) -> 59.85699844 | AQ114: =LOOKUP($AO114,Data!$A$6:$A$1806,Data!$C$6:$C$1806) -> 3809.237305 | AR114: =LOOKUP($AO114,Data!$A$6:$A$1806,Data!$D$6:$D$1806) -> 335 | AS114: =IF($AS$1="+",LOOKUP($AO114,Data!$A$6:$A$1806,Data!$E$6:$E$1806)*-1,LOOKUP($AO114,Data!$A$6:$A$1806,Data!$E$6:$E$1806)) -> -214.3466949 | AT114: =LOOKUP($AO114,Data!$A$6:$A$1806,Data!$F$6:$F$1806) -> 8 | AU114: =LOOKUP($AO114,Data!$A$6:$A$1806,Data!$G$6:$G$1806) -> 98.5 | AV114: =LOOKUP($AO114,Data!$A$6:$A$1806,Data!$H$6:$H$1806) -> 10 | AW114: =LOOKUP($AO114,Data!$A$6:$A$1806,Data!$I$6:$I$1806) -> 0 | AX114: =LOOKUP($AO114,Data!$A$6:$A$1806,Data!$J$6:$J$1806) -> -103 | AY114: =LOOKUP($AO114,Data!$A$6:$A$1806,Data!$K$6:$K$1806) -> 7565.01 | AZ114: 114.4012451 | BA114: T+70 sec | BB114: 40098.10312 | BO114: T+70 sec | BP114: 40098.10312 | CC114: T+70 sec | CD114: 40098.10312 | CQ114: T+70 sec | CR114: 40098.10312 | DE114: T+70 sec | DF114: 40098.10312
A115: T+72 sec | B115: 40098.10315 | C115: =LOOKUP(B115,Data!$A$6:$A$1806,Data!B$6:B$1806) -> 59.85800171 | D115: =LOOKUP(B115,Data!$A$6:$A$1806,Data!C$6:C$1806) -> 3814.862305 | H115: 113.5986328 | I115: 110.2058046 | L115: 0.5803577926 | M115: 3809.410839 | N115: =AVERAGE(D$79:D115) -> 3771.459981 | O115: =AVERAGE(M$79:M115) -> 3778.485275 | P115: 3698.509914 | Q115: =AVERAGE(P$79:P115) -> 3688.353652 | R115: 633 | Y115: 0 | Z115: 633 | AA115: -345.4325308 | AC115: T+72 sec | AN115: T+72 sec | AO115: 40098.10315 | AP115: =LOOKUP($AO115,Data!$A$6:$A$1806,Data!$B$6:$B$1806) -> 59.85800171 | AQ115: =LOOKUP($AO115,Data!$A$6:$A$1806,Data!$C$6:$C$1806) -> 3814.862305 | AR115: =LOOKUP($AO115,Data!$A$6:$A$1806,Data!$D$6:$D$1806) -> 335 | AS115: =IF($AS$1="+",LOOKUP($AO115,Data!$A$6:$A$1806,Data!$E$6:$E$1806)*-1,LOOKUP($AO115,Data!$A$6:$A$1806,Data!$E$6:$E$1806)) -> -214.3466949 | AT115: =LOOKUP($AO115,Data!$A$6:$A$1806,Data!$F$6:$F$1806) -> 9 | AU115: =LOOKUP($AO115,Data!$A$6:$A$1806,Data!$G$6:$G$1806) -> 99 | AV115: =LOOKUP($AO115,Data!$A$6:$A$1806,Data!$H$6:$H$1806) -> 10 | AW115: =LOOKUP($AO115,Data!$A$6:$A$1806,Data!$I$6:$I$1806) -> 0 | AX115: =LOOKUP($AO115,Data!$A$6:$A$1806,Data!$J$6:$J$1806) -> -103 | AY115: =LOOKUP($AO115,Data!$A$6:$A$1806,Data!$K$6:$K$1806) -> 7565.34 | AZ115: 113.5986328 | BA115: T+72 sec | BB115: 40098.10315 | BO115: T+72 sec | BP115: 40098.10315 | CC115: T+72 sec | CD115: 40098.10315 | CQ115: T+72 sec | CR115: 40098.10315 | DE115: T+72 sec | DF115: 40098.10315
A116: T+74 sec | B116: 40098.10317 | C116: =LOOKUP(B116,Data!$A$6:$A$1806,Data!B$6:B$1806) -> 59.85800171 | D116: =LOOKUP(B116,Data!$A$6:$A$1806,Data!C$6:C$1806) -> 3814.862305 | H116: 113.5986328 | I116: 111.3932944 | L116: 0.5803577926 | M116: 3811.178686 | N116: =AVERAGE(D$79:D116) -> 3772.602147 | O116: =AVERAGE(M$79:M116) -> 3779.345628 | P116: 3699.090271 | Q116: =AVERAGE(P$79:P116) -> 3688.643831 | R116: 633 | Y116: 0 | Z116: 633 | AA116: -345.4325308 | AC116: T+74 sec | AN116: T+74 sec | AO116: 40098.10317 | AP116: =LOOKUP($AO116,Data!$A$6:$A$1806,Data!$B$6:$B$1806) -> 59.85800171 | AQ116: =LOOKUP($AO116,Data!$A$6:$A$1806,Data!$C$6:$C$1806) -> 3814.862305 | AR116: =LOOKUP($AO116,Data!$A$6:$A$1806,Data!$D$6:$D$1806) -> 335 | AS116: =IF($AS$1="+",LOOKUP($AO116,Data!$A$6:$A$1806,Data!$E$6:$E$1806)*-1,LOOKUP($AO116,Data!$A$6:$A$1806,Data!$E$6:$E$1806)) -> -214.3466949 | AT116: =LOOKUP($AO116,Data!$A$6:$A$1806,Data!$F$6:$F$1806) -> 9 | AU116: =LOOKUP($AO116,Data!$A$6:$A$1806,Data!$G$6:$G$1806) -> 99 | AV116: =LOOKUP($AO116,Data!$A$6:$A$1806,Data!$H$6:$H$1806) -> 10 | AW116: =LOOKUP($AO116,Data!$A$6:$A$1806,Data!$I$6:$I$1806) -> 0 | AX116: =LOOKUP($AO116,Data!$A$6:$A$1806,Data!$J$6:$J$1806) -> -103 | AY116: =LOOKUP($AO116,Data!$A$6:$A$1806,Data!$K$6:$K$1806) -> 7565.34 | AZ116: 113.5986328 | BA116: T+74 sec | BB116: 40098.10317 | BO116: T+74 sec | BP116: 40098.10317 | CC116: T+74 sec | CD116: 40098.10317 | CQ116: T+74 sec | CR116: 40098.10317 | DE116: T+74 sec | DF116: 40098.10317
A117: T+76 sec | B117: 40098.10319 | C117: =LOOKUP(B117,Data!$A$6:$A$1806,Data!B$6:B$1806) -> 59.86600113 | D117: =LOOKUP(B117,Data!$A$6:$A$1806,Data!C$6:C$1806) -> 3826.053223 | H117: 107.1990967 | I117: 109.9253252 | L117: 0.5803577926 | M117: 3810.291075 | N117: =AVERAGE(D$79:D117) -> 3773.972688 | O117: =AVERAGE(M$79:M117) -> 3780.139101 | P117: 3699.670629 | Q117: =AVERAGE(P$79:P117) -> 3688.93401 | R117: 633 | Y117: 0 | Z117: 633 | AA117: -361.2001437 | AC117: T+76 sec | AN117: T+76 sec | AO117: 40098.10319 | AP117: =LOOKUP($AO117,Data!$A$6:$A$1806,Data!$B$6:$B$1806) -> 59.86600113 | AQ117: =LOOKUP($AO117,Data!$A$6:$A$1806,Data!$C$6:$C$1806) -> 3826.053223 | AR117: =LOOKUP($AO117,Data!$A$6:$A$1806,Data!$D$6:$D$1806) -> 335 | AS117: =IF($AS$1="+",LOOKUP($AO117,Data!$A$6:$A$1806,Data!$E$6:$E$1806)*-1,LOOKUP($AO117,Data!$A$6:$A$1806,Data!$E$6:$E$1806)) -> -212.172699 | AT117: =LOOKUP($AO117,Data!$A$6:$A$1806,Data!$F$6:$F$1806) -> 10 | AU117: =LOOKUP($AO117,Data!$A$6:$A$1806,Data!$G$6:$G$1806) -> 99.5 | AV117: =LOOKUP($AO117,Data!$A$6:$A$1806,Data!$H$6:$H$1806) -> 10 | AW117: =LOOKUP($AO117,Data!$A$6:$A$1806,Data!$I$6:$I$1806) -> 0 | AX117: =LOOKUP($AO117,Data!$A$6:$A$1806,Data!$J$6:$J$1806) -> -103 | AY117: =LOOKUP($AO117,Data!$A$6:$A$1806,Data!$K$6:$K$1806) -> 7565.67 | AZ117: 107.1990967 | BA117: T+76 sec | BB117: 40098.10319 | BO117: T+76 sec | BP117: 40098.10319 | CC117: T+76 sec | CD117: 40098.10319 | CQ117: T+76 sec | CR117: 40098.10319 | DE117: T+76 sec | DF117: 40098.10319
A118: T+78 sec | B118: 40098.10322 | C118: =LOOKUP(B118,Data!$A$6:$A$1806,Data!B$6:B$1806) -> 59.86600113 | D118: =LOOKUP(B118,Data!$A$6:$A$1806,Data!C$6:C$1806) -> 3826.053223 | H118: 107.1990967 | I118: 108.9711452 | L118: 0.5803577926 | M118: 3809.917253 | N118: =AVERAGE(D$79:D118) -> 3775.274701 | O118: =AVERAGE(M$79:M118) -> 3780.883555 | P118: 3700.250987 | Q118: =AVERAGE(P$79:P118) -> 3689.224189 | R118: 633 | Y118: 0 | Z118: 633 | AA118: -361.2001437 | AC118: T+78 sec | AN118: T+78 sec | AO118: 40098.10322 | AP118: =LOOKUP($AO118,Data!$A$6:$A$1806,Data!$B$6:$B$1806) -> 59.86600113 | AQ118: =LOOKUP($AO118,Data!$A$6:$A$1806,Data!$C$6:$C$1806) -> 3826.053223 | AR118: =LOOKUP($AO118,Data!$A$6:$A$1806,Data!$D$6:$D$1806) -> 335 | AS118: =IF($AS$1="+",LOOKUP($AO118,Data!$A$6:$A$1806,Data!$E$6:$E$1806)*-1,LOOKUP($AO118,Data!$A$6:$A$1806,Data!$E$6:$E$1806)) -> -212.172699 | AT118: =LOOKUP($AO118,Data!$A$6:$A$1806,Data!$F$6:$F$1806) -> 10 | AU118: =LOOKUP($AO118,Data!$A$6:$A$1806,Data!$G$6:$G$1806) -> 99.5 | AV118: =LOOKUP($AO118,Data!$A$6:$A$1806,Data!$H$6:$H$1806) -> 10 | AW118: =LOOKUP($AO118,Data!$A$6:$A$1806,Data!$I$6:$I$1806) -> 0 | AX118: =LOOKUP($AO118,Data!$A$6:$A$1806,Data!$J$6:$J$1806) -> -103 | AY118: =LOOKUP($AO118,Data!$A$6:$A$1806,Data!$K$6:$K$1806) -> 7565.67 | AZ118: 107.1990967 | BA118: T+78 sec | BB118: 40098.10322 | BO118: T+78 sec | BP118: 40098.10322 | CC118: T+78 sec | CD118: 40098.10322 | CQ118: T+78 sec | CR118: 40098.10322 | DE118: T+78 sec | DF118: 40098.10322
A119: T+80 sec | B119: 40098.10324 | C119: =LOOKUP(B119,Data!$A$6:$A$1806,Data!B$6:B$1806) -> 59.86600113 | D119: =LOOKUP(B119,Data!$A$6:$A$1806,Data!C$6:C$1806) -> 3826.053223 | H119: 107.1990967 | I119: 108.3509282 | L119: 0.5803577926 | M119: 3809.877394 | N119: =AVERAGE(D$79:D119) -> 3776.513201 | O119: =AVERAGE(M$79:M119) -> 3781.590722 | P119: 3700.831345 | Q119: =AVERAGE(P$79:P119) -> 3689.514368 | R119: 633 | Y119: 0 | Z119: 633 | AA119: -361.2001437 | AC119: T+80 sec | AN119: T+80 sec | AO119: 40098.10324 | AP119: =LOOKUP($AO119,Data!$A$6:$A$1806,Data!$B$6:$B$1806) -> 59.86600113 | AQ119: =LOOKUP($AO119,Data!$A$6:$A$1806,Data!$C$6:$C$1806) -> 3826.053223 | AR119: =LOOKUP($AO119,Data!$A$6:$A$1806,Data!$D$6:$D$1806) -> 335 | AS119: =IF($AS$1="+",LOOKUP($AO119,Data!$A$6:$A$1806,Data!$E$6:$E$1806)*-1,LOOKUP($AO119,Data!$A$6:$A$1806,Data!$E$6:$E$1806)) -> -212.172699 | AT119: =LOOKUP($AO119,Data!$A$6:$A$1806,Data!$F$6:$F$1806) -> 10 | AU119: =LOOKUP($AO119,Data!$A$6:$A$1806,Data!$G$6:$G$1806) -> 99.5 | AV119: =LOOKUP($AO119,Data!$A$6:$A$1806,Data!$H$6:$H$1806) -> 10 | AW119: =LOOKUP($AO119,Data!$A$6:$A$1806,Data!$I$6:$I$1806) -> 0 | AX119: =LOOKUP($AO119,Data!$A$6:$A$1806,Data!$J$6:$J$1806) -> -103 | AY119: =LOOKUP($AO119,Data!$A$6:$A$1806,Data!$K$6:$K$1806) -> 7565.67 | AZ119: 107.1990967 | BA119: T+80 sec | BB119: 40098.10324 | BO119: T+80 sec | BP119: 40098.10324 | CC119: T+80 sec | CD119: 40098.10324 | CQ119: T+80 sec | CR119: 40098.10324 | DE119: T+80 sec | DF119: 40098.10324
B120: 40098.10326 | C120: =LOOKUP(B120,Data!$A$6:$A$1806,Data!B$6:B$1806) -> 59.86600113 | D120: =LOOKUP(B120,Data!$A$6:$A$1806,Data!C$6:C$1806) -> 3827.523926 | H120: 107.1990967 | I120: 107.9477872 | L120: 0.5803577926 | M120: 3810.05461 | N120: =AVERAGE(D$79:D120) -> 3777.727743 | O120: =AVERAGE(M$79:M120) -> 3782.268434 | P120: 3701.411703 | Q120: =AVERAGE(P$79:P120) -> 3689.804547 | R120: 633 | Y120: 0 | Z120: 633 | AA120: -361.2001437 | AO120: 40098.10326 | AP120: =LOOKUP($AO120,Data!$A$6:$A$1806,Data!$B$6:$B$1806) -> 59.86600113 | AQ120: =LOOKUP($AO120,Data!$A$6:$A$1806,Data!$C$6:$C$1806) -> 3827.523926 | AR120: =LOOKUP($AO120,Data!$A$6:$A$1806,Data!$D$6:$D$1806) -> 335 | AS120: =IF($AS$1="+",LOOKUP($AO120,Data!$A$6:$A$1806,Data!$E$6:$E$1806)*-1,LOOKUP($AO120,Data!$A$6:$A$1806,Data!$E$6:$E$1806)) -> -212.172699 | AT120: =LOOKUP($AO120,Data!$A$6:$A$1806,Data!$F$6:$F$1806) -> 11 | AU120: =LOOKUP($AO120,Data!$A$6:$A$1806,Data!$G$6:$G$1806) -> 100 | AV120: =LOOKUP($AO120,Data!$A$6:$A$1806,Data!$H$6:$H$1806) -> 10 | AW120: =LOOKUP($AO120,Data!$A$6:$A$1806,Data!$I$6:$I$1806) -> 0 | AX120: =LOOKUP($AO120,Data!$A$6:$A$1806,Data!$J$6:$J$1806) -> -103 | AY120: =LOOKUP($AO120,Data!$A$6:$A$1806,Data!$K$6:$K$1806) -> 7566 | AZ120: 107.1990967
B121: 40098.10329 | C121: =LOOKUP(B121,Data!$A$6:$A$1806,Data!B$6:B$1806) -> 59.86600113 | D121: =LOOKUP(B121,Data!$A$6:$A$1806,Data!C$6:C$1806) -> 3827.523926 | H121: 107.1990967 | I121: 107.6857455 | L121: 0.5803577926 | M121: 3810.372926 | N121: =AVERAGE(D$79:D121) -> 3778.885793 | O121: =AVERAGE(M$79:M121) -> 3782.922026 | P121: 3701.99206 | Q121: =AVERAGE(P$79:P121) -> 3690.094726 | R121: 633 | Y121: 0 | Z121: 633 | AA121: -361.2001437 | AO121: 40098.10329 | AP121: =LOOKUP($AO121,Data!$A$6:$A$1806,Data!$B$6:$B$1806) -> 59.86600113 | AQ121: =LOOKUP($AO121,Data!$A$6:$A$1806,Data!$C$6:$C$1806) -> 3827.523926 | AR121: =LOOKUP($AO121,Data!$A$6:$A$1806,Data!$D$6:$D$1806) -> 335 | AS121: =IF($AS$1="+",LOOKUP($AO121,Data!$A$6:$A$1806,Data!$E$6:$E$1806)*-1,LOOKUP($AO121,Data!$A$6:$A$1806,Data!$E$6:$E$1806)) -> -212.172699 | AT121: =LOOKUP($AO121,Data!$A$6:$A$1806,Data!$F$6:$F$1806) -> 11 | AU121: =LOOKUP($AO121,Data!$A$6:$A$1806,Data!$G$6:$G$1806) -> 100 | AV121: =LOOKUP($AO121,Data!$A$6:$A$1806,Data!$H$6:$H$1806) -> 10 | AW121: =LOOKUP($AO121,Data!$A$6:$A$1806,Data!$I$6:$I$1806) -> 0 | AX121: =LOOKUP($AO121,Data!$A$6:$A$1806,Data!$J$6:$J$1806) -> -103 | AY121: =LOOKUP($AO121,Data!$A$6:$A$1806,Data!$K$6:$K$1806) -> 7566 | AZ121: 107.1990967
B122: 40098.10331 | C122: =LOOKUP(B122,Data!$A$6:$A$1806,Data!B$6:B$1806) -> 59.87400055 | D122: =LOOKUP(B122,Data!$A$6:$A$1806,Data!C$6:C$1806) -> 3826.453613 | H122: 100.7995605 | I122: 105.2755808 | L122: 0.5803577926 | M122: 3808.54312 | N122: =AVERAGE(D$79:D122) -> 3779.96688 | O122: =AVERAGE(M$79:M122) -> 3783.504324 | P122: 3702.572418 | Q122: =AVERAGE(P$79:P122) -> 3690.384905 | R122: 633 | Y122: 0 | Z122: 633 | AA122: -378.4760614 | AO122: 40098.10331 | AP122: =LOOKUP($AO122,Data!$A$6:$A$1806,Data!$B$6:$B$1806) -> 59.87400055 | AQ122: =LOOKUP($AO122,Data!$A$6:$A$1806,Data!$C$6:$C$1806) -> 3826.453613 | AR122: =LOOKUP($AO122,Data!$A$6:$A$1806,Data!$D$6:$D$1806) -> 335 | AS122: =IF($AS$1="+",LOOKUP($AO122,Data!$A$6:$A$1806,Data!$E$6:$E$1806)*-1,LOOKUP($AO122,Data!$A$6:$A$1806,Data!$E$6:$E$1806)) -> -212.172699 | AT122: =LOOKUP($AO122,Data!$A$6:$A$1806,Data!$F$6:$F$1806) -> 12 | AU122: =LOOKUP($AO122,Data!$A$6:$A$1806,Data!$G$6:$G$1806) -> 100.5 | AV122: =LOOKUP($AO122,Data!$A$6:$A$1806,Data!$H$6:$H$1806) -> 10 | AW122: =LOOKUP($AO122,Data!$A$6:$A$1806,Data!$I$6:$I$1806) -> 0 | AX122: =LOOKUP($AO122,Data!$A$6:$A$1806,Data!$J$6:$J$1806) -> -103 | AY122: =LOOKUP($AO122,Data!$A$6:$A$1806,Data!$K$6:$K$1806) -> 7566.33 | AZ122: 100.7995605
B123: 40098.10333 | C123: =LOOKUP(B123,Data!$A$6:$A$1806,Data!B$6:B$1806) -> 59.87400055 | D123: =LOOKUP(B123,Data!$A$6:$A$1806,Data!C$6:C$1806) -> 3826.453613 | H123: 100.7995605 | I123: 103.7089737 | L123: 0.5803577926 | M123: 3807.55687 | N123: =AVERAGE(D$79:D123) -> 3780.999919 | O123: =AVERAGE(M$79:M123) -> 3784.038825 | P123: 3703.152776 | Q123: =AVERAGE(P$79:P123) -> 3690.675083 | R123: 633 | Y123: 0 | Z123: 633 | AA123: -378.4760614 | AO123: 40098.10333 | AP123: =LOOKUP($AO123,Data!$A$6:$A$1806,Data!$B$6:$B$1806) -> 59.87400055 | AQ123: =LOOKUP($AO123,Data!$A$6:$A$1806,Data!$C$6:$C$1806) -> 3826.453613 | AR123: =LOOKUP($AO123,Data!$A$6:$A$1806,Data!$D$6:$D$1806) -> 335 | AS123: =IF($AS$1="+",LOOKUP($AO123,Data!$A$6:$A$1806,Data!$E$6:$E$1806)*-1,LOOKUP($AO123,Data!$A$6:$A$1806,Data!$E$6:$E$1806)) -> -212.172699 | AT123: =LOOKUP($AO123,Data!$A$6:$A$1806,Data!$F$6:$F$1806) -> 12 | AU123: =LOOKUP($AO123,Data!$A$6:$A$1806,Data!$G$6:$G$1806) -> 100.5 | AV123: =LOOKUP($AO123,Data!$A$6:$A$1806,Data!$H$6:$H$1806) -> 10 | AW123: =LOOKUP($AO123,Data!$A$6:$A$1806,Data!$I$6:$I$1806) -> 0 | AX123: =LOOKUP($AO123,Data!$A$6:$A$1806,Data!$J$6:$J$1806) -> -103 | AY123: =LOOKUP($AO123,Data!$A$6:$A$1806,Data!$K$6:$K$1806) -> 7566.33 | AZ123: 100.7995605
B124: 40098.10336 | C124: =LOOKUP(B124,Data!$A$6:$A$1806,Data!B$6:B$1806) -> 59.87400055 | D124: =LOOKUP(B124,Data!$A$6:$A$1806,Data!C$6:C$1806) -> 3826.453613 | H124: 100.7995605 | I124: 102.6906791 | L124: 0.5803577926 | M124: 3807.118933 | N124: =AVERAGE(D$79:D124) -> 3781.988042 | O124: =AVERAGE(M$79:M124) -> 3784.540566 | P124: 3703.733134 | Q124: =AVERAGE(P$79:P124) -> 3690.965262 | R124: 633 | Y124: 0 | Z124: 633 | AA124: -378.4760614 | AO124: 40098.10336 | AP124: =LOOKUP($AO124,Data!$A$6:$A$1806,Data!$B$6:$B$1806) -> 59.87400055 | AQ124: =LOOKUP($AO124,Data!$A$6:$A$1806,Data!$C$6:$C$1806) -> 3826.453613 | AR124: =LOOKUP($AO124,Data!$A$6:$A$1806,Data!$D$6:$D$1806) -> 335 | AS124: =IF($AS$1="+",LOOKUP($AO124,Data!$A$6:$A$1806,Data!$E$6:$E$1806)*-1,LOOKUP($AO124,Data!$A$6:$A$1806,Data!$E$6:$E$1806)) -> -212.172699 | AT124: =LOOKUP($AO124,Data!$A$6:$A$1806,Data!$F$6:$F$1806) -> 12 | AU124: =LOOKUP($AO124,Data!$A$6:$A$1806,Data!$G$6:$G$1806) -> 100.5 | AV124: =LOOKUP($AO124,Data!$A$6:$A$1806,Data!$H$6:$H$1806) -> 10 | AW124: =LOOKUP($AO124,Data!$A$6:$A$1806,Data!$I$6:$I$1806) -> 0 | AX124: =LOOKUP($AO124,Data!$A$6:$A$1806,Data!$J$6:$J$1806) -> -103 | AY124: =LOOKUP($AO124,Data!$A$6:$A$1806,Data!$K$6:$K$1806) -> 7566.33 | AZ124: 100.7995605
B125: 40098.10338 | C125: =LOOKUP(B125,Data!$A$6:$A$1806,Data!B$6:B$1806) -> 59.88299942 | D125: =LOOKUP(B125,Data!$A$6:$A$1806,Data!C$6:C$1806) -> 3823.825684 | H125: 93.60046387 | I125: 99.50910376 | L125: 0.5803577926 | M125: 3804.517716 | N125: =AVERAGE(D$79:D125) -> 3782.878205 | O125: =AVERAGE(M$79:M125) -> 3784.965612 | P125: 3704.313492 | Q125: =AVERAGE(P$79:P125) -> 3691.255441 | R125: 633 | Y125: 0 | Z125: 633 | AA125: -399.9979559 | AO125: 40098.10338 | AP125: =LOOKUP($AO125,Data!$A$6:$A$1806,Data!$B$6:$B$1806) -> 59.88299942 | AQ125: =LOOKUP($AO125,Data!$A$6:$A$1806,Data!$C$6:$C$1806) -> 3823.825684 | AR125: =LOOKUP($AO125,Data!$A$6:$A$1806,Data!$D$6:$D$1806) -> 335 | AS125: =IF($AS$1="+",LOOKUP($AO125,Data!$A$6:$A$1806,Data!$E$6:$E$1806)*-1,LOOKUP($AO125,Data!$A$6:$A$1806,Data!$E$6:$E$1806)) -> -212.172699 | AT125: =LOOKUP($AO125,Data!$A$6:$A$1806,Data!$F$6:$F$1806) -> 13 | AU125: =LOOKUP($AO125,Data!$A$6:$A$1806,Data!$G$6:$G$1806) -> 101 | AV125: =LOOKUP($AO125,Data!$A$6:$A$1806,Data!$H$6:$H$1806) -> 10 | AW125: =LOOKUP($AO125,Data!$A$6:$A$1806,Data!$I$6:$I$1806) -> 0 | AX125: =LOOKUP($AO125,Data!$A$6:$A$1806,Data!$J$6:$J$1806) -> -103 | AY125: =LOOKUP($AO125,Data!$A$6:$A$1806,Data!$K$6:$K$1806) -> 7566.66 | AZ125: 93.60046387
B126: 40098.1034 | C126: =LOOKUP(B126,Data!$A$6:$A$1806,Data!B$6:B$1806) -> 59.88299942 | D126: =LOOKUP(B126,Data!$A$6:$A$1806,Data!C$6:C$1806) -> 3823.825684 | H126: 93.60046387 | I126: 97.4410798 | L126: 0.5803577926 | M126: 3803.03005 | N126: =AVERAGE(D$79:D126) -> 3783.731277 | O126: =AVERAGE(M$79:M126) -> 3785.341955 | P126: 3704.893849 | Q126: =AVERAGE(P$79:P126) -> 3691.54562 | R126: 633 | Y126: 0 | Z126: 633 | AA126: -399.9979559 | AO126: 40098.1034 | AP126: =LOOKUP($AO126,Data!$A$6:$A$1806,Data!$B$6:$B$1806) -> 59.88299942 | AQ126: =LOOKUP($AO126,Data!$A$6:$A$1806,Data!$C$6:$C$1806) -> 3823.825684 | AR126: =LOOKUP($AO126,Data!$A$6:$A$1806,Data!$D$6:$D$1806) -> 335 | AS126: =IF($AS$1="+",LOOKUP($AO126,Data!$A$6:$A$1806,Data!$E$6:$E$1806)*-1,LOOKUP($AO126,Data!$A$6:$A$1806,Data!$E$6:$E$1806)) -> -212.172699 | AT126: =LOOKUP($AO126,Data!$A$6:$A$1806,Data!$F$6:$F$1806) -> 13 | AU126: =LOOKUP($AO126,Data!$A$6:$A$1806,Data!$G$6:$G$1806) -> 101 | AV126: =LOOKUP($AO126,Data!$A$6:$A$1806,Data!$H$6:$H$1806) -> 10 | AW126: =LOOKUP($AO126,Data!$A$6:$A$1806,Data!$I$6:$I$1806) -> 0 | AX126: =LOOKUP($AO126,Data!$A$6:$A$1806,Data!$J$6:$J$1806) -> -103 | AY126: =LOOKUP($AO126,Data!$A$6:$A$1806,Data!$K$6:$K$1806) -> 7566.66 | AZ126: 93.60046387
B127: 40098.10343 | C127: =LOOKUP(B127,Data!$A$6:$A$1806,Data!B$6:B$1806) -> 59.88999939 | D127: =LOOKUP(B127,Data!$A$6:$A$1806,Data!C$6:C$1806) -> 3818.055176 | H127: 88.00048828 | I127: 94.13687277 | L127: 0.5803577926 | M127: 3800.3062 | N127: =AVERAGE(D$79:D127) -> 3784.431765 | O127: =AVERAGE(M$79:M127) -> 3785.647347 | P127: 3705.474207 | Q127: =AVERAGE(P$79:P127) -> 3691.835799 | R127: 633 | Y127: 0 | Z127: 633 | AA127: -418.5100745 | AO127: 40098.10343 | AP127: =LOOKUP($AO127,Data!$A$6:$A$1806,Data!$B$6:$B$1806) -> 59.88999939 | AQ127: =LOOKUP($AO127,Data!$A$6:$A$1806,Data!$C$6:$C$1806) -> 3818.055176 | AR127: =LOOKUP($AO127,Data!$A$6:$A$1806,Data!$D$6:$D$1806) -> 335 | AS127: =IF($AS$1="+",LOOKUP($AO127,Data!$A$6:$A$1806,Data!$E$6:$E$1806)*-1,LOOKUP($AO127,Data!$A$6:$A$1806,Data!$E$6:$E$1806)) -> -212.172699 | AT127: =LOOKUP($AO127,Data!$A$6:$A$1806,Data!$F$6:$F$1806) -> 14 | AU127: =LOOKUP($AO127,Data!$A$6:$A$1806,Data!$G$6:$G$1806) -> 101.5 | AV127: =LOOKUP($AO127,Data!$A$6:$A$1806,Data!$H$6:$H$1806) -> 10 | AW127: =LOOKUP($AO127,Data!$A$6:$A$1806,Data!$I$6:$I$1806) -> 0 | AX127: =LOOKUP($AO127,Data!$A$6:$A$1806,Data!$J$6:$J$1806) -> -103 | AY127: =LOOKUP($AO127,Data!$A$6:$A$1806,Data!$K$6:$K$1806) -> 7566.99 | AZ127: 88.00048828
B128: 40098.10345 | C128: =LOOKUP(B128,Data!$A$6:$A$1806,Data!B$6:B$1806) -> 59.88999939 | D128: =LOOKUP(B128,Data!$A$6:$A$1806,Data!C$6:C$1806) -> 3818.055176 | H128: 88.00048828 | I128: 91.9891382 | L128: 0.5803577926 | M128: 3798.738824 | N128: =AVERAGE(D$79:D128) -> 3785.104233 | O128: =AVERAGE(M$79:M128) -> 3785.909177 | P128: 3706.054565 | Q128: =AVERAGE(P$79:P128) -> 3692.125978 | R128: 633 | Y128: 0 | Z128: 633 | AA128: -418.5100745 | AO128: 40098.10345 | AP128: =LOOKUP($AO128,Data!$A$6:$A$1806,Data!$B$6:$B$1806) -> 59.88999939 | AQ128: =LOOKUP($AO128,Data!$A$6:$A$1806,Data!$C$6:$C$1806) -> 3818.055176 | AR128: =LOOKUP($AO128,Data!$A$6:$A$1806,Data!$D$6:$D$1806) -> 335 | AS128: =IF($AS$1="+",LOOKUP($AO128,Data!$A$6:$A$1806,Data!$E$6:$E$1806)*-1,LOOKUP($AO128,Data!$A$6:$A$1806,Data!$E$6:$E$1806)) -> -212.172699 | AT128: =LOOKUP($AO128,Data!$A$6:$A$1806,Data!$F$6:$F$1806) -> 14 | AU128: =LOOKUP($AO128,Data!$A$6:$A$1806,Data!$G$6:$G$1806) -> 101.5 | AV128: =LOOKUP($AO128,Data!$A$6:$A$1806,Data!$H$6:$H$1806) -> 10 | AW128: =LOOKUP($AO128,Data!$A$6:$A$1806,Data!$I$6:$I$1806) -> 0 | AX128: =LOOKUP($AO128,Data!$A$6:$A$1806,Data!$J$6:$J$1806) -> -103 | AY128: =LOOKUP($AO128,Data!$A$6:$A$1806,Data!$K$6:$K$1806) -> 7566.99 | AZ128: 88.00048828
B129: 40098.10347 | C129: =LOOKUP(B129,Data!$A$6:$A$1806,Data!B$6:B$1806) -> 59.88999939 | D129: =LOOKUP(B129,Data!$A$6:$A$1806,Data!C$6:C$1806) -> 3818.055176 | H129: 88.00048828 | I129: 90.59311073 | L129: 0.5803577926 | M129: 3797.923154 | N129: =AVERAGE(D$79:D129) -> 3785.75033 | O129: =AVERAGE(M$79:M129) -> 3786.144745 | P129: 3706.634923 | Q129: =AVERAGE(P$79:P129) -> 3692.416157 | R129: 633 | Y129: 0 | Z129: 633 | AA129: -418.5100745 | AO129: 40098.10347 | AP129: =LOOKUP($AO129,Data!$A$6:$A$1806,Data!$B$6:$B$1806) -> 59.88999939 | AQ129: =LOOKUP($AO129,Data!$A$6:$A$1806,Data!$C$6:$C$1806) -> 3818.055176 | AR129: =LOOKUP($AO129,Data!$A$6:$A$1806,Data!$D$6:$D$1806) -> 335 | AS129: =IF($AS$1="+",LOOKUP($AO129,Data!$A$6:$A$1806,Data!$E$6:$E$1806)*-1,LOOKUP($AO129,Data!$A$6:$A$1806,Data!$E$6:$E$1806)) -> -212.172699 | AT129: =LOOKUP($AO129,Data!$A$6:$A$1806,Data!$F$6:$F$1806) -> 14 | AU129: =LOOKUP($AO129,Data!$A$6:$A$1806,Data!$G$6:$G$1806) -> 101.5 | AV129: =LOOKUP($AO129,Data!$A$6:$A$1806,Data!$H$6:$H$1806) -> 10 | AW129: =LOOKUP($AO129,Data!$A$6:$A$1806,Data!$I$6:$I$1806) -> 0 | AX129: =LOOKUP($AO129,Data!$A$6:$A$1806,Data!$J$6:$J$1806) -> -103 | AY129: =LOOKUP($AO129,Data!$A$6:$A$1806,Data!$K$6:$K$1806) -> 7566.99 | AZ129: 88.00048828
B130: 40098.1035 | C130: =LOOKUP(B130,Data!$A$6:$A$1806,Data!B$6:B$1806) -> 59.89300156 | D130: =LOOKUP(B130,Data!$A$6:$A$1806,Data!C$6:C$1806) -> 3815.009766 | H130: 85.59875488 | I130: 88.84508618 | L130: 0.5803577926 | M130: 3796.755487 | N130: =AVERAGE(D$79:D130) -> 3786.313012 | O130: =AVERAGE(M$79:M130) -> 3786.348798 | P130: 3707.215281 | Q130: =AVERAGE(P$79:P130) -> 3692.706336 | R130: 633 | Y130: 0 | Z130: 633 | AA130: -426.9852737 | AO130: 40098.1035 | AP130: =LOOKUP($AO130,Data!$A$6:$A$1806,Data!$B$6:$B$1806) -> 59.89300156 | AQ130: =LOOKUP($AO130,Data!$A$6:$A$1806,Data!$C$6:$C$1806) -> 3815.009766 | AR130: =LOOKUP($AO130,Data!$A$6:$A$1806,Data!$D$6:$D$1806) -> 335 | AS130: =IF($AS$1="+",LOOKUP($AO130,Data!$A$6:$A$1806,Data!$E$6:$E$1806)*-1,LOOKUP($AO130,Data!$A$6:$A$1806,Data!$E$6:$E$1806)) -> -215.598175 | AT130: =LOOKUP($AO130,Data!$A$6:$A$1806,Data!$F$6:$F$1806) -> 15 | AU130: =LOOKUP($AO130,Data!$A$6:$A$1806,Data!$G$6:$G$1806) -> 102 | AV130: =LOOKUP($AO130,Data!$A$6:$A$1806,Data!$H$6:$H$1806) -> 10 | AW130: =LOOKUP($AO130,Data!$A$6:$A$1806,Data!$I$6:$I$1806) -> 0 | AX130: =LOOKUP($AO130,Data!$A$6:$A$1806,Data!$J$6:$J$1806) -> -103 | AY130: =LOOKUP($AO130,Data!$A$6:$A$1806,Data!$K$6:$K$1806) -> 7567.32 | AZ130: 85.59875488
B131: 40098.10352 | C131: =LOOKUP(B131,Data!$A$6:$A$1806,Data!B$6:B$1806) -> 59.89300156 | D131: =LOOKUP(B131,Data!$A$6:$A$1806,Data!C$6:C$1806) -> 3815.009766 | H131: 85.59875488 | I131: 87.70887023 | L131: 0.5803577926 | M131: 3796.199629 | N131: =AVERAGE(D$79:D131) -> 3786.85446 | O131: =AVERAGE(M$79:M131) -> 3786.534663 | P131: 3707.795638 | Q131: =AVERAGE(P$79:P131) -> 3692.996515 | R131: 633 | Y131: 0 | Z131: 633 | AA131: -426.9852737 | AO131: 40098.10352 | AP131: =LOOKUP($AO131,Data!$A$6:$A$1806,Data!$B$6:$B$1806) -> 59.89300156 | AQ131: =LOOKUP($AO131,Data!$A$6:$A$1806,Data!$C$6:$C$1806) -> 3815.009766 | AR131: =LOOKUP($AO131,Data!$A$6:$A$1806,Data!$D$6:$D$1806) -> 335 | AS131: =IF($AS$1="+",LOOKUP($AO131,Data!$A$6:$A$1806,Data!$E$6:$E$1806)*-1,LOOKUP($AO131,Data!$A$6:$A$1806,Data!$E$6:$E$1806)) -> -215.598175 | AT131: =LOOKUP($AO131,Data!$A$6:$A$1806,Data!$F$6:$F$1806) -> 15 | AU131: =LOOKUP($AO131,Data!$A$6:$A$1806,Data!$G$6:$G$1806) -> 102 | AV131: =LOOKUP($AO131,Data!$A$6:$A$1806,Data!$H$6:$H$1806) -> 10 | AW131: =LOOKUP($AO131,Data!$A$6:$A$1806,Data!$I$6:$I$1806) -> 0 | AX131: =LOOKUP($AO131,Data!$A$6:$A$1806,Data!$J$6:$J$1806) -> -103 | AY131: =LOOKUP($AO131,Data!$A$6:$A$1806,Data!$K$6:$K$1806) -> 7567.32 | AZ131: 85.59875488
B132: 40098.10354 | C132: =LOOKUP(B132,Data!$A$6:$A$1806,Data!B$6:B$1806) -> 59.90299988 | D132: =LOOKUP(B132,Data!$A$6:$A$1806,Data!C$6:C$1806) -> 3809.651855 | H132: 77.60009766 | I132: 84.17079983 | L132: 0.5803577926 | M132: 3793.241916 | N132: =AVERAGE(D$79:D132) -> 3787.276634 | O132: =AVERAGE(M$79:M132) -> 3786.658871 | P132: 3708.375996 | Q132: =AVERAGE(P$79:P132) -> 3693.286694 | R132: 633 | Y132: 0 | Z132: 633 | AA132: -457.8650221 | AO132: 40098.10354 | AP132: =LOOKUP($AO132,Data!$A$6:$A$1806,Data!$B$6:$B$1806) -> 59.90299988 | AQ132: =LOOKUP($AO132,Data!$A$6:$A$1806,Data!$C$6:$C$1806) -> 3809.651855 | AR132: =LOOKUP($AO132,Data!$A$6:$A$1806,Data!$D$6:$D$1806) -> 335 | AS132: =IF($AS$1="+",LOOKUP($AO132,Data!$A$6:$A$1806,Data!$E$6:$E$1806)*-1,LOOKUP($AO132,Data!$A$6:$A$1806,Data!$E$6:$E$1806)) -> -215.598175 | AT132: =LOOKUP($AO132,Data!$A$6:$A$1806,Data!$F$6:$F$1806) -> 16 | AU132: =LOOKUP($AO132,Data!$A$6:$A$1806,Data!$G$6:$G$1806) -> 102.5 | AV132: =LOOKUP($AO132,Data!$A$6:$A$1806,Data!$H$6:$H$1806) -> 10 | AW132: =LOOKUP($AO132,Data!$A$6:$A$1806,Data!$I$6:$I$1806) -> 0 | AX132: =LOOKUP($AO132,Data!$A$6:$A$1806,Data!$J$6:$J$1806) -> -103 | AY132: =LOOKUP($AO132,Data!$A$6:$A$1806,Data!$K$6:$K$1806) -> 7567.65 | AZ132: 77.60009766
B133: 40098.10356 | C133: =LOOKUP(B133,Data!$A$6:$A$1806,Data!B$6:B$1806) -> 59.90299988 | D133: =LOOKUP(B133,Data!$A$6:$A$1806,Data!C$6:C$1806) -> 3809.651855 | H133: 77.60009766 | I133: 81.87105407 | L133: 0.5803577926 | M133: 3791.522529 | N133: =AVERAGE(D$79:D133) -> 3787.683456 | O133: =AVERAGE(M$79:M133) -> 3786.747301 | P133: 3708.956354 | Q133: =AVERAGE(P$79:P133) -> 3693.576872 | R133: 633 | Y133: 0 | Z133: 633 | AA133: -457.8650221 | AO133: 40098.10356 | AP133: =LOOKUP($AO133,Data!$A$6:$A$1806,Data!$B$6:$B$1806) -> 59.90299988 | AQ133: =LOOKUP($AO133,Data!$A$6:$A$1806,Data!$C$6:$C$1806) -> 3809.651855 | AR133: =LOOKUP($AO133,Data!$A$6:$A$1806,Data!$D$6:$D$1806) -> 335 | AS133: =IF($AS$1="+",LOOKUP($AO133,Data!$A$6:$A$1806,Data!$E$6:$E$1806)*-1,LOOKUP($AO133,Data!$A$6:$A$1806,Data!$E$6:$E$1806)) -> -215.598175 | AT133: =LOOKUP($AO133,Data!$A$6:$A$1806,Data!$F$6:$F$1806) -> 16 | AU133: =LOOKUP($AO133,Data!$A$6:$A$1806,Data!$G$6:$G$1806) -> 102.5 | AV133: =LOOKUP($AO133,Data!$A$6:$A$1806,Data!$H$6:$H$1806) -> 10 | AW133: =LOOKUP($AO133,Data!$A$6:$A$1806,Data!$I$6:$I$1806) -> 0 | AX133: =LOOKUP($AO133,Data!$A$6:$A$1806,Data!$J$6:$J$1806) -> -103 | AY133: =LOOKUP($AO133,Data!$A$6:$A$1806,Data!$K$6:$K$1806) -> 7567.65 | AZ133: 77.60009766
B134: 40098.10359 | C134: =LOOKUP(B134,Data!$A$6:$A$1806,Data!B$6:B$1806) -> 59.90299988 | D134: =LOOKUP(B134,Data!$A$6:$A$1806,Data!C$6:C$1806) -> 3809.651855 | H134: 77.60009766 | I134: 80.37621932 | L134: 0.5803577926 | M134: 3790.608052 | N134: =AVERAGE(D$79:D134) -> 3788.075749 | O134: =AVERAGE(M$79:M134) -> 3786.816243 | P134: 3709.536712 | Q134: =AVERAGE(P$79:P134) -> 3693.867051 | R134: 633 | Y134: 0 | Z134: 633 | AA134: -457.8650221 | AO134: 40098.10359 | AP134: =LOOKUP($AO134,Data!$A$6:$A$1806,Data!$B$6:$B$1806) -> 59.90299988 | AQ134: =LOOKUP($AO134,Data!$A$6:$A$1806,Data!$C$6:$C$1806) -> 3809.651855 | AR134: =LOOKUP($AO134,Data!$A$6:$A$1806,Data!$D$6:$D$1806) -> 335 | AS134: =IF($AS$1="+",LOOKUP($AO134,Data!$A$6:$A$1806,Data!$E$6:$E$1806)*-1,LOOKUP($AO134,Data!$A$6:$A$1806,Data!$E$6:$E$1806)) -> -215.598175 | AT134: =LOOKUP($AO134,Data!$A$6:$A$1806,Data!$F$6:$F$1806) -> 16 | AU134: =LOOKUP($AO134,Data!$A$6:$A$1806,Data!$G$6:$G$1806) -> 102.5 | AV134: =LOOKUP($AO134,Data!$A$6:$A$1806,Data!$H$6:$H$1806) -> 10 | AW134: =LOOKUP($AO134,Data!$A$6:$A$1806,Data!$I$6:$I$1806) -> 0 | AX134: =LOOKUP($AO134,Data!$A$6:$A$1806,Data!$J$6:$J$1806) -> -103 | AY134: =LOOKUP($AO134,Data!$A$6:$A$1806,Data!$K$6:$K$1806) -> 7567.65 | AZ134: 77.60009766
B135: 40098.10361 | C135: =LOOKUP(B135,Data!$A$6:$A$1806,Data!B$6:B$1806) -> 59.90399933 | D135: =LOOKUP(B135,Data!$A$6:$A$1806,Data!C$6:C$1806) -> 3805.593262 | H135: 76.80053711 | I135: 79.12473055 | L135: 0.5803577926 | M135: 3789.936921 | N135: =AVERAGE(D$79:D135) -> 3788.383074 | O135: =AVERAGE(M$79:M135) -> 3786.870992 | P135: 3710.11707 | Q135: =AVERAGE(P$79:P135) -> 3694.15723 | R135: 633 | Y135: 0 | Z135: 633 | AA135: -461.1991606 | AO135: 40098.10361 | AP135: =LOOKUP($AO135,Data!$A$6:$A$1806,Data!$B$6:$B$1806) -> 59.90399933 | AQ135: =LOOKUP($AO135,Data!$A$6:$A$1806,Data!$C$6:$C$1806) -> 3805.593262 | AR135: =LOOKUP($AO135,Data!$A$6:$A$1806,Data!$D$6:$D$1806) -> 335 | AS135: =IF($AS$1="+",LOOKUP($AO135,Data!$A$6:$A$1806,Data!$E$6:$E$1806)*-1,LOOKUP($AO135,Data!$A$6:$A$1806,Data!$E$6:$E$1806)) -> -215.598175 | AT135: =LOOKUP($AO135,Data!$A$6:$A$1806,Data!$F$6:$F$1806) -> 16 | AU135: =LOOKUP($AO135,Data!$A$6:$A$1806,Data!$G$6:$G$1806) -> 103 | AV135: =LOOKUP($AO135,Data!$A$6:$A$1806,Data!$H$6:$H$1806) -> 10 | AW135: =LOOKUP($AO135,Data!$A$6:$A$1806,Data!$I$6:$I$1806) -> 0 | AX135: =LOOKUP($AO135,Data!$A$6:$A$1806,Data!$J$6:$J$1806) -> -103 | AY135: =LOOKUP($AO135,Data!$A$6:$A$1806,Data!$K$6:$K$1806) -> 7567.98 | AZ135: 76.80053711
B136: 40098.10363 | C136: =LOOKUP(B136,Data!$A$6:$A$1806,Data!B$6:B$1806) -> 59.90399933 | D136: =LOOKUP(B136,Data!$A$6:$A$1806,Data!C$6:C$1806) -> 3805.593262 | H136: 76.80053711 | I136: 78.31126284 | L136: 0.5803577926 | M136: 3789.703811 | N136: =AVERAGE(D$79:D136) -> 3788.679801 | O136: =AVERAGE(M$79:M136) -> 3786.919834 | P136: 3710.697427 | Q136: =AVERAGE(P$79:P136) -> 3694.447409 | R136: 633 | Y136: 0 | Z136: 633 | AA136: -461.1991606 | AO136: 40098.10363 | AP136: =LOOKUP($AO136,Data!$A$6:$A$1806,Data!$B$6:$B$1806) -> 59.90399933 | AQ136: =LOOKUP($AO136,Data!$A$6:$A$1806,Data!$C$6:$C$1806) -> 3805.593262 | AR136: =LOOKUP($AO136,Data!$A$6:$A$1806,Data!$D$6:$D$1806) -> 335 | AS136: =IF($AS$1="+",LOOKUP($AO136,Data!$A$6:$A$1806,Data!$E$6:$E$1806)*-1,LOOKUP($AO136,Data!$A$6:$A$1806,Data!$E$6:$E$1806)) -> -215.598175 | AT136: =LOOKUP($AO136,Data!$A$6:$A$1806,Data!$F$6:$F$1806) -> 16 | AU136: =LOOKUP($AO136,Data!$A$6:$A$1806,Data!$G$6:$G$1806) -> 103 | AV136: =LOOKUP($AO136,Data!$A$6:$A$1806,Data!$H$6:$H$1806) -> 10 | AW136: =LOOKUP($AO136,Data!$A$6:$A$1806,Data!$I$6:$I$1806) -> 0 | AX136: =LOOKUP($AO136,Data!$A$6:$A$1806,Data!$J$6:$J$1806) -> -103 | AY136: =LOOKUP($AO136,Data!$A$6:$A$1806,Data!$K$6:$K$1806) -> 7567.98 | AZ136: 76.80053711
B137: 40098.10366 | C137: =LOOKUP(B137,Data!$A$6:$A$1806,Data!B$6:B$1806) -> 59.9109993 | D137: =LOOKUP(B137,Data!$A$6:$A$1806,Data!C$6:C$1806) -> 3793.975098 | H137: 71.20056152 | I137: 75.82251738 | L137: 0.5803577926 | M137: 3787.795423 | N137: =AVERAGE(D$79:D137) -> 3788.769552 | O137: =AVERAGE(M$79:M137) -> 3786.934674 | P137: 3711.277785 | Q137: =AVERAGE(P$79:P137) -> 3694.737588 | R137: 633 | Y137: 0 | Z137: 633 | AA137: -485.9850108 | AO137: 40098.10366 | AP137: =LOOKUP($AO137,Data!$A$6:$A$1806,Data!$B$6:$B$1806) -> 59.9109993 | AQ137: =LOOKUP($AO137,Data!$A$6:$A$1806,Data!$C$6:$C$1806) -> 3793.975098 | AR137: =LOOKUP($AO137,Data!$A$6:$A$1806,Data!$D$6:$D$1806) -> 335 | AS137: =IF($AS$1="+",LOOKUP($AO137,Data!$A$6:$A$1806,Data!$E$6:$E$1806)*-1,LOOKUP($AO137,Data!$A$6:$A$1806,Data!$E$6:$E$1806)) -> -215.598175 | AT137: =LOOKUP($AO137,Data!$A$6:$A$1806,Data!$F$6:$F$1806) -> 16 | AU137: =LOOKUP($AO137,Data!$A$6:$A$1806,Data!$G$6:$G$1806) -> 103.5 | AV137: =LOOKUP($AO137,Data!$A$6:$A$1806,Data!$H$6:$H$1806) -> 10 | AW137: =LOOKUP($AO137,Data!$A$6:$A$1806,Data!$I$6:$I$1806) -> 0 | AX137: =LOOKUP($AO137,Data!$A$6:$A$1806,Data!$J$6:$J$1806) -> -103 | AY137: =LOOKUP($AO137,Data!$A$6:$A$1806,Data!$K$6:$K$1806) -> 7568.31 | AZ137: 71.20056152
B138: 40098.10368 | C138: =LOOKUP(B138,Data!$A$6:$A$1806,Data!B$6:B$1806) -> 59.9109993 | D138: =LOOKUP(B138,Data!$A$6:$A$1806,Data!C$6:C$1806) -> 3793.975098 | H138: 71.20056152 | I138: 74.20483283 | L138: 0.5803577926 | M138: 3786.758096 | N138: =AVERAGE(D$79:D138) -> 3788.856311 | O138: =AVERAGE(M$79:M138) -> 3786.931731 | P138: 3711.858143 | Q138: =AVERAGE(P$79:P138) -> 3695.027767 | R138: 633 | Y138: 0 | Z138: 633 | AA138: -485.9850108 | AO138: 40098.10368 | AP138: =LOOKUP($AO138,Data!$A$6:$A$1806,Data!$B$6:$B$1806) -> 59.9109993 | AQ138: =LOOKUP($AO138,Data!$A$6:$A$1806,Data!$C$6:$C$1806) -> 3793.975098 | AR138: =LOOKUP($AO138,Data!$A$6:$A$1806,Data!$D$6:$D$1806) -> 335 | AS138: =IF($AS$1="+",LOOKUP($AO138,Data!$A$6:$A$1806,Data!$E$6:$E$1806)*-1,LOOKUP($AO138,Data!$A$6:$A$1806,Data!$E$6:$E$1806)) -> -215.598175 | AT138: =LOOKUP($AO138,Data!$A$6:$A$1806,Data!$F$6:$F$1806) -> 16 | AU138: =LOOKUP($AO138,Data!$A$6:$A$1806,Data!$G$6:$G$1806) -> 103.5 | AV138: =LOOKUP($AO138,Data!$A$6:$A$1806,Data!$H$6:$H$1806) -> 10 | AW138: =LOOKUP($AO138,Data!$A$6:$A$1806,Data!$I$6:$I$1806) -> 0 | AX138: =LOOKUP($AO138,Data!$A$6:$A$1806,Data!$J$6:$J$1806) -> -103 | AY138: =LOOKUP($AO138,Data!$A$6:$A$1806,Data!$K$6:$K$1806) -> 7568.31 | AZ138: 71.20056152
B139: 40098.1037 | C139: =LOOKUP(B139,Data!$A$6:$A$1806,Data!B$6:B$1806) -> 59.9109993 | D139: =LOOKUP(B139,Data!$A$6:$A$1806,Data!C$6:C$1806) -> 3793.975098 | H139: 71.20056152 | I139: 73.15333787 | L139: 0.5803577926 | M139: 3786.286959 | N139: =AVERAGE(D$79:D139) -> 3788.940226 | O139: =AVERAGE(M$79:M139) -> 3786.921161 | P139: 3712.438501 | Q139: =AVERAGE(P$79:P139) -> 3695.317946 | R139: 633 | Y139: 0 | Z139: 633 | AA139: -485.9850108 | AO139: 40098.1037 | AP139: =LOOKUP($AO139,Data!$A$6:$A$1806,Data!$B$6:$B$1806) -> 59.9109993 | AQ139: =LOOKUP($AO139,Data!$A$6:$A$1806,Data!$C$6:$C$1806) -> 3793.975098 | AR139: =LOOKUP($AO139,Data!$A$6:$A$1806,Data!$D$6:$D$1806) -> 335 | AS139: =IF($AS$1="+",LOOKUP($AO139,Data!$A$6:$A$1806,Data!$E$6:$E$1806)*-1,LOOKUP($AO139,Data!$A$6:$A$1806,Data!$E$6:$E$1806)) -> -215.598175 | AT139: =LOOKUP($AO139,Data!$A$6:$A$1806,Data!$F$6:$F$1806) -> 16 | AU139: =LOOKUP($AO139,Data!$A$6:$A$1806,Data!$G$6:$G$1806) -> 103.5 | AV139: =LOOKUP($AO139,Data!$A$6:$A$1806,Data!$H$6:$H$1806) -> 10 | AW139: =LOOKUP($AO139,Data!$A$6:$A$1806,Data!$I$6:$I$1806) -> 0 | AX139: =LOOKUP($AO139,Data!$A$6:$A$1806,Data!$J$6:$J$1806) -> -103 | AY139: =LOOKUP($AO139,Data!$A$6:$A$1806,Data!$K$6:$K$1806) -> 7568.31 | AZ139: 71.20056152
B140: 40098.10373 | C140: =LOOKUP(B140,Data!$A$6:$A$1806,Data!B$6:B$1806) -> 59.91699982 | D140: =LOOKUP(B140,Data!$A$6:$A$1806,Data!C$6:C$1806) -> 3791.501953 | H140: 66.40014648 | I140: 70.78972089 | L140: 0.5803577926 | M140: 3784.5037 | N140: =AVERAGE(D$79:D140) -> 3788.981544 | O140: =AVERAGE(M$79:M140) -> 3786.88217 | P140: 3713.018858 | Q140: =AVERAGE(P$79:P140) -> 3695.608125 | R140: 633 | Y140: 0 | Z140: 633 | AA140: -509.4550512 | AO140: 40098.10373 | AP140: =LOOKUP($AO140,Data!$A$6:$A$1806,Data!$B$6:$B$1806) -> 59.91699982 | AQ140: =LOOKUP($AO140,Data!$A$6:$A$1806,Data!$C$6:$C$1806) -> 3791.501953 | AR140: =LOOKUP($AO140,Data!$A$6:$A$1806,Data!$D$6:$D$1806) -> 335 | AS140: =IF($AS$1="+",LOOKUP($AO140,Data!$A$6:$A$1806,Data!$E$6:$E$1806)*-1,LOOKUP($AO140,Data!$A$6:$A$1806,Data!$E$6:$E$1806)) -> -215.598175 | AT140: =LOOKUP($AO140,Data!$A$6:$A$1806,Data!$F$6:$F$1806) -> 16 | AU140: =LOOKUP($AO140,Data!$A$6:$A$1806,Data!$G$6:$G$1806) -> 104 | AV140: =LOOKUP($AO140,Data!$A$6:$A$1806,Data!$H$6:$H$1806) -> 10 | AW140: =LOOKUP($AO140,Data!$A$6:$A$1806,Data!$I$6:$I$1806) -> 0 | AX140: =LOOKUP($AO140,Data!$A$6:$A$1806,Data!$J$6:$J$1806) -> -103 | AY140: =LOOKUP($AO140,Data!$A$6:$A$1806,Data!$K$6:$K$1806) -> 7568.64 | AZ140: 66.40014648
B141: 40098.10375 | C141: =LOOKUP(B141,Data!$A$6:$A$1806,Data!B$6:B$1806) -> 59.91699982 | D141: =LOOKUP(B141,Data!$A$6:$A$1806,Data!C$6:C$1806) -> 3791.501953 | H141: 66.40014648 | I141: 69.25336985 | L141: 0.5803577926 | M141: 3783.547707 | N141: =AVERAGE(D$79:D141) -> 3789.02155 | O141: =AVERAGE(M$79:M141) -> 3786.829242 | P141: 3713.599216 | Q141: =AVERAGE(P$79:P141) -> 3695.898304 | R141: 633 | Y141: 0 | Z141: 633 | AA141: -509.4550512 | AO141: 40098.10375 | AP141: =LOOKUP($AO141,Data!$A$6:$A$1806,Data!$B$6:$B$1806) -> 59.91699982 | AQ141: =LOOKUP($AO141,Data!$A$6:$A$1806,Data!$C$6:$C$1806) -> 3791.501953 | AR141: =LOOKUP($AO141,Data!$A$6:$A$1806,Data!$D$6:$D$1806) -> 335 | AS141: =IF($AS$1="+",LOOKUP($AO141,Data!$A$6:$A$1806,Data!$E$6:$E$1806)*-1,LOOKUP($AO141,Data!$A$6:$A$1806,Data!$E$6:$E$1806)) -> -215.598175 | AT141: =LOOKUP($AO141,Data!$A$6:$A$1806,Data!$F$6:$F$1806) -> 16 | AU141: =LOOKUP($AO141,Data!$A$6:$A$1806,Data!$G$6:$G$1806) -> 104 | AV141: =LOOKUP($AO141,Data!$A$6:$A$1806,Data!$H$6:$H$1806) -> 10 | AW141: =LOOKUP($AO141,Data!$A$6:$A$1806,Data!$I$6:$I$1806) -> 0 | AX141: =LOOKUP($AO141,Data!$A$6:$A$1806,Data!$J$6:$J$1806) -> -103 | AY141: =LOOKUP($AO141,Data!$A$6:$A$1806,Data!$K$6:$K$1806) -> 7568.64 | AZ141: 66.40014648
B142: 40098.10377 | C142: =LOOKUP(B142,Data!$A$6:$A$1806,Data!B$6:B$1806) -> 59.91999817 | D142: =LOOKUP(B142,Data!$A$6:$A$1806,Data!C$6:C$1806) -> 3784.563477 | H142: 64.00146484 | I142: 67.4152031 | L142: 0.5803577926 | M142: 3782.289898 | N142: =AVERAGE(D$79:D142) -> 3788.951893 | O142: =AVERAGE(M$79:M142) -> 3786.758315 | P142: 3714.179574 | Q142: =AVERAGE(P$79:P142) -> 3696.188482 | R142: 633 | Y142: 0 | Z142: 633 | AA142: -522.0529864 | AO142: 40098.10377 | AP142: =LOOKUP($AO142,Data!$A$6:$A$1806,Data!$B$6:$B$1806) -> 59.91999817 | AQ142: =LOOKUP($AO142,Data!$A$6:$A$1806,Data!$C$6:$C$1806) -> 3784.563477 | AR142: =LOOKUP($AO142,Data!$A$6:$A$1806,Data!$D$6:$D$1806) -> 335 | AS142: =IF($AS$1="+",LOOKUP($AO142,Data!$A$6:$A$1806,Data!$E$6:$E$1806)*-1,LOOKUP($AO142,Data!$A$6:$A$1806,Data!$E$6:$E$1806)) -> -218.3272552 | AT142: =LOOKUP($AO142,Data!$A$6:$A$1806,Data!$F$6:$F$1806) -> 16 | AU142: =LOOKUP($AO142,Data!$A$6:$A$1806,Data!$G$6:$G$1806) -> 104.5 | AV142: =LOOKUP($AO142,Data!$A$6:$A$1806,Data!$H$6:$H$1806) -> 10 | AW142: =LOOKUP($AO142,Data!$A$6:$A$1806,Data!$I$6:$I$1806) -> 0 | AX142: =LOOKUP($AO142,Data!$A$6:$A$1806,Data!$J$6:$J$1806) -> -103 | AY142: =LOOKUP($AO142,Data!$A$6:$A$1806,Data!$K$6:$K$1806) -> 7568.97 | AZ142: 64.00146484
B143: 40098.1038 | C143: =LOOKUP(B143,Data!$A$6:$A$1806,Data!B$6:B$1806) -> 59.91999817 | D143: =LOOKUP(B143,Data!$A$6:$A$1806,Data!C$6:C$1806) -> 3784.563477 | H143: 64.00146484 | I143: 66.22039471 | L143: 0.5803577926 | M143: 3781.675447 | N143: =AVERAGE(D$79:D143) -> 3788.884379 | O143: =AVERAGE(M$79:M143) -> 3786.680117 | P143: 3714.759932 | Q143: =AVERAGE(P$79:P143) -> 3696.478661 | R143: 633 | Y143: 0 | Z143: 633 | AA143: -522.0529864 | AO143: 40098.1038 | AP143: =LOOKUP($AO143,Data!$A$6:$A$1806,Data!$B$6:$B$1806) -> 59.91999817 | AQ143: =LOOKUP($AO143,Data!$A$6:$A$1806,Data!$C$6:$C$1806) -> 3784.563477 | AR143: =LOOKUP($AO143,Data!$A$6:$A$1806,Data!$D$6:$D$1806) -> 335 | AS143: =IF($AS$1="+",LOOKUP($AO143,Data!$A$6:$A$1806,Data!$E$6:$E$1806)*-1,LOOKUP($AO143,Data!$A$6:$A$1806,Data!$E$6:$E$1806)) -> -218.3272552 | AT143: =LOOKUP($AO143,Data!$A$6:$A$1806,Data!$F$6:$F$1806) -> 16 | AU143: =LOOKUP($AO143,Data!$A$6:$A$1806,Data!$G$6:$G$1806) -> 104.5 | AV143: =LOOKUP($AO143,Data!$A$6:$A$1806,Data!$H$6:$H$1806) -> 10 | AW143: =LOOKUP($AO143,Data!$A$6:$A$1806,Data!$I$6:$I$1806) -> 0 | AX143: =LOOKUP($AO143,Data!$A$6:$A$1806,Data!$J$6:$J$1806) -> -103 | AY143: =LOOKUP($AO143,Data!$A$6:$A$1806,Data!$K$6:$K$1806) -> 7568.97 | AZ143: 64.00146484
B144: 40098.10382 | C144: =LOOKUP(B144,Data!$A$6:$A$1806,Data!B$6:B$1806) -> 59.91999817 | D144: =LOOKUP(B144,Data!$A$6:$A$1806,Data!C$6:C$1806) -> 3784.563477 | H144: 64.00146484 | I144: 65.44376926 | L144: =IF(B144>G$3,0,(K$21*0.000023148/K$22)) -> 0.5803577926 | M144: =M143+L144+(I144-I143) -> 3781.479179 | N144: =AVERAGE(D$79:D144) -> 3788.818911 | O144: =AVERAGE(M$79:M144) -> 3786.601314 | P144: 3715.34029 | Q144: =AVERAGE(P$79:P144) -> 3696.76884 | R144: 633 | Y144: 0 | Z144: 633 | AA144: =Z144/((C144-G$4)*10) -> -522.0529864 | AO144: 40098.10382 | AP144: =LOOKUP($AO144,Data!$A$6:$A$1806,Data!$B$6:$B$1806) -> 59.91999817 | AQ144: =LOOKUP($AO144,Data!$A$6:$A$1806,Data!$C$6:$C$1806) -> 3784.563477 | AR144: =LOOKUP($AO144,Data!$A$6:$A$1806,Data!$D$6:$D$1806) -> 335 | AS144: =IF($AS$1="+",LOOKUP($AO144,Data!$A$6:$A$1806,Data!$E$6:$E$1806)*-1,LOOKUP($AO144,Data!$A$6:$A$1806,Data!$E$6:$E$1806)) -> -218.3272552 | AT144: =LOOKUP($AO144,Data!$A$6:$A$1806,Data!$F$6:$F$1806) -> 16 | AU144: =LOOKUP($AO144,Data!$A$6:$A$1806,Data!$G$6:$G$1806) -> 104.5 | AV144: =LOOKUP($AO144,Data!$A$6:$A$1806,Data!$H$6:$H$1806) -> 10 | AW144: =LOOKUP($AO144,Data!$A$6:$A$1806,Data!$I$6:$I$1806) -> 0 | AX144: =LOOKUP($AO144,Data!$A$6:$A$1806,Data!$J$6:$J$1806) -> -103 | AY144: =LOOKUP($AO144,Data!$A$6:$A$1806,Data!$K$6:$K$1806) -> 7568.97 | AZ144: 64.00146484
B145: 40098.10384 | C145: =LOOKUP(B145,Data!$A$6:$A$1806,Data!B$6:B$1806) -> 59.91699982 | D145: =LOOKUP(B145,Data!$A$6:$A$1806,Data!C$6:C$1806) -> 3781.701172 | H145: 66.40014648 | I145: 65.77850129 | L145: 0.5803577926 | M145: 3782.394269 | N145: =AVERAGE(D$79:D145) -> 3788.712676 | O145: =AVERAGE(M$79:M145) -> 3786.538523 | P145: 3715.920647 | Q145: =AVERAGE(P$79:P145) -> 3697.059019 | R145: =R$41 -> 633 | Y145: 0 | Z145: 633 | AA145: -509.4550512 | AO145: =AO144+TIME(0,0,$B$1) -> 40098.10384 | AP145: =LOOKUP($AO145,Data!$A$6:$A$1806,Data!$B$6:$B$1806) -> 59.91699982 | AQ145: =LOOKUP($AO145,Data!$A$6:$A$1806,Data!$C$6:$C$1806) -> 3781.701172 | AR145: =LOOKUP($AO145,Data!$A$6:$A$1806,Data!$D$6:$D$1806) -> 335 | AS145: =IF($AS$1="+",LOOKUP($AO145,Data!$A$6:$A$1806,Data!$E$6:$E$1806)*-1,LOOKUP($AO145,Data!$A$6:$A$1806,Data!$E$6:$E$1806)) -> -218.3272552 | AT145: =LOOKUP($AO145,Data!$A$6:$A$1806,Data!$F$6:$F$1806) -> 16 | AU145: =LOOKUP($AO145,Data!$A$6:$A$1806,Data!$G$6:$G$1806) -> 105 | AV145: =LOOKUP($AO145,Data!$A$6:$A$1806,Data!$H$6:$H$1806) -> 10 | AW145: =LOOKUP($AO145,Data!$A$6:$A$1806,Data!$I$6:$I$1806) -> 0 | AX145: =LOOKUP($AO145,Data!$A$6:$A$1806,Data!$J$6:$J$1806) -> -103 | AY145: =LOOKUP($AO145,Data!$A$6:$A$1806,Data!$K$6:$K$1806) -> 7569.3 | AZ145: 66.40014648
B146: 40098.10387 | C146: =LOOKUP(B146,Data!$A$6:$A$1806,Data!B$6:B$1806) -> 59.91699982 | D146: =LOOKUP(B146,Data!$A$6:$A$1806,Data!C$6:C$1806) -> 3781.701172 | H146: 66.40014648 | I146: 65.99607711 | L146: 0.5803577926 | M146: 3783.192203 | N146: =AVERAGE(D$79:D146) -> 3788.609565 | O146: =AVERAGE(M$79:M146) -> 3786.489312 | P146: =P145+L146 -> 3716.501005 | Q146: =AVERAGE(P$79:P146) -> 3697.349198 | R146: 633 | Y146: 0 | Z146: 633 | AA146: -509.4550512 | AO146: 40098.10387 | AP146: =LOOKUP($AO146,Data!$A$6:$A$1806,Data!$B$6:$B$1806) -> 59.91699982 | AQ146: =LOOKUP($AO146,Data!$A$6:$A$1806,Data!$C$6:$C$1806) -> 3781.701172 | AR146: =LOOKUP($AO146,Data!$A$6:$A$1806,Data!$D$6:$D$1806) -> 335 | AS146: =IF($AS$1="+",LOOKUP($AO146,Data!$A$6:$A$1806,Data!$E$6:$E$1806)*-1,LOOKUP($AO146,Data!$A$6:$A$1806,Data!$E$6:$E$1806)) -> -218.3272552 | AT146: =LOOKUP($AO146,Data!$A$6:$A$1806,Data!$F$6:$F$1806) -> 16 | AU146: =LOOKUP($AO146,Data!$A$6:$A$1806,Data!$G$6:$G$1806) -> 105 | AV146: =LOOKUP($AO146,Data!$A$6:$A$1806,Data!$H$6:$H$1806) -> 10 | AW146: =LOOKUP($AO146,Data!$A$6:$A$1806,Data!$I$6:$I$1806) -> 0 | AX146: =LOOKUP($AO146,Data!$A$6:$A$1806,Data!$J$6:$J$1806) -> -103 | AY146: =LOOKUP($AO146,Data!$A$6:$A$1806,Data!$K$6:$K$1806) -> 7569.3 | AZ146: 66.40014648
B147: 40098.10389 | C147: =LOOKUP(B147,Data!$A$6:$A$1806,Data!B$6:B$1806) -> 59.92100143 | D147: =LOOKUP(B147,Data!$A$6:$A$1806,Data!C$6:C$1806) -> 3774.604248 | H147: 63.19885254 | I147: 65.01704851 | L147: 0.5803577926 | M147: 3782.793532 | N147: =AVERAGE(D$79:D147) -> 3788.40659 | O147: =AVERAGE(M$79:M147) -> 3786.43575 | P147: 3717.081363 | Q147: =AVERAGE(P$79:P147) -> 3697.639377 | R147: 633 | Y147: 0 | Z147: 633 | AA147: -526.4086034 | AO147: 40098.10389 | AP147: =LOOKUP($AO147,Data!$A$6:$A$1806,Data!$B$6:$B$1806) -> 59.92100143 | AQ147: =LOOKUP($AO147,Data!$A$6:$A$1806,Data!$C$6:$C$1806) -> 3774.604248 | AR147: =LOOKUP($AO147,Data!$A$6:$A$1806,Data!$D$6:$D$1806) -> 335 | AS147: =IF($AS$1="+",LOOKUP($AO147,Data!$A$6:$A$1806,Data!$E$6:$E$1806)*-1,LOOKUP($AO147,Data!$A$6:$A$1806,Data!$E$6:$E$1806)) -> -218.3272552 | AT147: =LOOKUP($AO147,Data!$A$6:$A$1806,Data!$F$6:$F$1806) -> 16 | AU147: =LOOKUP($AO147,Data!$A$6:$A$1806,Data!$G$6:$G$1806) -> 105.5 | AV147: =LOOKUP($AO147,Data!$A$6:$A$1806,Data!$H$6:$H$1806) -> 10 | AW147: =LOOKUP($AO147,Data!$A$6:$A$1806,Data!$I$6:$I$1806) -> 0 | AX147: =LOOKUP($AO147,Data!$A$6:$A$1806,Data!$J$6:$J$1806) -> -103 | AY147: =LOOKUP($AO147,Data!$A$6:$A$1806,Data!$K$6:$K$1806) -> 7569.63 | AZ147: 63.19885254
B148: 40098.10391 | C148: =LOOKUP(B148,Data!$A$6:$A$1806,Data!B$6:B$1806) -> 59.92100143 | D148: =LOOKUP(B148,Data!$A$6:$A$1806,Data!C$6:C$1806) -> 3774.604248 | H148: 63.19885254 | I148: 64.38067992 | L148: 0.5803577926 | M148: 3782.737521 | N148: =AVERAGE(D$79:D148) -> 3788.209413 | O148: =AVERAGE(M$79:M148) -> 3786.382918 | P148: 3717.661721 | Q148: =AVERAGE(P$79:P148) -> 3697.929556 | R148: 633 | Y148: 0 | Z148: 633 | AA148: -526.4086034 | AO148: 40098.10391 | AP148: =LOOKUP($AO148,Data!$A$6:$A$1806,Data!$B$6:$B$1806) -> 59.92100143 | AQ148: =LOOKUP($AO148,Data!$A$6:$A$1806,Data!$C$6:$C$1806) -> 3774.604248 | AR148: =LOOKUP($AO148,Data!$A$6:$A$1806,Data!$D$6:$D$1806) -> 335 | AS148: =IF($AS$1="+",LOOKUP($AO148,Data!$A$6:$A$1806,Data!$E$6:$E$1806)*-1,LOOKUP($AO148,Data!$A$6:$A$1806,Data!$E$6:$E$1806)) -> -218.3272552 | AT148: =LOOKUP($AO148,Data!$A$6:$A$1806,Data!$F$6:$F$1806) -> 16 | AU148: =LOOKUP($AO148,Data!$A$6:$A$1806,Data!$G$6:$G$1806) -> 105.5 | AV148: =LOOKUP($AO148,Data!$A$6:$A$1806,Data!$H$6:$H$1806) -> 10 | AW148: =LOOKUP($AO148,Data!$A$6:$A$1806,Data!$I$6:$I$1806) -> 0 | AX148: =LOOKUP($AO148,Data!$A$6:$A$1806,Data!$J$6:$J$1806) -> -103 | AY148: =LOOKUP($AO148,Data!$A$6:$A$1806,Data!$K$6:$K$1806) -> 7569.63 | AZ148: 63.19885254
B149: 40098.10394 | C149: =LOOKUP(B149,Data!$A$6:$A$1806,Data!B$6:B$1806) -> 59.92100143 | D149: =LOOKUP(B149,Data!$A$6:$A$1806,Data!C$6:C$1806) -> 3774.604248 | H149: 63.19885254 | I149: 63.96704034 | L149: 0.5803577926 | M149: 3782.904239 | N149: =AVERAGE(D$79:D149) -> 3788.017791 | O149: =AVERAGE(M$79:M149) -> 3786.333923 | P149: 3718.242079 | Q149: =AVERAGE(P$79:P149) -> 3698.219735 | R149: 633 | Y149: 0 | Z149: 633 | AA149: -526.4086034 | AO149: 40098.10394 | AP149: =LOOKUP($AO149,Data!$A$6:$A$1806,Data!$B$6:$B$1806) -> 59.92100143 | AQ149: =LOOKUP($AO149,Data!$A$6:$A$1806,Data!$C$6:$C$1806) -> 3774.604248 | AR149: =LOOKUP($AO149,Data!$A$6:$A$1806,Data!$D$6:$D$1806) -> 335 | AS149: =IF($AS$1="+",LOOKUP($AO149,Data!$A$6:$A$1806,Data!$E$6:$E$1806)*-1,LOOKUP($AO149,Data!$A$6:$A$1806,Data!$E$6:$E$1806)) -> -218.3272552 | AT149: =LOOKUP($AO149,Data!$A$6:$A$1806,Data!$F$6:$F$1806) -> 16 | AU149: =LOOKUP($AO149,Data!$A$6:$A$1806,Data!$G$6:$G$1806) -> 105.5 | AV149: =LOOKUP($AO149,Data!$A$6:$A$1806,Data!$H$6:$H$1806) -> 10 | AW149: =LOOKUP($AO149,Data!$A$6:$A$1806,Data!$I$6:$I$1806) -> 0 | AX149: =LOOKUP($AO149,Data!$A$6:$A$1806,Data!$J$6:$J$1806) -> -103 | AY149: =LOOKUP($AO149,Data!$A$6:$A$1806,Data!$K$6:$K$1806) -> 7569.63 | AZ149: 63.19885254
B150: 40098.10396 | C150: =LOOKUP(B150,Data!$A$6:$A$1806,Data!B$6:B$1806) -> 59.92499924 | D150: =LOOKUP(B150,Data!$A$6:$A$1806,Data!C$6:C$1806) -> 3773.957764 | H150: 60.00061035 | I150: 62.57878984 | L150: 0.5803577926 | M150: 3782.096347 | N150: =AVERAGE(D$79:D150) -> 3787.822513 | O150: =AVERAGE(M$79:M150) -> 3786.275068 | P150: 3718.822436 | Q150: =AVERAGE(P$79:P150) -> 3698.509914 | R150: 633 | Y150: 0 | Z150: 633 | AA150: -544.5114834 | AO150: 40098.10396 | AP150: =LOOKUP($AO150,Data!$A$6:$A$1806,Data!$B$6:$B$1806) -> 59.92499924 | AQ150: =LOOKUP($AO150,Data!$A$6:$A$1806,Data!$C$6:$C$1806) -> 3773.957764 | AR150: =LOOKUP($AO150,Data!$A$6:$A$1806,Data!$D$6:$D$1806) -> 335 | AS150: =IF($AS$1="+",LOOKUP($AO150,Data!$A$6:$A$1806,Data!$E$6:$E$1806)*-1,LOOKUP($AO150,Data!$A$6:$A$1806,Data!$E$6:$E$1806)) -> -218.3272552 | AT150: =LOOKUP($AO150,Data!$A$6:$A$1806,Data!$F$6:$F$1806) -> 16 | AU150: =LOOKUP($AO150,Data!$A$6:$A$1806,Data!$G$6:$G$1806) -> 106 | AV150: =LOOKUP($AO150,Data!$A$6:$A$1806,Data!$H$6:$H$1806) -> 10 | AW150: =LOOKUP($AO150,Data!$A$6:$A$1806,Data!$I$6:$I$1806) -> 0 | AX150: =LOOKUP($AO150,Data!$A$6:$A$1806,Data!$J$6:$J$1806) -> -103 | AY150: =LOOKUP($AO150,Data!$A$6:$A$1806,Data!$K$6:$K$1806) -> 7569.96 | AZ150: 60.00061035
B151: 40098.10398 | C151: =LOOKUP(B151,Data!$A$6:$A$1806,Data!B$6:B$1806) -> 59.92499924 | D151: =LOOKUP(B151,Data!$A$6:$A$1806,Data!C$6:C$1806) -> 3773.957764 | H151: 60.00061035 | I151: 61.67642702 | L151: 0.5803577926 | M151: 3781.774342 | N151: =AVERAGE(D$79:D151) -> 3787.632585 | O151: =AVERAGE(M$79:M151) -> 3786.213414 | P151: 3719.402794 | Q151: =AVERAGE(P$79:P151) -> 3698.800093 | R151: 633 | Y151: 0 | Z151: 633 | AA151: -544.5114834 | AO151: 40098.10398 | AP151: =LOOKUP($AO151,Data!$A$6:$A$1806,Data!$B$6:$B$1806) -> 59.92499924 | AQ151: =LOOKUP($AO151,Data!$A$6:$A$1806,Data!$C$6:$C$1806) -> 3773.957764 | AR151: =LOOKUP($AO151,Data!$A$6:$A$1806,Data!$D$6:$D$1806) -> 335 | AS151: =IF($AS$1="+",LOOKUP($AO151,Data!$A$6:$A$1806,Data!$E$6:$E$1806)*-1,LOOKUP($AO151,Data!$A$6:$A$1806,Data!$E$6:$E$1806)) -> -218.3272552 | AT151: =LOOKUP($AO151,Data!$A$6:$A$1806,Data!$F$6:$F$1806) -> 16 | AU151: =LOOKUP($AO151,Data!$A$6:$A$1806,Data!$G$6:$G$1806) -> 106 | AV151: =LOOKUP($AO151,Data!$A$6:$A$1806,Data!$H$6:$H$1806) -> 10 | AW151: =LOOKUP($AO151,Data!$A$6:$A$1806,Data!$I$6:$I$1806) -> 0 | AX151: =LOOKUP($AO151,Data!$A$6:$A$1806,Data!$J$6:$J$1806) -> -103 | AY151: =LOOKUP($AO151,Data!$A$6:$A$1806,Data!$K$6:$K$1806) -> 7569.96 | AZ151: 60.00061035
B152: 40098.104 | C152: =LOOKUP(B152,Data!$A$6:$A$1806,Data!B$6:B$1806) -> 59.92699814 | D152: =LOOKUP(B152,Data!$A$6:$A$1806,Data!C$6:C$1806) -> 3769.629639 | H152: 58.40148926 | I152: 60.5301988 | L152: 0.5803577926 | M152: 3781.208471 | N152: =AVERAGE(D$79:D152) -> 3787.389302 | O152: =AVERAGE(M$79:M152) -> 3786.145779 | P152: 3719.983152 | Q152: =AVERAGE(P$79:P152) -> 3699.090271 | R152: 633 | Y152: 0 | Z152: 633 | AA152: -554.0380027 | AO152: 40098.104 | AP152: =LOOKUP($AO152,Data!$A$6:$A$1806,Data!$B$6:$B$1806) -> 59.92699814 | AQ152: =LOOKUP($AO152,Data!$A$6:$A$1806,Data!$C$6:$C$1806) -> 3769.629639 | AR152: =LOOKUP($AO152,Data!$A$6:$A$1806,Data!$D$6:$D$1806) -> 335 | AS152: =IF($AS$1="+",LOOKUP($AO152,Data!$A$6:$A$1806,Data!$E$6:$E$1806)*-1,LOOKUP($AO152,Data!$A$6:$A$1806,Data!$E$6:$E$1806)) -> -218.3272552 | AT152: =LOOKUP($AO152,Data!$A$6:$A$1806,Data!$F$6:$F$1806) -> 16 | AU152: =LOOKUP($AO152,Data!$A$6:$A$1806,Data!$G$6:$G$1806) -> 106.5 | AV152: =LOOKUP($AO152,Data!$A$6:$A$1806,Data!$H$6:$H$1806) -> 10 | AW152: =LOOKUP($AO152,Data!$A$6:$A$1806,Data!$I$6:$I$1806) -> 0 | AX152: =LOOKUP($AO152,Data!$A$6:$A$1806,Data!$J$6:$J$1806) -> -103 | AY152: =LOOKUP($AO152,Data!$A$6:$A$1806,Data!$K$6:$K$1806) -> 7570.29 | AZ152: 58.40148926
B153: 40098.10403 | C153: =LOOKUP(B153,Data!$A$6:$A$1806,Data!B$6:B$1806) -> 59.92699814 | D153: =LOOKUP(B153,Data!$A$6:$A$1806,Data!C$6:C$1806) -> 3769.629639 | H153: 58.40148926 | I153: 59.78515046 | L153: 0.5803577926 | M153: 3781.043781 | N153: =AVERAGE(D$79:D153) -> 3787.152507 | O153: =AVERAGE(M$79:M153) -> 3786.077753 | P153: 3720.56351 | Q153: =AVERAGE(P$79:P153) -> 3699.38045 | R153: 633 | Y153: 0 | Z153: 633 | AA153: -554.0380027 | AO153: 40098.10403 | AP153: =LOOKUP($AO153,Data!$A$6:$A$1806,Data!$B$6:$B$1806) -> 59.92699814 | AQ153: =LOOKUP($AO153,Data!$A$6:$A$1806,Data!$C$6:$C$1806) -> 3769.629639 | AR153: =LOOKUP($AO153,Data!$A$6:$A$1806,Data!$D$6:$D$1806) -> 335 | AS153: =IF($AS$1="+",LOOKUP($AO153,Data!$A$6:$A$1806,Data!$E$6:$E$1806)*-1,LOOKUP($AO153,Data!$A$6:$A$1806,Data!$E$6:$E$1806)) -> -218.3272552 | AT153: =LOOKUP($AO153,Data!$A$6:$A$1806,Data!$F$6:$F$1806) -> 16 | AU153: =LOOKUP($AO153,Data!$A$6:$A$1806,Data!$G$6:$G$1806) -> 106.5 | AV153: =LOOKUP($AO153,Data!$A$6:$A$1806,Data!$H$6:$H$1806) -> 10 | AW153: =LOOKUP($AO153,Data!$A$6:$A$1806,Data!$I$6:$I$1806) -> 0 | AX153: =LOOKUP($AO153,Data!$A$6:$A$1806,Data!$J$6:$J$1806) -> -103 | AY153: =LOOKUP($AO153,Data!$A$6:$A$1806,Data!$K$6:$K$1806) -> 7570.29 | AZ153: 58.40148926
B154: 40098.10405 | C154: =LOOKUP(B154,Data!$A$6:$A$1806,Data!B$6:B$1806) -> 59.92699814 | D154: =LOOKUP(B154,Data!$A$6:$A$1806,Data!C$6:C$1806) -> 3769.629639 | H154: 58.40148926 | I154: 59.30086904 | L154: 0.5803577926 | M154: 3781.139857 | N154: =AVERAGE(D$79:D154) -> 3786.921942 | O154: =AVERAGE(M$79:M154) -> 3786.012781 | P154: 3721.143868 | Q154: =AVERAGE(P$79:P154) -> 3699.670629 | R154: 633 | Y154: 0 | Z154: 633 | AA154: -554.0380027 | AO154: 40098.10405 | AP154: =LOOKUP($AO154,Data!$A$6:$A$1806,Data!$B$6:$B$1806) -> 59.92699814 | AQ154: =LOOKUP($AO154,Data!$A$6:$A$1806,Data!$C$6:$C$1806) -> 3769.629639 | AR154: =LOOKUP($AO154,Data!$A$6:$A$1806,Data!$D$6:$D$1806) -> 335 | AS154: =IF($AS$1="+",LOOKUP($AO154,Data!$A$6:$A$1806,Data!$E$6:$E$1806)*-1,LOOKUP($AO154,Data!$A$6:$A$1806,Data!$E$6:$E$1806)) -> -218.3272552 | AT154: =LOOKUP($AO154,Data!$A$6:$A$1806,Data!$F$6:$F$1806) -> 16 | AU154: =LOOKUP($AO154,Data!$A$6:$A$1806,Data!$G$6:$G$1806) -> 106.5 | AV154: =LOOKUP($AO154,Data!$A$6:$A$1806,Data!$H$6:$H$1806) -> 10 | AW154: =LOOKUP($AO154,Data!$A$6:$A$1806,Data!$I$6:$I$1806) -> 0 | AX154: =LOOKUP($AO154,Data!$A$6:$A$1806,Data!$J$6:$J$1806) -> -103 | AY154: =LOOKUP($AO154,Data!$A$6:$A$1806,Data!$K$6:$K$1806) -> 7570.29 | AZ154: 58.40148926
B155: 40098.10407 | C155: =LOOKUP(B155,Data!$A$6:$A$1806,Data!B$6:B$1806) -> 59.9280014 | D155: =LOOKUP(B155,Data!$A$6:$A$1806,Data!C$6:C$1806) -> 3767.642822 | H155: 57.59887695 | I155: 58.70517181 | L155: 0.5803577926 | M155: 3781.124518 | N155: =AVERAGE(D$79:D155) -> 3786.671564 | O155: =AVERAGE(M$79:M155) -> 3785.949297 | P155: 3721.724225 | Q155: =AVERAGE(P$79:P155) -> 3699.960808 | R155: 633 | Y155: 0 | Z155: 633 | AA155: -558.9461962 | AO155: 40098.10407 | AP155: =LOOKUP($AO155,Data!$A$6:$A$1806,Data!$B$6:$B$1806) -> 59.9280014 | AQ155: =LOOKUP($AO155,Data!$A$6:$A$1806,Data!$C$6:$C$1806) -> 3767.642822 | AR155: =LOOKUP($AO155,Data!$A$6:$A$1806,Data!$D$6:$D$1806) -> 335 | AS155: =IF($AS$1="+",LOOKUP($AO155,Data!$A$6:$A$1806,Data!$E$6:$E$1806)*-1,LOOKUP($AO155,Data!$A$6:$A$1806,Data!$E$6:$E$1806)) -> -217.379425 | AT155: =LOOKUP($AO155,Data!$A$6:$A$1806,Data!$F$6:$F$1806) -> 0 | AU155: =LOOKUP($AO155,Data!$A$6:$A$1806,Data!$G$6:$G$1806) -> 107 | AV155: =LOOKUP($AO155,Data!$A$6:$A$1806,Data!$H$6:$H$1806) -> 10 | AW155: =LOOKUP($AO155,Data!$A$6:$A$1806,Data!$I$6:$I$1806) -> 0 | AX155: =LOOKUP($AO155,Data!$A$6:$A$1806,Data!$J$6:$J$1806) -> -103 | AY155: =LOOKUP($AO155,Data!$A$6:$A$1806,Data!$K$6:$K$1806) -> 7570.62 | AZ155: 57.59887695
B156: 40098.1041 | C156: =LOOKUP(B156,Data!$A$6:$A$1806,Data!B$6:B$1806) -> 59.9280014 | D156: =LOOKUP(B156,Data!$A$6:$A$1806,Data!C$6:C$1806) -> 3767.642822 | H156: 57.59887695 | I156: 58.31796861 | L156: 0.5803577926 | M156: 3781.317672 | N156: =AVERAGE(D$79:D156) -> 3786.427606 | O156: =AVERAGE(M$79:M156) -> 3785.889917 | P156: 3722.304583 | Q156: =AVERAGE(P$79:P156) -> 3700.250987 | R156: 633 | Y156: 0 | Z156: 633 | AA156: -558.9461962 | AO156: 40098.1041 | AP156: =LOOKUP($AO156,Data!$A$6:$A$1806,Data!$B$6:$B$1806) -> 59.9280014 | AQ156: =LOOKUP($AO156,Data!$A$6:$A$1806,Data!$C$6:$C$1806) -> 3767.642822 | AR156: =LOOKUP($AO156,Data!$A$6:$A$1806,Data!$D$6:$D$1806) -> 335 | AS156: =IF($AS$1="+",LOOKUP($AO156,Data!$A$6:$A$1806,Data!$E$6:$E$1806)*-1,LOOKUP($AO156,Data!$A$6:$A$1806,Data!$E$6:$E$1806)) -> -217.379425 | AT156: =LOOKUP($AO156,Data!$A$6:$A$1806,Data!$F$6:$F$1806) -> 0 | AU156: =LOOKUP($AO156,Data!$A$6:$A$1806,Data!$G$6:$G$1806) -> 107 | AV156: =LOOKUP($AO156,Data!$A$6:$A$1806,Data!$H$6:$H$1806) -> 10 | AW156: =LOOKUP($AO156,Data!$A$6:$A$1806,Data!$I$6:$I$1806) -> 0 | AX156: =LOOKUP($AO156,Data!$A$6:$A$1806,Data!$J$6:$J$1806) -> -103 | AY156: =LOOKUP($AO156,Data!$A$6:$A$1806,Data!$K$6:$K$1806) -> 7570.62 | AZ156: 57.59887695
B157: 40098.10412 | C157: =LOOKUP(B157,Data!$A$6:$A$1806,Data!B$6:B$1806) -> 59.92900085 | D157: =LOOKUP(B157,Data!$A$6:$A$1806,Data!C$6:C$1806) -> 3766.788086 | H157: 56.79931641 | I157: 57.78644034 | L157: 0.5803577926 | M157: 3781.366502 | N157: =AVERAGE(D$79:D157) -> 3786.179005 | O157: =AVERAGE(M$79:M157) -> 3785.832658 | P157: 3722.884941 | Q157: =AVERAGE(P$79:P157) -> 3700.541166 | R157: 633 | Y157: 0 | Z157: 633 | AA157: -563.9229648 | AO157: 40098.10412 | AP157: =LOOKUP($AO157,Data!$A$6:$A$1806,Data!$B$6:$B$1806) -> 59.92900085 | AQ157: =LOOKUP($AO157,Data!$A$6:$A$1806,Data!$C$6:$C$1806) -> 3766.788086 | AR157: =LOOKUP($AO157,Data!$A$6:$A$1806,Data!$D$6:$D$1806) -> 335 | AS157: =IF($AS$1="+",LOOKUP($AO157,Data!$A$6:$A$1806,Data!$E$6:$E$1806)*-1,LOOKUP($AO157,Data!$A$6:$A$1806,Data!$E$6:$E$1806)) -> -217.379425 | AT157: =LOOKUP($AO157,Data!$A$6:$A$1806,Data!$F$6:$F$1806) -> 0 | AU157: =LOOKUP($AO157,Data!$A$6:$A$1806,Data!$G$6:$G$1806) -> 107.5 | AV157: =LOOKUP($AO157,Data!$A$6:$A$1806,Data!$H$6:$H$1806) -> 10 | AW157: =LOOKUP($AO157,Data!$A$6:$A$1806,Data!$I$6:$I$1806) -> 0 | AX157: =LOOKUP($AO157,Data!$A$6:$A$1806,Data!$J$6:$J$1806) -> -103 | AY157: =LOOKUP($AO157,Data!$A$6:$A$1806,Data!$K$6:$K$1806) -> 7570.95 | AZ157: 56.79931641
B158: 40098.10414 | C158: =LOOKUP(B158,Data!$A$6:$A$1806,Data!B$6:B$1806) -> 59.92900085 | D158: =LOOKUP(B158,Data!$A$6:$A$1806,Data!C$6:C$1806) -> 3766.788086 | H158: 56.79931641 | I158: 57.44094696 | L158: 0.5803577926 | M158: 3781.601366 | N158: =AVERAGE(D$79:D158) -> 3785.936618 | O158: =AVERAGE(M$79:M158) -> 3785.779767 | P158: 3723.465299 | Q158: =AVERAGE(P$79:P158) -> 3700.831345 | R158: 633 | Y158: 0 | Z158: 633 | AA158: -563.9229648 | AO158: 40098.10414 | AP158: =LOOKUP($AO158,Data!$A$6:$A$1806,Data!$B$6:$B$1806) -> 59.92900085 | AQ158: =LOOKUP($AO158,Data!$A$6:$A$1806,Data!$C$6:$C$1806) -> 3766.788086 | AR158: =LOOKUP($AO158,Data!$A$6:$A$1806,Data!$D$6:$D$1806) -> 335 | AS158: =IF($AS$1="+",LOOKUP($AO158,Data!$A$6:$A$1806,Data!$E$6:$E$1806)*-1,LOOKUP($AO158,Data!$A$6:$A$1806,Data!$E$6:$E$1806)) -> -217.379425 | AT158: =LOOKUP($AO158,Data!$A$6:$A$1806,Data!$F$6:$F$1806) -> 0 | AU158: =LOOKUP($AO158,Data!$A$6:$A$1806,Data!$G$6:$G$1806) -> 107.5 | AV158: =LOOKUP($AO158,Data!$A$6:$A$1806,Data!$H$6:$H$1806) -> 10 | AW158: =LOOKUP($AO158,Data!$A$6:$A$1806,Data!$I$6:$I$1806) -> 0 | AX158: =LOOKUP($AO158,Data!$A$6:$A$1806,Data!$J$6:$J$1806) -> -103 | AY158: =LOOKUP($AO158,Data!$A$6:$A$1806,Data!$K$6:$K$1806) -> 7570.95 | AZ158: 56.79931641
B159: 40098.10417 | C159: =LOOKUP(B159,Data!$A$6:$A$1806,Data!B$6:B$1806) -> 59.92900085 | D159: =LOOKUP(B159,Data!$A$6:$A$1806,Data!C$6:C$1806) -> 3766.788086 | H159: 56.79931641 | I159: 57.21637627 | L159: 0.5803577926 | M159: 3781.957153 | N159: =AVERAGE(D$79:D159) -> 3785.700216 | O159: =AVERAGE(M$79:M159) -> 3785.732574 | P159: 3724.045657 | Q159: =AVERAGE(P$79:P159) -> 3701.121524 | R159: 633 | Y159: 0 | Z159: 633 | AA159: -563.9229648 | AO159: 40098.10417 | AP159: =LOOKUP($AO159,Data!$A$6:$A$1806,Data!$B$6:$B$1806) -> 59.92900085 | AQ159: =LOOKUP($AO159,Data!$A$6:$A$1806,Data!$C$6:$C$1806) -> 3766.788086 | AR159: =LOOKUP($AO159,Data!$A$6:$A$1806,Data!$D$6:$D$1806) -> 335 | AS159: =IF($AS$1="+",LOOKUP($AO159,Data!$A$6:$A$1806,Data!$E$6:$E$1806)*-1,LOOKUP($AO159,Data!$A$6:$A$1806,Data!$E$6:$E$1806)) -> -217.379425 | AT159: =LOOKUP($AO159,Data!$A$6:$A$1806,Data!$F$6:$F$1806) -> 0 | AU159: =LOOKUP($AO159,Data!$A$6:$A$1806,Data!$G$6:$G$1806) -> 107.5 | AV159: =LOOKUP($AO159,Data!$A$6:$A$1806,Data!$H$6:$H$1806) -> 10 | AW159: =LOOKUP($AO159,Data!$A$6:$A$1806,Data!$I$6:$I$1806) -> 0 | AX159: =LOOKUP($AO159,Data!$A$6:$A$1806,Data!$J$6:$J$1806) -> -103 | AY159: =LOOKUP($AO159,Data!$A$6:$A$1806,Data!$K$6:$K$1806) -> 7570.95 | AZ159: 56.79931641
B160: 40098.10419 | C160: =LOOKUP(B160,Data!$A$6:$A$1806,Data!B$6:B$1806) -> 59.93700027 | D160: =LOOKUP(B160,Data!$A$6:$A$1806,Data!C$6:C$1806) -> 3765.671631 | H160: 50.39978027 | I160: 54.83056767 | L160: 0.5803577926 | M160: 3780.151703 | N160: =AVERAGE(D$79:D160) -> 3785.455965 | O160: =AVERAGE(M$79:M160) -> 3785.664515 | P160: 3724.626014 | Q160: =AVERAGE(P$79:P160) -> 3701.411703 | R160: 633 | Y160: 0 | Z160: 633 | AA160: -607.1945112 | AO160: 40098.10419 | AP160: =LOOKUP($AO160,Data!$A$6:$A$1806,Data!$B$6:$B$1806) -> 59.93700027 | AQ160: =LOOKUP($AO160,Data!$A$6:$A$1806,Data!$C$6:$C$1806) -> 3765.671631 | AR160: =LOOKUP($AO160,Data!$A$6:$A$1806,Data!$D$6:$D$1806) -> 335 | AS160: =IF($AS$1="+",LOOKUP($AO160,Data!$A$6:$A$1806,Data!$E$6:$E$1806)*-1,LOOKUP($AO160,Data!$A$6:$A$1806,Data!$E$6:$E$1806)) -> -217.379425 | AT160: =LOOKUP($AO160,Data!$A$6:$A$1806,Data!$F$6:$F$1806) -> 0 | AU160: =LOOKUP($AO160,Data!$A$6:$A$1806,Data!$G$6:$G$1806) -> 108 | AV160: =LOOKUP($AO160,Data!$A$6:$A$1806,Data!$H$6:$H$1806) -> 10 | AW160: =LOOKUP($AO160,Data!$A$6:$A$1806,Data!$I$6:$I$1806) -> 0 | AX160: =LOOKUP($AO160,Data!$A$6:$A$1806,Data!$J$6:$J$1806) -> -103 | AY160: =LOOKUP($AO160,Data!$A$6:$A$1806,Data!$K$6:$K$1806) -> 7571.28 | AZ160: 50.39978027
B161: 40098.10421 | C161: =LOOKUP(B161,Data!$A$6:$A$1806,Data!B$6:B$1806) -> 59.93700027 | D161: =LOOKUP(B161,Data!$A$6:$A$1806,Data!C$6:C$1806) -> 3765.671631 | H161: 50.39978027 | I161: 53.27979208 | L161: 0.5803577926 | M161: 3779.181285 | N161: =AVERAGE(D$79:D161) -> 3785.2176 | O161: =AVERAGE(M$79:M161) -> 3785.586404 | P161: 3725.206372 | Q161: =AVERAGE(P$79:P161) -> 3701.701882 | R161: 633 | Y161: 0 | Z161: 633 | AA161: -607.1945112 | AO161: 40098.10421 | AP161: =LOOKUP($AO161,Data!$A$6:$A$1806,Data!$B$6:$B$1806) -> 59.93700027 | AQ161: =LOOKUP($AO161,Data!$A$6:$A$1806,Data!$C$6:$C$1806) -> 3765.671631 | AR161: =LOOKUP($AO161,Data!$A$6:$A$1806,Data!$D$6:$D$1806) -> 335 | AS161: =IF($AS$1="+",LOOKUP($AO161,Data!$A$6:$A$1806,Data!$E$6:$E$1806)*-1,LOOKUP($AO161,Data!$A$6:$A$1806,Data!$E$6:$E$1806)) -> -217.379425 | AT161: =LOOKUP($AO161,Data!$A$6:$A$1806,Data!$F$6:$F$1806) -> 0 | AU161: =LOOKUP($AO161,Data!$A$6:$A$1806,Data!$G$6:$G$1806) -> 108 | AV161: =LOOKUP($AO161,Data!$A$6:$A$1806,Data!$H$6:$H$1806) -> 10 | AW161: =LOOKUP($AO161,Data!$A$6:$A$1806,Data!$I$6:$I$1806) -> 0 | AX161: =LOOKUP($AO161,Data!$A$6:$A$1806,Data!$J$6:$J$1806) -> -103 | AY161: =LOOKUP($AO161,Data!$A$6:$A$1806,Data!$K$6:$K$1806) -> 7571.28 | AZ161: 50.39978027
B162: 40098.10424 | C162: =LOOKUP(B162,Data!$A$6:$A$1806,Data!B$6:B$1806) -> 59.94499969 | D162: =LOOKUP(B162,Data!$A$6:$A$1806,Data!C$6:C$1806) -> 3765.10498 | H162: 44.00024414 | I162: 50.0319503 | L162: 0.5803577926 | M162: 3776.513801 | N162: =AVERAGE(D$79:D162) -> 3784.978164 | O162: =AVERAGE(M$79:M162) -> 3785.478397 | P162: 3725.78673 | Q162: =AVERAGE(P$79:P162) -> 3701.99206 | R162: 633 | Y162: 0 | Z162: 633 | AA162: -657.6586885 | AO162: 40098.10424 | AP162: =LOOKUP($AO162,Data!$A$6:$A$1806,Data!$B$6:$B$1806) -> 59.94499969 | AQ162: =LOOKUP($AO162,Data!$A$6:$A$1806,Data!$C$6:$C$1806) -> 3765.10498 | AR162: =LOOKUP($AO162,Data!$A$6:$A$1806,Data!$D$6:$D$1806) -> 335 | AS162: =IF($AS$1="+",LOOKUP($AO162,Data!$A$6:$A$1806,Data!$E$6:$E$1806)*-1,LOOKUP($AO162,Data!$A$6:$A$1806,Data!$E$6:$E$1806)) -> -217.379425 | AT162: =LOOKUP($AO162,Data!$A$6:$A$1806,Data!$F$6:$F$1806) -> 0 | AU162: =LOOKUP($AO162,Data!$A$6:$A$1806,Data!$G$6:$G$1806) -> 108.5 | AV162: =LOOKUP($AO162,Data!$A$6:$A$1806,Data!$H$6:$H$1806) -> 10 | AW162: =LOOKUP($AO162,Data!$A$6:$A$1806,Data!$I$6:$I$1806) -> 0 | AX162: =LOOKUP($AO162,Data!$A$6:$A$1806,Data!$J$6:$J$1806) -> -103 | AY162: =LOOKUP($AO162,Data!$A$6:$A$1806,Data!$K$6:$K$1806) -> 7571.61 | AZ162: 44.00024414
B163: 40098.10426 | C163: =LOOKUP(B163,Data!$A$6:$A$1806,Data!B$6:B$1806) -> 59.94499969 | D163: =LOOKUP(B163,Data!$A$6:$A$1806,Data!C$6:C$1806) -> 3765.10498 | H163: 44.00024414 | I163: 47.92085315 | L163: 0.5803577926 | M163: 3774.983061 | N163: =AVERAGE(D$79:D163) -> 3784.744362 | O163: =AVERAGE(M$79:M163) -> 3785.354922 | P163: 3726.367088 | Q163: =AVERAGE(P$79:P163) -> 3702.282239 | R163: 633 | Y163: 0 | Z163: 633 | AA163: -657.6586885 | AO163: 40098.10426 | AP163: =LOOKUP($AO163,Data!$A$6:$A$1806,Data!$B$6:$B$1806) -> 59.94499969 | AQ163: =LOOKUP($AO163,Data!$A$6:$A$1806,Data!$C$6:$C$1806) -> 3765.10498 | AR163: =LOOKUP($AO163,Data!$A$6:$A$1806,Data!$D$6:$D$1806) -> 335 | AS163: =IF($AS$1="+",LOOKUP($AO163,Data!$A$6:$A$1806,Data!$E$6:$E$1806)*-1,LOOKUP($AO163,Data!$A$6:$A$1806,Data!$E$6:$E$1806)) -> -217.379425 | AT163: =LOOKUP($AO163,Data!$A$6:$A$1806,Data!$F$6:$F$1806) -> 0 | AU163: =LOOKUP($AO163,Data!$A$6:$A$1806,Data!$G$6:$G$1806) -> 108.5 | AV163: =LOOKUP($AO163,Data!$A$6:$A$1806,Data!$H$6:$H$1806) -> 10 | AW163: =LOOKUP($AO163,Data!$A$6:$A$1806,Data!$I$6:$I$1806) -> 0 | AX163: =LOOKUP($AO163,Data!$A$6:$A$1806,Data!$J$6:$J$1806) -> -103 | AY163: =LOOKUP($AO163,Data!$A$6:$A$1806,Data!$K$6:$K$1806) -> 7571.61 | AZ163: 44.00024414
B164: 40098.10428 | C164: =LOOKUP(B164,Data!$A$6:$A$1806,Data!B$6:B$1806) -> 59.94499969 | D164: =LOOKUP(B164,Data!$A$6:$A$1806,Data!C$6:C$1806) -> 3765.10498 | H164: 44.00024414 | I164: 46.54863999 | L164: 0.5803577926 | M164: 3774.191206 | N164: =AVERAGE(D$79:D164) -> 3784.515997 | O164: =AVERAGE(M$79:M164) -> 3785.225111 | P164: 3726.947445 | Q164: =AVERAGE(P$79:P164) -> 3702.572418 | R164: 633 | Y164: 0 | Z164: 633 | AA164: -657.6586885 | AO164: 40098.10428 | AP164: =LOOKUP($AO164,Data!$A$6:$A$1806,Data!$B$6:$B$1806) -> 59.94499969 | AQ164: =LOOKUP($AO164,Data!$A$6:$A$1806,Data!$C$6:$C$1806) -> 3765.10498 | AR164: =LOOKUP($AO164,Data!$A$6:$A$1806,Data!$D$6:$D$1806) -> 335 | AS164: =IF($AS$1="+",LOOKUP($AO164,Data!$A$6:$A$1806,Data!$E$6:$E$1806)*-1,LOOKUP($AO164,Data!$A$6:$A$1806,Data!$E$6:$E$1806)) -> -217.379425 | AT164: =LOOKUP($AO164,Data!$A$6:$A$1806,Data!$F$6:$F$1806) -> 0 | AU164: =LOOKUP($AO164,Data!$A$6:$A$1806,Data!$G$6:$G$1806) -> 108.5 | AV164: =LOOKUP($AO164,Data!$A$6:$A$1806,Data!$H$6:$H$1806) -> 10 | AW164: =LOOKUP($AO164,Data!$A$6:$A$1806,Data!$I$6:$I$1806) -> 0 | AX164: =LOOKUP($AO164,Data!$A$6:$A$1806,Data!$J$6:$J$1806) -> -103 | AY164: =LOOKUP($AO164,Data!$A$6:$A$1806,Data!$K$6:$K$1806) -> 7571.61 | AZ164: 44.00024414
B165: 40098.10431 | C165: =LOOKUP(B165,Data!$A$6:$A$1806,Data!B$6:B$1806) -> 59.94200134 | D165: =LOOKUP(B165,Data!$A$6:$A$1806,Data!C$6:C$1806) -> 3758.387207 | H165: 46.39892578 | I165: 46.49624002 | L165: 0.5803577926 | M165: 3774.719164 | N165: =AVERAGE(D$79:D165) -> 3784.215666 | O165: =AVERAGE(M$79:M165) -> 3785.104353 | P165: 3727.527803 | Q165: =AVERAGE(P$79:P165) -> 3702.862597 | R165: 633 | Y165: 0 | Z165: 633 | AA165: -637.7905333 | AO165: 40098.10431 | AP165: =LOOKUP($AO165,Data!$A$6:$A$1806,Data!$B$6:$B$1806) -> 59.94200134 | AQ165: =LOOKUP($AO165,Data!$A$6:$A$1806,Data!$C$6:$C$1806) -> 3758.387207 | AR165: =LOOKUP($AO165,Data!$A$6:$A$1806,Data!$D$6:$D$1806) -> 335 | AS165: =IF($AS$1="+",LOOKUP($AO165,Data!$A$6:$A$1806,Data!$E$6:$E$1806)*-1,LOOKUP($AO165,Data!$A$6:$A$1806,Data!$E$6:$E$1806)) -> -217.379425 | AT165: =LOOKUP($AO165,Data!$A$6:$A$1806,Data!$F$6:$F$1806) -> 0 | AU165: =LOOKUP($AO165,Data!$A$6:$A$1806,Data!$G$6:$G$1806) -> 109 | AV165: =LOOKUP($AO165,Data!$A$6:$A$1806,Data!$H$6:$H$1806) -> 10 | AW165: =LOOKUP($AO165,Data!$A$6:$A$1806,Data!$I$6:$I$1806) -> 0 | AX165: =LOOKUP($AO165,Data!$A$6:$A$1806,Data!$J$6:$J$1806) -> -103 | AY165: =LOOKUP($AO165,Data!$A$6:$A$1806,Data!$K$6:$K$1806) -> 7571.94 | AZ165: 46.39892578
B166: 40098.10433 | C166: =LOOKUP(B166,Data!$A$6:$A$1806,Data!B$6:B$1806) -> 59.94200134 | D166: =LOOKUP(B166,Data!$A$6:$A$1806,Data!C$6:C$1806) -> 3758.387207 | H166: 46.39892578 | I166: 46.46218004 | L166: 0.5803577926 | M166: 3775.265462 | N166: =AVERAGE(D$79:D166) -> 3783.922161 | O166: =AVERAGE(M$79:M166) -> 3784.992548 | P166: 3728.108161 | Q166: =AVERAGE(P$79:P166) -> 3703.152776 | R166: 633 | Y166: 0 | Z166: 633 | AA166: -637.7905333 | AO166: 40098.10433 | AP166: =LOOKUP($AO166,Data!$A$6:$A$1806,Data!$B$6:$B$1806) -> 59.94200134 | AQ166: =LOOKUP($AO166,Data!$A$6:$A$1806,Data!$C$6:$C$1806) -> 3758.387207 | AR166: =LOOKUP($AO166,Data!$A$6:$A$1806,Data!$D$6:$D$1806) -> 335 | AS166: =IF($AS$1="+",LOOKUP($AO166,Data!$A$6:$A$1806,Data!$E$6:$E$1806)*-1,LOOKUP($AO166,Data!$A$6:$A$1806,Data!$E$6:$E$1806)) -> -217.379425 | AT166: =LOOKUP($AO166,Data!$A$6:$A$1806,Data!$F$6:$F$1806) -> 0 | AU166: =LOOKUP($AO166,Data!$A$6:$A$1806,Data!$G$6:$G$1806) -> 109 | AV166: =LOOKUP($AO166,Data!$A$6:$A$1806,Data!$H$6:$H$1806) -> 10 | AW166: =LOOKUP($AO166,Data!$A$6:$A$1806,Data!$I$6:$I$1806) -> 0 | AX166: =LOOKUP($AO166,Data!$A$6:$A$1806,Data!$J$6:$J$1806) -> -103 | AY166: =LOOKUP($AO166,Data!$A$6:$A$1806,Data!$K$6:$K$1806) -> 7571.94 | AZ166: 46.39892578
B167: 40098.10435 | C167: =LOOKUP(B167,Data!$A$6:$A$1806,Data!B$6:B$1806) -> 59.94200134 | D167: =LOOKUP(B167,Data!$A$6:$A$1806,Data!C$6:C$1806) -> 3746.888672 | H167: 46.39892578 | I167: 46.44004105 | L167: 0.5803577926 | M167: 3775.82368 | N167: =AVERAGE(D$79:D167) -> 3783.506054 | O167: =AVERAGE(M$79:M167) -> 3784.889527 | P167: 3728.688519 | Q167: =AVERAGE(P$79:P167) -> 3703.442955 | R167: 633 | Y167: 0 | Z167: 633 | AA167: -637.7905333 | AO167: 40098.10435 | AP167: =LOOKUP($AO167,Data!$A$6:$A$1806,Data!$B$6:$B$1806) -> 59.94200134 | AQ167: =LOOKUP($AO167,Data!$A$6:$A$1806,Data!$C$6:$C$1806) -> 3746.888672 | AR167: =LOOKUP($AO167,Data!$A$6:$A$1806,Data!$D$6:$D$1806) -> 335 | AS167: =IF($AS$1="+",LOOKUP($AO167,Data!$A$6:$A$1806,Data!$E$6:$E$1806)*-1,LOOKUP($AO167,Data!$A$6:$A$1806,Data!$E$6:$E$1806)) -> -214.8303528 | AT167: =LOOKUP($AO167,Data!$A$6:$A$1806,Data!$F$6:$F$1806) -> 0 | AU167: =LOOKUP($AO167,Data!$A$6:$A$1806,Data!$G$6:$G$1806) -> 109.5 | AV167: =LOOKUP($AO167,Data!$A$6:$A$1806,Data!$H$6:$H$1806) -> 10 | AW167: =LOOKUP($AO167,Data!$A$6:$A$1806,Data!$I$6:$I$1806) -> 0 | AX167: =LOOKUP($AO167,Data!$A$6:$A$1806,Data!$J$6:$J$1806) -> -103 | AY167: =LOOKUP($AO167,Data!$A$6:$A$1806,Data!$K$6:$K$1806) -> 7572.27 | AZ167: 46.39892578
B168: 40098.10437 | C168: =LOOKUP(B168,Data!$A$6:$A$1806,Data!B$6:B$1806) -> 59.94200134 | D168: =LOOKUP(B168,Data!$A$6:$A$1806,Data!C$6:C$1806) -> 3746.888672 | H168: 46.39892578 | I168: 46.4256507 | L168: 0.5803577926 | M168: 3776.389648 | N168: =AVERAGE(D$79:D168) -> 3783.099194 | O168: =AVERAGE(M$79:M168) -> 3784.795084 | P168: 3729.268877 | Q168: =AVERAGE(P$79:P168) -> 3703.733134 | R168: 633 | Y168: 0 | Z168: 633 | AA168: -637.7905333 | AO168: 40098.10437 | AP168: =LOOKUP($AO168,Data!$A$6:$A$1806,Data!$B$6:$B$1806) -> 59.94200134 | AQ168: =LOOKUP($AO168,Data!$A$6:$A$1806,Data!$C$6:$C$1806) -> 3746.888672 | AR168: =LOOKUP($AO168,Data!$A$6:$A$1806,Data!$D$6:$D$1806) -> 335 | AS168: =IF($AS$1="+",LOOKUP($AO168,Data!$A$6:$A$1806,Data!$E$6:$E$1806)*-1,LOOKUP($AO168,Data!$A$6:$A$1806,Data!$E$6:$E$1806)) -> -214.8303528 | AT168: =LOOKUP($AO168,Data!$A$6:$A$1806,Data!$F$6:$F$1806) -> 0 | AU168: =LOOKUP($AO168,Data!$A$6:$A$1806,Data!$G$6:$G$1806) -> 109.5 | AV168: =LOOKUP($AO168,Data!$A$6:$A$1806,Data!$H$6:$H$1806) -> 10 | AW168: =LOOKUP($AO168,Data!$A$6:$A$1806,Data!$I$6:$I$1806) -> 0 | AX168: =LOOKUP($AO168,Data!$A$6:$A$1806,Data!$J$6:$J$1806) -> -103 | AY168: =LOOKUP($AO168,Data!$A$6:$A$1806,Data!$K$6:$K$1806) -> 7572.27 | AZ168: 46.39892578
B169: 40098.1044 | C169: =LOOKUP(B169,Data!$A$6:$A$1806,Data!B$6:B$1806) -> 59.94200134 | D169: =LOOKUP(B169,Data!$A$6:$A$1806,Data!C$6:C$1806) -> 3746.888672 | H169: 46.39892578 | I169: 46.41629698 | L169: 0.5803577926 | M169: 3776.960652 | N169: =AVERAGE(D$79:D169) -> 3782.701277 | O169: =AVERAGE(M$79:M169) -> 3784.708991 | P169: 3729.849234 | Q169: =AVERAGE(P$79:P169) -> 3704.023313 | R169: 633 | Y169: 0 | Z169: 633 | AA169: -637.7905333 | AO169: 40098.1044 | AP169: =LOOKUP($AO169,Data!$A$6:$A$1806,Data!$B$6:$B$1806) -> 59.94200134 | AQ169: =LOOKUP($AO169,Data!$A$6:$A$1806,Data!$C$6:$C$1806) -> 3746.888672 | AR169: =LOOKUP($AO169,Data!$A$6:$A$1806,Data!$D$6:$D$1806) -> 335 | AS169: =IF($AS$1="+",LOOKUP($AO169,Data!$A$6:$A$1806,Data!$E$6:$E$1806)*-1,LOOKUP($AO169,Data!$A$6:$A$1806,Data!$E$6:$E$1806)) -> -214.8303528 | AT169: =LOOKUP($AO169,Data!$A$6:$A$1806,Data!$F$6:$F$1806) -> 0 | AU169: =LOOKUP($AO169,Data!$A$6:$A$1806,Data!$G$6:$G$1806) -> 109.5 | AV169: =LOOKUP($AO169,Data!$A$6:$A$1806,Data!$H$6:$H$1806) -> 10 | AW169: =LOOKUP($AO169,Data!$A$6:$A$1806,Data!$I$6:$I$1806) -> 0 | AX169: =LOOKUP($AO169,Data!$A$6:$A$1806,Data!$J$6:$J$1806) -> -103 | AY169: =LOOKUP($AO169,Data!$A$6:$A$1806,Data!$K$6:$K$1806) -> 7572.27 | AZ169: 46.39892578
B170: 40098.10442 | C170: =LOOKUP(B170,Data!$A$6:$A$1806,Data!B$6:B$1806) -> 59.9469986 | D170: =LOOKUP(B170,Data!$A$6:$A$1806,Data!C$6:C$1806) -> 3749.593262 | H170: 42.40112305 | I170: 45.0109861 | L170: 0.5803577926 | M170: 3776.135699 | N170: =AVERAGE(D$79:D170) -> 3782.341407 | O170: =AVERAGE(M$79:M170) -> 3784.615803 | P170: 3730.429592 | Q170: =AVERAGE(P$79:P170) -> 3704.313492 | R170: 633 | Y170: 0 | Z170: 633 | AA170: -671.6064029 | AO170: 40098.10442 | AP170: =LOOKUP($AO170,Data!$A$6:$A$1806,Data!$B$6:$B$1806) -> 59.9469986 | AQ170: =LOOKUP($AO170,Data!$A$6:$A$1806,Data!$C$6:$C$1806) -> 3749.593262 | AR170: =LOOKUP($AO170,Data!$A$6:$A$1806,Data!$D$6:$D$1806) -> 335 | AS170: =IF($AS$1="+",LOOKUP($AO170,Data!$A$6:$A$1806,Data!$E$6:$E$1806)*-1,LOOKUP($AO170,Data!$A$6:$A$1806,Data!$E$6:$E$1806)) -> -214.8303528 | AT170: =LOOKUP($AO170,Data!$A$6:$A$1806,Data!$F$6:$F$1806) -> 0 | AU170: =LOOKUP($AO170,Data!$A$6:$A$1806,Data!$G$6:$G$1806) -> 110 | AV170: =LOOKUP($AO170,Data!$A$6:$A$1806,Data!$H$6:$H$1806) -> 10 | AW170: =LOOKUP($AO170,Data!$A$6:$A$1806,Data!$I$6:$I$1806) -> 0 | AX170: =LOOKUP($AO170,Data!$A$6:$A$1806,Data!$J$6:$J$1806) -> -103 | AY170: =LOOKUP($AO170,Data!$A$6:$A$1806,Data!$K$6:$K$1806) -> 7572.6 | AZ170: 42.40112305
B171: 40098.10444 | C171: =LOOKUP(B171,Data!$A$6:$A$1806,Data!B$6:B$1806) -> 59.9469986 | D171: =LOOKUP(B171,Data!$A$6:$A$1806,Data!C$6:C$1806) -> 3749.593262 | H171: 42.40112305 | I171: =L$13*H171+(1-L$13)*I170 -> 44.09753403 | L171: 0.5803577926 | M171: 3775.802605 | N171: =AVERAGE(D$79:D171) -> 3781.989276 | O171: =AVERAGE(M$79:M171) -> 3784.521038 | P171: 3731.00995 | Q171: =AVERAGE(P$79:P171) -> 3704.60367 | R171: 633 | Y171: 0 | Z171: =SUM(R171:Y171) -> 633 | AA171: -671.6064029 | AO171: 40098.10444 | AP171: =LOOKUP($AO171,Data!$A$6:$A$1806,Data!$B$6:$B$1806) -> 59.9469986 | AQ171: =LOOKUP($AO171,Data!$A$6:$A$1806,Data!$C$6:$C$1806) -> 3749.593262 | AR171: =LOOKUP($AO171,Data!$A$6:$A$1806,Data!$D$6:$D$1806) -> 335 | AS171: =IF($AS$1="+",LOOKUP($AO171,Data!$A$6:$A$1806,Data!$E$6:$E$1806)*-1,LOOKUP($AO171,Data!$A$6:$A$1806,Data!$E$6:$E$1806)) -> -214.8303528 | AT171: =LOOKUP($AO171,Data!$A$6:$A$1806,Data!$F$6:$F$1806) -> 0 | AU171: =LOOKUP($AO171,Data!$A$6:$A$1806,Data!$G$6:$G$1806) -> 110 | AV171: =LOOKUP($AO171,Data!$A$6:$A$1806,Data!$H$6:$H$1806) -> 10 | AW171: =LOOKUP($AO171,Data!$A$6:$A$1806,Data!$I$6:$I$1806) -> 0 | AX171: =LOOKUP($AO171,Data!$A$6:$A$1806,Data!$J$6:$J$1806) -> -103 | AY171: =LOOKUP($AO171,Data!$A$6:$A$1806,Data!$K$6:$K$1806) -> 7572.6 | AZ171: 42.40112305
B172: 40098.10447 | C172: =LOOKUP(B172,Data!$A$6:$A$1806,Data!B$6:B$1806) -> 59.95100021 | D172: =LOOKUP(B172,Data!$A$6:$A$1806,Data!C$6:C$1806) -> 3749.076904 | H172: =(IF((C172-L$2)>0,((C172-L$2-L$5)/((L$4*L$2)-L$5)*L$3*-1),((C172-L$2+L$5)/((L$4*L$2)-L$5)*L$3*-1))) -> 39.1998291 | I172: 42.38333731 | L172: 0.5803577926 | M172: 3774.668766 | N172: =AVERAGE(D$79:D172) -> 3781.639145 | O172: =AVERAGE(M$79:M172) -> 3784.416226 | P172: 3731.590308 | Q172: =AVERAGE(P$79:P172) -> 3704.893849 | R172: 633 | Y172: 0 | Z172: 633 | AA172: -701.384923 | AO172: 40098.10447 | AP172: =LOOKUP($AO172,Data!$A$6:$A$1806,Data!$B$6:$B$1806) -> 59.95100021 | AQ172: =LOOKUP($AO172,Data!$A$6:$A$1806,Data!$C$6:$C$1806) -> 3749.076904 | AR172: =LOOKUP($AO172,Data!$A$6:$A$1806,Data!$D$6:$D$1806) -> 335 | AS172: =IF($AS$1="+",LOOKUP($AO172,Data!$A$6:$A$1806,Data!$E$6:$E$1806)*-1,LOOKUP($AO172,Data!$A$6:$A$1806,Data!$E$6:$E$1806)) -> -214.8303528 | AT172: =LOOKUP($AO172,Data!$A$6:$A$1806,Data!$F$6:$F$1806) -> 0 | AU172: =LOOKUP($AO172,Data!$A$6:$A$1806,Data!$G$6:$G$1806) -> 110.5 | AV172: =LOOKUP($AO172,Data!$A$6:$A$1806,Data!$H$6:$H$1806) -> 10 | AW172: =LOOKUP($AO172,Data!$A$6:$A$1806,Data!$I$6:$I$1806) -> 0 | AX172: =LOOKUP($AO172,Data!$A$6:$A$1806,Data!$J$6:$J$1806) -> -103 | AY172: =LOOKUP($AO172,Data!$A$6:$A$1806,Data!$K$6:$K$1806) -> 7572.93 | AZ172: =(IF((AP172-$L$2)>0,((AP172-$L$2-$L$5)/(($L$4*$L$2)-$L$5)*$L$3*-1),((AP172-$L$2+$L$5)/(($L$4*$L$2)-$L$5)*$L$3*-1))) -> 39.1998291
B173: 40098.10449 | C173: =LOOKUP(B173,Data!$A$6:$A$1806,Data!B$6:B$1806) -> 59.95100021 | D173: =LOOKUP(B173,Data!$A$6:$A$1806,Data!C$6:C$1806) -> 3749.076904 | H173: 39.1998291 | I173: 41.26910944 | L173: 0.5803577926 | M173: 3774.134896 | N173: =AVERAGE(D$79:D173) -> 3781.296384 | O173: =AVERAGE(M$79:M173) -> 3784.308002 | P173: 3732.170666 | Q173: =AVERAGE(P$79:P173) -> 3705.184028 | R173: 633 | Y173: 0 | Z173: 633 | AA173: -701.384923 | AO173: 40098.10449 | AP173: =LOOKUP($AO173,Data!$A$6:$A$1806,Data!$B$6:$B$1806) -> 59.95100021 | AQ173: =LOOKUP($AO173,Data!$A$6:$A$1806,Data!$C$6:$C$1806) -> 3749.076904 | AR173: =LOOKUP($AO173,Data!$A$6:$A$1806,Data!$D$6:$D$1806) -> 335 | AS173: =IF($AS$1="+",LOOKUP($AO173,Data!$A$6:$A$1806,Data!$E$6:$E$1806)*-1,LOOKUP($AO173,Data!$A$6:$A$1806,Data!$E$6:$E$1806)) -> -214.8303528 | AT173: =LOOKUP($AO173,Data!$A$6:$A$1806,Data!$F$6:$F$1806) -> 0 | AU173: =LOOKUP($AO173,Data!$A$6:$A$1806,Data!$G$6:$G$1806) -> 110.5 | AV173: =LOOKUP($AO173,Data!$A$6:$A$1806,Data!$H$6:$H$1806) -> 10 | AW173: =LOOKUP($AO173,Data!$A$6:$A$1806,Data!$I$6:$I$1806) -> 0 | AX173: =LOOKUP($AO173,Data!$A$6:$A$1806,Data!$J$6:$J$1806) -> -103 | AY173: =LOOKUP($AO173,Data!$A$6:$A$1806,Data!$K$6:$K$1806) -> 7572.93 | AZ173: 39.1998291
B174: =B173+TIME(0,0,$B$1) -> 40098.10451 | C174: =LOOKUP(B174,Data!$A$6:$A$1806,Data!B$6:B$1806) -> 59.95100021 | D174: =LOOKUP(B174,Data!$A$6:$A$1806,Data!C$6:C$1806) -> 3749.076904 | H174: 39.1998291 | I174: 40.54486132 | L174: 0.5803577926 | M174: 3773.991005 | N174: =AVERAGE(D$79:D174) -> 3780.960765 | O174: =AVERAGE(M$79:M174) -> 3784.200533 | P174: 3732.751023 | Q174: =AVERAGE(P$79:P174) -> 3705.474207 | R174: 633 | Y174: 0 | Z174: 633 | AA174: -701.384923 | AO174: 40098.10451 | AP174: =LOOKUP($AO174,Data!$A$6:$A$1806,Data!$B$6:$B$1806) -> 59.95100021 | AQ174: =LOOKUP($AO174,Data!$A$6:$A$1806,Data!$C$6:$C$1806) -> 3749.076904 | AR174: =LOOKUP($AO174,Data!$A$6:$A$1806,Data!$D$6:$D$1806) -> 335 | AS174: =IF($AS$1="+",LOOKUP($AO174,Data!$A$6:$A$1806,Data!$E$6:$E$1806)*-1,LOOKUP($AO174,Data!$A$6:$A$1806,Data!$E$6:$E$1806)) -> -214.8303528 | AT174: =LOOKUP($AO174,Data!$A$6:$A$1806,Data!$F$6:$F$1806) -> 0 | AU174: =LOOKUP($AO174,Data!$A$6:$A$1806,Data!$G$6:$G$1806) -> 110.5 | AV174: =LOOKUP($AO174,Data!$A$6:$A$1806,Data!$H$6:$H$1806) -> 10 | AW174: =LOOKUP($AO174,Data!$A$6:$A$1806,Data!$I$6:$I$1806) -> 0 | AX174: =LOOKUP($AO174,Data!$A$6:$A$1806,Data!$J$6:$J$1806) -> -103 | AY174: =LOOKUP($AO174,Data!$A$6:$A$1806,Data!$K$6:$K$1806) -> 7572.93 | AZ174: 39.1998291
B175: 40098.10454 | C175: =LOOKUP(B175,Data!$A$6:$A$1806,Data!B$6:B$1806) -> 59.95100021 | D175: =LOOKUP(B175,Data!$A$6:$A$1806,Data!C$6:C$1806) -> 3740.259033 | H175: 39.1998291 | I175: 40.07410004 | L175: 0.5803577926 | M175: 3774.100602 | N175: =AVERAGE(D$79:D175) -> 3780.541159 | O175: =AVERAGE(M$79:M175) -> 3784.09641 | P175: 3733.331381 | Q175: =AVERAGE(P$79:P175) -> 3705.764386 | R175: 633 | Y175: 0 | Z175: 633 | AA175: -701.384923 | AO175: 40098.10454 | AP175: =LOOKUP($AO175,Data!$A$6:$A$1806,Data!$B$6:$B$1806) -> 59.95100021 | AQ175: =LOOKUP($AO175,Data!$A$6:$A$1806,Data!$C$6:$C$1806) -> 3740.259033 | AR175: =LOOKUP($AO175,Data!$A$6:$A$1806,Data!$D$6:$D$1806) -> 335 | AS175: =IF($AS$1="+",LOOKUP($AO175,Data!$A$6:$A$1806,Data!$E$6:$E$1806)*-1,LOOKUP($AO175,Data!$A$6:$A$1806,Data!$E$6:$E$1806)) -> -214.8303528 | AT175: =LOOKUP($AO175,Data!$A$6:$A$1806,Data!$F$6:$F$1806) -> 0 | AU175: =LOOKUP($AO175,Data!$A$6:$A$1806,Data!$G$6:$G$1806) -> 111 | AV175: =LOOKUP($AO175,Data!$A$6:$A$1806,Data!$H$6:$H$1806) -> 10 | AW175: =LOOKUP($AO175,Data!$A$6:$A$1806,Data!$I$6:$I$1806) -> 0 | AX175: =LOOKUP($AO175,Data!$A$6:$A$1806,Data!$J$6:$J$1806) -> -103 | AY175: =LOOKUP($AO175,Data!$A$6:$A$1806,Data!$K$6:$K$1806) -> 7573.26 | AZ175: 39.1998291
B176: 40098.10456 | C176: =LOOKUP(B176,Data!$A$6:$A$1806,Data!B$6:B$1806) -> 59.95100021 | D176: =LOOKUP(B176,Data!$A$6:$A$1806,Data!C$6:C$1806) -> 3740.259033 | H176: 39.1998291 | I176: 39.76810521 | L176: 0.5803577926 | M176: 3774.374965 | N176: =AVERAGE(D$79:D176) -> 3780.130117 | O176: =AVERAGE(M$79:M176) -> 3783.997212 | P176: 3733.911739 | Q176: =AVERAGE(P$79:P176) -> 3706.054565 | R176: 633 | Y176: 0 | Z176: 633 | AA176: -701.384923 | AO176: 40098.10456 | AP176: =LOOKUP($AO176,Data!$A$6:$A$1806,Data!$B$6:$B$1806) -> 59.95100021 | AQ176: =LOOKUP($AO176,Data!$A$6:$A$1806,Data!$C$6:$C$1806) -> 3740.259033 | AR176: =LOOKUP($AO176,Data!$A$6:$A$1806,Data!$D$6:$D$1806) -> 335 | AS176: =IF($AS$1="+",LOOKUP($AO176,Data!$A$6:$A$1806,Data!$E$6:$E$1806)*-1,LOOKUP($AO176,Data!$A$6:$A$1806,Data!$E$6:$E$1806)) -> -214.8303528 | AT176: =LOOKUP($AO176,Data!$A$6:$A$1806,Data!$F$6:$F$1806) -> 0 | AU176: =LOOKUP($AO176,Data!$A$6:$A$1806,Data!$G$6:$G$1806) -> 111 | AV176: =LOOKUP($AO176,Data!$A$6:$A$1806,Data!$H$6:$H$1806) -> 10 | AW176: =LOOKUP($AO176,Data!$A$6:$A$1806,Data!$I$6:$I$1806) -> 0 | AX176: =LOOKUP($AO176,Data!$A$6:$A$1806,Data!$J$6:$J$1806) -> -103 | AY176: =LOOKUP($AO176,Data!$A$6:$A$1806,Data!$K$6:$K$1806) -> 7573.26 | AZ176: 39.1998291
B177: 40098.10458 | C177: =LOOKUP(B177,Data!$A$6:$A$1806,Data!B$6:B$1806) -> 59.95199966 | D177: =LOOKUP(B177,Data!$A$6:$A$1806,Data!C$6:C$1806) -> 3727.838379 | H177: 38.40026855 | I177: 39.28936238 | L177: 0.5803577926 | M177: 3774.47658 | N177: =AVERAGE(D$79:D177) -> 3779.601918 | O177: =AVERAGE(M$79:M177) -> 3783.901044 | P177: 3734.492097 | Q177: =AVERAGE(P$79:P177) -> 3706.344744 | R177: 633 | Y177: 0 | Z177: 633 | AA177: -709.239211 | AO177: 40098.10458 | AP177: =LOOKUP($AO177,Data!$A$6:$A$1806,Data!$B$6:$B$1806) -> 59.95199966 | AQ177: =LOOKUP($AO177,Data!$A$6:$A$1806,Data!$C$6:$C$1806) -> 3727.838379 | AR177: =LOOKUP($AO177,Data!$A$6:$A$1806,Data!$D$6:$D$1806) -> 335 | AS177: =IF($AS$1="+",LOOKUP($AO177,Data!$A$6:$A$1806,Data!$E$6:$E$1806)*-1,LOOKUP($AO177,Data!$A$6:$A$1806,Data!$E$6:$E$1806)) -> -214.8303528 | AT177: =LOOKUP($AO177,Data!$A$6:$A$1806,Data!$F$6:$F$1806) -> 0 | AU177: =LOOKUP($AO177,Data!$A$6:$A$1806,Data!$G$6:$G$1806) -> 111.5 | AV177: =LOOKUP($AO177,Data!$A$6:$A$1806,Data!$H$6:$H$1806) -> 10 | AW177: =LOOKUP($AO177,Data!$A$6:$A$1806,Data!$I$6:$I$1806) -> 0 | AX177: =LOOKUP($AO177,Data!$A$6:$A$1806,Data!$J$6:$J$1806) -> -103 | AY177: =LOOKUP($AO177,Data!$A$6:$A$1806,Data!$K$6:$K$1806) -> 7573.59 | AZ177: 38.40026855
B178: 40098.10461 | C178: =LOOKUP(B178,Data!$A$6:$A$1806,Data!B$6:B$1806) -> 59.95199966 | D178: =LOOKUP(B178,Data!$A$6:$A$1806,Data!C$6:C$1806) -> 3727.838379 | H178: 38.40026855 | I178: 38.97817954 | L178: 0.5803577926 | M178: 3774.745755 | N178: =AVERAGE(D$79:D178) -> 3779.084282 | O178: =AVERAGE(M$79:M178) -> 3783.809491 | P178: 3735.072455 | Q178: =AVERAGE(P$79:P178) -> 3706.634923 | R178: 633 | Y178: 0 | Z178: 633 | AA178: -709.239211 | AO178: 40098.10461 | AP178: =LOOKUP($AO178,Data!$A$6:$A$1806,Data!$B$6:$B$1806) -> 59.95199966 | AQ178: =LOOKUP($AO178,Data!$A$6:$A$1806,Data!$C$6:$C$1806) -> 3727.838379 | AR178: =LOOKUP($AO178,Data!$A$6:$A$1806,Data!$D$6:$D$1806) -> 335 | AS178: =IF($AS$1="+",LOOKUP($AO178,Data!$A$6:$A$1806,Data!$E$6:$E$1806)*-1,LOOKUP($AO178,Data!$A$6:$A$1806,Data!$E$6:$E$1806)) -> -214.8303528 | AT178: =LOOKUP($AO178,Data!$A$6:$A$1806,Data!$F$6:$F$1806) -> 0 | AU178: =LOOKUP($AO178,Data!$A$6:$A$1806,Data!$G$6:$G$1806) -> 111.5 | AV178: =LOOKUP($AO178,Data!$A$6:$A$1806,Data!$H$6:$H$1806) -> 10 | AW178: =LOOKUP($AO178,Data!$A$6:$A$1806,Data!$I$6:$I$1806) -> 0 | AX178: =LOOKUP($AO178,Data!$A$6:$A$1806,Data!$J$6:$J$1806) -> -103 | AY178: =LOOKUP($AO178,Data!$A$6:$A$1806,Data!$K$6:$K$1806) -> 7573.59 | AZ178: 38.40026855
B179: 40098.10463 | C179: =LOOKUP(B179,Data!$A$6:$A$1806,Data!B$6:B$1806) -> 59.95199966 | D179: =LOOKUP(B179,Data!$A$6:$A$1806,Data!C$6:C$1806) -> 3727.838379 | H179: 38.40026855 | I179: 38.7759107 | L179: 0.5803577926 | M179: 3775.123844 | N179: =AVERAGE(D$79:D179) -> 3778.576897 | O179: =AVERAGE(M$79:M179) -> 3783.723494 | P179: 3735.652812 | Q179: =AVERAGE(P$79:P179) -> 3706.925102 | R179: 633 | Y179: 0 | Z179: 633 | AA179: -709.239211 | AO179: 40098.10463 | AP179: =LOOKUP($AO179,Data!$A$6:$A$1806,Data!$B$6:$B$1806) -> 59.95199966 | AQ179: =LOOKUP($AO179,Data!$A$6:$A$1806,Data!$C$6:$C$1806) -> 3727.838379 | AR179: =LOOKUP($AO179,Data!$A$6:$A$1806,Data!$D$6:$D$1806) -> 335 | AS179: =IF($AS$1="+",LOOKUP($AO179,Data!$A$6:$A$1806,Data!$E$6:$E$1806)*-1,LOOKUP($AO179,Data!$A$6:$A$1806,Data!$E$6:$E$1806)) -> -214.8303528 | AT179: =LOOKUP($AO179,Data!$A$6:$A$1806,Data!$F$6:$F$1806) -> 0 | AU179: =LOOKUP($AO179,Data!$A$6:$A$1806,Data!$G$6:$G$1806) -> 111.5 | AV179: =LOOKUP($AO179,Data!$A$6:$A$1806,Data!$H$6:$H$1806) -> 10 | AW179: =LOOKUP($AO179,Data!$A$6:$A$1806,Data!$I$6:$I$1806) -> 0 | AX179: =LOOKUP($AO179,Data!$A$6:$A$1806,Data!$J$6:$J$1806) -> -103 | AY179: =LOOKUP($AO179,Data!$A$6:$A$1806,Data!$K$6:$K$1806) -> 7573.59 | AZ179: 38.40026855
B180: 40098.10465 | C180: =LOOKUP(B180,Data!$A$6:$A$1806,Data!B$6:B$1806) -> 59.95199966 | D180: =LOOKUP(B180,Data!$A$6:$A$1806,Data!C$6:C$1806) -> 3722.648926 | H180: 38.40026855 | I180: 38.64443595 | L180: 0.5803577926 | M180: 3775.572727 | N180: =AVERAGE(D$79:D180) -> 3778.028584 | O180: =AVERAGE(M$79:M180) -> 3783.643585 | P180: 3736.23317 | Q180: =AVERAGE(P$79:P180) -> 3707.215281 | R180: 633 | Y180: 0 | Z180: 633 | AA180: -709.239211 | AO180: 40098.10465 | AP180: =LOOKUP($AO180,Data!$A$6:$A$1806,Data!$B$6:$B$1806) -> 59.95199966 | AQ180: =LOOKUP($AO180,Data!$A$6:$A$1806,Data!$C$6:$C$1806) -> 3722.648926 | AR180: =LOOKUP($AO180,Data!$A$6:$A$1806,Data!$D$6:$D$1806) -> 335 | AS180: =IF($AS$1="+",LOOKUP($AO180,Data!$A$6:$A$1806,Data!$E$6:$E$1806)*-1,LOOKUP($AO180,Data!$A$6:$A$1806,Data!$E$6:$E$1806)) -> -227.6559143 | AT180: =LOOKUP($AO180,Data!$A$6:$A$1806,Data!$F$6:$F$1806) -> 0 | AU180: =LOOKUP($AO180,Data!$A$6:$A$1806,Data!$G$6:$G$1806) -> 112 | AV180: =LOOKUP($AO180,Data!$A$6:$A$1806,Data!$H$6:$H$1806) -> 10 | AW180: =LOOKUP($AO180,Data!$A$6:$A$1806,Data!$I$6:$I$1806) -> 0 | AX180: =LOOKUP($AO180,Data!$A$6:$A$1806,Data!$J$6:$J$1806) -> -103 | AY180: =LOOKUP($AO180,Data!$A$6:$A$1806,Data!$K$6:$K$1806) -> 7573.92 | AZ180: 38.40026855
B181: 40098.10468 | C181: =LOOKUP(B181,Data!$A$6:$A$1806,Data!B$6:B$1806) -> 59.95199966 | D181: =LOOKUP(B181,Data!$A$6:$A$1806,Data!C$6:C$1806) -> 3722.648926 | H181: 38.40026855 | I181: 38.55897736 | L181: 0.5803577926 | M181: 3776.067626 | N181: =AVERAGE(D$79:D181) -> 3777.490917 | O181: =AVERAGE(M$79:M181) -> 3783.570032 | P181: 3736.813528 | Q181: =AVERAGE(P$79:P181) -> 3707.505459 | R181: 633 | Y181: 0 | Z181: 633 | AA181: -709.239211 | AO181: 40098.10468 | AP181: =LOOKUP($AO181,Data!$A$6:$A$1806,Data!$B$6:$B$1806) -> 59.95199966 | AQ181: =LOOKUP($AO181,Data!$A$6:$A$1806,Data!$C$6:$C$1806) -> 3722.648926 | AR181: =LOOKUP($AO181,Data!$A$6:$A$1806,Data!$D$6:$D$1806) -> 335 | AS181: =IF($AS$1="+",LOOKUP($AO181,Data!$A$6:$A$1806,Data!$E$6:$E$1806)*-1,LOOKUP($AO181,Data!$A$6:$A$1806,Data!$E$6:$E$1806)) -> -227.6559143 | AT181: =LOOKUP($AO181,Data!$A$6:$A$1806,Data!$F$6:$F$1806) -> 0 | AU181: =LOOKUP($AO181,Data!$A$6:$A$1806,Data!$G$6:$G$1806) -> 112 | AV181: =LOOKUP($AO181,Data!$A$6:$A$1806,Data!$H$6:$H$1806) -> 10 | AW181: =LOOKUP($AO181,Data!$A$6:$A$1806,Data!$I$6:$I$1806) -> 0 | AX181: =LOOKUP($AO181,Data!$A$6:$A$1806,Data!$J$6:$J$1806) -> -103 | AY181: =LOOKUP($AO181,Data!$A$6:$A$1806,Data!$K$6:$K$1806) -> 7573.92 | AZ181: 38.40026855
B182: 40098.1047 | C182: =LOOKUP(B182,Data!$A$6:$A$1806,Data!B$6:B$1806) -> 59.95199966 | D182: =LOOKUP(B182,Data!$A$6:$A$1806,Data!C$6:C$1806) -> 3718.141846 | H182: 38.40026855 | I182: 38.50342928 | L182: 0.5803577926 | M182: 3776.592436 | N182: =AVERAGE(D$79:D182) -> 3776.920253 | O182: =AVERAGE(M$79:M182) -> 3783.502939 | P182: 3737.393886 | Q182: =AVERAGE(P$79:P182) -> 3707.795638 | R182: 633 | Y182: 0 | Z182: 633 | AA182: -709.239211 | AO182: 40098.1047 | AP182: =LOOKUP($AO182,Data!$A$6:$A$1806,Data!$B$6:$B$1806) -> 59.95199966 | AQ182: =LOOKUP($AO182,Data!$A$6:$A$1806,Data!$C$6:$C$1806) -> 3718.141846 | AR182: =LOOKUP($AO182,Data!$A$6:$A$1806,Data!$D$6:$D$1806) -> 335 | AS182: =IF($AS$1="+",LOOKUP($AO182,Data!$A$6:$A$1806,Data!$E$6:$E$1806)*-1,LOOKUP($AO182,Data!$A$6:$A$1806,Data!$E$6:$E$1806)) -> -227.6559143 | AT182: =LOOKUP($AO182,Data!$A$6:$A$1806,Data!$F$6:$F$1806) -> 0 | AU182: =LOOKUP($AO182,Data!$A$6:$A$1806,Data!$G$6:$G$1806) -> 112.5 | AV182: =LOOKUP($AO182,Data!$A$6:$A$1806,Data!$H$6:$H$1806) -> 10 | AW182: =LOOKUP($AO182,Data!$A$6:$A$1806,Data!$I$6:$I$1806) -> 0 | AX182: =LOOKUP($AO182,Data!$A$6:$A$1806,Data!$J$6:$J$1806) -> -103 | AY182: =LOOKUP($AO182,Data!$A$6:$A$1806,Data!$K$6:$K$1806) -> 7574.25 | AZ182: 38.40026855
B183: 40098.10472 | C183: =LOOKUP(B183,Data!$A$6:$A$1806,Data!B$6:B$1806) -> 59.95199966 | D183: =LOOKUP(B183,Data!$A$6:$A$1806,Data!C$6:C$1806) -> 3718.141846 | H183: 38.40026855 | I183: 38.46732302 | L183: 0.5803577926 | M183: 3777.136687 | N183: =AVERAGE(D$79:D183) -> 3776.360459 | O183: =AVERAGE(M$79:M183) -> 3783.442308 | P183: 3737.974244 | Q183: =AVERAGE(P$79:P183) -> 3708.085817 | R183: 633 | Y183: 0 | Z183: 633 | AA183: -709.239211 | AO183: 40098.10472 | AP183: =LOOKUP($AO183,Data!$A$6:$A$1806,Data!$B$6:$B$1806) -> 59.95199966 | AQ183: =LOOKUP($AO183,Data!$A$6:$A$1806,Data!$C$6:$C$1806) -> 3718.141846 | AR183: =LOOKUP($AO183,Data!$A$6:$A$1806,Data!$D$6:$D$1806) -> 335 | AS183: =IF($AS$1="+",LOOKUP($AO183,Data!$A$6:$A$1806,Data!$E$6:$E$1806)*-1,LOOKUP($AO183,Data!$A$6:$A$1806,Data!$E$6:$E$1806)) -> -227.6559143 | AT183: =LOOKUP($AO183,Data!$A$6:$A$1806,Data!$F$6:$F$1806) -> 0 | AU183: =LOOKUP($AO183,Data!$A$6:$A$1806,Data!$G$6:$G$1806) -> 112.5 | AV183: =LOOKUP($AO183,Data!$A$6:$A$1806,Data!$H$6:$H$1806) -> 10 | AW183: =LOOKUP($AO183,Data!$A$6:$A$1806,Data!$I$6:$I$1806) -> 0 | AX183: =LOOKUP($AO183,Data!$A$6:$A$1806,Data!$J$6:$J$1806) -> -103 | AY183: =LOOKUP($AO183,Data!$A$6:$A$1806,Data!$K$6:$K$1806) -> 7574.25 | AZ183: 38.40026855
B184: 40098.10475 | C184: =LOOKUP(B184,Data!$A$6:$A$1806,Data!B$6:B$1806) -> 59.95199966 | D184: =LOOKUP(B184,Data!$A$6:$A$1806,Data!C$6:C$1806) -> 3718.141846 | H184: 38.40026855 | I184: 38.44385396 | L184: 0.5803577926 | M184: 3777.693576 | N184: =AVERAGE(D$79:D184) -> 3775.811226 | O184: =AVERAGE(M$79:M184) -> 3783.388075 | P184: 3738.554601 | Q184: =AVERAGE(P$79:P184) -> 3708.375996 | R184: 633 | Y184: 0 | Z184: 633 | AA184: -709.239211 | AO184: 40098.10475 | AP184: =LOOKUP($AO184,Data!$A$6:$A$1806,Data!$B$6:$B$1806) -> 59.95199966 | AQ184: =LOOKUP($AO184,Data!$A$6:$A$1806,Data!$C$6:$C$1806) -> 3718.141846 | AR184: =LOOKUP($AO184,Data!$A$6:$A$1806,Data!$D$6:$D$1806) -> 335 | AS184: =IF($AS$1="+",LOOKUP($AO184,Data!$A$6:$A$1806,Data!$E$6:$E$1806)*-1,LOOKUP($AO184,Data!$A$6:$A$1806,Data!$E$6:$E$1806)) -> -227.6559143 | AT184: =LOOKUP($AO184,Data!$A$6:$A$1806,Data!$F$6:$F$1806) -> 0 | AU184: =LOOKUP($AO184,Data!$A$6:$A$1806,Data!$G$6:$G$1806) -> 112.5 | AV184: =LOOKUP($AO184,Data!$A$6:$A$1806,Data!$H$6:$H$1806) -> 10 | AW184: =LOOKUP($AO184,Data!$A$6:$A$1806,Data!$I$6:$I$1806) -> 0 | AX184: =LOOKUP($AO184,Data!$A$6:$A$1806,Data!$J$6:$J$1806) -> -103 | AY184: =LOOKUP($AO184,Data!$A$6:$A$1806,Data!$K$6:$K$1806) -> 7574.25 | AZ184: 38.40026855
B185: 40098.10477 | C185: =LOOKUP(B185,Data!$A$6:$A$1806,Data!B$6:B$1806) -> 59.95199966 | D185: =LOOKUP(B185,Data!$A$6:$A$1806,Data!C$6:C$1806) -> 3713.693848 | H185: 38.40026855 | I185: 38.42859907 | L185: 0.5803577926 | M185: 3778.258679 | N185: =AVERAGE(D$79:D185) -> 3775.23069 | O185: =AVERAGE(M$79:M185) -> 3783.340137 | P185: 3739.134959 | Q185: =AVERAGE(P$79:P185) -> 3708.666175 | R185: 633 | Y185: 0 | Z185: 633 | AA185: -709.239211 | AO185: 40098.10477 | AP185: =LOOKUP($AO185,Data!$A$6:$A$1806,Data!$B$6:$B$1806) -> 59.95199966 | AQ185: =LOOKUP($AO185,Data!$A$6:$A$1806,Data!$C$6:$C$1806) -> 3713.693848 | AR185: =LOOKUP($AO185,Data!$A$6:$A$1806,Data!$D$6:$D$1806) -> 335 | AS185: =IF($AS$1="+",LOOKUP($AO185,Data!$A$6:$A$1806,Data!$E$6:$E$1806)*-1,LOOKUP($AO185,Data!$A$6:$A$1806,Data!$E$6:$E$1806)) -> -227.6559143 | AT185: =LOOKUP($AO185,Data!$A$6:$A$1806,Data!$F$6:$F$1806) -> 0 | AU185: =LOOKUP($AO185,Data!$A$6:$A$1806,Data!$G$6:$G$1806) -> 113 | AV185: =LOOKUP($AO185,Data!$A$6:$A$1806,Data!$H$6:$H$1806) -> 10 | AW185: =LOOKUP($AO185,Data!$A$6:$A$1806,Data!$I$6:$I$1806) -> 0 | AX185: =LOOKUP($AO185,Data!$A$6:$A$1806,Data!$J$6:$J$1806) -> -103 | AY185: =LOOKUP($AO185,Data!$A$6:$A$1806,Data!$K$6:$K$1806) -> 7574.58 | AZ185: 38.40026855
B186: 40098.10479 | C186: =LOOKUP(B186,Data!$A$6:$A$1806,Data!B$6:B$1806) -> 59.95199966 | D186: =LOOKUP(B186,Data!$A$6:$A$1806,Data!C$6:C$1806) -> 3713.693848 | H186: 38.40026855 | I186: 38.41868339 | L186: 0.5803577926 | M186: 3778.829121 | N186: =AVERAGE(D$79:D186) -> 3774.660904 | O186: =AVERAGE(M$79:M186) -> 3783.298368 | P186: 3739.715317 | Q186: =AVERAGE(P$79:P186) -> 3708.956354 | R186: 633 | Y186: 0 | Z186: 633 | AA186: -709.239211 | AO186: 40098.10479 | AP186: =LOOKUP($AO186,Data!$A$6:$A$1806,Data!$B$6:$B$1806) -> 59.95199966 | AQ186: =LOOKUP($AO186,Data!$A$6:$A$1806,Data!$C$6:$C$1806) -> 3713.693848 | AR186: =LOOKUP($AO186,Data!$A$6:$A$1806,Data!$D$6:$D$1806) -> 335 | AS186: =IF($AS$1="+",LOOKUP($AO186,Data!$A$6:$A$1806,Data!$E$6:$E$1806)*-1,LOOKUP($AO186,Data!$A$6:$A$1806,Data!$E$6:$E$1806)) -> -227.6559143 | AT186: =LOOKUP($AO186,Data!$A$6:$A$1806,Data!$F$6:$F$1806) -> 0 | AU186: =LOOKUP($AO186,Data!$A$6:$A$1806,Data!$G$6:$G$1806) -> 113 | AV186: =LOOKUP($AO186,Data!$A$6:$A$1806,Data!$H$6:$H$1806) -> 10 | AW186: =LOOKUP($AO186,Data!$A$6:$A$1806,Data!$I$6:$I$1806) -> 0 | AX186: =LOOKUP($AO186,Data!$A$6:$A$1806,Data!$J$6:$J$1806) -> -103 | AY186: =LOOKUP($AO186,Data!$A$6:$A$1806,Data!$K$6:$K$1806) -> 7574.58 | AZ186: 38.40026855
B187: 40098.10481 | C187: =LOOKUP(B187,Data!$A$6:$A$1806,Data!B$6:B$1806) -> 59.95399857 | D187: =LOOKUP(B187,Data!$A$6:$A$1806,Data!C$6:C$1806) -> 3710.810059 | H187: 36.80114746 | I187: 37.85254581 | L187: 0.5803577926 | M187: 3778.843341 | N187: =AVERAGE(D$79:D187) -> 3774.075117 | O187: =AVERAGE(M$79:M187) -> 3783.257496 | P187: 3740.295675 | Q187: =AVERAGE(P$79:P187) -> 3709.246533 | R187: 633 | Y187: 0 | Z187: 633 | AA187: -725.487603 | AO187: 40098.10481 | AP187: =LOOKUP($AO187,Data!$A$6:$A$1806,Data!$B$6:$B$1806) -> 59.95399857 | AQ187: =LOOKUP($AO187,Data!$A$6:$A$1806,Data!$C$6:$C$1806) -> 3710.810059 | AR187: =LOOKUP($AO187,Data!$A$6:$A$1806,Data!$D$6:$D$1806) -> 335 | AS187: =IF($AS$1="+",LOOKUP($AO187,Data!$A$6:$A$1806,Data!$E$6:$E$1806)*-1,LOOKUP($AO187,Data!$A$6:$A$1806,Data!$E$6:$E$1806)) -> -227.6559143 | AT187: =LOOKUP($AO187,Data!$A$6:$A$1806,Data!$F$6:$F$1806) -> 0 | AU187: =LOOKUP($AO187,Data!$A$6:$A$1806,Data!$G$6:$G$1806) -> 113.5 | AV187: =LOOKUP($AO187,Data!$A$6:$A$1806,Data!$H$6:$H$1806) -> 10 | AW187: =LOOKUP($AO187,Data!$A$6:$A$1806,Data!$I$6:$I$1806) -> 0 | AX187: =LOOKUP($AO187,Data!$A$6:$A$1806,Data!$J$6:$J$1806) -> -103 | AY187: =LOOKUP($AO187,Data!$A$6:$A$1806,Data!$K$6:$K$1806) -> 7574.91 | AZ187: 36.80114746
B188: 40098.10484 | C188: =LOOKUP(B188,Data!$A$6:$A$1806,Data!B$6:B$1806) -> 59.95399857 | D188: =LOOKUP(B188,Data!$A$6:$A$1806,Data!C$6:C$1806) -> 3710.810059 | H188: 36.80114746 | I188: 37.48455639 | L188: 0.5803577926 | M188: 3779.055709 | N188: =AVERAGE(D$79:D188) -> 3773.49998 | O188: =AVERAGE(M$79:M188) -> 3783.219298 | P188: 3740.876033 | Q188: =AVERAGE(P$79:P188) -> 3709.536712 | R188: 633 | Y188: 0 | Z188: 633 | AA188: -725.487603 | AO188: 40098.10484 | AP188: =LOOKUP($AO188,Data!$A$6:$A$1806,Data!$B$6:$B$1806) -> 59.95399857 | AQ188: =LOOKUP($AO188,Data!$A$6:$A$1806,Data!$C$6:$C$1806) -> 3710.810059 | AR188: =LOOKUP($AO188,Data!$A$6:$A$1806,Data!$D$6:$D$1806) -> 335 | AS188: =IF($AS$1="+",LOOKUP($AO188,Data!$A$6:$A$1806,Data!$E$6:$E$1806)*-1,LOOKUP($AO188,Data!$A$6:$A$1806,Data!$E$6:$E$1806)) -> -227.6559143 | AT188: =LOOKUP($AO188,Data!$A$6:$A$1806,Data!$F$6:$F$1806) -> 0 | AU188: =LOOKUP($AO188,Data!$A$6:$A$1806,Data!$G$6:$G$1806) -> 113.5 | AV188: =LOOKUP($AO188,Data!$A$6:$A$1806,Data!$H$6:$H$1806) -> 10 | AW188: =LOOKUP($AO188,Data!$A$6:$A$1806,Data!$I$6:$I$1806) -> 0 | AX188: =LOOKUP($AO188,Data!$A$6:$A$1806,Data!$J$6:$J$1806) -> -103 | AY188: =LOOKUP($AO188,Data!$A$6:$A$1806,Data!$K$6:$K$1806) -> 7574.91 | AZ188: 36.80114746
B189: 40098.10486 | C189: =LOOKUP(B189,Data!$A$6:$A$1806,Data!B$6:B$1806) -> 59.95399857 | D189: =LOOKUP(B189,Data!$A$6:$A$1806,Data!C$6:C$1806) -> 3710.810059 | H189: 36.80114746 | I189: 37.24536327 | L189: 0.5803577926 | M189: 3779.396874 | N189: =AVERAGE(D$79:D189) -> 3772.935206 | O189: =AVERAGE(M$79:M189) -> 3783.184862 | P189: 3741.45639 | Q189: =AVERAGE(P$79:P189) -> 3709.826891 | R189: 633 | Y189: 0 | Z189: 633 | AA189: -725.487603 | AO189: 40098.10486 | AP189: =LOOKUP($AO189,Data!$A$6:$A$1806,Data!$B$6:$B$1806) -> 59.95399857 | AQ189: =LOOKUP($AO189,Data!$A$6:$A$1806,Data!$C$6:$C$1806) -> 3710.810059 | AR189: =LOOKUP($AO189,Data!$A$6:$A$1806,Data!$D$6:$D$1806) -> 335 | AS189: =IF($AS$1="+",LOOKUP($AO189,Data!$A$6:$A$1806,Data!$E$6:$E$1806)*-1,LOOKUP($AO189,Data!$A$6:$A$1806,Data!$E$6:$E$1806)) -> -227.6559143 | AT189: =LOOKUP($AO189,Data!$A$6:$A$1806,Data!$F$6:$F$1806) -> 0 | AU189: =LOOKUP($AO189,Data!$A$6:$A$1806,Data!$G$6:$G$1806) -> 113.5 | AV189: =LOOKUP($AO189,Data!$A$6:$A$1806,Data!$H$6:$H$1806) -> 10 | AW189: =LOOKUP($AO189,Data!$A$6:$A$1806,Data!$I$6:$I$1806) -> 0 | AX189: =LOOKUP($AO189,Data!$A$6:$A$1806,Data!$J$6:$J$1806) -> -103 | AY189: =LOOKUP($AO189,Data!$A$6:$A$1806,Data!$K$6:$K$1806) -> 7574.91 | AZ189: 36.80114746
B190: 40098.10488 | C190: =LOOKUP(B190,Data!$A$6:$A$1806,Data!B$6:B$1806) -> 59.95600128 | D190: =LOOKUP(B190,Data!$A$6:$A$1806,Data!C$6:C$1806) -> 3714.622559 | H190: 35.19897461 | I190: 36.52912724 | L190: 0.5803577926 | M190: 3779.260996 | N190: =AVERAGE(D$79:D190) -> 3772.414557 | O190: =AVERAGE(M$79:M190) -> 3783.149827 | P190: 3742.036748 | Q190: =AVERAGE(P$79:P190) -> 3710.11707 | R190: 633 | Y190: 0 | Z190: 633 | AA190: -742.5311646 | AO190: 40098.10488 | AP190: =LOOKUP($AO190,Data!$A$6:$A$1806,Data!$B$6:$B$1806) -> 59.95600128 | AQ190: =LOOKUP($AO190,Data!$A$6:$A$1806,Data!$C$6:$C$1806) -> 3714.622559 | AR190: =LOOKUP($AO190,Data!$A$6:$A$1806,Data!$D$6:$D$1806) -> 335 | AS190: =IF($AS$1="+",LOOKUP($AO190,Data!$A$6:$A$1806,Data!$E$6:$E$1806)*-1,LOOKUP($AO190,Data!$A$6:$A$1806,Data!$E$6:$E$1806)) -> -227.6559143 | AT190: =LOOKUP($AO190,Data!$A$6:$A$1806,Data!$F$6:$F$1806) -> 0 | AU190: =LOOKUP($AO190,Data!$A$6:$A$1806,Data!$G$6:$G$1806) -> 114 | AV190: =LOOKUP($AO190,Data!$A$6:$A$1806,Data!$H$6:$H$1806) -> 10 | AW190: =LOOKUP($AO190,Data!$A$6:$A$1806,Data!$I$6:$I$1806) -> 0 | AX190: =LOOKUP($AO190,Data!$A$6:$A$1806,Data!$J$6:$J$1806) -> -103 | AY190: =LOOKUP($AO190,Data!$A$6:$A$1806,Data!$K$6:$K$1806) -> 7575.24 | AZ190: 35.19897461
B191: 40098.10491 | C191: =LOOKUP(B191,Data!$A$6:$A$1806,Data!B$6:B$1806) -> 59.95600128 | D191: =LOOKUP(B191,Data!$A$6:$A$1806,Data!C$6:C$1806) -> 3714.622559 | H191: 35.19897461 | I191: 36.06357382 | L191: 0.5803577926 | M191: 3779.3758 | N191: =AVERAGE(D$79:D191) -> 3771.903124 | O191: =AVERAGE(M$79:M191) -> 3783.116429 | P191: 3742.617106 | Q191: =AVERAGE(P$79:P191) -> 3710.407248 | R191: 633 | Y191: 0 | Z191: 633 | AA191: -742.5311646 | AO191: 40098.10491 | AP191: =LOOKUP($AO191,Data!$A$6:$A$1806,Data!$B$6:$B$1806) -> 59.95600128 | AQ191: =LOOKUP($AO191,Data!$A$6:$A$1806,Data!$C$6:$C$1806) -> 3714.622559 | AR191: =LOOKUP($AO191,Data!$A$6:$A$1806,Data!$D$6:$D$1806) -> 335 | AS191: =IF($AS$1="+",LOOKUP($AO191,Data!$A$6:$A$1806,Data!$E$6:$E$1806)*-1,LOOKUP($AO191,Data!$A$6:$A$1806,Data!$E$6:$E$1806)) -> -227.6559143 | AT191: =LOOKUP($AO191,Data!$A$6:$A$1806,Data!$F$6:$F$1806) -> 0 | AU191: =LOOKUP($AO191,Data!$A$6:$A$1806,Data!$G$6:$G$1806) -> 114 | AV191: =LOOKUP($AO191,Data!$A$6:$A$1806,Data!$H$6:$H$1806) -> 10 | AW191: =LOOKUP($AO191,Data!$A$6:$A$1806,Data!$I$6:$I$1806) -> 0 | AX191: =LOOKUP($AO191,Data!$A$6:$A$1806,Data!$J$6:$J$1806) -> -103 | AY191: =LOOKUP($AO191,Data!$A$6:$A$1806,Data!$K$6:$K$1806) -> 7575.24 | AZ191: 35.19897461
B192: 40098.10493 | C192: =LOOKUP(B192,Data!$A$6:$A$1806,Data!B$6:B$1806) -> 59.95600128 | D192: =LOOKUP(B192,Data!$A$6:$A$1806,Data!C$6:C$1806) -> 3716.461426 | H192: 35.19897461 | I192: 35.76096409 | L192: 0.5803577926 | M192: 3779.653548 | N192: =AVERAGE(D$79:D192) -> 3771.416793 | O192: =AVERAGE(M$79:M192) -> 3783.086053 | P192: 3743.197464 | Q192: =AVERAGE(P$79:P192) -> 3710.697427 | R192: 633 | Y192: 0 | Z192: 633 | AA192: -742.5311646 | AO192: 40098.10493 | AP192: =LOOKUP($AO192,Data!$A$6:$A$1806,Data!$B$6:$B$1806) -> 59.95600128 | AQ192: =LOOKUP($AO192,Data!$A$6:$A$1806,Data!$C$6:$C$1806) -> 3716.461426 | AR192: =LOOKUP($AO192,Data!$A$6:$A$1806,Data!$D$6:$D$1806) -> 335 | AS192: =IF($AS$1="+",LOOKUP($AO192,Data!$A$6:$A$1806,Data!$E$6:$E$1806)*-1,LOOKUP($AO192,Data!$A$6:$A$1806,Data!$E$6:$E$1806)) -> -225.0180817 | AT192: =LOOKUP($AO192,Data!$A$6:$A$1806,Data!$F$6:$F$1806) -> 0 | AU192: =LOOKUP($AO192,Data!$A$6:$A$1806,Data!$G$6:$G$1806) -> 114.5 | AV192: =LOOKUP($AO192,Data!$A$6:$A$1806,Data!$H$6:$H$1806) -> 10 | AW192: =LOOKUP($AO192,Data!$A$6:$A$1806,Data!$I$6:$I$1806) -> 0 | AX192: =LOOKUP($AO192,Data!$A$6:$A$1806,Data!$J$6:$J$1806) -> -103 | AY192: =LOOKUP($AO192,Data!$A$6:$A$1806,Data!$K$6:$K$1806) -> 7575.57 | AZ192: 35.19897461
